Workbook

Sheet Intro
C3: Appraisal of Non-Structural Responses
B6: This spreadsheet is intended to allow a user to estimate the benefits of non-structural responses to flood risk under current conditions, and under theoretical scenarios. With current data it is intended to offer a high level (national-scale) calculation. It is accompanied by a short user guide and full report that explain how to input data and the background and limitations of this spreadsheet.
B8: The underlying methodology is the extended FWRBP model developed by Halcrow, based on the FWRBP method developed by the Flood Hazard Research Centre (Middlesex University) as part of a FLOODsite report (T10-07-12, 2008).
B10: Tab colours: | D10: To get started, click on one of the buttons below:
B11: Key input tabs for a baseline assessment | D11: Change the Key Settings >>
B13: Key results tabs | D13: Damage Inputs >>
B15: Tabs for scenario analysis
B17: Guide to the tabs: This list summarises the purpose of each tab, including tabs that may be hidden due to chosen settings
B18: Intro
B20: Dashboard | C20: Summary of key results
B22: Settings | C22: Main settings: including working with assets, scenarios, upper and lower bounds, confidence levels
B24: Damage Inputs | C24: Input values for damages with and without assets in place, for the baseline and scenario cases
B26: Assets Inputs | C26: Input values for working with assets (when they cannot be assumed to be 100% effective)
B28: Assets | C28: Calculation of the benefits of working with assets, including main input values
B30: Res Inputs | C30: Input values for property-level protection for residential properties
B32: Res Calcs | C32: Calculation of the benefits of property-level flood protection for residential properties
B34: Non-Res Inputs | C34: Input values for property-level protection for non-residential properties
B36: Non-Res | C36: Calculation of the benefits of property-level flood protection for non-residential properties
B38: Wider Impacts | C38: ="Changes to the "&'Res Calcs'!F10&" for the wider impacts of flooding" -> Changes to the % Response Potential for the wider impacts of flooding
B40: Wider Impacts (Assets) | C40: ="Changes to the "&'Res Calcs'!F10&" for working with assets for the wider impacts of flooding" -> Changes to the % Response Potential for working with assets for the wider impacts of flooding
B42: Investment | C42: Investment levels, investment activities & investment-benefit functions
B44: %OP | C44: Investment-benefit functions for the % of properties in each lead-time category
B46: Mod Calc | C46: Full calculations for all values for each scenario
B48: Cell Colours: Cells are not colour-coded based on their function, but input cells are indicated with hatching:
B52: Version History
B53: Version | C53: Date | D53: Notes
B54: v1 | C54: 2011-08-18 | D54: Final spreadsheet submitted as deliverable for SC090039 Task 1
B55: v1 | C55: 2012-01-12 | D55: Dummy values added
B56: v1.1 | C56: 2012-01-27 | D56: Version history added
B57: v2 | C57: 2012-03-20 | D57: Settings using VBA. FDO, WCM & CBO separated. Residential & Non-Residential separated. Investments and scenarios updated. Confidence levels added. Intro tab updated.
B58: v2 | C58: 2012-04-10 | D58: No changes to spreadsheet. Input data updated
B59: v3 | C59: 2012-10-16 | D59: Version for FIM Investment Review, including wider impacts
B60: v4 to 4.5 | C60: 2013-10-14 | D60: Integrating FIM IR methods with full tool
B61: v4.6 | C61: 2014-04-17 | D61: Bug fixing and changes to terminology

Sheet Dashboard
C3: Dashboard | E3: Next: Enter Scenario Data
C6: Investment Scenarios
C7: =C15 -> Baseline | D7: Scenario 1 | E7: Scenario 2 | F7: Scenario 3 | G7: Scenario 4 | H7: Scenario 5
A8: =Investment!B14 -> Detection, forecasting & warning | C8: =IF(Settings!$J49="Before",Settings!$I49,"")&SUM(Investment!K15:K18)&" "&Investment!$P$9 -> £27 Million | D8: =IF(Settings!$J49="Before",Settings!$I49,"")&SUM(Investment!L15:L18)&" "&Investment!$P$9 -> £54 Million | E8: =IF(Settings!$J49="Before",Settings!$I49,"")&SUM(Investment!M15:M18)&" "&Investment!$P$9 -> £13.5 Million | F8: =IF(Settings!$J49="Before",Settings!$I49,"")&SUM(Investment!N15:N18)&" "&Investment!$P$9 -> £0 Million | G8: =IF(Settings!$J49="Before",Settings!$I49,"")&SUM(Investment!O15:O18)&" "&Investment!$P$9 -> £0 Million | H8: =IF(Settings!$J49="Before",Settings!$I49,"")&SUM(Investment!P15:P18)&" "&Investment!$P$9 -> £0 Million
A9: =Investment!B19 -> Emergency planning & exercising | C9: =IF(Settings!$J49="Before",Settings!$I49,"")&SUM(Investment!K20:K25)&" "&Investment!$P$9 -> £17.1 Million | D9: =IF(Settings!$J49="Before",Settings!$I49,"")&SUM(Investment!L20:L25)&" "&Investment!$P$9 -> £34.2 Million | E9: =IF(Settings!$J49="Before",Settings!$I49,"")&SUM(Investment!M20:M25)&" "&Investment!$P$9 -> £8.55 Million | F9: =IF(Settings!$J49="Before",Settings!$I49,"")&SUM(Investment!N20:N25)&" "&Investment!$P$9 -> £0 Million | G9: =IF(Settings!$J49="Before",Settings!$I49,"")&SUM(Investment!O20:O25)&" "&Investment!$P$9 -> £0 Million | H9: =IF(Settings!$J49="Before",Settings!$I49,"")&SUM(Investment!P20:P25)&" "&Investment!$P$9 -> £0 Million
A10: =Investment!B26 -> Working with communities | C10: =IF(Settings!$J49="Before",Settings!$I49,"")&SUM(Investment!K27:K33)&" "&Investment!$P$9 -> £18.9 Million | D10: =IF(Settings!$J49="Before",Settings!$I49,"")&SUM(Investment!L27:L33)&" "&Investment!$P$9 -> £37.8 Million | E10: =IF(Settings!$J49="Before",Settings!$I49,"")&SUM(Investment!M27:M33)&" "&Investment!$P$9 -> £9.45 Million | F10: =IF(Settings!$J49="Before",Settings!$I49,"")&SUM(Investment!N27:N33)&" "&Investment!$P$9 -> £0 Million | G10: =IF(Settings!$J49="Before",Settings!$I49,"")&SUM(Investment!O27:O33)&" "&Investment!$P$9 -> £0 Million | H10: =IF(Settings!$J49="Before",Settings!$I49,"")&SUM(Investment!P27:P33)&" "&Investment!$P$9 -> £0 Million
A11: =Investment!B34 -> Resistance & resilience | C11: =IF(Settings!$J49="Before",Settings!$I49,"")&SUM(Investment!K35:K36)&" "&Investment!$P$9 -> £10 Million | D11: =IF(Settings!$J49="Before",Settings!$I49,"")&SUM(Investment!L35:L36)&" "&Investment!$P$9 -> £20 Million | E11: =IF(Settings!$J49="Before",Settings!$I49,"")&SUM(Investment!M35:M36)&" "&Investment!$P$9 -> £5 Million | F11: =IF(Settings!$J49="Before",Settings!$I49,"")&SUM(Investment!N35:N36)&" "&Investment!$P$9 -> £0 Million | G11: =IF(Settings!$J49="Before",Settings!$I49,"")&SUM(Investment!O35:O36)&" "&Investment!$P$9 -> £0 Million | H11: =IF(Settings!$J49="Before",Settings!$I49,"")&SUM(Investment!P35:P36)&" "&Investment!$P$9 -> £0 Million
A12: Total Investment: | C12: =IF(Settings!$J49="Before",Settings!$I49,"")&Investment!K39&" "&Settings!$G49&IF(Settings!$J49="After"," "&Settings!$I49,"") -> £73 Million | D12: =IF(Settings!$J49="Before",Settings!$I49,"")&Investment!L39&" "&Settings!$G49&IF(Settings!$J49="After"," "&Settings!$I49,"") -> £146 Million | E12: =IF(Settings!$J49="Before",Settings!$I49,"")&Investment!M39&" "&Settings!$G49&IF(Settings!$J49="After"," "&Settings!$I49,"") -> £36.5 Million | F12: =IF(Settings!$J49="Before",Settings!$I49,"")&Investment!N39&" "&Settings!$G49&IF(Settings!$J49="After"," "&Settings!$I49,"") -> £0 Million | G12: =IF(Settings!$J49="Before",Settings!$I49,"")&Investment!O39&" "&Settings!$G49&IF(Settings!$J49="After"," "&Settings!$I49,"") -> £0 Million | H12: =IF(Settings!$J49="Before",Settings!$I49,"")&Investment!P39&" "&Settings!$G49&IF(Settings!$J49="After"," "&Settings!$I49,"") -> £0 Million
K13: ='Wider Impacts'!R18 -> 1
C14: =Settings!H45&" Avoided by NSRs" -> Direct Property Damages Avoided by NSRs | K14: ="Wider Impacts Avoided by NSRs" -> Wider Impacts Avoided by NSRs | AE14: =IF(AND('Damage Inputs'!E16="",'Damage Inputs'!E19="",'Damage Inputs'!E22="",'Damage Inputs'!E25="",'Damage Inputs'!E28=""),TRUE,FALSE) -> FALSE
C15: ='Modified Factors'!F392 -> Baseline | D15: ='Modified Factors'!G392 -> Scenario 1 | E15: ='Modified Factors'!H392 -> Scenario 2 | F15: ='Modified Factors'!I392 -> Scenario 3 | G15: ='Modified Factors'!J392 -> Scenario 4 | H15: ='Modified Factors'!K392 -> Scenario 5 | K15: ='Wider Impacts'!F7 -> Direct Property Damage | L15: ='Wider Impacts'!G7 -> Risk to Life | M15: ='Wider Impacts'!H7 -> Other Economic | N15: ='Wider Impacts'!I7 -> Infrastructure | O15: ='Wider Impacts'!J7 -> Health & Social | P15: ='Wider Impacts'!K7 -> Institutional | Q15: ='Wider Impacts'!L7 -> Other
B16: NSRs Working with Assets | C16: =SUM(C17:C19) -> 710856000 | D16: 735390099 | E16: 359261716.4 | F16: 0 | G16: 0 | H16: 0 | J16: =B16 -> NSRs Working with Assets | K16: =SUM(K17:K19) -> 710856000 | L16: =SUM(L17:L19) -> 0 | M16: 109771200 | N16: 137214000 | O16: 82328400 | P16: 0 | Q16: 0 | AC16: Visible
A17: =Assets!A8 -> FDO | B17: =Assets!B8 -> Flood Defence Operation | C17: ='Mod Calc'!BN183*Assets!$J$10 -> 548856000 | D17: ='Mod Calc'!BO183*Assets!$J$10 -> 554400000 | E17: ='Mod Calc'!BP183*Assets!$J$10 -> 280603145.8 | F17: ='Mod Calc'!BQ183*Assets!$J$10 -> 0 | G17: ='Mod Calc'!BR183*Assets!$J$10 -> 0 | H17: ='Mod Calc'!BS183*Assets!$J$10 -> 0 | J17: Flood Defence Operation | K17: ='Wider Impacts (Assets)'!U27 -> 548856000 | L17: ='Wider Impacts (Assets)'!V27 -> 0 | M17: ='Wider Impacts (Assets)'!W27 -> 109771200 | N17: ='Wider Impacts (Assets)'!X27 -> 137214000 | O17: ='Wider Impacts (Assets)'!Y27 -> 82328400 | P17: ='Wider Impacts (Assets)'!Z27 -> 0 | Q17: ='Wider Impacts (Assets)'!AA27 -> 0
A18: =Assets!A14 -> WCM | B18: =Assets!B14 -> Watercourse Management | C18: ='Mod Calc'!BN186*Assets!$J$16 -> 90000000 | D18: ='Mod Calc'!BO186*Assets!$J$16 -> 100990099 | E18: ='Mod Calc'!BP186*Assets!$J$16 -> 41848502.91 | F18: ='Mod Calc'!BQ186*Assets!$J$16 -> 0 | G18: ='Mod Calc'!BR186*Assets!$J$16 -> 0 | H18: ='Mod Calc'!BS186*Assets!$J$16 -> 0 | J18: Watercourse Management | K18: ='Wider Impacts (Assets)'!U33 -> 90000000 | L18: ='Wider Impacts (Assets)'!V33 -> 0 | M18: ='Wider Impacts (Assets)'!W33 -> 0 | N18: ='Wider Impacts (Assets)'!X33 -> 0 | O18: ='Wider Impacts (Assets)'!Y33 -> 0 | P18: ='Wider Impacts (Assets)'!Z33 -> 0 | Q18: ='Wider Impacts (Assets)'!AA33 -> 0
A19: =Assets!A20 -> CBO | B19: =Assets!B20 -> Community Based Operations | C19: ='Mod Calc'!BN189*Assets!$J$22 -> 72000000 | D19: ='Mod Calc'!BO189*Assets!$J$22 -> 80000000 | E19: ='Mod Calc'!BP189*Assets!$J$22 -> 36810067.67 | F19: ='Mod Calc'!BQ189*Assets!$J$22 -> 0 | G19: ='Mod Calc'!BR189*Assets!$J$22 -> 0 | H19: ='Mod Calc'!BS189*Assets!$J$22 -> 0 | J19: Community Based Operations | K19: ='Wider Impacts (Assets)'!U39 -> 72000000 | L19: ='Wider Impacts (Assets)'!V39 -> 0 | M19: ='Wider Impacts (Assets)'!W39 -> 0 | N19: ='Wider Impacts (Assets)'!X39 -> 0 | O19: ='Wider Impacts (Assets)'!Y39 -> 0 | P19: ='Wider Impacts (Assets)'!Z39 -> 0 | Q19: ='Wider Impacts (Assets)'!AA39 -> 0 | AE19: FDO on?
B20: Residential Property-Level NSRs | C20: =SUM(C21:C23) -> 46044961.89 | D20: 66342059.42 | E20: 29089489.86 | F20: 17472832 | G20: 17472832 | H20: 17472832 | J20: Residential Property-Level NSRs | K20: =OFFSET(C20,0,($K$13-1)) -> 46044961.89 | L20: =SUM(L21:L23) -> 0 | M20: 35419201.45 | N20: 44274001.82 | O20: 26564401.09 | P20: 0 | Q20: 0 | AC20: Visible | AE20: ='Res Inputs'!#REF! -> 
A21: ='Non-Res'!A23 -> RST | B21: ='Non-Res'!B23 -> Resistance Measures | C21: ='Mod Calc'!BN200-'Mod Calc'!BN209 -> 17749441.39 | D21: ='Mod Calc'!BO200-'Mod Calc'!BO209 -> 20799438.63 | E21: ='Mod Calc'!BP200-'Mod Calc'!BP209 -> 15030991.61 | F21: ='Mod Calc'!BQ200-'Mod Calc'!BQ209 -> 12396800 | G21: ='Mod Calc'!BR200-'Mod Calc'!BR209 -> 12396800 | H21: ='Mod Calc'!BS200-'Mod Calc'!BS209 -> 12396800 | J21: Resistance Measures | K21: 17749441.39 | L21: ='Wider Impacts'!V33 -> 0 | M21: ='Wider Impacts'!W33 -> 13653416.45 | N21: ='Wider Impacts'!X33 -> 17066770.56 | O21: ='Wider Impacts'!Y33 -> 10240062.34 | P21: ='Wider Impacts'!Z33 -> 0 | Q21: ='Wider Impacts'!AA33 -> 0
A22: ='Non-Res'!A39 -> RSL | B22: ='Non-Res'!B39 -> Resilience Measures | C22: ='Mod Calc'!BN209-'Mod Calc'!BN215 -> 5022505.586 | D22: ='Mod Calc'!BO209-'Mod Calc'!BO215 -> 9784331.003 | E22: ='Mod Calc'!BP209-'Mod Calc'!BP215 -> 2550611.45 | F22: ='Mod Calc'!BQ209-'Mod Calc'!BQ215 -> 5076032 | G22: ='Mod Calc'!BR209-'Mod Calc'!BR215 -> 5076032 | H22: ='Mod Calc'!BS209-'Mod Calc'!BS215 -> 5076032 | J22: Resilience Measures | K22: 5022505.586 | L22: ='Wider Impacts'!V39 -> 0 | M22: ='Wider Impacts'!W39 -> 3863465.835 | N22: ='Wider Impacts'!X39 -> 4829332.294 | O22: ='Wider Impacts'!Y39 -> 2897599.377 | P22: ='Wider Impacts'!Z39 -> 0 | Q22: ='Wider Impacts'!AA39 -> 0 | AE22: =D15 -> Scenario 1 | AF22: =Settings!I29 -> On
A23: ='Non-Res'!A47 -> CME | B23: ='Non-Res'!B47 -> Contents Moved & Evacuated | C23: ='Mod Calc'!BN215-'Mod Calc'!BN221 -> 23273014.92 | D23: ='Mod Calc'!BO215-'Mod Calc'!BO221 -> 35758289.79 | E23: ='Mod Calc'!BP215-'Mod Calc'!BP221 -> 11507886.8 | F23: ='Mod Calc'!BQ215-'Mod Calc'!BQ221 -> 0 | G23: ='Mod Calc'!BR215-'Mod Calc'!BR221 -> 0 | H23: ='Mod Calc'!BS215-'Mod Calc'!BS221 -> 0 | J23: Contents Moved & Evacuated | K23: 23273014.92 | L23: ='Wider Impacts'!V45 -> 0 | M23: ='Wider Impacts'!W45 -> 17902319.17 | N23: ='Wider Impacts'!X45 -> 22377898.96 | O23: ='Wider Impacts'!Y45 -> 13426739.38 | P23: ='Wider Impacts'!Z45 -> 0 | Q23: ='Wider Impacts'!AA45 -> 0 | AE23: =E15 -> Scenario 2 | AF23: =Settings!I30 -> On
B24: Non-Residential Property-Level NSRs | C24: ='Mod Calc'!BN225-'Mod Calc'!BN249 -> 42503041.75 | D24: ='Mod Calc'!BO225-'Mod Calc'!BO249 -> 61238824.08 | E24: ='Mod Calc'!BP225-'Mod Calc'!BP249 -> 26851836.79 | F24: ='Mod Calc'!BQ225-'Mod Calc'!BQ249 -> 16128768 | G24: ='Mod Calc'!BR225-'Mod Calc'!BR249 -> 16128768 | H24: ='Mod Calc'!BS225-'Mod Calc'!BS249 -> 16128768 | J24: Non-Residential Property-Level NSRs | K24: 42503041.75 | AC24: Visible | AE24: ='Res Inputs'!#REF! -> 
A25: =A21 -> RST | B25: Resistance Measures | C25: ='Mod Calc'!BN225-'Mod Calc'!BN237 -> 16384099.74 | D25: ='Mod Calc'!BO225-'Mod Calc'!BO237 -> 19199481.81 | E25: ='Mod Calc'!BP225-'Mod Calc'!BP237 -> 13874761.49 | F25: ='Mod Calc'!BQ225-'Mod Calc'!BQ237 -> 11443200 | G25: ='Mod Calc'!BR225-'Mod Calc'!BR237 -> 11443200 | H25: ='Mod Calc'!BS225-'Mod Calc'!BS237 -> 11443200 | J25: Resistance Measures | K25: 16384099.74 | AE25: =C15 -> Baseline
A26: RSL | B26: Resilience Measures | C26: ='Mod Calc'!BN237-'Mod Calc'!BN243 -> 4636159.003 | D26: ='Mod Calc'!BO237-'Mod Calc'!BO243 -> 9031690.156 | E26: ='Mod Calc'!BP237-'Mod Calc'!BP243 -> 2354410.569 | F26: ='Mod Calc'!BQ237-'Mod Calc'!BQ243 -> 4685568 | G26: ='Mod Calc'!BR237-'Mod Calc'!BR243 -> 4685568 | H26: ='Mod Calc'!BS237-'Mod Calc'!BS243 -> 4685568 | J26: Resilience Measures | K26: 4636159.003 | AE26: =D15 -> Scenario 1 | AF26: =Settings!I33 -> On
A27: CME | B27: Contents Moved & Evacuated | C27: ='Mod Calc'!BN243-'Mod Calc'!BN249 -> 21482783 | D27: ='Mod Calc'!BO243-'Mod Calc'!BO249 -> 33007652.11 | E27: ='Mod Calc'!BP243-'Mod Calc'!BP249 -> 10622664.74 | F27: ='Mod Calc'!BQ243-'Mod Calc'!BQ249 -> 0 | G27: ='Mod Calc'!BR243-'Mod Calc'!BR249 -> 0 | H27: ='Mod Calc'!BS243-'Mod Calc'!BS249 -> 0 | J27: Contents Moved & Evacuated | K27: 21482783 | AE27: =E15 -> Scenario 2 | AF27: =Settings!I38 -> 0
A28: ="Total "&Settings!I47&" Avoided:" -> Total Damage Avoided: | C28: =IF(Settings!$J50="Before",Settings!$I50,"")&ROUND(((C16+C20+C24)/Settings!$F50),0)&" "&Settings!$G50&IF(Settings!$J50="After"," "&Settings!$I50,"") -> £799 Million | D28: =IF(Settings!$J50="Before",Settings!$I50,"")&ROUND(((D16+D20+D24)/Settings!$F50),0)&" "&Settings!$G50&IF(Settings!$J50="After"," "&Settings!$I50,"") -> £863 Million | E28: =IF(Settings!$J50="Before",Settings!$I50,"")&ROUND(((E16+E20+E24)/Settings!$F50),0)&" "&Settings!$G50&IF(Settings!$J50="After"," "&Settings!$I50,"") -> £415 Million | F28: =IF(Settings!$J50="Before",Settings!$I50,"")&ROUND(((F16+F20+F24)/Settings!$F50),0)&" "&Settings!$G50&IF(Settings!$J50="After"," "&Settings!$I50,"") -> £34 Million | G28: =IF(Settings!$J50="Before",Settings!$I50,"")&ROUND(((G16+G20+G24)/Settings!$F50),0)&" "&Settings!$G50&IF(Settings!$J50="After"," "&Settings!$I50,"") -> £34 Million | H28: =IF(Settings!$J50="Before",Settings!$I50,"")&ROUND(((H16+H20+H24)/Settings!$F50),0)&" "&Settings!$G50&IF(Settings!$J50="After"," "&Settings!$I50,"") -> £34 Million | J28: =A28 -> Total Damage Avoided: | K28: =K20+K24 -> 88548003.64 | L28: =L20 -> 0 | M28: =M20 -> 35419201.45 | N28: 44274001.82 | O28: 26564401.09 | P28: 0 | Q28: 0 | AE28: =F15 -> Scenario 3 | AF28: =Settings!I31 -> On
AE29: =G15 -> Scenario 4 | AF29: =Settings!I32 -> On
C30: ="Residual "&Settings!H45 -> Residual Direct Property Damages | K30: Residual Wider Impacts | AE30: =H15 -> Scenario 5 | AF30: =Settings!I33 -> On
C31: =C15 -> Baseline | D31: Scenario 1 | E31: Scenario 2 | F31: Scenario 3 | G31: Scenario 4 | H31: Scenario 5 | K31: =K15 -> Direct Property Damage | L31: =L15 -> Risk to Life | M31: Other Economic | N31: Infrastructure | O31: Health & Social | P31: Institutional | Q31: Other
B32: ="Residual "&Settings!I47&" with Assets Only:" -> Residual Damage with Assets Only: | C32: ='Mod Calc'!BN196 -> 1000000000 | D32: ='Mod Calc'!BO196 -> 1000000000 | E32: ='Mod Calc'!BP196 -> 1000000000 | F32: ='Mod Calc'!BQ196 -> 1000000000 | G32: ='Mod Calc'!BR196 -> 1000000000 | H32: ='Mod Calc'!BS196 -> 1000000000 | J32: =B32 -> Residual Damage with Assets Only: | K32: ='Wider Impacts'!N33 -> 1000000000 | L32: ='Wider Impacts'!O33 -> 0 | M32: ='Wider Impacts'!P33 -> 400000000 | N32: ='Wider Impacts'!Q33 -> 500000000 | O32: ='Wider Impacts'!R33 -> 300000000 | P32: ='Wider Impacts'!S33 -> 0 | Q32: ='Wider Impacts'!T33 -> 0
B33: ="Residual "&Settings!I47&" with Assets & NSRs:" -> Residual Damage with Assets & NSRs: | C33: ='Mod Calc'!BN221+'Mod Calc'!BN249 -> 911451996.4 | D33: ='Mod Calc'!BO221+'Mod Calc'!BO249 -> 872419116.5 | E33: ='Mod Calc'!BP221+'Mod Calc'!BP249 -> 944058673.4 | F33: ='Mod Calc'!BQ221+'Mod Calc'!BQ249 -> 966398400 | G33: ='Mod Calc'!BR221+'Mod Calc'!BR249 -> 966398400 | H33: ='Mod Calc'!BS221+'Mod Calc'!BS249 -> 966398400 | J33: =B33 -> Residual Damage with Assets & NSRs: | K33: =K32-K28 -> 911451996.4 | L33: =L32-L28 -> 0 | M33: 364580798.5 | N33: 455725998.2 | O33: 273435598.9 | P33: 0 | Q33: 0
B35: Distribution of Confidence Levels (number of data assigned each level of confidence) | F35: ="Average Score: "&ROUND(E38,2) -> Average Score: 2.91
B36: 1 | C36: 0 | D36: =B36*C36 -> 0 | F36: =Settings!C37 -> 1 | G36: =Settings!D37 -> Comprehensive evidence gathered using best practice
B37: 2 | C37: 12 | D37: =B37*C37 -> 24 | F37: =Settings!C38 -> 2 | G37: =Settings!D38 -> Reliable analysis and method (but with known deficiencies)
B38: 3 | C38: 0 | D38: =B38*C38 -> 0 | E38: =SUM(D36:D40)/SUM(C36:C40) -> 2.909090909 | F38: =Settings!C39 -> 3 | G38: =Settings!D39 -> Expert judgement, supported by some quantified evidence and/or by consensus at an experts’ workshop
B39: 4 | C39: 10 | D39: =B39*C39 -> 40 | F39: =Settings!C40 -> 4 | G39: =Settings!D40 -> Expert view based on limited information
B40: 5 | C40: 0 | D40: =B40*C40 -> 0 | F40: =Settings!C41 -> 5 | G40: =Settings!D41 -> Unsubstantiated non-expert opinion
A41: TABLE NEEDS UPDATING: CLICK ON Aggregate Confidence Levels BUTTON
D42: Graph currently shows distribution of confidence levels, excluding working with assets and values on the investment tab | H42: TRUE

Sheet Settings
U1: Sheets(1) | V1: Intro
U2: Sheets(2) | V2: Dashboard
E3: Key Settings | H3: Next: Damage Inputs | U3: Sheets(3) | V3: Settings
U4: Sheets(4) | V4: Damage Inputs
U5: Sheets(5) | V5: Assets Inputs
C6: Working with Assets | U6: Sheets(6) | V6: Assets
U7: Sheets(7) | V7: Res Inputs
C8: FDO | J8: TRUE | R8: Yes | U8: Sheets(8) | V8: Res Calcs
R9: No | U9: Sheets(9) | V9: Non-Res Inputs
C10: CBO | J10: TRUE | U10: Sheets(10) | V10: Non-Res
R11: Yes | U11: Sheets(11) | V11: Wider Impacts
C12: WCM | J12: TRUE | R12: No | U12: Sheets(12) | V12: Wider Impacts (Assets)
U13: Sheets(13) | V13: Investment
J14: TRUE | R14: Yes | U14: Sheets(14) | V14: %OP
R15: No | U15: Sheets(15) | V15: Mod Calc
U16: Sheets(16) | V16: Modified Factors
C17: RST, RSL and CME | J17: TRUE | U17: Sheets(17) | V17: S1
U18: Sheets(18) | V18: S2
C19: Upper Estimate | U19: Sheets(19) | V19: S3
C20: Best Estimate | J20: TRUE | U20: Sheets(20) | V20: S4
C21: Lower Estimate | R21: On | U21: Sheets(21) | V21: S5
R22: Off | U22: Sheets(22) | V22: WLC
D25: Highlight 'drop-down' boxes? | J25: No
C26: =IF(J25="Yes","Drop-down boxes are shown in red","Drop-down boxes are formatted to match their surrounding cells, but with hatching") -> Drop-down boxes are formatted to match their surrounding cells, but with hatching
C28: Scenarios | D28: Scenario Name | I28: Visible on Dashboard? | R28: EAD
C29: 1 | D29: Scenario 1 | I29: =IF(K29=TRUE,"On","Off") -> On | K29: TRUE | R29: AAD
C30: 2 | D30: Scenario 2 | I30: =IF(K30=TRUE,"On","Off") -> On | K30: TRUE | R30: WAAD
C31: 3 | D31: Scenario 3 | I31: =IF(K31=TRUE,"On","Off") -> On | K31: TRUE | R31: Damage
C32: 4 | D32: Scenario 4 | I32: =IF(K32=TRUE,"On","Off") -> On | K32: TRUE
C33: 5 | D33: Scenario 5 | I33: =IF(K33=TRUE,"On","Off") -> On | K33: TRUE
C35: Confidence Levels
C36: Label | D36: Description
C37: 1 | D37: Comprehensive evidence gathered using best practice
C38: 2 | D38: Reliable analysis and method (but with known deficiencies) | P38: 1 | Q38: Number | R38: 1
C39: 3 | D39: Expert judgement, supported by some quantified evidence and/or by consensus at an experts’ workshop | P39: 2 | Q39: Hundred | R39: 100
C40: 4 | D40: Expert view based on limited information | P40: 3 | Q40: Thousand | R40: 1000
C41: 5 | D41: Unsubstantiated non-expert opinion | P41: 4 | Q41: Million | R41: 1000000
C42: Note: changing the confidence level label on this tab will not update the selected levels for data throughout the spreadsheet. This must be done manually. | P42: 5 | Q42: Billion | R42: 1000000000
C45: Spreadsheet Mode: | D45: =IF(OR(I50="£",AND(H50=3,M52=1)),"Monetary Damages","Non-Monetary Impacts") -> Monetary Damages | G45: Label: | H45: Direct Property Damages | P45: 1 | Q45: £ | R45: Before
P46: 2 | Q46: People | R46: After
C47: ="e.g. "&'Damage Inputs'!D10 -> e.g. Damage[A]¹ | D47: Label for damages: | I47: Damage | P47: 3 | Q47: =D52 -> Euros | R47: =J52 -> After
C49: Unit of Investment: | E49: 4 | F49: =VLOOKUP(E49,P38:R42,3,FALSE) -> 1000000 | G49: =IF(F49=1,"",VLOOKUP(E49,P38:R42,2,FALSE)) -> Million | H49: 1 | I49: =VLOOKUP(H49,P45:Q48,2,FALSE) -> £ | J49: =VLOOKUP(H49,P45:R48,3,FALSE) -> Before
C50: Unit of Benefits: | E50: 4 | F50: =VLOOKUP(E50,P38:R42,3,FALSE) -> 1000000 | G50: =IF(F50=1,"",VLOOKUP(E50,P38:R42,2,FALSE)) -> Million | H50: 1 | I50: =VLOOKUP(H50,P45:Q48,2,FALSE) -> £ | J50: =VLOOKUP(H50,P45:R48,3,FALSE) -> Before
C52: Custom Unit: | D52: Euros | E52: Label | G52: the results values | I52: 2 | J52: =VLOOKUP(I52,Q52:R53,2,FALSE) -> After | M52: 1 | Q52: 1 | R52: Before
Q53: 2 | R53: After
C55: Wider Impacts
C56: 1 | D56: Risk to Life | Q56: 1 | R56: Monetary
C57: 2 | D57: Other Economic | Q57: 2 | R57: Non-Monetary
C58: 3 | D58: Infrastructure
C59: 4 | D59: Health & Social
C60: 5 | D60: Institutional
C61: 6 | D61: Other
C67: Edit Mode
C68: On
C69: Factor and Pathway Definitions
C70: WS | D70: Warning Success | E70: ="% "&D70 -> % Warning Success | F70: ="%"&C70 -> %WS
C71: PO | D71: Response Potential | E71: ="% "&D71 -> % Response Potential | F71: ="%"&C71 -> %PO
C72: OP | D72: Response Operated | E72: % Response Operated | F72: ="%"&C72 -> %OP
C73: UP | D73: Response Uptake | E73: % Response Uptake | F73: ="%"&C73 -> %UP
C75: FDO | D75: Flood Defence Operation | E75: % Flood Defence Operation | F75: ="%"&C75 -> %FDO
C76: WCM | D76: Watercourse Management | E76: % Watercourse Management | F76: ="%"&C76 -> %WCM
C77: CBO | D77: Community Based Operations | E77: % Community Based Operations | F77: %CBO
C78: RST | D78: Resistance Measures | E78: % Resistance Measures | F78: %RST
C79: WIR | D79: Warning Independent Resistance | E79: % Warning Independent Resistance | F79: %WIR
C80: WDR | D80: Warning Dependent Resistance | E80: % Warning Dependent Resistance | F80: %WDR
C81: RSL | D81: Resilience Measures | E81: % Resilience Measures | F81: %RSL
C82: CME | D82: Contents Moved & Evacuated | E82: % Contents Moved & Evacuated | F82: %CME
C83: BDD | D83: Business Direct Damages Avoided | E83: % Business Direct Damages Avoided | F83: %BDD

Sheet Damage Inputs
G2: Settings | H2: Baseline Calculation | I2: Scenarios
E3: =IF(Settings!D45="Monetary Damages","Damage Inputs","Impact Inputs") -> Damage Inputs | H3: Next: Working with Assets | I3: Next: Investment
A6: =VLOOKUP(F7,U9:V12,2,FALSE) -> Damages | D6: ="Select application of "&F7&":" -> Select application of Damage: | F6: Apply upper estimates of factors to upper estimates of Damage (and lower to lower) | H6: Wider Impacts | U6: =IF(F6=U20,1,IF(F6=U21,2,3)) -> 1
D7: Damage Label: | F7: =Settings!I47 -> Damage | J7: 1 | O7: Upper & Lower Bounds: | P7: =Settings!J20 -> TRUE
C8: ="Direct Property "&F7 -> Direct Property Damage
A9: Scenario | C9: ="Total "&F7&" with no assets" -> Total Damage with no assets | D9: Flood Damages Avoided by Structures | E9: ="Residual "&F7&" with assets" -> Residual Damage with assets | F9: ="Residential Component of "&F7 -> Residential Component of Damage | G9: ="Non-Residential Component of "&F7 -> Non-Residential Component of Damage | H9: =AF11 -> Risk to Life | I9: =AG11 -> Other Economic | J9: Infrastructure | K9: Health & Social | L9: Institutional | M9: Other | N9: Total damage uplift ratio | O9: Data Sources | P9: Confidence | U9: EAD | V9: Estimated Annual Damages (EAD)
C10: =F7&CHAR(186) -> Damageº | D10: =F7&U31&CHAR(185) -> Damage[A]¹ | E10: =F7&CHAR(185) -> Damage¹ | F10: ="(Percentage of "&E10&")" -> (Percentage of Damage¹) | G10: =F10 -> (Percentage of Damage¹) | U10: AAD | V10: Average Annual Damages (AAD)
D11: ="= "&C10&" - "&E10 -> = Damageº - Damage¹ | U11: WAAD | V11: Weighted Average Annual Damages (WAAD) | AF11: =Settings!D56 -> Risk to Life | AG11: =Settings!D57 -> Other Economic | AH11: =Settings!D58 -> Infrastructure | AI11: =Settings!D59 -> Health & Social | AJ11: =Settings!D60 -> Institutional | AK11: =Settings!D61 -> Other
A12: Baseline | B12: Upper Estimate | D12: =IF(C12="","",C12-E12) ->  | G12: =IF(F12="","",100%-F12) ->  | H12: 0 | I12: 0 | J12: 0 | K12: 0 | L12: 0 | M12: 0 | N12: =IF($J$7=1,"1:"&SUM(H12:M12),IF(SUM(H12:M12)>0,"1:"&SUM(H12:M12)/E12,"1:0")) -> 1:0 | R12: =IF($P$7="Yes",P12,"") ->  | U12: Damage | V12: Damages | AF12: =IF($J$7=2,H12,H12*$E12) -> 0 | AG12: =IF($J$7=2,I12,I12*$E12) -> 0 | AH12: 0 | AI12: 0 | AJ12: 0 | AK12: 0
B13: Best Estimate | C13: 3000000000 | D13: =C13-E13 -> 2000000000 | E13: 1000000000 | F13: 0.52 | G13: =100%-F13 -> 0.48 | H13: 0 | I13: 0.4 | J13: 0.5 | K13: 0.3 | L13: 0 | M13: 0 | N13: =IF($J$7=1,"1:"&SUM(H13:M13),IF(SUM(H13:M13)>0,"1:"&SUM(H13:M13)/E13,"1:0")) -> 1:1.2 | R13: =P13 -> 0 | AF13: =IF($J$7=2,H13,H13*$E13) -> 0 | AG13: =IF($J$7=2,I13,I13*$E13) -> 400000000 | AH13: =IF($J$7=2,J13,J13*$E13) -> 500000000 | AI13: =IF($J$7=2,K13,K13*$E13) -> 300000000 | AJ13: =IF($J$7=2,L13,L13*$E13) -> 0 | AK13: =IF($J$7=2,M13,M13*$E13) -> 0
B14: Lower Estimate | D14: =IF(C14="","",C14-E14) ->  | G14: =IF(F14="","",100%-F14) ->  | H14: 0 | I14: 0 | J14: 0 | K14: 0 | L14: 0 | M14: 0 | N14: 1:0 | R14: =IF($P$7="Yes",P14,"") ->  | AF14: 0 | AG14: 0 | AH14: 0 | AI14: 0 | AJ14: 0 | AK14: 0
A15: =Investment!B9 -> Scenario 1 | B15: Upper Estimate | D15: =IF(C15="","",C15-E15) ->  | H15: 0 | I15: 0 | J15: 0 | K15: 0 | L15: 0 | M15: 0 | N15: 1:0 | R15: =IF($P$7="Yes",P15,"") ->  | U15: ='Res Inputs'!X60 -> Low | AF15: 0 | AG15: 0 | AH15: 0 | AI15: 0 | AJ15: 0 | AK15: 0
B16: Best Estimate | C16: =C13 -> 3000000000 | D16: =IF((C16-E16)=0,"",C16-E16) -> 2000000000 | E16: =E13 -> 1000000000 | F16: =F13 -> 0.52 | G16: 0.48 | H16: 0 | I16: 0.2 | J16: 0.5 | K16: 0.3 | L16: 0 | M16: 0 | N16: 1:1 | R16: =P16 -> 0 | U16: ='Res Inputs'!X61 -> Medium | AF16: 0 | AG16: 200000000 | AH16: 500000000 | AI16: 300000000 | AJ16: 0 | AK16: 0
B17: Lower Estimate | D17: =IF(C17="","",C17-E17) ->  | H17: 0 | I17: 0 | J17: 0 | K17: 0 | L17: 0 | M17: 0 | N17: 1:0 | R17: =IF($P$7="Yes",P17,"") ->  | U17: ='Res Inputs'!X62 -> High | AF17: 0 | AG17: 0 | AH17: 0 | AI17: 0 | AJ17: 0 | AK17: 0
A18: =Investment!B10 -> Scenario 2 | B18: Upper Estimate | D18: =IF(C18="","",C18-E18) ->  | H18: 0 | I18: 0 | J18: 0 | K18: 0 | L18: 0 | M18: 0 | N18: 1:0 | R18: =IF($P$7="Yes",P18,"") ->  | AF18: 0 | AG18: 0 | AH18: 0 | AI18: 0 | AJ18: 0 | AK18: 0
B19: Best Estimate | C19: =C16 -> 3000000000 | D19: =IF((C19-E19)=0,"",C19-E19) -> 2000000000 | E19: =E16 -> 1000000000 | F19: =F16 -> 0.52 | G19: 0.48 | H19: 0 | I19: 0.4 | J19: 0.5 | K19: 0.3 | L19: 0 | M19: 0 | N19: 1:1.2 | R19: =P19 -> 0 | AF19: 0 | AG19: 400000000 | AH19: 500000000 | AI19: 300000000 | AJ19: 0 | AK19: 0
B20: Lower Estimate | D20: =IF(C20="","",C20-E20) ->  | H20: 0 | I20: 0 | J20: 0 | K20: 0 | L20: 0 | M20: 0 | N20: 1:0 | R20: =IF($P$7="Yes",P20,"") ->  | U20: ="Apply upper estimates of factors to upper estimates of "&F7&" (and lower to lower)" -> Apply upper estimates of factors to upper estimates of Damage (and lower to lower) | AF20: 0 | AG20: 0 | AH20: 0 | AI20: 0 | AJ20: 0 | AK20: 0
A21: =Investment!B11 -> Scenario 3 | B21: Upper Estimate | D21: =IF(C21="","",C21-E21) ->  | H21: 0 | I21: 0 | J21: 0 | K21: 0 | L21: 0 | M21: 0 | N21: 1:0 | R21: =IF($P$7="Yes",P21,"") ->  | U21: ="Apply upper estimates of factors to lower estimates of "&F7&" (and lower to higher)" -> Apply upper estimates of factors to lower estimates of Damage (and lower to higher) | AF21: 0 | AG21: 0 | AH21: 0 | AI21: 0 | AJ21: 0 | AK21: 0
B22: Best Estimate | C22: =C19 -> 3000000000 | D22: =IF((C22-E22)=0,"",C22-E22) -> 2000000000 | E22: =E19 -> 1000000000 | F22: =F19 -> 0.52 | G22: 0.48 | H22: 0 | I22: 0.4 | J22: 0.5 | K22: 0.3 | L22: 0 | M22: 0 | N22: 1:1.2 | R22: =P22 -> 0 | U22: ="Apply upper and lower estimates of factors to best estimates of "&F7 -> Apply upper and lower estimates of factors to best estimates of Damage | AF22: 0 | AG22: 400000000 | AH22: 500000000 | AI22: 300000000 | AJ22: 0 | AK22: 0
B23: Lower Estimate | D23: =IF(C23="","",C23-E23) ->  | H23: 0 | I23: 0 | J23: 0 | K23: 0 | L23: 0 | M23: 0 | N23: 1:0 | R23: =IF($P$7="Yes",P23,"") ->  | AF23: 0 | AG23: 0 | AH23: 0 | AI23: 0 | AJ23: 0 | AK23: 0
A24: =Investment!B12 -> Scenario 4 | B24: Upper Estimate | D24: =IF(C24="","",C24-E24) ->  | H24: 0 | I24: 0 | J24: 0 | K24: 0 | L24: 0 | M24: 0 | N24: 1:0 | R24: =IF($P$7="Yes",P24,"") ->  | U24: Upper & Lower Bounds | AF24: 0 | AG24: 0 | AH24: 0 | AI24: 0 | AJ24: 0 | AK24: 0
B25: Best Estimate | C25: =C22 -> 3000000000 | D25: =IF((C25-E25)=0,"",C25-E25) -> 2000000000 | E25: =E22 -> 1000000000 | F25: =F22 -> 0.52 | G25: 0.48 | H25: 0 | I25: 0.4 | J25: 0.5 | K25: 0.3 | L25: 0 | M25: 0 | N25: 1:1.2 | R25: =P25 -> 0 | U25: =P7 -> TRUE | AF25: 0 | AG25: 400000000 | AH25: 500000000 | AI25: 300000000 | AJ25: 0 | AK25: 0
B26: Lower Estimate | D26: =IF(C26="","",C26-E26) ->  | H26: 0 | I26: 0 | J26: 0 | K26: 0 | L26: 0 | M26: 0 | N26: 1:0 | R26: =IF($P$7="Yes",P26,"") ->  | AF26: 0 | AG26: 0 | AH26: 0 | AI26: 0 | AJ26: 0 | AK26: 0
A27: =Investment!B13 -> Scenario 5 | B27: Upper Estimate | D27: =IF(C27="","",C27-E27) ->  | H27: 0 | I27: 0 | J27: 0 | K27: 0 | L27: 0 | M27: 0 | N27: 1:0 | R27: =IF($P$7="Yes",P27,"") ->  | U27: On | AF27: 0 | AG27: 0 | AH27: 0 | AI27: 0 | AJ27: 0 | AK27: 0
B28: Best Estimate | C28: =C25 -> 3000000000 | D28: =IF((C28-E28)=0,"",C28-E28) -> 2000000000 | E28: =E25 -> 1000000000 | F28: =F25 -> 0.52 | G28: 0.48 | H28: 0 | I28: 0.4 | J28: 0.5 | K28: 0.3 | L28: 0 | M28: 0 | N28: 1:1.2 | R28: =P28 -> 0 | U28: Off | AF28: 0 | AG28: 400000000 | AH28: 500000000 | AI28: 300000000 | AJ28: 0 | AK28: 0
B29: Lower Estimate | D29: =IF(C29="","",C29-E29) ->  | H29: 0 | I29: 0 | J29: 0 | K29: 0 | L29: 0 | M29: 0 | N29: 1:0 | R29: =IF($P$7="Yes",P29,"") ->  | AF29: 0 | AG29: 0 | AH29: 0 | AI29: 0 | AJ29: 0 | AK29: 0
U30: Indicator for Damages Avoided
A31: To add scenarios, go to settings tab | U31: [A] | X31: Avoided
X32: [Avoided]
O33: =Settings!C37 -> 1 | X33: [A]
O34: =Settings!C38 -> 2 | Q34: Low: | R34: =COUNTIF(R12:R29,"=Low") -> 0 | X34: <A>
O35: =Settings!C39 -> 3 | Q35: Medium: | R35: =COUNTIF(R12:R29,"=Medium") -> 0 | X35: (A)
O36: =Settings!C40 -> 4 | Q36: High: | R36: =COUNTIF(R12:R29,"=High") -> 0 | X36: {A}
O37: =Settings!C41 -> 5 | Q37: No Data: | R37: =COUNTIF(R12:R29,"=0") -> 6 | U37: Include FDO?
U38: =Settings!J8 -> TRUE
Q40: Total from all pages:
Q41: Low | R41: =R34+'Res Inputs'!S138+Investment!AC41 -> 0 | U41: Highlight drop-downs?
Q42: Medium | R42: =R35+'Res Inputs'!S139+Investment!AC42 -> 0 | U42: =Settings!J25 -> No
Q43: High | R43: =R36+'Res Inputs'!S140+Investment!AC43 -> 0
Q44: No Data | R44: =R37+'Res Inputs'!S141+Investment!AC44 -> 
Q45: Total | R45: =SUM(R41:R44) -> 
Q47: Total from all pages:
Q48: =Q41 -> Low | R48: =R41/$R$45 -> 
Q49: =Q42 -> Medium | R49: =R42/$R$45 -> 
Q50: =Q43 -> High | R50: =R43/$R$45 -> 
Q51: =Q44 -> No Data | R51: =R44/$R$45 -> 

Sheet Assets Inputs (hidden)
E3: Working With Assets Inputs | I3: Back: Damage Inputs | K3: Next: Working with Assets Calculations
O6: Data Sources | P6: Confidence
A7: =Settings!C72 -> OP | C7: =Settings!E72 -> % Response Operated | F7: The percentage of measures operated in each flood warning lead-time category | M7: No. of categories: | N7: ='Res Inputs'!N20 -> 3
A8: Flood warning lead-time categories: | D8: Set on Res Inputs tab | F8: ='Res Inputs'!F21 -> 0 - 1 hour | G8: ='Res Inputs'!G21 -> 1 - 8 hours | H8: ='Res Inputs'!H21 -> > 8 hours | I8: ='Res Inputs'!I21 -> 0 | J8: ='Res Inputs'!J21 -> 0 | K8: ='Res Inputs'!K21 -> 0 | L8: ='Res Inputs'!L21 -> 0 | M8: ='Res Inputs'!M21 -> 0 | N8: ="Aggregate "&Settings!F72 -> Aggregate %OP
A9: =IF(SUM(F9:M9)=100%,"% of properties at risk in each category:","Properties must add up to 100%") -> % of properties at risk in each category: | F9: ='Res Inputs'!F22 -> 0.1291 | G9: ='Res Inputs'!G22 -> 0.6973 | H9: ='Res Inputs'!H22 -> 0.1736 | I9: ='Res Inputs'!I22 -> 0 | J9: ='Res Inputs'!J22 -> 0 | K9: ='Res Inputs'!K22 -> 0 | L9: ='Res Inputs'!L22 -> 0 | M9: ='Res Inputs'!M22 -> 0 | O9: Estimated
A10: =Settings!C72&"-"&Settings!C75 -> OP-FDO | C10: =Settings!D75 -> Flood Defence Operation | E10: Upper Estimate | N10: =IF(F10="",N11,F10*$F$9+G10*$G$9+H10*$H$9+I10*$I$9+J10*$J$9+K10*$K$9+L10*$L$9+M10*$M$9) -> 0.99
E11: Best Estimate | F11: 0.99 | G11: 0.99 | H11: 0.99 | N11: =IF($N$7=1,$F$9*F11,IF($N$7=2,$F$9*F11+$G$9*G11,IF($N$7=3,$F$9*F11+$G$9*G11+$H$9*H11,IF($N$7=4,$F$9*F11+$G$9*G11+$H$9*H11+$I$9*I11,IF($N$7=5,$F$9*F11+$G$9*G11+$H$9*H11+$I$9*I11+$J$9*J11,IF($N$7=6,$F$9*F11+$G$9*G11+$H$9*H11+$I$9*I11+$J$9*J11+$K$9*K11,IF($N$7=7,$F$9*F11+$G$9*G11+$H$9*H11+$I$9*I11+$J$9*J11+$K$9*K11+$L$9*L11,IF($N$7=8,$F$9*F11+$G$9*G11+$H$9*H11+$I$9*I11+$J$9*J11+$K$9*K11+$L$9*L11+$M$9*M11,"")))))))) -> 0.99 | O11: As recommended at project workshop (5th Mar 2012) | P11: 3
E12: Lower Estimate | N12: =IF(F12="",N11,F12*$F$9+G12*$G$9+H12*$H$9+I12*$I$9+J12*$J$9+K12*$K$9+L12*$L$9+M12*$M$9) -> 0.99
A13: =Settings!C72&"-"&Settings!C76 -> OP-WCM | C13: =Settings!D76 -> Watercourse Management | E13: Upper Estimate | N13: =IF(F13="",N14,F13*$F$9+G13*$G$9+H13*$H$9+I13*$I$9+J13*$J$9+K13*$K$9+L13*$L$9+M13*$M$9) -> 0.5
E14: Best Estimate | F14: 0.5 | G14: 0.5 | H14: 0.5 | N14: =F14*$F$9+G14*$G$9+H14*$H$9+I14*$I$9+J14*$J$9+K14*$K$9+L14*$L$9+M14*$M$9 -> 0.5
E15: Lower Estimate | N15: =IF(F15="",N14,F15*$F$9+G15*$G$9+H15*$H$9+I15*$I$9+J15*$J$9+K15*$K$9+L15*$L$9+M15*$M$9) -> 0.5 | X15: Simple
A16: =Settings!C72&"-"&Settings!C77 -> OP-CBO | C16: =Settings!D77 -> Community Based Operations | E16: Upper Estimate | N16: =IF(F16="",N17,F16*$F$9+G16*$G$9+H16*$H$9+I16*$I$9+J16*$J$9+K16*$K$9+L16*$L$9+M16*$M$9) -> 0.8 | S16: =IF(AND(R17=1,'Damage Inputs'!$P$7="On"),#REF!,"") -> 
E17: Best Estimate | F17: 0.8 | G17: 0.8 | H17: 0.8 | N17: =F17*$F$9+G17*$G$9+H17*$H$9+I17*$I$9+J17*$J$9+K17*$K$9+L17*$L$9+M17*$M$9 -> 0.8 | R17: =IF(#REF!="Yes",0,1) ->  | S17: =IF(R17=1,#REF!,"") -> 
E18: Lower Estimate | N18: =IF(F18="",N17,F18*$F$9+G18*$G$9+H18*$H$9+I18*$I$9+J18*$J$9+K18*$K$9+L18*$L$9+M18*$M$9) -> 0.8 | S18: =IF(AND(R17=1,'Damage Inputs'!$P$7="On"),#REF!,"") -> 
S19: =IF(AND(R20=1,'Damage Inputs'!$P$7="On"),#REF!,"") ->  | V19: If you don't put upper & lower estimates, the spreadsheet will just take the best estimate
R20: =R46 ->  | S20: =IF(R20=1,#REF!,"") -> 
A21: =Settings!C70 -> WS | C21: =Settings!E70 -> % Warning Success | F21: The percentage of properties at risk that receive a warning (i.e. an aggregate of coverage and availability) | M21: Mode: | N21: Simple | S21: =IF(AND(R20=1,'Damage Inputs'!$P$7="On"),#REF!,"") -> 
C22: =IF(N21="Simple","","Factors contributing to RA:") ->  | N22: =IF(N21="Simple",Settings!F70,"Aggregate "&Settings!F70) -> %WS | S22: =IF(AND(R23=1,'Damage Inputs'!$P$7="On"),#REF!,"") -> 
A23: =Settings!C70&"-"&Settings!C75 -> WS-FDO | C23: =Settings!C70&" for domestic properties" -> WS for domestic properties | E23: Upper Estimate | N23: =IF($N$21="Simple",IF(F23="",F24,F23),IF(F23="",PRODUCT(F24:M24),PRODUCT(F23:M23))) -> 0.99 | R23: =IF(#REF!="Yes",0,1) ->  | S23: =IF(R23=1,#REF!,"") -> 
E24: Best Estimate | F24: 0.99 | N24: =IF($N$21="Simple",F24,PRODUCT(F24:M24)) -> 0.99 | O24: As recommended at project workshop (5th Mar 2012) | P24: 3 | S24: =IF(AND(R23=1,'Damage Inputs'!$P$7="On"),#REF!,"") -> 
E25: Lower Estimate | N25: =IF($N$21="Simple",IF(F25="",F24,F25),IF(F25="",PRODUCT(F24:M24),PRODUCT(F25:M25))) -> 0.99 | S25: =IF(AND(R26=1,'Damage Inputs'!$P$7="On"),#REF!,"") -> 
A26: =Settings!C70&"-"&Settings!C76 -> WS-WCM | C26: =Settings!C70&" for business properties" -> WS for business properties | E26: Upper Estimate | N26: =IF($N$21="Simple",IF(F26="",F27,F26),IF(F26="",PRODUCT(F27:M27),PRODUCT(F26:M26))) -> 0.9 | R26: =(R71+R74)/(R71+R74) ->  | S26: =IF(R26=1,#REF!,"") -> 
E27: Best Estimate | F27: 0.9 | N27: =IF($N$21="Simple",F27,PRODUCT(F27:M27)) -> 0.9 | O27: Estimated | S27: =IF(AND(R26=1,'Damage Inputs'!$P$7="On"),#REF!,"") -> 
E28: Lower Estimate | N28: =IF($N$21="Simple",IF(F28="",F27,F28),IF(F28="",PRODUCT(F27:M27),PRODUCT(F28:M28))) -> 0.9
A29: =Settings!C70&"-"&Settings!C77 -> WS-CBO | C29: =Settings!C70&" for professional partners" -> WS for professional partners | E29: Upper Estimate | N29: =IF($N$21="Simple",IF(F29="",F30,F29),IF(F29="",PRODUCT(F30:M30),PRODUCT(F29:M29))) -> 0.9
E30: Best Estimate | F30: 0.9 | N30: =IF($N$21="Simple",F30,PRODUCT(F30:M30)) -> 0.9 | O30: Estimated
E31: Lower Estimate | N31: =IF($N$21="Simple",IF(F31="",F30,F31),IF(F31="",PRODUCT(F30:M30),PRODUCT(F31:M31))) -> 0.9 | S31: =IF(AND(R32=1,'Damage Inputs'!$P$7="On"),#REF!,"") -> 
R32: =IF(#REF!="Yes",0,1) ->  | S32: =IF(R32=1,#REF!,"") -> 
S33: =IF(AND(R32=1,'Damage Inputs'!$P$7="On"),#REF!,"") -> 
O34: ='Non-Res Inputs'!O79 -> 1
O35: ='Non-Res Inputs'!O80 -> 2
O36: ='Non-Res Inputs'!O81 -> 3 | V36: VISUALISE THE AMOUNT OF DAMAGES SAVED
O37: ='Non-Res Inputs'!O82 -> 4 | X37: Simple
O38: ='Non-Res Inputs'!O83 -> 5 | X38: Detailed
S39: =IF(AND(R40=1,'Damage Inputs'!$P$7="On"),P10,"") -> 
R40: =IF(#REF!="Yes",0,1) ->  | S40: =IF(R40=1,P11,"") ->  | X40: Yes
S41: =IF(AND(R40=1,'Damage Inputs'!$P$7="On"),P12,"") -> 
S42: =IF(AND(R43=1,'Damage Inputs'!$P$7="On"),P13,"") -> 
R43: =R17 ->  | S43: =IF(R43=1,P14,"") -> 
S44: =IF(AND(R43=1,'Damage Inputs'!$P$7="On"),P15,"") ->  | X44: Yes
S45: =IF(AND(R46=1,'Damage Inputs'!$P$7="On"),P16,"") ->  | X45: No
R46: =IF(#REF!="Yes",0,1) ->  | S46: =IF(R46=1,P17,"") -> 
S47: =IF(AND(R46=1,'Damage Inputs'!$P$7="On"),P18,"") -> 
S48: =IF(AND(R49=1,'Damage Inputs'!$P$7="On"),#REF!,"") ->  | X48: Simple
R49: =R74 ->  | S49: =IF(R49=1,#REF!,"") ->  | X49: Detailed CME
S50: =IF(AND(R49=1,'Damage Inputs'!$P$7="On"),#REF!,"") ->  | X50: Detailed
S51: =IF(AND(R52=1,'Damage Inputs'!$P$7="On"),#REF!,"") -> 
R52: =IF(#REF!="Yes",0,1) ->  | S52: =IF(R52=1,#REF!,"") ->  | V52: GRAPH, LIKE I DID UP AT FHRC, BUT AUTOMATICALLY ADJUSTING
S53: =IF(AND(R52=1,'Damage Inputs'!$P$7="On"),#REF!,"") -> 
V56: VISUALISE THE AMOUNT OF DAMAGES SAVED
S58: =IF(AND(R59=1,'Damage Inputs'!$P$7="On"),#REF!,"") -> 
R59: =R40 ->  | S59: =IF(R59=1,#REF!,"") -> 
S60: =IF(AND(R59=1,'Damage Inputs'!$P$7="On"),#REF!,"") ->  | X60: Low
S61: =IF(AND(R62=1,'Damage Inputs'!$P$7="On"),#REF!,"") ->  | X61: Medium
R62: =R43 ->  | S62: =IF(R62=1,#REF!,"") ->  | X62: High
S63: =IF(AND(R62=1,'Damage Inputs'!$P$7="On"),#REF!,"") -> 
S64: =IF(AND(R65=1,'Damage Inputs'!$P$7="On"),#REF!,"") -> 
R65: =R46 ->  | S65: =IF(R65=1,#REF!,"") ->  | X65: 1
S66: =IF(AND(R65=1,'Damage Inputs'!$P$7="On"),#REF!,"") ->  | X66: 2
S67: =IF(AND(R68=1,'Damage Inputs'!$P$7="On"),#REF!,"") ->  | X67: 3
R68: =R23 ->  | S68: =IF(R68=1,#REF!,"") ->  | X68: 4
S69: =IF(AND(R68=1,'Damage Inputs'!$P$7="On"),#REF!,"") ->  | X69: 5
S70: =IF(AND(R71=1,'Damage Inputs'!$P$7="On"),#REF!,"") ->  | X70: 6
R71: =IF(#REF!="Yes",0,1) ->  | S71: =IF(R71=1,#REF!,"") ->  | X71: 7
S72: =IF(AND(R71=1,'Damage Inputs'!$P$7="On"),#REF!,"") ->  | X72: 8
S73: =IF(AND(R74=1,'Damage Inputs'!$P$7="On"),#REF!,"") -> 
R74: =IF(#REF!="Yes",0,1) ->  | S74: =IF(R74=1,#REF!,"") -> 
S75: =IF(AND(R74=1,'Damage Inputs'!$P$7="On"),#REF!,"") ->  | X75: Yes
S76: =IF(AND(R77=1,'Damage Inputs'!$P$7="On"),#REF!,"") ->  | X76: No
R77: =R32 ->  | S77: =IF(R77=1,#REF!,"") -> 
S78: =IF(AND(R77=1,'Damage Inputs'!$P$7="On"),#REF!,"") -> 
S79: =IF(AND(R80=1,'Damage Inputs'!$P$7="On"),#REF!,"") ->  | X79: Upper & Lower Bounds
R80: =R52 ->  | S80: =IF(R80=1,#REF!,"") ->  | X80: ='Non-Res'!AB22 -> On
S81: =IF(AND(R80=1,'Damage Inputs'!$P$7="On"),#REF!,"") -> 
X84: Highlight drop-downs?
X85: ='Damage Inputs'!U42 -> No
S86: =IF(AND(R87=1,'Damage Inputs'!$P$7="On"),P23,"") -> 
R87: =IF(OR(#REF!="No",#REF!="No"),1,0) ->  | S87: =IF(R87=1,P24,"") -> 
S88: =IF(AND(R87=1,'Damage Inputs'!$P$7="On"),P25,"") -> 
S89: =IF(AND(R90=1,'Damage Inputs'!$P$7="On"),P26,"") -> 
R90: =IF(#REF!="No",1,0) ->  | S90: =IF(R90=1,P27,"") -> 
S91: =IF(AND(R90=1,'Damage Inputs'!$P$7="On"),P28,"") -> 
S92: =IF(AND(R93=1,'Damage Inputs'!$P$7="On"),P29,"") -> 
R93: =IF(OR(#REF!="No",#REF!="No",#REF!="No"),1,0) ->  | S93: =IF(R93=1,P30,"") -> 
S94: =IF(AND(R93=1,'Damage Inputs'!$P$7="On"),P31,"") -> 
R98: 1 | S98: =IF(R98=1,#REF!,"") -> 
R103: =IF(#REF!="Yes",1,0) ->  | S103: =IF(R103=1,#REF!,"") -> 
S111: =IF(AND(R112=1,'Damage Inputs'!$P$7="On"),#REF!,"") -> 
R112: =IF(#REF!="Yes",1,0) ->  | S112: =IF(R112=1,#REF!,"") -> 
S113: =IF(AND(R112=1,'Damage Inputs'!$P$7="On"),#REF!,"") -> 
S114: =IF(AND(R115=1,'Damage Inputs'!$P$7="On"),#REF!,"") -> 
R115: =IF(#REF!="Yes",1,0) ->  | S115: =IF(R115=1,#REF!,"") -> 
S116: =IF(AND(R115=1,'Damage Inputs'!$P$7="On"),#REF!,"") -> 
S117: =IF(AND(R118=1,'Damage Inputs'!$P$7="On"),#REF!,"") -> 
R118: =IF(#REF!="Yes",1,0) ->  | S118: =IF(R118=1,#REF!,"") -> 
S119: =IF(AND(R118=1,'Damage Inputs'!$P$7="On"),#REF!,"") -> 
S120: =IF(AND(R121=1,'Damage Inputs'!$P$7="On"),#REF!,"") -> 
R121: =IF(#REF!="Yes",1,0) ->  | S121: =IF(R121=1,#REF!,"") -> 
S122: =IF(AND(R121=1,'Damage Inputs'!$P$7="On"),#REF!,"") -> 
S123: =IF(AND(R124=1,'Damage Inputs'!$P$7="On"),#REF!,"") -> 
R124: =IF(#REF!="Yes",1,0) ->  | S124: =IF(R124=1,#REF!,"") -> 
S125: =IF(AND(R124=1,'Damage Inputs'!$P$7="On"),#REF!,"") -> 
S126: =IF(AND(R127=1,'Damage Inputs'!$P$7="On"),#REF!,"") -> 
R127: =IF(#REF!="Yes",1,0) ->  | S127: =IF(R127=1,#REF!,"") -> 
S128: =IF(AND(R127=1,'Damage Inputs'!$P$7="On"),#REF!,"") -> 
S129: =IF(AND(R130=1,'Damage Inputs'!$P$7="On"),#REF!,"") -> 
R130: =IF(#REF!="Yes",1,0) ->  | S130: =IF(R130=1,#REF!,"") -> 
S131: =IF(AND(R130=1,'Damage Inputs'!$P$7="On"),#REF!,"") -> 
S132: =IF(AND(R133=1,'Damage Inputs'!$P$7="On"),#REF!,"") -> 
R133: =IF(#REF!="Yes",1,0) ->  | S133: =IF(R133=1,#REF!,"") -> 
S134: =IF(AND(R133=1,'Damage Inputs'!$P$7="On"),#REF!,"") -> 
R138: Low: | S138: =COUNTIF(S16:S134,"=Low") -> 0
R139: Medium: | S139: =COUNTIF(S16:S134,"=Medium") -> 0
R140: High: | S140: =COUNTIF(S16:S134,"=High") -> 0
R141: No Data: | S141: =COUNTIF(S17:S135,"=0") -> 0

Sheet Assets
D2: Damages avoided by NSRs working with Assets | K2: Back: Damage Inputs | M2: Next: Residential Inputs
D3: Operating flood defences and temporary/demountable defences and maintaining watercourse capacity
A5: ="The damages avoided by having defences in place ("&'Damage Inputs'!D10&") assumes that FDO, WCM and CBO are successfully in place. This calculation determines the proportion of those damages avoided that can be attributed to flood warnings." -> The damages avoided by having defences in place (Damage[A]¹) assumes that FDO, WCM and CBO are successfully in place. This calculation determines the proportion of those damages avoided that can be attributed to flood warnings.
A6: ="As it is looking at the percentages of an already known value, they are not applied in sequence. Each is applied as a percentage of "&'Damage Inputs'!D10&". They must therefore add up to 100% so that all the avoided damages are accounted for." -> As it is looking at the percentages of an already known value, they are not applied in sequence. Each is applied as a percentage of Damage[A]¹. They must therefore add up to 100% so that all the avoided damages are accounted for. | U6: Low
K7: Data Sources | M7: Confidence | U7: Medium
A8: =Settings!C75 -> FDO | B8: =Settings!D75 -> Flood Defence Operation | H8: ='Damage Inputs'!D10 -> Damage[A]¹ | J8: Damages avoided | U8: High
A9: Assuming, in line with NaFRA, that these defences are always successfully put in place. | E9: Upper Estimate | F9: 0.4 | G9: x | H9: =IF('Damage Inputs'!D12="",H10,'Damage Inputs'!D12) -> 2000000000 | I9: = | J9: =F9*H9*V48 -> 800000000
E10: Best Estimate | F10: 0.28 | G10: x | H10: ='Damage Inputs'!D13 -> 2000000000 | I10: = | J10: =F10*H10*V48 -> 560000000 | K10: Parker et al (2008) | M10: 4
E11: Lower Estimate | F11: 0 | G11: x | H11: =IF('Damage Inputs'!D14="",H10,'Damage Inputs'!D14) -> 2000000000 | I11: = | J11: =F11*H11*V48 -> 0
A14: =Settings!C76 -> WCM | B14: =Settings!D76 -> Watercourse Management | H14: =H8 -> Damage[A]¹ | U14: FDO | W14: Flood Defence Operation | X14: ='Non-Res'!AE11 -> 
A15: Assuming, in line with NaFRA, that these actions are always successfully taken. | E15: Upper Estimate | F15: 0.1 | G15: x | H15: =H9 -> 2000000000 | I15: = | J15: =F15*H15*V49 -> 200000000 | U15: WCM | W15: Watercourse Maintenance | X15: ='Non-Res'!AE12 -> 
E16: Best Estimate | F16: 0.1 | G16: x | H16: =H10 -> 2000000000 | I16: = | J16: =F16*H16*V49 -> 200000000
E17: Lower Estimate | F17: 0.1 | G17: x | H17: =H11 -> 2000000000 | I17: = | J17: =F17*H17*V49 -> 200000000
A20: =Settings!C77 -> CBO | B20: =Settings!D77 -> Community Based Operations | H20: =H8 -> Damage[A]¹
A21: Assuming, in line with NaFRA, that these demountable and temporary defences are always successfully put in place: | E21: Upper Estimate | F21: 0.05 | G21: x | H21: =H15 -> 2000000000 | I21: = | J21: =F21*H21*V50 -> 100000000 | U21: CBO | W21: Community-Based Operations | X21: ='Non-Res'!AE13 -> 
E22: Best Estimate | F22: 0.05 | G22: x | H22: =H16 -> 2000000000 | I22: = | J22: =F22*H22*V50 -> 100000000 | U22: BCP | W22: Business Continuity Planning | X22: ='Non-Res'!AE14 -> 
E23: Lower Estimate | F23: 0.05 | G23: x | H23: =H17 -> 2000000000 | I23: = | J23: =F23*H23*V50 -> 100000000 | U23: WIR | W23: Warning-Independent Resistance | X23: ='Non-Res'!AE15 -> No
U24: WDR | W24: Warning-Dependent Resistance | X24: ='Non-Res'!AE16 -> No
A26: ="Static Flood Defences & Routine "&Settings!D76 -> Static Flood Defences & Routine Watercourse Management | H26: =H20 -> Damage[A]¹ | U26: RSL | W26: Resilience Measures | X26: ='Non-Res'!AE17 -> No
A27: ="The remainder of the damages avoided ("&'Damage Inputs'!D10&") must therefore be due to flood defences that do not rely on a flood warning and routine watercourse capacity maintenance." -> The remainder of the damages avoided (Damage[A]¹) must therefore be due to flood defences that do not rely on a flood warning and routine watercourse capacity maintenance. | E27: Upper Estimate | F27: =100%-IF(Settings!$J$8=TRUE,F9,0)-IF(Settings!$J$10=TRUE,F21,0)-IF(Settings!$J$12=TRUE,F15,0) -> 0.45 | G27: x | H27: =H21 -> 2000000000 | I27: = | J27: =F27*H27 -> 900000000 | U27: CME | W27: Contents Moved & Evacuated | X27: ='Non-Res'!AE18 -> No
E28: Best Estimate | F28: =100%-IF(Settings!$J$8=TRUE,F10,0)-IF(Settings!$J$10=TRUE,F22,0)-IF(Settings!$J$12=TRUE,F16,0) -> 0.57 | G28: x | H28: =H22 -> 2000000000 | I28: = | J28: =F28*H28 -> 1140000000
E29: Lower Estimate | F29: =100%-IF(Settings!$J$8=TRUE,F11,0)-IF(Settings!$J$10=TRUE,F23,0)-IF(Settings!$J$12=TRUE,F17,0) -> 0.85 | G29: x | H29: =H23 -> 2000000000 | I29: = | J29: =F29*H29 -> 1700000000
U30: Upper & Lower Bounds
U32: ='Non-Res'!AB22 -> On
A33: ="The calculations above assume that the warning-dependent measures are always effective. The calculations below apply factors (RA, UP, OP and EF) to the percentages given above to adjust the "&'Damage Inputs'!D10&" value." -> The calculations above assume that the warning-dependent measures are always effective. The calculations below apply factors (RA, UP, OP and EF) to the percentages given above to adjust the Damage[A]¹ value.
A34: Note that uptake and effectiveness are excluded because it is assumed that this is included in the values above.
W35: FDO Included | X35: =Settings!J8 -> TRUE
G36: =Settings!C70 -> WS | H36: =Settings!C73 -> UP | I36: =Settings!C72 -> OP | J36: =Settings!C71 -> PO | M36: ="Cumulative adjusted value of "&H8 -> Cumulative adjusted value of Damage[A]¹ | W36: WCM Included | X36: ='Non-Res'!AE24 -> TRUE
B37: Set Input Values | G37: =Settings!E70 -> % Warning Success | H37: =Settings!E73 -> % Response Uptake | I37: =Settings!E72 -> % Response Operated | J37: =Settings!E71 -> % Response Potential | W37: CBO Included | X37: ='Non-Res'!AE25 -> TRUE
A39: FDO | B39: Flood Defence Operation
A40: Assuming that success in operating flood defences relies on accurate prediction of a flood and sufficient lead time to take action | F40: Damage | G40: =G37 -> % Warning Success | I40: =I37 -> % Response Operated | K40: =Settings!F75 -> %FDO | L40: ="Adjusted £"&A39 -> Adjusted £FDO | W40: Assume 100% Effectiveness of working with assets | X40: Yes
E41: Type: | F41: ="Proportion of "&H8 -> Proportion of Damage[A]¹ | G41: =Settings!C70&"-"&Settings!C75 -> WS-FDO | I41: =Settings!C72&"-"&Settings!C75 -> OP-FDO
E42: Upper Estimate | F42: =J9 -> 800000000 | G42: ='Assets Inputs'!N23 -> 0.99 | I42: ='Assets Inputs'!N10 -> 0.99 | K42: =PRODUCT(G42:J42) -> 0.9801 | L42: =K42*F42 -> 784080000 | M42: =L42 -> 784080000
E43: Best Estimate | F43: =J10 -> 560000000 | G43: ='Assets Inputs'!N24 -> 0.99 | I43: ='Assets Inputs'!N11 -> 0.99 | K43: =PRODUCT(G43:J43) -> 0.9801 | L43: =K43*F43 -> 548856000 | M43: =L43 -> 548856000
E44: Lower Estimate | F44: =J11 -> 0 | G44: ='Assets Inputs'!N25 -> 0.99 | I44: ='Assets Inputs'!N12 -> 0.99 | K44: =PRODUCT(G44:J44) -> 0.9801 | L44: =K44*F44 -> 0 | M44: =L44 -> 0
A47: WCM | B47: Watercourse Capacity Maintenance | U47: Output Values | V47: Include?
A48: Assuming that watercourse capacity maintenance relies on accurate prediction of a flood and sufficient lead time to take action | F48: Damage | G48: =G40 -> % Warning Success | I48: =I40 -> % Response Operated | K48: =Settings!F76 -> %WCM | L48: ="Adjusted £"&A47 -> Adjusted £WCM | T48: FDO | U48: =IF($X$40="Yes",J10,L43)*V48 -> 560000000 | V48: 1
E49: Type: | F49: ="Proportion of "&H8 -> Proportion of Damage[A]¹ | G49: =Settings!C70&"-"&Settings!C76 -> WS-WCM | I49: =Settings!C72&"-"&Settings!C76 -> OP-WCM | T49: WCM | U49: =IF($X$40="Yes",J16,L51)*V49 -> 200000000 | V49: 1
E50: Upper Estimate | F50: =J15 -> 200000000 | G50: ='Assets Inputs'!N26 -> 0.9 | I50: ='Assets Inputs'!N13 -> 0.5 | K50: =PRODUCT(G50:J50) -> 0.45 | L50: =IF(X$36=TRUE,K50*F50,0) -> 90000000 | M50: =L50+M42 -> 874080000 | T50: CBO | U50: =IF($X$40="Yes",J22,L59)*V50 -> 100000000 | V50: 1
E51: Best Estimate | F51: =J16 -> 200000000 | G51: ='Assets Inputs'!N27 -> 0.9 | I51: ='Assets Inputs'!N14 -> 0.5 | K51: =PRODUCT(G51:J51) -> 0.45 | L51: =IF(X$36=TRUE,K51*F51,0) -> 90000000 | M51: =L51+M43 -> 638856000
E52: Lower Estimate | F52: =J17 -> 200000000 | G52: ='Assets Inputs'!N28 -> 0.9 | I52: ='Assets Inputs'!N15 -> 0.5 | K52: =PRODUCT(G52:J52) -> 0.45 | L52: =IF(X$36=TRUE,K52*F52,0) -> 90000000 | M52: =L52+M44 -> 90000000
A55: =Settings!C77 -> CBO | B55: =Settings!D77 -> Community Based Operations
A56: Assuming that success in operating temporary and demountable flood defences relies on accurate prediction of a flood and sufficient lead time | F56: Damage | G56: =G48 -> % Warning Success | I56: =I48 -> % Response Operated | K56: =Settings!F77 -> %CBO | L56: ="Adjusted £"&A55 -> Adjusted £CBO
E57: Type: | F57: ="Proportion of "&H8 -> Proportion of Damage[A]¹ | G57: =Settings!C70&"-"&Settings!C77 -> WS-CBO | I57: =Settings!C72&"-"&Settings!C77 -> OP-CBO
E58: Upper Estimate | F58: =J21 -> 100000000 | G58: ='Assets Inputs'!N29 -> 0.9 | I58: ='Assets Inputs'!N16 -> 0.8 | K58: =PRODUCT(G58:J58) -> 0.72 | L58: =K58*F58 -> 72000000 | M58: =L58+M50 -> 946080000
E59: Best Estimate | F59: =J22 -> 100000000 | G59: ='Assets Inputs'!N30 -> 0.9 | I59: ='Assets Inputs'!N17 -> 0.8 | K59: =PRODUCT(G59:J59) -> 0.72 | L59: =K59*F59 -> 72000000 | M59: =L59+M51 -> 710856000
E60: Lower Estimate | F60: =J23 -> 100000000 | G60: ='Assets Inputs'!N31 -> 0.9 | I60: ='Assets Inputs'!N18 -> 0.8 | K60: =PRODUCT(G60:J60) -> 0.72 | L60: =K60*F60 -> 72000000 | M60: =L60+M52 -> 162000000
A63: Static Flood Defences & Routine Watercourse Capacity Maintenance
A64: Assuming that this value remains the same as given above | E64: Upper Estimate | L64: =J27 -> 900000000 | M64: =L64+M58 -> 1846080000
E65: Best Estimate | L65: =J28 -> 1140000000 | M65: =L65+M59 -> 1850856000
E66: Lower Estimate | L66: =J29 -> 1700000000 | M66: =L66+M60 -> 1862000000
A69: ="Adjusted "&'Damage Inputs'!F7&" Values" -> Adjusted Damage Values | F69: ='Damage Inputs'!C10 -> Damageº | G69: ='Damage Inputs'!D10 -> Damage[A]¹ | I69: ='Damage Inputs'!E10 -> Damage¹
A70: ="Including "&IF(AND(V48=1,V49=1,V50=1),A39&", "&A47&", "&A55&" and ","")&IF(AND(V48=1,V49=1,V50=0),A39&", "&A47&" and ","")&IF(AND(V48=1,V49=0,V50=1),A39&", "&A55&" and ","")&IF(AND(V48=0,V49=1,V50=1),A47&", "&A55&" and ","")&IF(AND(V48=1,V49=0,V50=0),A39&" and ","")&IF(AND(V48=0,V49=1,V50=0),A47&" and ","")&IF(AND(V48=0,V49=0,V50=1),A55&" and ","")&"static flood defences" -> Including FDO, WCM, CBO and static flood defences | E70: Upper Estimate | F70: =IF('Damage Inputs'!C12="",F71,'Damage Inputs'!C12) -> 3000000000 | G70: =M64 -> 1846080000 | I70: =F70-G70 -> 1153920000
E71: Best Estimate | F71: ='Damage Inputs'!C13 -> 3000000000 | G71: =M65 -> 1850856000 | I71: =F71-G71 -> 1149144000
E72: Lower Estimate | F72: =IF('Damage Inputs'!C14="",F71,'Damage Inputs'!C14) -> 3000000000 | G72: =M66 -> 1862000000 | I72: =F72-G72 -> 1138000000
B75: ="Output "&'Damage Inputs'!F7&" Values" -> Output Damage Values | F75: =F69 -> Damageº | G75: =G69 -> Damage[A]¹ | I75: =I69 -> Damage¹ | L75: ='Res Inputs'!O71 -> 1
E76: Upper Estimate | F76: =F70 -> 3000000000 | G76: =IF(X40="No",G70,H9) -> 2000000000 | I76: =F76-G76 -> 1000000000 | L76: ='Res Inputs'!O72 -> 2
E77: Best Estimate | F77: =F71 -> 3000000000 | G77: =IF(X40="No",G71,H10) -> 2000000000 | I77: =F77-G77 -> 1000000000 | L77: ='Res Inputs'!O73 -> 3
E78: Lower Estimate | F78: =F72 -> 3000000000 | G78: =IF(X40="No",G72,H11) -> 2000000000 | I78: =F78-G78 -> 1000000000 | L78: ='Res Inputs'!O74 -> 4
L79: ='Res Inputs'!O75 -> 5

Sheet Res Inputs
D2: Residential Input Data
M3: Back: Working with Assets | O3: Next: Residential Calculations
O6: Data Sources | P6: Confidence
A7: =Settings!C73 -> UP | C7: =Settings!E73 -> % Response Uptake | D7: The percentage of properties/areas at risk that each measure has been installed or invested in | M7: Mode: | N7: Simple
A8: =IF(N7="Simple","","Factors contributing to uptake:") ->  | N8: =IF(N7="Simple",Settings!F73,"Aggregate "&Settings!F73) -> %UP
A9: =Settings!C79 -> WIR | C9: =Settings!D79 -> Warning Independent Resistance | E9: Upper Estimate | N9: =IF($N$7="Simple",IF(F9="",F10,F9),IF(F9="",PRODUCT(F10:M10),PRODUCT(F9:M9))) -> 0.032
E10: Best Estimate | F10: 0.032 | N10: =IF($N$7="Simple",IF(F10<1,F10,1),IF(PRODUCT(F10:M10)<1,PRODUCT(F10:M10),1)) -> 0.032 | O10: Post flood event surveys, a major flood barrier company | P10: 4
E11: Lower Estimate | N11: =IF($N$7="Simple",IF(F11="",F10,F11),IF(F11="",PRODUCT(F10:M10),PRODUCT(F11:M11))) -> 0.032
A12: =Settings!C80 -> WDR | C12: =Settings!D80 -> Warning Dependent Resistance | E12: Upper Estimate
E13: Best Estimate | F13: 0.048 | N13: =IF($N$7="Simple",IF(F13<1,F13,1),IF(PRODUCT(F13:M13)<1,PRODUCT(F13:M13),1)) -> 0.048 | O13: Post flood event surveys, a major flood barrier company | P13: 4
E14: Lower Estimate
A15: =Settings!C81 -> RSL | C15: =Settings!D81 -> Resilience Measures | E15: Upper Estimate | N15: =IF($N$7="Simple",IF(F15="",F16,F15),IF(F15="",PRODUCT(F16:M16),PRODUCT(F15:M15))) -> 0.02 | X15: Simple
E16: Best Estimate | F16: 0.02 | N16: =IF($N$7="Simple",IF(F16<1,F16,1),IF(PRODUCT(F16:M16)<1,PRODUCT(F16:M16),1)) -> 0.02 | O16: Estimated based on values for resistance | P16: 4 | S16: =IF(AND(R17=1,'Damage Inputs'!$P$7="On"),#REF!,"") -> 
E17: Lower Estimate | N17: =IF($N$7="Simple",IF(F17="",F16,F17),IF(F17="",PRODUCT(F16:M16),PRODUCT(F17:M17))) -> 0.02 | R17: =IF(#REF!="Yes",0,1) ->  | S17: =IF(R17=1,#REF!,"") -> 
S18: =IF(AND(R17=1,'Damage Inputs'!$P$7="On"),#REF!,"") -> 
S19: =IF(AND(R20=1,'Damage Inputs'!$P$7="On"),#REF!,"") ->  | V19: If you don't put upper & lower estimates, the spreadsheet will just take the best estimate
A20: =Settings!C72 -> OP | C20: =Settings!E72 -> % Response Operated | D20: The percentage of measures operated in each flood warning lead-time category | M20: No. of categories: | N20: 3 | R20: =R46 ->  | S20: =IF(R20=1,#REF!,"") -> 
A21: Flood warning lead-time categories: | F21: 0 - 1 hour | G21: 1 - 8 hours | H21: > 8 hours | N21: ="Aggregate "&Settings!F72 -> Aggregate %OP | S21: =IF(AND(R20=1,'Damage Inputs'!$P$7="On"),#REF!,"") -> 
A22: =IF(SUM(F22:M22)=100%,"% of properties at risk in each category:","Properties must add up to 100%") -> % of properties at risk in each category: | F22: 0.1291 | G22: 0.6973 | H22: 0.1736 | O22: Estimated at expert workshop | P22: 3 | S22: =IF(AND(R23=1,'Damage Inputs'!$P$7="On"),#REF!,"") -> 
A23: =A12 -> WDR | C23: =C12 -> Warning Dependent Resistance | E23: Upper Estimate | N23: =IF(F23="",N24,F23*$F$22+G23*$G$22+H23*$H$22+I23*$I$22+J23*$J$22+K23*$K$22+L23*$L$22+M23*$M$22) -> 0.9588631 | R23: =IF(#REF!="Yes",0,1) ->  | S23: =IF(R23=1,#REF!,"") -> 
E24: Best Estimate | F24: 0.923 | G24: 0.958 | H24: 0.989 | N24: =F24*$F$22+G24*$G$22+H24*$H$22+I24*$I$22+J24*$J$22+K24*$K$22+L24*$L$22+M24*$M$22 -> 0.9588631 | O24: Post flood event surveys | P24: 4 | S24: =IF(AND(R23=1,'Damage Inputs'!$P$7="On"),#REF!,"") -> 
E25: Lower Estimate | N25: =IF(F25="",N24,F25*$F$22+G25*$G$22+H25*$H$22+I25*$I$22+J25*$J$22+K25*$K$22+L25*$L$22+M25*$M$22) -> 0.9588631 | S25: =IF(AND(R26=1,'Damage Inputs'!$P$7="On"),P9,"") -> 
A26: =Settings!C82 -> CME | C26: =Settings!D82 -> Contents Moved & Evacuated | E26: Upper Estimate | N26: =IF(F26="",N27,F26*$F$22+G26*$G$22+H26*$H$22+I26*$I$22+J26*$J$22+K26*$K$22+L26*$L$22+M26*$M$22) -> 0.731306 | R26: =(R71+R74)/(R71+R74) -> 1 | S26: =IF(R26=1,P10,"") -> 4
E27: Best Estimate | F27: 0.7 | G27: 0.72 | H27: 0.8 | N27: =F27*$F$22+G27*$G$22+H27*$H$22+I27*$I$22+J27*$J$22+K27*$K$22+L27*$L$22+M27*$M$22 -> 0.731306 | O27: Jacqui Cotton Report / Parker et al (2007) | P27: 2 | S27: =IF(AND(R26=1,'Damage Inputs'!$P$7="On"),P11,"") -> 
E28: Lower Estimate | N28: =IF(F28="",N27,F28*$F$22+G28*$G$22+H28*$H$22+I28*$I$22+J28*$J$22+K28*$K$22+L28*$L$22+M28*$M$22) -> 0.731306
A31: =Settings!C71 -> PO | C31: =Settings!E71 -> % Response Potential | D31: ="The percentage of the potential "&LOWER(Settings!I47)&" reduced if a measure is operated" -> The percentage of the potential damage reduced if a measure is operated | M31: Mode: | N31: Detailed CME | S31: =IF(AND(R32=1,'Damage Inputs'!$P$7="On"),P15,"") -> 
A32: =IF(N31="Simple","","Factors contributing to effectiveness:") -> Factors contributing to effectiveness: | F32: Effectiveness | G32: Potential Inventory Damage | H32: Moveable Inventory Damage | N32: =IF(N31="Simple",Settings!F71,"Aggregate "&Settings!F71) -> Aggregate %PO | R32: =IF(D62="Yes",0,1) -> 1 | S32: =IF(R32=1,P16,"") -> 4
A33: =A9 -> WIR | C33: =C9 -> Warning Independent Resistance | E33: Upper Estimate | F33: 0.84 | N33: =IF($N$31="Simple",IF(F33="",F34,F33),IF(F33="",PRODUCT(F34:M34),PRODUCT(F33:M33))) -> 0.84 | O33: From "Developing the Evidence Base for Flood Resistance & Resilience" | P33: 2 | S33: =IF(AND(R32=1,'Damage Inputs'!$P$7="On"),P17,"") -> 
E34: Best Estimate | F34: =(F33+F35)/2 -> 0.745 | N34: =IF($N$31="Simple",F34,PRODUCT(F34:M34)) -> 0.745 | O34: Average of upper and lower bounds, from "Developing the Evidence Base for Flood Resistance & Resilience" | P34: 2
E35: Lower Estimate | F35: 0.65 | N35: =IF($N$31="Simple",IF(F35="",F34,F35),IF(F35="",PRODUCT(F34:M34),PRODUCT(F35:M35))) -> 0.65 | O35: From "Developing the Evidence Base for Flood Resistance & Resilience" | P35: 2
A36: =A23 -> WDR | C36: =C23 -> Warning Dependent Resistance | E36: Upper Estimate | F36: 0.84 | N36: =IF($N$31="Simple",IF(F36="",F37,F36),IF(F36="",PRODUCT(F37:M37),PRODUCT(F36:M36))) -> 0.84 | O36: =O33 -> From "Developing the Evidence Base for Flood Resistance & Resilience" | P36: 2 | V36: VISUALISE THE AMOUNT OF DAMAGES SAVED
E37: Best Estimate | F37: =(F36+F38)/2 -> 0.745 | N37: =IF($N$31="Simple",F37,PRODUCT(F37:M37)) -> 0.745 | O37: Average of upper and lower bounds, from "Developing the Evidence Base for Flood Resistance & Resilience" | P37: 2 | X37: Simple
E38: Lower Estimate | F38: 0.65 | N38: =IF($N$31="Simple",IF(F38="",F37,F38),IF(F38="",PRODUCT(F37:M37),PRODUCT(F38:M38))) -> 0.65 | O38: From "Developing the Evidence Base for Flood Resistance & Resilience" | P38: 2 | X38: Detailed
A39: =A15 -> RSL | C39: =C15 -> Resilience Measures | E39: Upper Estimate | N39: =IF($N$31="Simple",IF(F39="",F40,F39),IF(F39="",PRODUCT(F40:M40),PRODUCT(F39:M39))) -> 0.5 | S39: =IF(AND(R40=1,'Damage Inputs'!$P$7="On"),#REF!,"") -> 
E40: Best Estimate | F40: 0.5 | N40: =IF($N$31="Simple",F40,PRODUCT(F40:M40)) -> 0.5 | P40: 4 | R40: =IF(#REF!="Yes",0,1) ->  | S40: =IF(R40=1,#REF!,"") -> 
E41: Lower Estimate | N41: =IF($N$31="Simple",IF(F41="",F40,F41),IF(F41="",PRODUCT(F40:M40),PRODUCT(F41:M41))) -> 0.5 | S41: =IF(AND(R40=1,'Damage Inputs'!$P$7="On"),#REF!,"") -> 
A42: =A26 -> CME | C42: =C26 -> Contents Moved & Evacuated | E42: Upper Estimate | N42: =IF($N$31="Simple",IF(F42="",F43,F42),IF(F42="",PRODUCT(F43:M43),PRODUCT(F42:M42))) -> 0.2132 | S42: =IF(AND(R43=1,'Damage Inputs'!$P$7="On"),#REF!,"") -> 
E43: Best Estimate | G43: 0.52 | H43: 0.41 | N43: =IF($N$31="Simple",F43,PRODUCT(F43:M43)) -> 0.2132 | O43: Parker et al (2007), as used in Jacqui Cotton Report | P43: 2 | R43: =R17 ->  | S43: =IF(R43=1,#REF!,"") -> 
E44: Lower Estimate | N44: =IF($N$31="Simple",IF(F44="",F43,F44),IF(F44="",PRODUCT(F43:M43),PRODUCT(F44:M44))) -> 0.2132 | S44: =IF(AND(R43=1,'Damage Inputs'!$P$7="On"),#REF!,"") ->  | X44: Yes
S45: =IF(AND(R46=1,'Damage Inputs'!$P$7="On"),#REF!,"") ->  | X45: No
R46: =IF(#REF!="Yes",0,1) ->  | S46: =IF(R46=1,#REF!,"") -> 
A47: =Settings!C70 -> WS | C47: =Settings!E70 -> % Warning Success | D47: The percentage of properties at risk that receive a warning | M47: Mode: | N47: Detailed | S47: =IF(AND(R46=1,'Damage Inputs'!$P$7="On"),#REF!,"") -> 
C48: =IF(N47="Simple","","Factors contributing to "&A47&":") -> Factors contributing to WS: | F48: Coverage | G48: Reliability & Availability | N48: =IF(N47="Simple",Settings!F70,"Aggregate "&Settings!F70) -> Aggregate %WS | S48: =IF(AND(R49=1,'Damage Inputs'!$P$7="On"),P23,"") ->  | X48: Simple
A49: =A47&"-RE" -> WS-RE | C49: =A47&" for residential properties" -> WS for residential properties | E49: Upper Estimate | F49: =F50 -> 0.79 | G49: =G50 -> 0.38 | N49: =IF($N$47="Simple",IF(F49="",F50,F49),IF(F49="",PRODUCT(F50:M50),PRODUCT(F49:M49))) -> 0.3002 | R49: =R74 -> 1 | S49: =IF(R49=1,P24,"") -> 4 | X49: Detailed CME
E50: Best Estimate | F50: 0.79 | G50: 0.38 | N50: =IF($N$47="Simple",F50,PRODUCT(F50:M50)) -> 0.3002 | O50: Scott (2012) - value for OM6 (KPI902) & KPI905. EA Investment Strategy (2003) as given in Parker et al (2007) | P50: 2 | S50: =IF(AND(R49=1,'Damage Inputs'!$P$7="On"),P25,"") ->  | X50: Detailed
E51: Lower Estimate | F51: =F50 -> 0.79 | G51: =G50 -> 0.38 | N51: =IF($N$47="Simple",IF(F51="",F50,F51),IF(F51="",PRODUCT(F50:M50),PRODUCT(F51:M51))) -> 0.3002 | S51: =IF(AND(R52=1,'Damage Inputs'!$P$7="On"),P26,"") -> 
R52: =IF(D65="Yes",0,1) -> 1 | S52: =IF(R52=1,P27,"") -> 2 | V52: GRAPH, LIKE I DID UP AT FHRC, BUT AUTOMATICALLY ADJUSTING
S53: =IF(AND(R52=1,'Damage Inputs'!$P$7="On"),P28,"") -> 
C54: Benefit Over-Rides | D54: If insufficient data is available for the individual factors, you can use a single percentage value for each pathway
A55: Benefit Pathway | D55: Use Over-Ride? | F55: % Value | G55: Notes | O55: Data Sources | P55: Confidence
A56: =A33 -> WIR | C56: =C33 -> Warning Independent Resistance | D56: No | E56: Upper Estimate | V56: VISUALISE THE AMOUNT OF DAMAGES SAVED
E57: Best Estimate | F57: 0 | O57: No data available
E58: Lower Estimate | S58: =IF(AND(R59=1,'Damage Inputs'!$P$7="On"),#REF!,"") -> 
A59: =A36 -> WDR | C59: =C36 -> Warning Dependent Resistance | D59: No | E59: Upper Estimate | R59: =R40 ->  | S59: =IF(R59=1,#REF!,"") -> 
E60: Best Estimate | F60: 0.02 | O60: FLOODsite Report: Table 9.5 | S60: =IF(AND(R59=1,'Damage Inputs'!$P$7="On"),#REF!,"") ->  | X60: Low
E61: Lower Estimate | S61: =IF(AND(R62=1,'Damage Inputs'!$P$7="On"),#REF!,"") ->  | X61: Medium
A62: =A39 -> RSL | C62: =C39 -> Resilience Measures | D62: No | E62: Upper Estimate | R62: =R43 ->  | S62: =IF(R62=1,#REF!,"") ->  | X62: High
E63: Best Estimate | F63: 0 | O63: No data available | S63: =IF(AND(R62=1,'Damage Inputs'!$P$7="On"),#REF!,"") -> 
E64: Lower Estimate | S64: =IF(AND(R65=1,'Damage Inputs'!$P$7="On"),#REF!,"") -> 
A65: =A42 -> CME | C65: =C42 -> Contents Moved & Evacuated | D65: No | E65: Upper Estimate | R65: =R46 ->  | S65: =IF(R65=1,#REF!,"") ->  | X65: 1
E66: Best Estimate | F66: 0.05 | O66: FLOODsite Report: Table 9.5 | S66: =IF(AND(R65=1,'Damage Inputs'!$P$7="On"),#REF!,"") ->  | X66: 2
E67: Lower Estimate | S67: =IF(AND(R68=1,'Damage Inputs'!$P$7="On"),#REF!,"") ->  | X67: 3
R68: =R23 ->  | S68: =IF(R68=1,#REF!,"") ->  | X68: 4
S69: =IF(AND(R68=1,'Damage Inputs'!$P$7="On"),#REF!,"") ->  | X69: 5
S70: =IF(AND(R71=1,'Damage Inputs'!$P$7="On"),P33,"") ->  | X70: 6
O71: =Settings!C37 -> 1 | R71: =IF(D56="Yes",0,1) -> 1 | S71: =IF(R71=1,P34,"") -> 2 | X71: 7
O72: =Settings!C38 -> 2 | S72: =IF(AND(R71=1,'Damage Inputs'!$P$7="On"),P35,"") ->  | X72: 8
O73: =Settings!C39 -> 3 | S73: =IF(AND(R74=1,'Damage Inputs'!$P$7="On"),P36,"") -> 
O74: =Settings!C40 -> 4 | R74: =IF(D59="Yes",0,1) -> 1 | S74: =IF(R74=1,P37,"") -> 2
O75: =Settings!C41 -> 5 | S75: =IF(AND(R74=1,'Damage Inputs'!$P$7="On"),P38,"") ->  | X75: Yes
S76: =IF(AND(R77=1,'Damage Inputs'!$P$7="On"),P39,"") ->  | X76: No
R77: =R32 -> 1 | S77: =IF(R77=1,P40,"") -> 4
S78: =IF(AND(R77=1,'Damage Inputs'!$P$7="On"),P41,"") -> 
S79: =IF(AND(R80=1,'Damage Inputs'!$P$7="On"),P42,"") ->  | X79: Upper & Lower Bounds
R80: =R52 -> 1 | S80: =IF(R80=1,P43,"") -> 2 | X80: ='Non-Res'!AB22 -> On
S81: =IF(AND(R80=1,'Damage Inputs'!$P$7="On"),P44,"") -> 
X84: Highlight drop-downs?
X85: ='Damage Inputs'!U42 -> No
S86: =IF(AND(R87=1,'Damage Inputs'!$P$7="On"),P49,"") -> 
R87: =IF(OR(D59="No",D65="No"),1,0) -> 1 | S87: =IF(R87=1,P50,"") -> 2
S88: =IF(AND(R87=1,'Damage Inputs'!$P$7="On"),P51,"") -> 
S89: =IF(AND(R90=1,'Damage Inputs'!$P$7="On"),#REF!,"") -> 
R90: =IF(#REF!="No",1,0) ->  | S90: =IF(R90=1,#REF!,"") -> 
S91: =IF(AND(R90=1,'Damage Inputs'!$P$7="On"),#REF!,"") -> 
S92: =IF(AND(R93=1,'Damage Inputs'!$P$7="On"),#REF!,"") -> 
R93: =IF(OR(#REF!="No",#REF!="No",#REF!="No"),1,0) ->  | S93: =IF(R93=1,#REF!,"") -> 
S94: =IF(AND(R93=1,'Damage Inputs'!$P$7="On"),#REF!,"") -> 
R98: 1 | S98: =IF(R98=1,#REF!,"") -> 
R103: =IF(#REF!="Yes",1,0) ->  | S103: =IF(R103=1,#REF!,"") -> 
S111: =IF(AND(R112=1,'Damage Inputs'!$P$7="On"),#REF!,"") -> 
R112: =IF(#REF!="Yes",1,0) ->  | S112: =IF(R112=1,#REF!,"") -> 
S113: =IF(AND(R112=1,'Damage Inputs'!$P$7="On"),#REF!,"") -> 
S114: =IF(AND(R115=1,'Damage Inputs'!$P$7="On"),#REF!,"") -> 
R115: =IF(#REF!="Yes",1,0) ->  | S115: =IF(R115=1,#REF!,"") -> 
S116: =IF(AND(R115=1,'Damage Inputs'!$P$7="On"),#REF!,"") -> 
S117: =IF(AND(R118=1,'Damage Inputs'!$P$7="On"),#REF!,"") -> 
R118: =IF(#REF!="Yes",1,0) ->  | S118: =IF(R118=1,#REF!,"") -> 
S119: =IF(AND(R118=1,'Damage Inputs'!$P$7="On"),#REF!,"") -> 
S120: =IF(AND(R121=1,'Damage Inputs'!$P$7="On"),#REF!,"") -> 
R121: =IF(#REF!="Yes",1,0) ->  | S121: =IF(R121=1,#REF!,"") -> 
S122: =IF(AND(R121=1,'Damage Inputs'!$P$7="On"),#REF!,"") -> 
S123: =IF(AND(R124=1,'Damage Inputs'!$P$7="On"),P56,"") -> 
R124: =IF(D56="Yes",1,0) -> 0 | S124: =IF(R124=1,P57,"") -> 
S125: =IF(AND(R124=1,'Damage Inputs'!$P$7="On"),P58,"") -> 
S126: =IF(AND(R127=1,'Damage Inputs'!$P$7="On"),P59,"") -> 
R127: =IF(D59="Yes",1,0) -> 0 | S127: =IF(R127=1,P60,"") -> 
S128: =IF(AND(R127=1,'Damage Inputs'!$P$7="On"),P61,"") -> 
S129: =IF(AND(R130=1,'Damage Inputs'!$P$7="On"),P62,"") -> 
R130: =IF(D62="Yes",1,0) -> 0 | S130: =IF(R130=1,P63,"") -> 
S131: =IF(AND(R130=1,'Damage Inputs'!$P$7="On"),P64,"") -> 
S132: =IF(AND(R133=1,'Damage Inputs'!$P$7="On"),P65,"") -> 
R133: =IF(D65="Yes",1,0) -> 0 | S133: =IF(R133=1,P66,"") -> 
S134: =IF(AND(R133=1,'Damage Inputs'!$P$7="On"),P67,"") -> 
R138: Low: | S138: =COUNTIF(S16:S134,"=Low") -> 0
R139: Medium: | S139: =COUNTIF(S16:S134,"=Medium") -> 0
R140: High: | S140: =COUNTIF(S16:S134,"=High") -> 0
R141: No Data: | S141: =COUNTIF(S17:S135,"=0") -> 0

Sheet Res Calcs
D3: Damages Avoided by Residential Property-Level NSRs | L3: Back: Residential Inputs | N3: Next: Non-Residential Inputs
K6: ="Reduction in "&H9&" as each measure is applied" -> Reduction in Direct Property Damages as each measure is applied
C9: =Assets!G36 -> WS | D9: =Assets!H36 -> UP | E9: =Assets!I36 -> OP | F9: =Assets!J36 -> PO | H9: =Settings!H45 -> Direct Property Damages
C10: =Assets!G37 -> % Warning Success | D10: =Assets!H37 -> % Response Uptake | E10: =Assets!I37 -> % Response Operated | F10: =Assets!J37 -> % Response Potential | H10: =Assets!I69 -> Damage¹ | I10: ="Residential Component of "&H10&" (%)" -> Residential Component of Damage¹ (%) | J10: ="Residential Component of "&H10&" ("&Settings!I50&")" -> Residential Component of Damage¹ (£)
A11: Upper Estimate | G11: Upper Estimate | H11: =Assets!I76 -> 1000000000 | I11: ='Damage Inputs'!F12 -> 0 | J11: =Assets!I76*'Damage Inputs'!F12 -> 0 | AB11: FDO | AD11: Flood Defence Operation | AE11: ='Res Inputs'!#REF! -> 
A12: Best Estimate | G12: Best Estimate | H12: =Assets!I77 -> 1000000000 | I12: ='Damage Inputs'!F13 -> 0.52 | J12: =Assets!I77*'Damage Inputs'!F13 -> 520000000 | AB12: WCM | AD12: Watercourse Maintenance | AE12: ='Res Inputs'!#REF! -> 
A13: Lower Estimate | G13: Lower Estimate | H13: =Assets!I78 -> 1000000000 | I13: ='Damage Inputs'!F14 -> 0 | J13: =Assets!I78*'Damage Inputs'!F14 -> 0 | AB13: CBO | AD13: Community-Based Operations | AE13: ='Res Inputs'!#REF! -> 
AB14: BCP | AD14: Business Continuity Planning | AE14: ='Res Inputs'!#REF! -> 
A15: =Settings!C78 -> RST | B15: =Settings!D78 -> Resistance Measures | I15: ='Damage Inputs'!F7 -> Damage | AB15: WIR | AD15: Warning-Independent Resistance | AE15: ='Res Inputs'!D56 -> No
A16: =Settings!C79 -> WIR | B16: =Settings!D79 -> Warning Independent Resistance | AB16: WDR | AD16: Warning-Dependent Resistance | AE16: ='Res Inputs'!D59 -> No
B17: =J10 -> Residential Component of Damage¹ (£) | D17: =D10 -> % Response Uptake | F17: =F10 -> % Response Potential | G17: =Settings!F79 -> %WIR | H17: ="£"&A16 -> £WIR | I17: ="Cumulative "&Settings!H45&" Avoided ("&AD30&")" -> Cumulative Direct Property Damages Avoided (Damage[A]) | J17: ="Residual Residential "&Settings!H45 -> Residual Residential Direct Property Damages | L17: ="Reduction in "&H9&" as each measure is applied" -> Reduction in Direct Property Damages as each measure is applied | AB17: RSL | AD17: Resilience Measures | AE17: ='Res Inputs'!D62 -> No
A18: Type: | D18: =Settings!C73&"-"&A16 -> UP-WIR | F18: =Settings!C71&"-"&A16 -> PO-WIR | AB18: CME | AD18: Contents Moved & Evacuated | AE18: ='Res Inputs'!D65 -> No
A19: Upper Estimate | B19: =J11 -> 0 | D19: ='Res Inputs'!N9 -> 0.032 | F19: ='Res Inputs'!N33 -> 0.84 | G19: =IF('Res Inputs'!$D$56="Yes",'Res Inputs'!$F56,PRODUCT(C19:F19)) -> 0.02688 | H19: =G19*B19 -> 0
A20: Best Estimate | B20: =J12 -> 520000000 | D20: ='Res Inputs'!N10 -> 0.032 | F20: ='Res Inputs'!N34 -> 0.745 | G20: =IF('Res Inputs'!$D$56="Yes",'Res Inputs'!$F57,PRODUCT(C20:F20)) -> 0.02384 | H20: =G20*B20 -> 12396800
A21: Lower Estimate | B21: =J13 -> 0 | D21: ='Res Inputs'!N11 -> 0.032 | F21: ='Res Inputs'!N35 -> 0.65 | G21: =IF('Res Inputs'!$D$56="Yes",'Res Inputs'!$F58,PRODUCT(C21:F21)) -> 0.0208 | H21: =G21*B21 -> 0 | AB21: Upper & Lower Bounds
AB22: =IF(Settings!J20=TRUE, "On", "Off") -> On
A23: =Settings!C80 -> WDR | B23: =Settings!D80 -> Warning Dependent Resistance
B24: =B17 -> Residential Component of Damage¹ (£) | C24: =C10 -> % Warning Success | D24: =D10 -> % Response Uptake | E24: =E10 -> % Response Operated | F24: % Response Potential | G24: =Settings!F80 -> %WDR | H24: ="£"&A23 -> £WDR | AD24: WCM Included | AE24: =Settings!J12 -> TRUE
A25: Type: | C25: =Settings!C70&"-D" -> WS-D | D25: =Settings!C73&"-"&A23 -> UP-WDR | E25: =Settings!C72&"-"&A23 -> OP-WDR | F25: =Settings!C71&"-"&A23 -> PO-WDR | M25: Residual damages | N25: Damages avoided | O25: Damages previously avoided | AD25: CBO Included | AE25: =Settings!J10 -> TRUE
A26: Upper Estimate | B26: =B19 -> 0 | C26: =C42 -> 0.3002 | D26: ='Res Inputs'!N12 -> 0 | E26: ='Res Inputs'!N23 -> 0.9588631 | F26: ='Res Inputs'!N36 -> 0.84 | G26: =IF('Res Inputs'!$D$59="Yes",'Res Inputs'!$F59,PRODUCT(C26:F26)) -> 0 | H26: =G26*B26 -> 0 | I26: =H19+H26 -> 0 | J26: =J11-I26 -> 0 | M26: =J27 -> 502250558.6 | N26: =I27 -> 17749441.39 | O26: 0
A27: Best Estimate | B27: =B20 -> 520000000 | C27: =C43 -> 0.3002 | D27: ='Res Inputs'!N13 -> 0.048 | E27: ='Res Inputs'!N24 -> 0.9588631 | F27: ='Res Inputs'!N37 -> 0.745 | G27: =IF('Res Inputs'!$D$59="Yes",'Res Inputs'!$F60,PRODUCT(C27:F27)) -> 0.01029354113 | H27: =G27*B27 -> 5352641.385 | I27: =H20+H27 -> 17749441.39 | J27: =J12-I27 -> 502250558.6 | M27: =M26/SUM($M26:$O26) -> 0.9658664589 | N27: =N26/SUM($M26:$O26) -> 0.03413354113 | O27: =O26/SUM($M26:$O26) -> 0 | AD27: ='Damage Inputs'!F7 -> Damage
A28: Lower Estimate | B28: =B21 -> 0 | C28: =C44 -> 0.3002 | D28: ='Res Inputs'!N14 -> 0 | E28: ='Res Inputs'!N25 -> 0.9588631 | F28: ='Res Inputs'!N38 -> 0.65 | G28: =IF('Res Inputs'!$D$59="Yes",'Res Inputs'!$F61,PRODUCT(C28:F28)) -> 0 | H28: =G28*B28 -> 0 | I28: =H21+H28 -> 0 | J28: =J13-I28 -> 0 | AD28: =AD27&"[A]"&CHAR(178) -> Damage[A]²
AD29: =AD27&CHAR(178) -> Damage²
AD30: =AD27&"[A]" -> Damage[A]
A31: =Settings!C81 -> RSL | B31: =Settings!D81 -> Resilience Measures
B32: =B24 -> Residential Component of Damage¹ (£) | D32: =D24 -> % Response Uptake | F32: =F24 -> % Response Potential | G32: =Settings!F81 -> %RSL | H32: ="£"&A31 -> £RSL
A33: Type: | D33: =Settings!C73&"-"&A31 -> UP-RSL | F33: =Settings!C71&"-"&A31 -> PO-RSL | M33: Residual damages | N33: Damages avoided | O33: Damages previously avoided
A34: Upper Estimate | B34: =J26 -> 0 | D34: ='Res Inputs'!N15 -> 0.02 | F34: ='Res Inputs'!N39 -> 0.5 | G34: =IF('Res Inputs'!$D$62="Yes",'Res Inputs'!$F62,PRODUCT(C34:F34)) -> 0.01 | H34: =G34*B34 -> 0 | I34: =I26+H34 -> 0 | J34: =J26-H34 -> 0 | M34: =J35 -> 497228053 | N34: =H35 -> 5022505.586 | O34: =N26+O26 -> 17749441.39 | AD34: 1 | AE34: 0
A35: Best Estimate | B35: =J27 -> 502250558.6 | D35: ='Res Inputs'!N16 -> 0.02 | F35: ='Res Inputs'!N40 -> 0.5 | G35: =IF('Res Inputs'!$D$62="Yes",'Res Inputs'!$F63,PRODUCT(C35:F35)) -> 0.01 | H35: =G35*B35 -> 5022505.586 | I35: =I27+H35 -> 22771946.97 | J35: =J27-H35 -> 497228053 | M35: =M34/SUM($M34:$O34) -> 0.9562077943 | N35: =N34/SUM($M34:$O34) -> 0.009658664589 | O35: =O34/SUM($M34:$O34) -> 0.03413354113
A36: Lower Estimate | B36: =J28 -> 0 | D36: ='Res Inputs'!N17 -> 0.02 | F36: ='Res Inputs'!N41 -> 0.5 | G36: =IF('Res Inputs'!$D$62="Yes",'Res Inputs'!$F64,PRODUCT(C36:F36)) -> 0.01 | H36: =G36*B36 -> 0 | I36: =I28+H36 -> 0 | J36: =J28-H36 -> 0
AB38: =J43/#REF! ->  | AC38: =AE38-AB38 ->  | AD38: =$AE$54-AE38 ->  | AE38: =AB39 -> 
A39: =Settings!C82 -> CME | B39: =Settings!D82 -> Contents Moved & Evacuated | AB39: =J35/#REF! ->  | AC39: =AE39-AB39 ->  | AD39: =$AE$54-AE39 ->  | AE39: =AB40 -> 
B40: =B32 -> Residential Component of Damage¹ (£) | C40: =C24 -> % Warning Success | E40: =E24 -> % Response Operated | F40: =F32 -> % Response Potential | G40: =Settings!F82 -> %CME | H40: ="£"&A39 -> £CME | AB40: =#REF!/#REF! ->  | AC40: =AE40-AB40 ->  | AD40: =$AE$54-AE40 ->  | AE40: =AB52 -> 
A41: Type: | C41: =C25 -> WS-D | E41: =Settings!C72&"-"&A39 -> OP-CME | F41: =Settings!C71&"-"&A39 -> PO-CME | M41: Residual damages | N41: Damages avoided | O41: Damages previously avoided
A42: Upper Estimate | B42: =J34 -> 0 | C42: ='Res Inputs'!N49 -> 0.3002 | E42: ='Res Inputs'!N26 -> 0.731306 | F42: ='Res Inputs'!N42 -> 0.2132 | G42: =IF('Res Inputs'!$D$65="Yes",'Res Inputs'!$F65,PRODUCT(C42:F42)) -> 0.04680551465 | H42: =G42*B42 -> 0 | I42: =I34+H42 -> 0 | J42: =J34-H42 -> 0 | M42: =J43 -> 473955038.1 | N42: =H43 -> 23273014.92 | O42: =N34+O34 -> 22771946.97
A43: Best Estimate | B43: =J35 -> 497228053 | C43: ='Res Inputs'!N50 -> 0.3002 | E43: ='Res Inputs'!N27 -> 0.731306 | F43: ='Res Inputs'!N43 -> 0.2132 | G43: =IF('Res Inputs'!$D$65="Yes",'Res Inputs'!$F66,PRODUCT(C43:F43)) -> 0.04680551465 | H43: =G43*B43 -> 23273014.92 | I43: =I35+H43 -> 46044961.89 | J43: =J35-H43 -> 473955038.1 | M43: =M42/SUM($M42:$O42) -> 0.9114519964 | N43: =N42/SUM($M42:$O42) -> 0.04475579792 | O43: =O42/SUM($M42:$O42) -> 0.04379220571
A44: Lower Estimate | B44: =J36 -> 0 | C44: ='Res Inputs'!N51 -> 0.3002 | E44: ='Res Inputs'!N28 -> 0.731306 | F44: ='Res Inputs'!N44 -> 0.2132 | G44: =IF('Res Inputs'!$D$65="Yes",'Res Inputs'!$F67,PRODUCT(C44:F44)) -> 0.04680551465 | H44: =G44*B44 -> 0 | I44: =I36+H44 -> 0 | J44: =J36-H44 -> 0
I47: =Settings!H45&" Avoided ("&AD28&")" -> Direct Property Damages Avoided (Damage[A]²) | J47: ="Residual Residential "&Settings!H45&" ("&AD29&")" -> Residual Residential Direct Property Damages (Damage²) | M47: Residual damages | N47: Damages avoided
A48: Upper Estimate | H48: Upper Estimate | I48: =I42 -> 0 | J48: 0 | M48: =J49 -> 473955038.1 | N48: =N42+O42 -> 46044961.89
A49: Best Estimate | H49: Best Estimate | I49: 46044961.89 | J49: 473955038.1 | M49: =M48/SUM($M48:$O48) -> 0.9114519964 | N49: =N48/SUM($M48:$O48) -> 0.08854800364
A50: Lower Estimate | H50: Lower Estimate | I50: 0 | J50: 0
X51: Residual EAD2
X52: Residual Residential EAD2 | AB52: =#REF!/#REF! ->  | AC52: =AE52-AB52 ->  | AD52: =$AE$54-AE52 ->  | AE52: =AB53 -> 
X53: Residual Non-Residential EAD2 | AB53: =#REF!/#REF! ->  | AC53: =AE53-AB53 ->  | AD53: =$AE$54-AE53 ->  | AE53: =AB54 -> 
AB54: =#REF!/#REF! ->  | AC54: =AE54-AB54 ->  | AD54: =$AE$54-AE54 -> 0 | AE54: =AB55 -> 1
X55: RA{D} | AB55: 1 | AC55: 0 | AD55: 0
X56: RA{B}
X57: RA{P}

Sheet Non-Res Inputs
D2: Non-Residential Input Data
M3: Back: Residential Calculation | O3: Next: Non-Residential Calculation
O6: Data Sources | P6: Confidence
A7: =Settings!C73 -> UP | C7: =Settings!E73 -> % Response Uptake | D7: The percentage of properties/areas at risk that each measure has been installed or invested in | M7: Mode: | N7: Simple
A8: =IF(N7="Simple","","Factors contributing to uptake:") ->  | N8: =IF(N7="Simple",Settings!F73,"Aggregate "&Settings!F73) -> %UP
A9: =Settings!C83 -> BDD | C9: =Settings!D83 -> Business Direct Damages Avoided | E9: Upper Estimate | N9: =IF($N$7="Simple",IF(F9="",F10,F9),IF(F9="",PRODUCT(F10:M10),PRODUCT(F9:M9))) -> 0
E10: Best Estimate | N10: =IF($N$7="Simple",IF(F10<1,F10,1),IF(PRODUCT(F10:M10)<1,PRODUCT(F10:M10),1)) -> 0
E11: Lower Estimate | N11: =IF($N$7="Simple",IF(F11="",F10,F11),IF(F11="",PRODUCT(F10:M10),PRODUCT(F11:M11))) -> 0
A12: =Settings!C79 -> WIR | C12: =Settings!D79 -> Warning Independent Resistance | E12: Upper Estimate | N12: =IF($N$7="Simple",IF(F12="",F13,F12),IF(F12="",PRODUCT(F13:M13),PRODUCT(F12:M12))) -> 0.032
E13: Best Estimate | F13: 0.032 | N13: =IF($N$7="Simple",IF(F13<1,F13,1),IF(PRODUCT(F13:M13)<1,PRODUCT(F13:M13),1)) -> 0.032 | O13: Post flood event surveys, a major flood barrier company | P13: 4
E14: Lower Estimate | N14: =IF($N$7="Simple",IF(F14="",F13,F14),IF(F14="",PRODUCT(F13:M13),PRODUCT(F14:M14))) -> 0.032
A15: =Settings!C80 -> WDR | C15: =Settings!D80 -> Warning Dependent Resistance | E15: Upper Estimate | N15: =IF($N$7="Simple",IF(F15="",F16,F15),IF(F15="",PRODUCT(F16:M16),PRODUCT(F15:M15))) -> 0.048 | X15: Simple
E16: Best Estimate | F16: 0.048 | N16: =IF($N$7="Simple",IF(F16<1,F16,1),IF(PRODUCT(F16:M16)<1,PRODUCT(F16:M16),1)) -> 0.048 | O16: Post flood event surveys, a major flood barrier company | P16: 4 | S16: =IF(AND(R17=1,'Damage Inputs'!$P$7="On"),#REF!,"") -> 
E17: Lower Estimate | N17: =IF($N$7="Simple",IF(F17="",F16,F17),IF(F17="",PRODUCT(F16:M16),PRODUCT(F17:M17))) -> 0.048 | R17: =IF(#REF!="Yes",0,1) ->  | S17: =IF(R17=1,#REF!,"") -> 
A18: =Settings!C81 -> RSL | C18: =Settings!D81 -> Resilience Measures | E18: Upper Estimate | N18: =IF($N$7="Simple",IF(F18="",F19,F18),IF(F18="",PRODUCT(F19:M19),PRODUCT(F18:M18))) -> 0.02 | S18: =IF(AND(R17=1,'Damage Inputs'!$P$7="On"),#REF!,"") -> 
E19: Best Estimate | F19: 0.02 | N19: =IF($N$7="Simple",IF(F19<1,F19,1),IF(PRODUCT(F19:M19)<1,PRODUCT(F19:M19),1)) -> 0.02 | O19: Estimated based on values for resistance | P19: 4 | S19: =IF(AND(R20=1,'Damage Inputs'!$P$7="On"),#REF!,"") ->  | V19: If you don't put upper & lower estimates, the spreadsheet will just take the best estimate
E20: Lower Estimate | N20: =IF($N$7="Simple",IF(F20="",F19,F20),IF(F20="",PRODUCT(F19:M19),PRODUCT(F20:M20))) -> 0.02 | R20: =R46 ->  | S20: =IF(R20=1,#REF!,"") -> 
S21: =IF(AND(R20=1,'Damage Inputs'!$P$7="On"),#REF!,"") -> 
S22: =IF(AND(R23=1,'Damage Inputs'!$P$7="On"),P9,"") -> 
A23: =Settings!C72 -> OP | C23: =Settings!E72 -> % Response Operated | D23: The percentage of measures operated in each flood warning lead-time category | M23: No. of categories: | N23: 3 | R23: =IF(D62="Yes",0,1) -> 1 | S23: =IF(R23=1,P10,"") -> 0
A24: Flood warning lead-time categories: | D24: Set on Res Inputs tab | F24: ='Res Inputs'!F21 -> 0 - 1 hour | G24: ='Res Inputs'!G21 -> 1 - 8 hours | H24: =IF('Res Inputs'!H21="","",'Res Inputs'!H21) -> > 8 hours | I24: =IF('Res Inputs'!I21="","",'Res Inputs'!I21) ->  | J24: =IF('Res Inputs'!J21="","",'Res Inputs'!J21) ->  | K24: =IF('Res Inputs'!K21="","",'Res Inputs'!K21) ->  | L24: =IF('Res Inputs'!L21="","",'Res Inputs'!L21) ->  | M24: =IF('Res Inputs'!M21="","",'Res Inputs'!M21) ->  | N24: ="Aggregate "&Settings!F72 -> Aggregate %OP | S24: =IF(AND(R23=1,'Damage Inputs'!$P$7="On"),P11,"") -> 
A25: =IF(SUM(F25:M25)=100%,"% of properties at risk in each category:","Properties must add up to 100%") -> % of properties at risk in each category: | F25: 0.1291 | G25: 0.6973 | H25: 0.1736 | O25: Estimated at expert workshop | P25: 3 | S25: =IF(AND(R26=1,'Damage Inputs'!$P$7="On"),P12,"") -> 
A26: =A15 -> WDR | C26: =C15 -> Warning Dependent Resistance | E26: Upper Estimate | N26: =IF(F26="",N27,F26*$F$25+G26*$G$25+H26*$H$25+I26*$I$25+J26*$J$25+K26*$K$25+L26*$L$25+M26*$M$25) -> 0.9588631 | R26: =(R71+R74)/(R71+R74) -> 1 | S26: =IF(R26=1,P13,"") -> 4
E27: Best Estimate | F27: 0.923 | G27: 0.958 | H27: 0.989 | N27: =F27*$F$25+G27*$G$25+H27*$H$25+I27*$I$25+J27*$J$25+K27*$K$25+L27*$L$25+M27*$M$25 -> 0.9588631 | O27: Post flood event surveys | P27: 4 | S27: =IF(AND(R26=1,'Damage Inputs'!$P$7="On"),P14,"") -> 
E28: Lower Estimate | N28: =IF(F28="",N27,F28*$F$25+G28*$G$25+H28*$H$25+I28*$I$25+J28*$J$25+K28*$K$25+L28*$L$25+M28*$M$25) -> 0.9588631
A29: =Settings!C82 -> CME | C29: =Settings!D82 -> Contents Moved & Evacuated | E29: Upper Estimate | N29: =IF(F29="",N30,F29*$F$25+G29*$G$25+H29*$H$25+I29*$I$25+J29*$J$25+K29*$K$25+L29*$L$25+M29*$M$25) -> 0.731306
E30: Best Estimate | F30: 0.7 | G30: 0.72 | H30: 0.8 | N30: =F30*$F$25+G30*$G$25+H30*$H$25+I30*$I$25+J30*$J$25+K30*$K$25+L30*$L$25+M30*$M$25 -> 0.731306 | O30: Jacqui Cotton Report / Parker et al (2007) | P30: 2
E31: Lower Estimate | N31: =IF(F31="",N30,F31*$F$25+G31*$G$25+H31*$H$25+I31*$I$25+J31*$J$25+K31*$K$25+L31*$L$25+M31*$M$25) -> 0.731306 | S31: =IF(AND(R32=1,'Damage Inputs'!$P$7="On"),P18,"") -> 
R32: =IF(D71="Yes",0,1) -> 1 | S32: =IF(R32=1,P19,"") -> 4
S33: =IF(AND(R32=1,'Damage Inputs'!$P$7="On"),P20,"") -> 
A34: =Settings!C71 -> PO | C34: =Settings!E71 -> % Response Potential | D34: ="The percentage of the potential "&LOWER(Settings!I47)&" reduced if a measure is operated" -> The percentage of the potential damage reduced if a measure is operated | M34: Mode: | N34: Detailed CME
A35: =IF(N34="Simple","","Factors contributing to effectiveness:") -> Factors contributing to effectiveness: | F35: Effectiveness | G35: Potential Inventory Damage | H35: Moveable Inventory Damage | N35: =IF(N34="Simple",Settings!F71,"Aggregate "&Settings!F71) -> Aggregate %PO
A36: =A9 -> BDD | C36: =C9 -> Business Direct Damages Avoided | E36: Upper Estimate | F36: 0.84 | N36: =IF($N$34="Simple",IF(F36="",F37,F36),IF(F36="",PRODUCT(F37:M37),PRODUCT(F36:M36))) -> 0.84 | O36: From "Developing the Evidence Base for Flood Resistance & Resilience" | V36: VISUALISE THE AMOUNT OF DAMAGES SAVED
E37: Best Estimate | F37: 0.745 | N37: =IF($N$34="Simple",F37,PRODUCT(F37:M37)) -> 0.745 | O37: From "Developing the Evidence Base for Flood Resistance & Resilience" | P37: Medium | X37: Simple
E38: Lower Estimate | F38: 0.65 | N38: =IF($N$34="Simple",IF(F38="",F37,F38),IF(F38="",PRODUCT(F37:M37),PRODUCT(F38:M38))) -> 0.65 | O38: From "Developing the Evidence Base for Flood Resistance & Resilience" | X38: Detailed
A39: =A12 -> WIR | C39: Warning-Independent Resistance | E39: Upper Estimate | F39: 0.84 | N39: =IF($N$34="Simple",IF(F39="",F40,F39),IF(F39="",PRODUCT(F40:M40),PRODUCT(F39:M39))) -> 0.84 | O39: From "Developing the Evidence Base for Flood Resistance & Resilience" | P39: 2 | S39: =IF(AND(R40=1,'Damage Inputs'!$P$7="On"),#REF!,"") -> 
E40: Best Estimate | F40: 0.745 | N40: =IF($N$34="Simple",F40,PRODUCT(F40:M40)) -> 0.745 | O40: Average of upper and lower bounds, from "Developing the Evidence Base for Flood Resistance & Resilience" | P40: 2 | R40: =IF(#REF!="Yes",0,1) ->  | S40: =IF(R40=1,#REF!,"") -> 
E41: Lower Estimate | F41: 0.65 | N41: =IF($N$34="Simple",IF(F41="",F40,F41),IF(F41="",PRODUCT(F40:M40),PRODUCT(F41:M41))) -> 0.65 | O41: From "Developing the Evidence Base for Flood Resistance & Resilience" | P41: 2 | S41: =IF(AND(R40=1,'Damage Inputs'!$P$7="On"),#REF!,"") -> 
A42: =A26 -> WDR | C42: Warning-Dependent Resistance | E42: Upper Estimate | F42: 0.84 | N42: =IF($N$34="Simple",IF(F42="",F43,F42),IF(F42="",PRODUCT(F43:M43),PRODUCT(F42:M42))) -> 0.84 | O42: From "Developing the Evidence Base for Flood Resistance & Resilience" | P42: 2 | S42: =IF(AND(R43=1,'Damage Inputs'!$P$7="On"),#REF!,"") -> 
E43: Best Estimate | F43: 0.745 | N43: =IF($N$34="Simple",F43,PRODUCT(F43:M43)) -> 0.745 | O43: Average of upper and lower bounds, from "Developing the Evidence Base for Flood Resistance & Resilience" | P43: 2 | R43: =R17 ->  | S43: =IF(R43=1,#REF!,"") -> 
E44: Lower Estimate | F44: 0.65 | N44: =IF($N$34="Simple",IF(F44="",F43,F44),IF(F44="",PRODUCT(F43:M43),PRODUCT(F44:M44))) -> 0.65 | O44: From "Developing the Evidence Base for Flood Resistance & Resilience" | P44: 2 | S44: =IF(AND(R43=1,'Damage Inputs'!$P$7="On"),#REF!,"") ->  | X44: Yes
A45: =A18 -> RSL | C45: Resilience Measures | E45: Upper Estimate | N45: =IF($N$34="Simple",IF(F45="",F46,F45),IF(F45="",PRODUCT(F46:M46),PRODUCT(F45:M45))) -> 0.5 | S45: =IF(AND(R46=1,'Damage Inputs'!$P$7="On"),#REF!,"") ->  | X45: No
E46: Best Estimate | F46: 0.5 | N46: =IF($N$34="Simple",F46,PRODUCT(F46:M46)) -> 0.5 | P46: 4 | R46: =IF(#REF!="Yes",0,1) ->  | S46: =IF(R46=1,#REF!,"") -> 
E47: Lower Estimate | N47: =IF($N$34="Simple",IF(F47="",F46,F47),IF(F47="",PRODUCT(F46:M46),PRODUCT(F47:M47))) -> 0.5 | S47: =IF(AND(R46=1,'Damage Inputs'!$P$7="On"),#REF!,"") -> 
A48: =A29 -> CME | C48: Contents Moved & Evacuated | E48: Upper Estimate | N48: =IF($N$34="Simple",IF(F48="",F49,F48),IF(F48="",PRODUCT(F49:M49),PRODUCT(F48:M48))) -> 0.2132 | S48: =IF(AND(R49=1,'Damage Inputs'!$P$7="On"),P26,"") ->  | X48: Simple
E49: Best Estimate | G49: 0.52 | H49: 0.41 | N49: =IF($N$34="Simple",F49,PRODUCT(F49:M49)) -> 0.2132 | O49: Parker et al (2007), as used in Jacqui Cotton Report | P49: 2 | R49: =R74 -> 1 | S49: =IF(R49=1,P27,"") -> 4 | X49: Detailed CME
E50: Lower Estimate | N50: =IF($N$34="Simple",IF(F50="",F49,F50),IF(F50="",PRODUCT(F49:M49),PRODUCT(F50:M50))) -> 0.2132 | S50: =IF(AND(R49=1,'Damage Inputs'!$P$7="On"),P28,"") ->  | X50: Detailed
S51: =IF(AND(R52=1,'Damage Inputs'!$P$7="On"),P29,"") -> 
R52: =IF(D74="Yes",0,1) -> 1 | S52: =IF(R52=1,P30,"") -> 2 | V52: GRAPH, LIKE I DID UP AT FHRC, BUT AUTOMATICALLY ADJUSTING
A53: =Settings!C70 -> WS | C53: =Settings!E70 -> % Warning Success | D53: The percentage of properties at risk that receive a warning | M53: Mode: | N53: Detailed | S53: =IF(AND(R52=1,'Damage Inputs'!$P$7="On"),P31,"") -> 
C54: =IF(N53="Simple","","Factors contributing to RA:") -> Factors contributing to RA: | F54: Coverage | G54: Reliability & Availability | N54: =IF(N53="Simple",Settings!F70,"Aggregate "&Settings!F70) -> Aggregate %WS
A55: =Settings!C70&"-NR" -> WS-NR | C55: =A53&" for non-residential properties" -> WS for non-residential properties | E55: Upper Estimate | F55: 0.79 | G55: 0.38 | N55: =IF($N$53="Simple",IF(F55="",F56,F55),IF(F55="",PRODUCT(F56:M56),PRODUCT(F55:M55))) -> 0.3002
E56: Best Estimate | F56: 0.79 | G56: 0.38 | N56: =IF($N$53="Simple",F56,PRODUCT(F56:M56)) -> 0.3002 | O56: Scott (2012) - value for OM6 (KPI902) & KPI905. EA Investment Strategy (2003) as given in Parker et al (2007) | P56: 2 | V56: VISUALISE THE AMOUNT OF DAMAGES SAVED
E57: Lower Estimate | F57: 0.79 | G57: 0.38 | N57: =IF($N$53="Simple",IF(F57="",F56,F57),IF(F57="",PRODUCT(F56:M56),PRODUCT(F57:M57))) -> 0.3002
S58: =IF(AND(R59=1,'Damage Inputs'!$P$7="On"),#REF!,"") -> 
R59: =R40 ->  | S59: =IF(R59=1,#REF!,"") -> 
C60: Benefit Over-Rides | D60: If insufficient data is available for the individual factors, you can use a single percentage value for each pathway | S60: =IF(AND(R59=1,'Damage Inputs'!$P$7="On"),#REF!,"") ->  | X60: Low
A61: Benefit Pathway | D61: Use Over-Ride? | F61: % Value | G61: Notes | O61: Data Sources | P61: Confidence | S61: =IF(AND(R62=1,'Damage Inputs'!$P$7="On"),#REF!,"") ->  | X61: Medium
A62: =A36 -> BDD | C62: =C9 -> Business Direct Damages Avoided | D62: No | E62: Upper Estimate | G62: Value for BCP taken from FLOODsite report. | R62: =R43 ->  | S62: =IF(R62=1,#REF!,"") ->  | X62: High
E63: Best Estimate | F63: 0.05 | O63: FLOODsite Report: Table 9.5 | P63: Low | S63: =IF(AND(R62=1,'Damage Inputs'!$P$7="On"),#REF!,"") -> 
E64: Lower Estimate | S64: =IF(AND(R65=1,'Damage Inputs'!$P$7="On"),#REF!,"") -> 
A65: =Settings!C79 -> WIR | C65: =Settings!D79 -> Warning Independent Resistance | D65: No | E65: Upper Estimate | R65: =R46 ->  | S65: =IF(R65=1,#REF!,"") ->  | X65: 1
E66: Best Estimate | F66: 0 | O66: No data available | S66: =IF(AND(R65=1,'Damage Inputs'!$P$7="On"),#REF!,"") ->  | X66: 2
E67: Lower Estimate | S67: =IF(AND(R68=1,'Damage Inputs'!$P$7="On"),P36,"") ->  | X67: 3
A68: =Settings!C80 -> WDR | C68: =Settings!D80 -> Warning Dependent Resistance | D68: No | E68: Upper Estimate | R68: =R23 -> 1 | S68: =IF(R68=1,P37,"") -> Medium | X68: 4
E69: Best Estimate | F69: 0.02 | O69: FLOODsite Report: Table 9.5 | S69: =IF(AND(R68=1,'Damage Inputs'!$P$7="On"),P38,"") ->  | X69: 5
E70: Lower Estimate | S70: =IF(AND(R71=1,'Damage Inputs'!$P$7="On"),P39,"") ->  | X70: 6
A71: =Settings!C81 -> RSL | C71: =Settings!D81 -> Resilience Measures | D71: No | E71: Upper Estimate | R71: =IF(D65="Yes",0,1) -> 1 | S71: =IF(R71=1,P40,"") -> 2 | X71: 7
E72: Best Estimate | F72: 0 | O72: No data available | S72: =IF(AND(R71=1,'Damage Inputs'!$P$7="On"),P41,"") ->  | X72: 8
E73: Lower Estimate | S73: =IF(AND(R74=1,'Damage Inputs'!$P$7="On"),P42,"") -> 
A74: =Settings!C82 -> CME | C74: =Settings!D82 -> Contents Moved & Evacuated | D74: No | E74: Upper Estimate | R74: =IF(D68="Yes",0,1) -> 1 | S74: =IF(R74=1,P43,"") -> 2
E75: Best Estimate | F75: 0.05 | O75: FLOODsite Report: Table 9.5 | S75: =IF(AND(R74=1,'Damage Inputs'!$P$7="On"),P44,"") ->  | X75: Yes
E76: Lower Estimate | S76: =IF(AND(R77=1,'Damage Inputs'!$P$7="On"),P45,"") ->  | X76: No
R77: =R32 -> 1 | S77: =IF(R77=1,P46,"") -> 4
S78: =IF(AND(R77=1,'Damage Inputs'!$P$7="On"),P47,"") -> 
O79: ='Res Inputs'!O71 -> 1 | S79: =IF(AND(R80=1,'Damage Inputs'!$P$7="On"),P48,"") ->  | X79: Upper & Lower Bounds
O80: ='Res Inputs'!O72 -> 2 | R80: =R52 -> 1 | S80: =IF(R80=1,P49,"") -> 2 | X80: ='Non-Res'!AB22 -> On
O81: ='Res Inputs'!O73 -> 3 | S81: =IF(AND(R80=1,'Damage Inputs'!$P$7="On"),P50,"") -> 
O82: ='Res Inputs'!O74 -> 4
O83: ='Res Inputs'!O75 -> 5
X84: Highlight drop-downs?
X85: ='Damage Inputs'!U42 -> No
S86: =IF(AND(R87=1,'Damage Inputs'!$P$7="On"),#REF!,"") -> 
R87: =IF(OR(D68="No",D74="No"),1,0) -> 1 | S87: =IF(R87=1,#REF!,"") -> 
S88: =IF(AND(R87=1,'Damage Inputs'!$P$7="On"),#REF!,"") -> 
S89: =IF(AND(R90=1,'Damage Inputs'!$P$7="On"),P55,"") -> 
R90: =IF(D62="No",1,0) -> 1 | S90: =IF(R90=1,P56,"") -> 2
S91: =IF(AND(R90=1,'Damage Inputs'!$P$7="On"),P57,"") -> 
S92: =IF(AND(R93=1,'Damage Inputs'!$P$7="On"),#REF!,"") -> 
R93: =IF(OR(#REF!="No",#REF!="No",#REF!="No"),1,0) ->  | S93: =IF(R93=1,#REF!,"") -> 
S94: =IF(AND(R93=1,'Damage Inputs'!$P$7="On"),#REF!,"") -> 
R98: 1 | S98: =IF(R98=1,#REF!,"") -> 
R103: =IF(#REF!="Yes",1,0) ->  | S103: =IF(R103=1,#REF!,"") -> 
S111: =IF(AND(R112=1,'Damage Inputs'!$P$7="On"),#REF!,"") -> 
R112: =IF(#REF!="Yes",1,0) ->  | S112: =IF(R112=1,#REF!,"") -> 
S113: =IF(AND(R112=1,'Damage Inputs'!$P$7="On"),#REF!,"") -> 
S114: =IF(AND(R115=1,'Damage Inputs'!$P$7="On"),#REF!,"") -> 
R115: =IF(#REF!="Yes",1,0) ->  | S115: =IF(R115=1,#REF!,"") -> 
S116: =IF(AND(R115=1,'Damage Inputs'!$P$7="On"),#REF!,"") -> 
S117: =IF(AND(R118=1,'Damage Inputs'!$P$7="On"),#REF!,"") -> 
R118: =IF(#REF!="Yes",1,0) ->  | S118: =IF(R118=1,#REF!,"") -> 
S119: =IF(AND(R118=1,'Damage Inputs'!$P$7="On"),#REF!,"") -> 
S120: =IF(AND(R121=1,'Damage Inputs'!$P$7="On"),P62,"") -> 
R121: =IF(D62="Yes",1,0) -> 0 | S121: =IF(R121=1,P63,"") -> 
S122: =IF(AND(R121=1,'Damage Inputs'!$P$7="On"),P64,"") -> 
S123: =IF(AND(R124=1,'Damage Inputs'!$P$7="On"),P65,"") -> 
R124: =IF(D65="Yes",1,0) -> 0 | S124: =IF(R124=1,P66,"") -> 
S125: =IF(AND(R124=1,'Damage Inputs'!$P$7="On"),P67,"") -> 
S126: =IF(AND(R127=1,'Damage Inputs'!$P$7="On"),P68,"") -> 
R127: =IF(D68="Yes",1,0) -> 0 | S127: =IF(R127=1,P69,"") -> 
S128: =IF(AND(R127=1,'Damage Inputs'!$P$7="On"),P70,"") -> 
S129: =IF(AND(R130=1,'Damage Inputs'!$P$7="On"),P71,"") -> 
R130: =IF(D71="Yes",1,0) -> 0 | S130: =IF(R130=1,P72,"") -> 
S131: =IF(AND(R130=1,'Damage Inputs'!$P$7="On"),P73,"") -> 
S132: =IF(AND(R133=1,'Damage Inputs'!$P$7="On"),P74,"") -> 
R133: =IF(D74="Yes",1,0) -> 0 | S133: =IF(R133=1,P75,"") -> 
S134: =IF(AND(R133=1,'Damage Inputs'!$P$7="On"),P76,"") -> 
R138: Low: | S138: =COUNTIF(S16:S134,"=Low") -> 0
R139: Medium: | S139: =COUNTIF(S16:S134,"=Medium") -> 1
R140: High: | S140: =COUNTIF(S16:S134,"=High") -> 0
R141: No Data: | S141: =COUNTIF(S17:S135,"=0") -> 1

Sheet Non-Res
D3: Damages Avoided by Non-Residential Property-Level NSRs | L3: Back: Non-Residential Inputs | N3: Next: view results in Dashboard
K6: ="Reduction in "&H9&" as each measure is applied" -> Reduction in Damage as each measure is applied
C9: ='Res Calcs'!C9 -> WS | D9: ='Res Calcs'!D9 -> UP | E9: ='Res Calcs'!E9 -> OP | F9: ='Res Calcs'!F9 -> PO | H9: ='Damage Inputs'!F7 -> Damage
C10: ='Res Calcs'!C10 -> % Warning Success | D10: ='Res Calcs'!D10 -> % Response Uptake | E10: ='Res Calcs'!E10 -> % Response Operated | F10: ='Res Calcs'!F10 -> % Response Potential | H10: ='Res Calcs'!H10 -> Damage¹ | I10: ="Non-"&'Res Calcs'!I10 -> Non-Residential Component of Damage¹ (%) | J10: ="Non-"&'Res Calcs'!J10 -> Non-Residential Component of Damage¹ (£)
A11: Upper Estimate | G11: Upper Estimate | H11: =Assets!I76 -> 1000000000 | I11: ='Damage Inputs'!G12 ->  | J11: =H11*I11 ->  | AB11: FDO | AD11: Flood Defence Operation | AE11: ='Res Inputs'!#REF! -> 
A12: Best Estimate | G12: Best Estimate | H12: =Assets!I77 -> 1000000000 | I12: ='Damage Inputs'!G13 -> 0.48 | J12: =H12*I12 -> 480000000 | AB12: WCM | AD12: Watercourse Maintenance | AE12: ='Res Inputs'!#REF! -> 
A13: Lower Estimate | G13: Lower Estimate | H13: =Assets!I78 -> 1000000000 | I13: ='Damage Inputs'!G14 ->  | J13: =H13*I13 ->  | AB13: CBO | AD13: Community-Based Operations | AE13: ='Res Inputs'!#REF! -> 
AB14: BCP | AD14: Business Continuity Planning | AE14: ='Res Inputs'!#REF! -> 
A15: ='Non-Res Inputs'!A9 -> BDD | B15: =Settings!D83 -> Business Direct Damages Avoided | I15: ='Damage Inputs'!F7 -> Damage | AB15: WIR | AD15: Warning-Independent Resistance | AE15: ='Res Inputs'!D56 -> No
B16: =J10 -> Non-Residential Component of Damage¹ (£) | C16: =C10 -> % Warning Success | D16: =D10 -> % Response Uptake | F16: =F10 -> % Response Potential | G16: ="%"&A15 -> %BDD | H16: ="£"&A15 -> £BDD | I16: ="Cumulative Damages Avoided ("&AD30&")" -> Cumulative Damages Avoided (Damage[A]) | J16: ="Residual Non-Residential "&AD27 -> Residual Non-Residential Damage | AB16: WDR | AD16: Warning-Dependent Resistance | AE16: ='Res Inputs'!D59 -> No
A17: Type: | C17: =C9&"-NR" -> WS-NR | D17: =D9&"-"&A15 -> UP-BDD | F17: =F9&"-"&A15 -> PO-BDD | M17: Residual damages | N17: Damages avoided | O17: Damages previously avoided | AB17: RSL | AD17: Resilience Measures | AE17: ='Res Inputs'!D62 -> No
A18: Upper Estimate | B18: =J11 ->  | C18: ='Non-Res Inputs'!N55 -> 0.3002 | D18: ='Non-Res Inputs'!N9 -> 0 | F18: ='Non-Res Inputs'!N36 -> 0.84 | G18: =IF('Non-Res Inputs'!D$62="Yes",'Non-Res Inputs'!F62,PRODUCT(C18:F18)) -> 0 | H18: =G18*B18*AD34 ->  | I18: =H18 ->  | J18: =J11-H18 ->  | M18: =J19 -> 480000000 | N18: =I19 -> 0 | O18: =I12 -> 0.48 | AB18: CME | AD18: Contents Moved & Evacuated | AE18: ='Res Inputs'!D65 -> No
A19: Best Estimate | B19: =J12 -> 480000000 | C19: ='Non-Res Inputs'!N56 -> 0.3002 | D19: ='Non-Res Inputs'!N10 -> 0 | F19: ='Non-Res Inputs'!N37 -> 0.745 | G19: =IF('Non-Res Inputs'!D$62="Yes",'Non-Res Inputs'!F63,PRODUCT(C19:F19)) -> 0 | H19: =G19*B19*AD34 -> 0 | I19: =H19 -> 0 | J19: =J12-H19 -> 480000000 | M19: =M18/SUM($M18:$O18) -> 0.999999999 | N19: =N18/SUM($M18:$O18) -> 0 | O19: =O18/SUM($M18:$O18) -> 9.99999999e-10
A20: Lower Estimate | B20: =J13 ->  | C20: ='Non-Res Inputs'!N57 -> 0.3002 | D20: ='Non-Res Inputs'!N11 -> 0 | F20: ='Non-Res Inputs'!N38 -> 0.65 | G20: =IF('Non-Res Inputs'!D$62="Yes",'Non-Res Inputs'!F64,PRODUCT(C20:F20)) -> 0 | H20: =G20*B20*AD34 ->  | I20: =H20 ->  | J20: =J13-H20 -> 
AB21: Upper & Lower Bounds
AB22: =IF(Settings!J20=TRUE, "On", "Off") -> On
A23: ='Res Calcs'!A15 -> RST | B23: ='Res Calcs'!B15 -> Resistance Measures | I23: =H9 -> Damage
A24: ='Res Calcs'!A16 -> WIR | B24: ='Res Calcs'!B16 -> Warning Independent Resistance | AD24: WCM Included | AE24: =Settings!J12 -> TRUE
B25: =B16 -> Non-Residential Component of Damage¹ (£) | D25: =D10 -> % Response Uptake | F25: =F10 -> % Response Potential | G25: =Settings!F79 -> %WIR | H25: ="£"&A24 -> £WIR | I25: ="Cumulative "&Settings!H45&" Avoided ("&AD30&")" -> Cumulative Direct Property Damages Avoided (Damage[A]) | J25: ="Residual Non-Residential "&Settings!H45 -> Residual Non-Residential Direct Property Damages | AD25: CBO Included | AE25: =Settings!J10 -> TRUE
A26: Type: | D26: =D9&"-"&A24 -> UP-WIR | F26: =F9&"-"&A24 -> PO-WIR
A27: Upper Estimate | B27: =J11 ->  | D27: ='Non-Res Inputs'!N12 -> 0.032 | F27: ='Non-Res Inputs'!N39 -> 0.84 | G27: =IF('Non-Res Inputs'!$D$65="Yes",'Non-Res Inputs'!F65,PRODUCT(C27:F27)) -> 0.02688 | H27: =G27*B27*AE34 ->  | AD27: ='Damage Inputs'!F7 -> Damage
A28: Best Estimate | B28: =J12 -> 480000000 | D28: ='Non-Res Inputs'!N13 -> 0.032 | F28: ='Non-Res Inputs'!N40 -> 0.745 | G28: =IF('Non-Res Inputs'!$D$65="Yes",'Non-Res Inputs'!F66,PRODUCT(C28:F28)) -> 0.02384 | H28: =G28*B28*AE34 -> 11443200 | AD28: =AD27&"[A]"&CHAR(178) -> Damage[A]²
A29: Lower Estimate | B29: =J13 ->  | D29: ='Non-Res Inputs'!N14 -> 0.032 | F29: ='Non-Res Inputs'!N41 -> 0.65 | G29: =IF('Non-Res Inputs'!$D$65="Yes",'Non-Res Inputs'!F67,PRODUCT(C29:F29)) -> 0.0208 | H29: =G29*B29*AE34 ->  | AD29: =AD27&CHAR(178) -> Damage²
AD30: =AD27&"[A]" -> Damage[A]
A31: ='Res Calcs'!A23 -> WDR | B31: ='Res Calcs'!B23 -> Warning Dependent Resistance
B32: =B25 -> Non-Residential Component of Damage¹ (£) | C32: =C10 -> % Warning Success | D32: =D10 -> % Response Uptake | E32: =E10 -> % Response Operated | F32: =F10 -> % Response Potential | G32: ="%"&A31 -> %WDR | H32: ="£"&A31 -> £WDR
A33: Type: | C33: =C9&"-NR" -> WS-NR | D33: =D9&"-"&A31 -> UP-WDR | E33: =E9&"-"&A31 -> OP-WDR | F33: =F9&"-"&A31 -> PO-WDR | M33: Residual damages | N33: Damages avoided | O33: Damages previously avoided
A34: Upper Estimate | B34: =B27 ->  | C34: =C50 -> 0.3002 | D34: ='Non-Res Inputs'!N15 -> 0.048 | E34: ='Non-Res Inputs'!N26 -> 0.9588631 | F34: ='Non-Res Inputs'!N42 -> 0.84 | G34: =IF('Non-Res Inputs'!$D$68="Yes",'Non-Res Inputs'!F68,PRODUCT(C34:F34)) -> 0.01160614033 | H34: =G34*B34*AE34 ->  | I34: =H27+H34 ->  | J34: =J11-I34 ->  | M34: =J35 -> 463615900.3 | N34: =I35 -> 16384099.74 | O34: 0 | AB34: Consolidate BDD: | AC34: No | AD34: 0 | AE34: 1
A35: Best Estimate | B35: =B28 -> 480000000 | C35: =C51 -> 0.3002 | D35: ='Non-Res Inputs'!N16 -> 0.048 | E35: ='Non-Res Inputs'!N27 -> 0.9588631 | F35: ='Non-Res Inputs'!N43 -> 0.745 | G35: =IF('Non-Res Inputs'!$D$68="Yes",'Non-Res Inputs'!F69,PRODUCT(C35:F35)) -> 0.01029354113 | H35: =G35*B35*AE34 -> 4940899.74 | I35: =H28+H35 -> 16384099.74 | J35: =J12-I35 -> 463615900.3 | M35: =M34/SUM($M34:$O34) -> 0.9658664589 | N35: =N34/SUM($M34:$O34) -> 0.03413354113 | O35: =O34/SUM($M34:$O34) -> 0
A36: Lower Estimate | B36: =B29 ->  | C36: =C52 -> 0.3002 | D36: ='Non-Res Inputs'!N17 -> 0.048 | E36: ='Non-Res Inputs'!N28 -> 0.9588631 | F36: ='Non-Res Inputs'!N44 -> 0.65 | G36: =IF('Non-Res Inputs'!$D$68="Yes",'Non-Res Inputs'!F70,PRODUCT(C36:F36)) -> 0.008980941922 | H36: =G36*B36*AE34 ->  | I36: =H29+H36 ->  | J36: =J13-I36 -> 
AB38: =J51/#REF! ->  | AC38: =AE38-AB38 ->  | AD38: =$AE$54-AE38 ->  | AE38: =AB39 -> 
A39: ='Res Calcs'!A31 -> RSL | B39: ='Res Calcs'!B31 -> Resilience Measures | AB39: =J43/#REF! ->  | AC39: =AE39-AB39 ->  | AD39: =$AE$54-AE39 ->  | AE39: =AB40 -> 
B40: =B32 -> Non-Residential Component of Damage¹ (£) | D40: =D25 -> % Response Uptake | F40: =F25 -> % Response Potential | G40: ="%"&A39 -> %RSL | H40: ="£"&A39 -> £RSL | AB40: =#REF!/#REF! ->  | AC40: =AE40-AB40 ->  | AD40: =$AE$54-AE40 ->  | AE40: =AB52 -> 
A41: Type: | D41: =D9&"-"&A39 -> UP-RSL | F41: =F9&"-"&A39 -> PO-RSL | M41: Residual damages | N41: Damages avoided | O41: Damages previously avoided
A42: Upper Estimate | B42: =J34 ->  | D42: ='Non-Res Inputs'!N18 -> 0.02 | F42: ='Non-Res Inputs'!N45 -> 0.5 | G42: =IF('Non-Res Inputs'!$D$71="Yes",'Non-Res Inputs'!F71,PRODUCT(C42:F42)) -> 0.01 | H42: =G42*B42*AE34 ->  | I42: =I34+H42 ->  | J42: =J34-H42 ->  | M42: =J43 -> 458979741.3 | N42: =H43 -> 4636159.003 | O42: =N34+O34 -> 16384099.74
A43: Best Estimate | B43: =J35 -> 463615900.3 | D43: ='Non-Res Inputs'!N19 -> 0.02 | F43: ='Non-Res Inputs'!N46 -> 0.5 | G43: =IF('Non-Res Inputs'!$D$71="Yes",'Non-Res Inputs'!F72,PRODUCT(C43:F43)) -> 0.01 | H43: =G43*B43*AE34 -> 4636159.003 | I43: =I35+H43 -> 21020258.74 | J43: =J35-H43 -> 458979741.3 | M43: =M42/SUM($M42:$O42) -> 0.9562077943 | N43: =N42/SUM($M42:$O42) -> 0.009658664589 | O43: =O42/SUM($M42:$O42) -> 0.03413354113
A44: Lower Estimate | B44: =J36 ->  | D44: ='Non-Res Inputs'!N20 -> 0.02 | F44: ='Non-Res Inputs'!N47 -> 0.5 | G44: =IF('Non-Res Inputs'!$D$71="Yes",'Non-Res Inputs'!F73,PRODUCT(C44:F44)) -> 0.01 | H44: =G44*B44*AE34 ->  | I44: =I36+H44 ->  | J44: =J36-H44 -> 
A47: ='Res Calcs'!A39 -> CME | B47: ='Res Calcs'!B39 -> Contents Moved & Evacuated
B48: =B40 -> Non-Residential Component of Damage¹ (£) | C48: % Relability & Availability | E48: % Operated | F48: % Effectiveness | G48: ="%"&A47 -> %CME | H48: ="£"&A47 -> £CME
A49: Type: | C49: =C33 -> WS-NR | E49: =E9&"-"&A47 -> OP-CME | F49: =F9&"-"&A47 -> PO-CME | M49: Residual damages | N49: Damages avoided | O49: Damages previously avoided
A50: Upper Estimate | B50: =J42 ->  | C50: ='Non-Res Inputs'!N55 -> 0.3002 | E50: ='Non-Res Inputs'!N29 -> 0.731306 | F50: ='Non-Res Inputs'!N48 -> 0.2132 | G50: =IF('Non-Res Inputs'!$D$74="Yes",'Non-Res Inputs'!F74,PRODUCT(C50:F50)) -> 0.04680551465 | H50: =G50*B50*AE34 ->  | I50: =I42+H50 ->  | J50: =J42-H50 ->  | M50: =J51 -> 437496958.3 | N50: =H51 -> 21482783 | O50: =N42+O42 -> 21020258.74
A51: Best Estimate | B51: =J43 -> 458979741.3 | C51: ='Non-Res Inputs'!N56 -> 0.3002 | E51: ='Non-Res Inputs'!N30 -> 0.731306 | F51: ='Non-Res Inputs'!N49 -> 0.2132 | G51: =IF('Non-Res Inputs'!$D$74="Yes",'Non-Res Inputs'!F75,PRODUCT(C51:F51)) -> 0.04680551465 | H51: =G51*B51*AE34 -> 21482783 | I51: =I43+H51 -> 42503041.75 | J51: =J43-H51 -> 437496958.3 | M51: =M50/SUM($M50:$O50) -> 0.9114519964 | N51: =N50/SUM($M50:$O50) -> 0.04475579792 | O51: =O50/SUM($M50:$O50) -> 0.04379220571 | X51: Residual EAD2
A52: Lower Estimate | B52: =J44 ->  | C52: ='Non-Res Inputs'!N57 -> 0.3002 | E52: ='Non-Res Inputs'!N31 -> 0.731306 | F52: ='Non-Res Inputs'!N50 -> 0.2132 | G52: =IF('Non-Res Inputs'!$D$74="Yes",'Non-Res Inputs'!F76,PRODUCT(C52:F52)) -> 0.04680551465 | H52: =G52*B52*AE34 ->  | I52: =I44+H52 ->  | J52: =J44-H52 ->  | X52: Residual Residential EAD2 | AB52: =J19/#REF! ->  | AC52: =AE52-AB52 ->  | AD52: =$AE$54-AE52 ->  | AE52: =AB53 -> 
X53: Residual Non-Residential EAD2 | AB53: =#REF!/#REF! ->  | AC53: =AE53-AB53 ->  | AD53: =$AE$54-AE53 ->  | AE53: =AB54 -> 
AB54: =#REF!/#REF! ->  | AC54: =AE54-AB54 ->  | AD54: =$AE$54-AE54 -> 0 | AE54: =AB55 -> 1
I55: =Settings!H45&" Avoided ("&AD28&")" -> Direct Property Damages Avoided (Damage[A]²) | J55: ="Residual Non-Residential "&Settings!H45&" ("&AD29&")" -> Residual Non-Residential Direct Property Damages (Damage²) | M55: Residual damages | N55: Damages avoided | X55: RA{D} | AB55: 1 | AC55: 0 | AD55: 0
A56: Upper Estimate | H56: Upper Estimate | I56: =I50 ->  | M56: =J57 -> 437496958.3 | N56: =N50+O50 -> 42503041.75 | X56: RA{B}
A57: Best Estimate | H57: Best Estimate | I57: 42503041.75 | J57: 437496958.3 | M57: =M56/SUM($M56:$O56) -> 0.9114519964 | N57: =N56/SUM($M56:$O56) -> 0.08854800364 | X57: RA{P}
A58: Lower Estimate | H58: Lower Estimate

Sheet Wider Impacts
F3: Wider Impacts Inputs & Calculation | K3: View Scenario:
A6: =Settings!C71 -> PO | C6: =Settings!E71 -> % Response Potential | E6: ="The percentage of the potential wider impacts reduced if a measure is operated, as a percentage of the "&F7&" avoided" -> The percentage of the potential wider impacts reduced if a measure is operated, as a percentage of the Direct Property Damage avoided
F7: =F24 -> Direct Property Damage | G7: ='Damage Inputs'!AF11 -> Risk to Life | H7: ='Damage Inputs'!AG11 -> Other Economic | I7: ='Damage Inputs'!AH11 -> Infrastructure | J7: ='Damage Inputs'!AI11 -> Health & Social | K7: ='Damage Inputs'!AJ11 -> Institutional | L7: ='Damage Inputs'!AK11 -> Other
A8: =Settings!C79 -> WIR | C8: =Settings!D79 -> Warning Independent Resistance | E8: Upper Estimate | F8: =OFFSET('Mod Calc'!BN135,0,$R$18-1) -> 0.84 | G8: 1 | H8: 1 | I8: 1 | J8: 1 | K8: 1 | L8: 1
E9: Best Estimate | F9: =OFFSET('Mod Calc'!BN136,0,$R$18-1) -> 0.745 | G9: 1 | H9: 1 | I9: 1 | J9: 1 | K9: 1 | L9: 1
E10: Lower Estimate | F10: =OFFSET('Mod Calc'!BN137,0,$R$18-1) -> 0.65 | G10: 1 | H10: 1 | I10: 1 | J10: 1 | K10: 1 | L10: 1
A11: =Settings!C80 -> WDR | C11: =Settings!D80 -> Warning Dependent Resistance | E11: Upper Estimate | F11: =OFFSET('Mod Calc'!BN138,0,$R$18-1) -> 0.84 | G11: 1 | H11: 1 | I11: 1 | J11: 1 | K11: 1 | L11: 1 | R11: Baseline
E12: Best Estimate | F12: =OFFSET('Mod Calc'!BN139,0,$R$18-1) -> 0.745 | G12: 1 | H12: 1 | I12: 1 | J12: 1 | K12: 1 | L12: 1 | R12: =Settings!D29 -> Scenario 1
E13: Lower Estimate | F13: =OFFSET('Mod Calc'!BN140,0,$R$18-1) -> 0.65 | G13: 1 | H13: 1 | I13: 1 | J13: 1 | K13: 1 | L13: 1 | R13: =Settings!D30 -> Scenario 2
A14: =Settings!C81 -> RSL | C14: =Settings!D81 -> Resilience Measures | E14: Upper Estimate | F14: =OFFSET('Mod Calc'!BN141,0,$R$18-1) -> 0.5 | G14: 1 | H14: 1 | I14: 1 | J14: 1 | K14: 1 | L14: 1 | R14: =Settings!D31 -> Scenario 3
E15: Best Estimate | F15: =OFFSET('Mod Calc'!BN142,0,$R$18-1) -> 0.5 | G15: 1 | H15: 1 | I15: 1 | J15: 1 | K15: 1 | L15: 1 | R15: =Settings!D32 -> Scenario 4
E16: Lower Estimate | F16: =OFFSET('Mod Calc'!BN143,0,$R$18-1) -> 0.5 | G16: 1 | H16: 1 | I16: 1 | J16: 1 | K16: 1 | L16: 1 | R16: =Settings!D33 -> Scenario 5
A17: =Settings!C82 -> CME | C17: =Settings!D82 -> Contents Moved & Evacuated | E17: Upper Estimate | F17: =OFFSET('Mod Calc'!BN144,0,$R$18-1) -> 0.2132 | G17: 1 | H17: 1 | I17: 1 | J17: 1 | K17: 1 | L17: 1
E18: Best Estimate | F18: =OFFSET('Mod Calc'!BN145,0,$R$18-1) -> 0.2132 | G18: 1 | H18: 1 | I18: 1 | J18: 1 | K18: 1 | L18: 1 | R18: 1
E19: Lower Estimate | F19: =OFFSET('Mod Calc'!BN146,0,$R$18-1) -> 0.2132 | G19: 1 | H19: 1 | I19: 1 | J19: 1 | K19: 1 | L19: 1
A23: Wider Benefits Calculation | F23: ="Percentage impacts avoided for "&OFFSET(R10,R18,0) -> Percentage impacts avoided for Baseline | N23: Input | U23: Impacts avoided | AB23: Output (residual impacts)
F24: ='Damage Inputs'!C8 -> Direct Property Damage | G24: =G7 -> Risk to Life | H24: Other Economic | I24: Infrastructure | J24: Health & Social | K24: Institutional | L24: Other | N24: =F24 -> Direct Property Damage | O24: Risk to Life | P24: Other Economic | Q24: Infrastructure | R24: Health & Social | S24: Institutional | T24: Other | U24: =N24 -> Direct Property Damage | V24: =O24 -> Risk to Life | W24: Other Economic | X24: Infrastructure | Y24: Health & Social | Z24: Institutional | AA24: Other | AB24: =U24 -> Direct Property Damage | AC24: =V24 -> Risk to Life | AD24: Other Economic | AE24: Infrastructure | AF24: Health & Social | AG24: Institutional | AH24: Other
A25: The percentage impacts avoided is given for each pathway, based on the effectiveness values above (assuming other factors are the same for each wider impact). The damage inputs above are used as the initial input, and each pathway is applied sequentially (using the output damages from the previous pathway as an input). The calculation therefore leads across then down. | E25: =Settings!C78 -> RST | F25: =Settings!D78 -> Resistance Measures | N25: =F25 -> Resistance Measures | U25: =N25 -> Resistance Measures | AB25: =U25 -> Resistance Measures
E26: =A8 -> WIR | F26: =C8 -> Warning Independent Resistance
E27: Upper Estimate | F27: =OFFSET('Mod Calc'!BN202,0,$R$18-1) -> 0.02688 | G27: =$F27*G8 -> 0.02688 | H27: =$F27*H8 -> 0.02688 | I27: 0.02688 | J27: 0.02688 | K27: 0.02688 | L27: 0.02688
E28: Best Estimate | F28: =OFFSET('Mod Calc'!BN203,0,$R$18-1) -> 0.02384 | G28: =$F28*G9 -> 0.02384 | H28: 0.02384 | I28: 0.02384 | J28: 0.02384 | K28: 0.02384 | L28: 0.02384 | N28: ="Resistance measures applied as a single pathway (adding WIR and WDR)" -> Resistance measures applied as a single pathway (adding WIR and WDR) | R28: IMPORTANT: THE CALCULATIONS ON THIS SHEET ASSUME RESIDENTIAL AND NON-RESIDENTIAL INPUT VALUES ARE THE SAME. THIS ISSUE IS CORRECTED ON THE DASHBOARD.
E29: Lower Estimate | F29: =OFFSET('Mod Calc'!BN204,0,$R$18-1) -> 0.0208 | G29: =$F29*G10 -> 0.0208 | H29: 0.0208 | I29: 0.0208 | J29: 0.0208 | K29: 0.0208 | L29: 0.0208
E31: =A11 -> WDR | F31: =C11 -> Warning Dependent Resistance
E32: Upper Estimate | F32: =OFFSET('Mod Calc'!BN205,0,$R$18-1) -> 0 | G32: =$F32*G11 -> 0 | H32: =$F32*H11 -> 0 | I32: 0 | J32: 0 | K32: 0 | L32: 0 | N32: =OFFSET('Damage Inputs'!E12,($R$18-1)*3,0) -> 0 | O32: =OFFSET('Damage Inputs'!AF12,($R$18-1)*3,0) -> 0 | P32: =OFFSET('Damage Inputs'!AG12,($R$18-1)*3,0) -> 0 | Q32: =OFFSET('Damage Inputs'!AH12,($R$18-1)*3,0) -> 0 | R32: =OFFSET('Damage Inputs'!AI12,($R$18-1)*3,0) -> 0 | S32: =OFFSET('Damage Inputs'!AJ12,($R$18-1)*3,0) -> 0 | T32: =OFFSET('Damage Inputs'!AK12,($R$18-1)*3,0) -> 0 | U32: =N32*(F32+F27) -> 0 | V32: =O32*(G27+G32) -> 0 | W32: 0 | X32: 0 | Y32: 0 | Z32: 0 | AA32: 0 | AB32: =N32-U32 -> 0 | AC32: =O32-V32 -> 0 | AD32: 0 | AE32: 0 | AF32: 0 | AG32: 0 | AH32: 0
E33: Best Estimate | F33: =OFFSET('Mod Calc'!BN206,0,$R$18-1) -> 0.01029354113 | G33: =$F33*G12 -> 0.01029354113 | H33: 0.01029354113 | I33: 0.01029354113 | J33: 0.01029354113 | K33: 0.01029354113 | L33: 0.01029354113 | N33: =OFFSET('Damage Inputs'!E13,($R$18-1)*3,0) -> 1000000000 | O33: =OFFSET('Damage Inputs'!AF13,($R$18-1)*3,0) -> 0 | P33: =OFFSET('Damage Inputs'!AG13,($R$18-1)*3,0) -> 400000000 | Q33: =OFFSET('Damage Inputs'!AH13,($R$18-1)*3,0) -> 500000000 | R33: =OFFSET('Damage Inputs'!AI13,($R$18-1)*3,0) -> 300000000 | S33: =OFFSET('Damage Inputs'!AJ13,($R$18-1)*3,0) -> 0 | T33: =OFFSET('Damage Inputs'!AK13,($R$18-1)*3,0) -> 0 | U33: =N33*(F33+F28) -> 34133541.13 | V33: 0 | W33: 13653416.45 | X33: 17066770.56 | Y33: 10240062.34 | Z33: 0 | AA33: 0 | AB33: =N33-U33 -> 965866458.9 | AC33: 0 | AD33: 386346583.5 | AE33: 482933229.4 | AF33: 289759937.7 | AG33: 0 | AH33: 0
E34: Lower Estimate | F34: =OFFSET('Mod Calc'!BN207,0,$R$18-1) -> 0 | G34: =$F34*G13 -> 0 | H34: 0 | I34: 0 | J34: 0 | K34: 0 | L34: 0 | N34: =OFFSET('Damage Inputs'!E14,($R$18-1)*3,0) -> 0 | O34: =OFFSET('Damage Inputs'!AF14,($R$18-1)*3,0) -> 0 | P34: =OFFSET('Damage Inputs'!AG14,($R$18-1)*3,0) -> 0 | Q34: =OFFSET('Damage Inputs'!AH14,($R$18-1)*3,0) -> 0 | R34: =OFFSET('Damage Inputs'!AI14,($R$18-1)*3,0) -> 0 | S34: =OFFSET('Damage Inputs'!AJ14,($R$18-1)*3,0) -> 0 | T34: =OFFSET('Damage Inputs'!AK14,($R$18-1)*3,0) -> 0 | U34: =N34*(F34+F29) -> 0 | V34: 0 | W34: 0 | X34: 0 | Y34: 0 | Z34: 0 | AA34: 0 | AB34: 0 | AC34: 0 | AD34: 0 | AE34: 0 | AF34: 0 | AG34: 0 | AH34: 0
E37: =A14 -> RSL | F37: =C14 -> Resilience Measures | N37: =F37 -> Resilience Measures | U37: =N37 -> Resilience Measures | AB37: =U37 -> Resilience Measures
E38: Upper Estimate | F38: =OFFSET('Mod Calc'!BN211,0,$R$18-1) -> 0.01 | G38: =$F38*G14 -> 0.01 | H38: =$F38*H14 -> 0.01 | I38: 0.01 | J38: 0.01 | K38: 0.01 | L38: 0.01 | N38: =AB32 -> 0 | O38: 0 | P38: 0 | Q38: 0 | R38: 0 | S38: 0 | T38: 0 | U38: =N38*F38 -> 0 | V38: =O38*G38 -> 0 | W38: 0 | X38: 0 | Y38: 0 | Z38: 0 | AA38: 0 | AB38: =N38-U38 -> 0 | AC38: 0 | AD38: 0 | AE38: 0 | AF38: 0 | AG38: 0 | AH38: 0
E39: Best Estimate | F39: =OFFSET('Mod Calc'!BN212,0,$R$18-1) -> 0.01 | G39: =$F39*G15 -> 0.01 | H39: 0.01 | I39: 0.01 | J39: 0.01 | K39: 0.01 | L39: 0.01 | N39: 965866458.9 | O39: 0 | P39: 386346583.5 | Q39: 482933229.4 | R39: 289759937.7 | S39: 0 | T39: 0 | U39: 9658664.589 | V39: 0 | W39: 3863465.835 | X39: 4829332.294 | Y39: 2897599.377 | Z39: 0 | AA39: 0 | AB39: 956207794.3 | AC39: 0 | AD39: 382483117.7 | AE39: 478103897.1 | AF39: 286862338.3 | AG39: 0 | AH39: 0
E40: Lower Estimate | F40: =OFFSET('Mod Calc'!BN213,0,$R$18-1) -> 0.01 | G40: =$F40*G16 -> 0.01 | H40: 0.01 | I40: 0.01 | J40: 0.01 | K40: 0.01 | L40: 0.01 | N40: 0 | O40: 0 | P40: 0 | Q40: 0 | R40: 0 | S40: 0 | T40: 0 | U40: 0 | V40: 0 | W40: 0 | X40: 0 | Y40: 0 | Z40: 0 | AA40: 0 | AB40: 0 | AC40: 0 | AD40: 0 | AE40: 0 | AF40: 0 | AG40: 0 | AH40: 0
E43: =A17 -> CME | F43: =C17 -> Contents Moved & Evacuated | N43: =F43 -> Contents Moved & Evacuated | U43: =N43 -> Contents Moved & Evacuated | AB43: =U43 -> Contents Moved & Evacuated
E44: Upper Estimate | F44: =OFFSET('Mod Calc'!BN217,0,$R$18-1) -> 0.04680551465 | G44: =$F44*G17 -> 0.04680551465 | H44: =$F44*H17 -> 0.04680551465 | I44: 0.04680551465 | J44: 0.04680551465 | K44: 0.04680551465 | L44: 0.04680551465 | N44: =AB38 -> 0 | O44: 0 | P44: 0 | Q44: 0 | R44: 0 | S44: 0 | T44: 0 | U44: =N44*F44 -> 0 | V44: =O44*G44 -> 0 | W44: 0 | X44: 0 | Y44: 0 | Z44: 0 | AA44: 0 | AB44: =N44-U44 -> 0 | AC44: 0 | AD44: 0 | AE44: 0 | AF44: 0 | AG44: 0 | AH44: 0
E45: Best Estimate | F45: =OFFSET('Mod Calc'!BN218,0,$R$18-1) -> 0.04680551465 | G45: =$F45*G18 -> 0.04680551465 | H45: 0.04680551465 | I45: 0.04680551465 | J45: 0.04680551465 | K45: 0.04680551465 | L45: 0.04680551465 | N45: 956207794.3 | O45: 0 | P45: 382483117.7 | Q45: 478103897.1 | R45: 286862338.3 | S45: 0 | T45: 0 | U45: 44755797.92 | V45: 0 | W45: 17902319.17 | X45: 22377898.96 | Y45: 13426739.38 | Z45: 0 | AA45: 0 | AB45: 911451996.4 | AC45: 0 | AD45: 364580798.5 | AE45: 455725998.2 | AF45: 273435598.9 | AG45: 0 | AH45: 0
E46: Lower Estimate | F46: =OFFSET('Mod Calc'!BN219,0,$R$18-1) -> 0.04680551465 | G46: =$F46*G19 -> 0.04680551465 | H46: 0.04680551465 | I46: 0.04680551465 | J46: 0.04680551465 | K46: 0.04680551465 | L46: 0.04680551465 | N46: 0 | O46: 0 | P46: 0 | Q46: 0 | R46: 0 | S46: 0 | T46: 0 | U46: 0 | V46: 0 | W46: 0 | X46: 0 | Y46: 0 | Z46: 0 | AA46: 0 | AB46: 0 | AC46: 0 | AD46: 0 | AE46: 0 | AF46: 0 | AG46: 0 | AH46: 0

Sheet Wider Impacts (Assets)
F3: Wider Impacts Inputs & Calculation | K3: View Scenario:
F4: (working with assets)
C6: ="Percentage of impacts avoided by assets that can be attributed to each pathway, relative to the percentage attributed for "&F7 -> Percentage of impacts avoided by assets that can be attributed to each pathway, relative to the percentage attributed for Direct Property Damage
F7: =F24 -> Direct Property Damage | G7: ='Damage Inputs'!AF11 -> Risk to Life | H7: ='Damage Inputs'!AG11 -> Other Economic | I7: ='Damage Inputs'!AH11 -> Infrastructure | J7: ='Damage Inputs'!AI11 -> Health & Social | K7: ='Damage Inputs'!AJ11 -> Institutional | L7: ='Damage Inputs'!AK11 -> Other
A8: =Settings!C75 -> FDO | C8: =Settings!D75 -> Flood Defence Operation | E8: Upper Estimate | F8: =Assets!F9 -> 0.4 | G8: 1 | H8: 1 | I8: 1 | J8: 1 | K8: 1 | L8: 1
E9: Best Estimate | F9: =Assets!F10 -> 0.28 | G9: 1 | H9: 1 | I9: 1 | J9: 1 | K9: 1 | L9: 1
E10: Lower Estimate | F10: =Assets!F11 -> 0 | G10: 1 | H10: 1 | I10: 1 | J10: 1 | K10: 1 | L10: 1
A11: =Settings!C76 -> WCM | C11: =Settings!D76 -> Watercourse Management | E11: Upper Estimate | F11: =Assets!F15 -> 0.1 | G11: 1 | H11: 1 | I11: 1 | J11: 1 | K11: 1 | L11: 1 | R11: Baseline
E12: Best Estimate | F12: =Assets!F16 -> 0.1 | G12: 1 | H12: 1 | I12: 1 | J12: 1 | K12: 1 | L12: 1 | R12: =Settings!D29 -> Scenario 1
E13: Lower Estimate | F13: =Assets!F17 -> 0.1 | G13: 1 | H13: 1 | I13: 1 | J13: 1 | K13: 1 | L13: 1 | R13: =Settings!D30 -> Scenario 2
A14: =Settings!C77 -> CBO | C14: =Settings!D77 -> Community Based Operations | E14: Upper Estimate | F14: =Assets!F21 -> 0.05 | G14: 1 | H14: 1 | I14: 1 | J14: 1 | K14: 1 | L14: 1 | R14: =Settings!D31 -> Scenario 3
E15: Best Estimate | F15: =Assets!F22 -> 0.05 | G15: 1 | H15: 1 | I15: 1 | J15: 1 | K15: 1 | L15: 1 | R15: =Settings!D32 -> Scenario 4
E16: Lower Estimate | F16: =Assets!F23 -> 0.05 | G16: 1 | H16: 1 | I16: 1 | J16: 1 | K16: 1 | L16: 1 | R16: =Settings!D33 -> Scenario 5
C17: =Assets!A63 -> Static Flood Defences & Routine Watercourse Capacity Maintenance | E17: Upper Estimate | F17: =100%-IF(Settings!$J$8=TRUE,F8,0)-IF(Settings!$J$10=TRUE,F14,0)-IF(Settings!$J$12=TRUE,F11,0) -> 0.45 | G17: =(100%-IF(Settings!$J$8=TRUE,G8*$F8,0)-IF(Settings!$J$10=TRUE,G14*$F14,0)-IF(Settings!$J$12=TRUE,G11*$F11,0))/$F17 -> 1 | H17: =(100%-IF(Settings!$J$8=TRUE,H8*$F8,0)-IF(Settings!$J$10=TRUE,H14*$F14,0)-IF(Settings!$J$12=TRUE,H11*$F11,0))/$F17 -> 1 | I17: =(100%-IF(Settings!$J$8=TRUE,I8*$F8,0)-IF(Settings!$J$10=TRUE,I14*$F14,0)-IF(Settings!$J$12=TRUE,I11*$F11,0))/$F17 -> 1 | J17: =(100%-IF(Settings!$J$8=TRUE,J8*$F8,0)-IF(Settings!$J$10=TRUE,J14*$F14,0)-IF(Settings!$J$12=TRUE,J11*$F11,0))/$F17 -> 1 | K17: =(100%-IF(Settings!$J$8=TRUE,K8*$F8,0)-IF(Settings!$J$10=TRUE,K14*$F14,0)-IF(Settings!$J$12=TRUE,K11*$F11,0))/$F17 -> 1 | L17: =(100%-IF(Settings!$J$8=TRUE,L8*$F8,0)-IF(Settings!$J$10=TRUE,L14*$F14,0)-IF(Settings!$J$12=TRUE,L11*$F11,0))/$F17 -> 1
E18: Best Estimate | F18: =100%-IF(Settings!$J$8=TRUE,F9,0)-IF(Settings!$J$10=TRUE,F15,0)-IF(Settings!$J$12=TRUE,F12,0) -> 0.57 | G18: =(100%-IF(Settings!$J$8=TRUE,G9*$F9,0)-IF(Settings!$J$10=TRUE,G15*$F15,0)-IF(Settings!$J$12=TRUE,G12*$F12,0))/$F18 -> 1 | H18: =(100%-IF(Settings!$J$8=TRUE,H9*$F9,0)-IF(Settings!$J$10=TRUE,H15*$F15,0)-IF(Settings!$J$12=TRUE,H12*$F12,0))/$F18 -> 1 | I18: =(100%-IF(Settings!$J$8=TRUE,I9*$F9,0)-IF(Settings!$J$10=TRUE,I15*$F15,0)-IF(Settings!$J$12=TRUE,I12*$F12,0))/$F18 -> 1 | J18: =(100%-IF(Settings!$J$8=TRUE,J9*$F9,0)-IF(Settings!$J$10=TRUE,J15*$F15,0)-IF(Settings!$J$12=TRUE,J12*$F12,0))/$F18 -> 1 | K18: =(100%-IF(Settings!$J$8=TRUE,K9*$F9,0)-IF(Settings!$J$10=TRUE,K15*$F15,0)-IF(Settings!$J$12=TRUE,K12*$F12,0))/$F18 -> 1 | L18: =(100%-IF(Settings!$J$8=TRUE,L9*$F9,0)-IF(Settings!$J$10=TRUE,L15*$F15,0)-IF(Settings!$J$12=TRUE,L12*$F12,0))/$F18 -> 1 | R18: 1
E19: Lower Estimate | F19: =100%-IF(Settings!$J$8=TRUE,F10,0)-IF(Settings!$J$10=TRUE,F16,0)-IF(Settings!$J$12=TRUE,F13,0) -> 0.85 | G19: =(100%-IF(Settings!$J$8=TRUE,G10*$F10,0)-IF(Settings!$J$10=TRUE,G16*$F16,0)-IF(Settings!$J$12=TRUE,G13*$F13,0))/$F19 -> 1 | H19: =(100%-IF(Settings!$J$8=TRUE,H10*$F10,0)-IF(Settings!$J$10=TRUE,H16*$F16,0)-IF(Settings!$J$12=TRUE,H13*$F13,0))/$F19 -> 1 | I19: =(100%-IF(Settings!$J$8=TRUE,I10*$F10,0)-IF(Settings!$J$10=TRUE,I16*$F16,0)-IF(Settings!$J$12=TRUE,I13*$F13,0))/$F19 -> 1 | J19: =(100%-IF(Settings!$J$8=TRUE,J10*$F10,0)-IF(Settings!$J$10=TRUE,J16*$F16,0)-IF(Settings!$J$12=TRUE,J13*$F13,0))/$F19 -> 1 | K19: =(100%-IF(Settings!$J$8=TRUE,K10*$F10,0)-IF(Settings!$J$10=TRUE,K16*$F16,0)-IF(Settings!$J$12=TRUE,K13*$F13,0))/$F19 -> 1 | L19: =(100%-IF(Settings!$J$8=TRUE,L10*$F10,0)-IF(Settings!$J$10=TRUE,L16*$F16,0)-IF(Settings!$J$12=TRUE,L13*$F13,0))/$F19 -> 1
A23: Wider Benefits Calculation | F23: ="Percentage impacts avoided for "&OFFSET(R10,R18,0) -> Percentage impacts avoided for Baseline | N23: Input | U23: Impacts avoided
F24: ='Damage Inputs'!C8 -> Direct Property Damage | G24: =G7 -> Risk to Life | H24: Other Economic | I24: Infrastructure | J24: Health & Social | K24: Institutional | L24: Other | N24: =F24&" Avoided" -> Direct Property Damage Avoided | O24: =G24 -> Risk to Life | P24: Other Economic | Q24: Infrastructure | R24: Health & Social | S24: Institutional | T24: Other | U24: =N24 -> Direct Property Damage Avoided | V24: =O24 -> Risk to Life | W24: Other Economic | X24: Infrastructure | Y24: Health & Social | Z24: Institutional | AA24: Other
E25: =A8 -> FDO | F25: =C8 -> Flood Defence Operation | N25: =F25 -> Flood Defence Operation | U25: =N25 -> Flood Defence Operation
E26: Upper Estimate | F26: =IF(Settings!$J$8=TRUE,OFFSET('Mod Calc'!BN182,0,$R$18-1)*F8,0) -> 0.39204 | G26: =$F26*G11 -> 0.39204 | H26: 0.39204 | I26: 0.39204 | J26: 0.39204 | K26: 0.39204 | L26: 0.39204 | N26: =OFFSET('Damage Inputs'!D12,($R$18-1)*3,0) ->  | O26: =OFFSET('Damage Inputs'!AF12,($R$18-1)*3,0) -> 0 | P26: =OFFSET('Damage Inputs'!AG12,($R$18-1)*3,0) -> 0 | Q26: =OFFSET('Damage Inputs'!AH12,($R$18-1)*3,0) -> 0 | R26: =OFFSET('Damage Inputs'!AI12,($R$18-1)*3,0) -> 0 | S26: =OFFSET('Damage Inputs'!AJ12,($R$18-1)*3,0) -> 0 | T26: =OFFSET('Damage Inputs'!AK12,($R$18-1)*3,0) -> 0 | U26: =N26*F26 ->  | V26: =O26*G26 -> 0 | W26: =P26*H26 -> 0 | X26: =Q26*I26 -> 0 | Y26: =R26*J26 -> 0 | Z26: =S26*K26 -> 0 | AA26: =T26*L26 -> 0
E27: Best Estimate | F27: =IF(Settings!$J$8=TRUE,OFFSET('Mod Calc'!BN183,0,$R$18-1)*F9,0) -> 0.274428 | G27: 0.274428 | H27: 0.274428 | I27: 0.274428 | J27: 0.274428 | K27: 0.274428 | L27: 0.274428 | N27: =OFFSET('Damage Inputs'!D13,($R$18-1)*3,0) -> 2000000000 | O27: =OFFSET('Damage Inputs'!AF13,($R$18-1)*3,0) -> 0 | P27: =OFFSET('Damage Inputs'!AG13,($R$18-1)*3,0) -> 400000000 | Q27: =OFFSET('Damage Inputs'!AH13,($R$18-1)*3,0) -> 500000000 | R27: =OFFSET('Damage Inputs'!AI13,($R$18-1)*3,0) -> 300000000 | S27: =OFFSET('Damage Inputs'!AJ13,($R$18-1)*3,0) -> 0 | T27: =OFFSET('Damage Inputs'!AK13,($R$18-1)*3,0) -> 0 | U27: 548856000 | V27: 0 | W27: 109771200 | X27: 137214000 | Y27: 82328400 | Z27: 0 | AA27: 0
E28: Lower Estimate | F28: =IF(Settings!$J$8=TRUE,OFFSET('Mod Calc'!BN184,0,$R$18-1)*F10,0) -> 0 | G28: 0 | H28: 0 | I28: 0 | J28: 0 | K28: 0 | L28: 0 | N28: =OFFSET('Damage Inputs'!D14,($R$18-1)*3,0) ->  | O28: =OFFSET('Damage Inputs'!AF14,($R$18-1)*3,0) -> 0 | P28: =OFFSET('Damage Inputs'!AG14,($R$18-1)*3,0) -> 0 | Q28: =OFFSET('Damage Inputs'!AH14,($R$18-1)*3,0) -> 0 | R28: =OFFSET('Damage Inputs'!AI14,($R$18-1)*3,0) -> 0 | S28: =OFFSET('Damage Inputs'!AJ14,($R$18-1)*3,0) -> 0 | T28: =OFFSET('Damage Inputs'!AK14,($R$18-1)*3,0) -> 0 | V28: 0 | W28: 0 | X28: 0 | Y28: 0 | Z28: 0 | AA28: 0
E31: =A11 -> WCM | F31: =C11 -> Watercourse Management | N31: =F31 -> Watercourse Management | U31: =N31 -> Watercourse Management
E32: Upper Estimate | F32: =IF(Settings!$J$12=TRUE,OFFSET('Mod Calc'!BN185,0,$R$18-1)*F11,0) -> 0.045 | G32: =$F32*G14 -> 0.045 | H32: 0.045 | I32: 0.045 | J32: 0.045 | K32: 0.045 | L32: 0.045 | N32: =N26 ->  | O32: =AC26 -> 0 | P32: 0 | Q32: 0 | R32: 0 | S32: 0 | T32: 0 | U32: =N32*F32 ->  | V32: 0 | W32: 0 | X32: 0 | Y32: 0 | Z32: 0 | AA32: 0
E33: Best Estimate | F33: =IF(Settings!$J$12=TRUE,OFFSET('Mod Calc'!BN186,0,$R$18-1)*F12,0) -> 0.045 | G33: 0.045 | H33: 0.045 | I33: 0.045 | J33: 0.045 | K33: 0.045 | L33: 0.045 | N33: =N27 -> 2000000000 | O33: 0 | P33: 0 | Q33: 0 | R33: 0 | S33: 0 | T33: 0 | U33: 90000000 | V33: 0 | W33: 0 | X33: 0 | Y33: 0 | Z33: 0 | AA33: 0
E34: Lower Estimate | F34: =IF(Settings!$J$12=TRUE,OFFSET('Mod Calc'!BN187,0,$R$18-1)*F13,0) -> 0.045 | G34: 0.045 | H34: 0.045 | I34: 0.045 | J34: 0.045 | K34: 0.045 | L34: 0.045 | O34: 0 | P34: 0 | Q34: 0 | R34: 0 | S34: 0 | T34: 0 | V34: 0 | W34: 0 | X34: 0 | Y34: 0 | Z34: 0 | AA34: 0
E37: =A14 -> CBO | F37: =C14 -> Community Based Operations | N37: =F37 -> Community Based Operations | U37: =N37 -> Community Based Operations
E38: Upper Estimate | F38: =IF(Settings!$J$10=TRUE,OFFSET('Mod Calc'!BN188,0,$R$18-1)*F14,0) -> 0.036 | G38: =$F38*G17 -> 0.036 | H38: 0.036 | I38: 0.036 | J38: 0.036 | K38: 0.036 | L38: 0.036 | N38: =N32 ->  | O38: =AC32 -> 0 | P38: 0 | Q38: 0 | R38: 0 | S38: 0 | T38: 0 | U38: =N38*F38 ->  | V38: 0 | W38: 0 | X38: 0 | Y38: 0 | Z38: 0 | AA38: 0
E39: Best Estimate | F39: =IF(Settings!$J$10=TRUE,OFFSET('Mod Calc'!BN189,0,$R$18-1)*F15,0) -> 0.036 | G39: 0.036 | H39: 0.036 | I39: 0.036 | J39: 0.036 | K39: 0.036 | L39: 0.036 | N39: =N33 -> 2000000000 | O39: 0 | P39: 0 | Q39: 0 | R39: 0 | S39: 0 | T39: 0 | U39: 72000000 | V39: 0 | W39: 0 | X39: 0 | Y39: 0 | Z39: 0 | AA39: 0
E40: Lower Estimate | F40: =OFFSET('Mod Calc'!BN190,0,$R$18-1)*F16 -> 0.036 | G40: 0.036 | H40: 0.036 | I40: 0.036 | J40: 0.036 | K40: 0.036 | L40: 0.036 | O40: 0 | P40: 0 | Q40: 0 | R40: 0 | S40: 0 | T40: 0 | V40: 0 | W40: 0 | X40: 0 | Y40: 0 | Z40: 0 | AA40: 0

Sheet Investment
E2: Investment Scenarios | L2: Example graphs: | BC2: Curve | BF2: Straight Line
L3: (taken from first row of spreadsheet) | BC3: a | BD3: b | BE3: c | BF3: a | BG3: b | BH3: Max Ben | BI3: Fixed Costs
K4: Back: Damage Inputs | M4: Next: %OP | BB4: Yes | BC4: 2.172244757 | BD4: -2.150522309 | BE4: 1.99 | BF4: 1.111111111 | BG4: -0.1111111111 | BH4: 1.99 | BI4: 0.1
E5: =E38 -> 1 | F5: =F38 -> 1 | G5: =G38 -> 1 | H5: =H38 -> 1 | I5: =I38 -> 1
E6: Areas of Investment | R6: =IF(AY19=1,"These columns are only needed for inputting over-ride data. You have chosen to maintain the base investment distribution, so they are blanked out.","") -> These columns are only needed for inputting over-ride data. You have chosen to maintain the base investment distribution, so they are blanked out.
B7: Investment Activities | C7: Factors Affected | D7: Pathways Affected | E7: Flood Forecasting | F7: Incident Management | G7: Planning & Development Control | H7: Mapping & Data | I7: Additional Costs (e.g. office costs) | K7: To maintain the same distribution of investment between actions as is given for the base investment scenario, add investment scenarios to the rows on the left and select 'Maintain Proportions'. To create a new distribution of investment, choose 'Use Over-Ride' and type figures in the columns on the right. Where cells are left blank, the 'maintain proportions' figures will be used. | X7: Maximum Benefit = Regardless of the amount spent, the maximum possible benefit that could be achieved
B8: ="Base Investment ("&P9&" "&Settings!I49&"):" -> Base Investment (Million £): | E8: =9 -> 9 | F8: =19+7 -> 26 | G8: =14 -> 14 | H8: =8+6 -> 14 | I8: 10 | X8: Fixed Costs = The minimum investment needed to observe any benefits | AX8: =AY8 -> Curve | AY8: Curve
B9: =Settings!D29 -> Scenario 1 | E9: =E8*2 -> 18 | F9: =F8*2 -> 52 | G9: =G8*2 -> 28 | H9: =H8*2 -> 28 | I9: =I8*2 -> 20 | K9: Unit of Investment | P9: =Settings!G49 -> Million | AX9: =AY9 -> Straight | AY9: Straight
B10: =Settings!D30 -> Scenario 2 | E10: =E8/2 -> 4.5 | F10: =F8/2 -> 13 | G10: =G8/2 -> 7 | H10: =H8/2 -> 7 | I10: =I8/2 -> 5 | X10: BOTH RELATIVE TO CURRENT CONDITIONS | AC10: y = ba^(-x) + c | AF10: y = ax + b
B11: =Settings!D31 -> Scenario 3 | E11: 0 | F11: 0 | G11: 0 | H11: 0 | I11: 0 | K11: ="Investment in Action (£"&P9&")" -> Investment in Action (£Million) | R11: =K11&" - Manual Over-Ride of Investment in Actions" -> Investment in Action (£Million) - Manual Over-Ride of Investment in Actions | X11: Function shape (Curve or Straight) | Y11: Maximum Benefit | Z11: Fixed Costs | AA11: Confidence | AB11: Show Graph? | AC11: Variables for Curved Function | AF11: Variables for Straight Line Function | AH11: Proportion of Baseline Investment | AM11: Benefit Multiplier
B12: =Settings!D32 -> Scenario 4 | E12: 0 | F12: 0 | G12: 0 | H12: 0 | I12: 0 | K12: Base Investment | L12: =B9 -> Scenario 1 | M12: =B10 -> Scenario 2 | N12: =B11 -> Scenario 3 | O12: =B12 -> Scenario 4 | P12: =B13 -> Scenario 5 | R12: =L12 -> Scenario 1 | S12: =M12 -> Scenario 2 | T12: =N12 -> Scenario 3 | U12: =O12 -> Scenario 4 | V12: =P12 -> Scenario 5 | AH12: =AM12 -> Scenario 1 | AI12: =AN12 -> Scenario 2 | AJ12: =AO12 -> Scenario 3 | AK12: =AP12 -> Scenario 4 | AL12: =AQ12 -> Scenario 5 | AM12: =L12 -> Scenario 1 | AN12: =M12 -> Scenario 2 | AO12: =N12 -> Scenario 3 | AP12: =O12 -> Scenario 4 | AQ12: =P12 -> Scenario 5
B13: =Settings!D33 -> Scenario 5 | E13: 0 | F13: 0 | G13: 0 | H13: 0 | I13: 0 | AC13: a | AD13: b | AE13: c | AF13: a | AG13: b
B14: Detection, forecasting & warning | E14: Note: each column below should add up to 1
B15: Investment in detection, forecasting and warning to increase the quality & coverage | C15: WS | D15: All | E15: 0.5 | F15: 0 | G15: 0 | H15: 0.1 | I15: 0.2 | K15: =SUMPRODUCT(E8:I8*E15:I15) -> 7.9 | L15: =IF($AY$19=1,$E$9*$E15+$F$9*$F15+$G$9*$G15+$H$9*$H15+$I$9*$I15,IF(R15="",$E$9*$E15+$F$9*$F15+$G$9*$G15+$H$9*$H15+$I$9*$I15,R15)) -> 15.8 | M15: =IF($AY$19=1,$E$10*$E15+$F$10*$F15+$G$10*$G15+$H$10*$H15+$I$10*$I15,IF(S15="",$E$10*$E15+$F$10*$F15+$G$10*$G15+$H$10*$H15+$I$10*$I15,S15)) -> 3.95 | N15: =IF($AY$19=1,$E$11*$E15+$F$11*$F15+$G$11*$G15+$H$11*$H15+$I$11*$I15,IF(T15="",$E$11*$E15+$F$11*$F15+$G$11*$G15+$H$11*$H15+$I$11*$I15,T15)) -> 0 | O15: =IF($AY$19=1,$E$12*$E15+$F$12*$F15+$G$12*$G15+$H$12*$H15+$I$12*$I15,IF(U15="",$E$12*$E15+$F$12*$F15+$G$12*$G15+$H$12*$H15+$I$12*$I15,U15)) -> 0 | P15: =IF($AY$19=1,$E$13*$E15+$F$13*$F15+$G$13*$G15+$H$13*$H15+$I$13*$I15,IF(V15="",$E$13*$E15+$F$13*$F15+$G$13*$G15+$H$13*$H15+$I$13*$I15,V15)) -> 0 | R15: 6 | S15: 8.2 | T15: 14 | U15: 0 | V15: 0 | X15: Curve | Y15: =ROUND(0.72/'Res Inputs'!N50,2) -> 2.4 | Z15: 0.1 | AA15: 5 | AB15: Yes | AC15: =IF(OR(Z15="",Y15="", Y15=0),"",(-((1/Y15)-1))^(1/(Z15-1))) -> 1.820088272 | AD15: =IF(OR(Z15="",Y15="", Y15=0),"",-Y15/(AC15^(-Z15))) -> -2.54812358 | AE15: =IF(OR(Z15="",Y15="", Y15=0),"",Y15) -> 2.4 | AF15: =IF(OR(Z15="",Y15="", Y15=0),"",-1/(Z15-1)) -> 1.111111111 | AG15: =IF(OR(Z15="",Y15="", Y15=0),"",1-AF15) -> -0.1111111111 | AH15: =IF(OR($Y15="",$Y15=0,L15=0),"",L15/$K15) -> 2 | AI15: =IF(OR($Y15="",$Y15=0,M15=0),"",M15/$K15) -> 0.5 | AJ15: =IF(OR($Y15="",$Y15=0,N15=0),"",N15/$K15) ->  | AK15: =IF(OR($Y15="",$Y15=0,O15=0),"",O15/$K15) ->  | AL15: =IF(OR($Y15="",$Y15=0,P15=0),"",P15/$K15) ->  | AM15: =IF(OR($Y15="",$Y15=0,L15=0),"",IF($X15="Curve",IF(($AD15*$AC15^(-AH15)+$Y15)<0,0,$AD15*$AC15^(-AH15)+$Y15),IF(AH15<$Z15,0,IF(($AF15*AH15+$AG15)>$Y15,$Y15,$AF15*AH15+$AG15)))) -> 1.630806537 | AN15: =IF(OR($Y15="",$Y15=0,M15=0),"",IF($X15="Curve",IF(($AD15*$AC15^(-AI15)+$Y15)<0,0,$AD15*$AC15^(-AI15)+$Y15),IF(AI15<$Z15,0,IF(($AF15*AI15+$AG15)>$Y15,$Y15,$AF15*AI15+$AG15)))) -> 0.5112509398 | AO15: =IF(OR($Y15="",$Y15=0,N15=0),"",IF($X15="Curve",IF(($AD15*$AC15^(-AJ15)+$Y15)<0,0,$AD15*$AC15^(-AJ15)+$Y15),IF(AJ15<$Z15,0,IF(($AF15*AJ15+$AG15)>$Y15,$Y15,$AF15*AJ15+$AG15)))) ->  | AP15: =IF(OR($Y15="",$Y15=0,O15=0),"",IF($X15="Curve",IF(($AD15*$AC15^(-AK15)+$Y15)<0,0,$AD15*$AC15^(-AK15)+$Y15),IF(AK15<$Z15,0,IF(($AF15*AK15+$AG15)>$Y15,$Y15,$AF15*AK15+$AG15)))) ->  | AQ15: =IF(OR($Y15="",$Y15=0,P15=0),"",IF($X15="Curve",IF(($AD15*$AC15^(-AL15)+$Y15)<0,0,$AD15*$AC15^(-AL15)+$Y15),IF(AL15<$Z15,0,IF(($AF15*AL15+$AG15)>$Y15,$Y15,$AF15*AL15+$AG15)))) -> 
B16: Investment in detection, forecasting and warning to change the distribution of properties in the flood warning lead time categories | C16: OP | D16: Dist | E16: 0.3 | F16: 0 | G16: 0 | H16: 0.1 | I16: 0.1 | K16: =$E$8*E16+$F$8*F16+$G$8*G16+$H$8*H16+$I$8*I16 -> 5.1 | L16: =IF($AY$19=1,$E$9*$E16+$F$9*$F16+$G$9*$G16+$H$9*$H16+$I$9*$I16,IF(R16="",$E$9*$E16+$F$9*$F16+$G$9*$G16+$H$9*$H16+$I$9*$I16,R16)) -> 10.2 | M16: =IF($AY$19=1,$E$10*$E16+$F$10*$F16+$G$10*$G16+$H$10*$H16+$I$10*$I16,IF(S16="",$E$10*$E16+$F$10*$F16+$G$10*$G16+$H$10*$H16+$I$10*$I16,S16)) -> 2.55 | N16: =IF($AY$19=1,$E$11*$E16+$F$11*$F16+$G$11*$G16+$H$11*$H16+$I$11*$I16,IF(T16="",$E$11*$E16+$F$11*$F16+$G$11*$G16+$H$11*$H16+$I$11*$I16,T16)) -> 0 | O16: =IF($AY$19=1,$E$12*$E16+$F$12*$F16+$G$12*$G16+$H$12*$H16+$I$12*$I16,IF(U16="",$E$12*$E16+$F$12*$F16+$G$12*$G16+$H$12*$H16+$I$12*$I16,U16)) -> 0 | P16: =IF($AY$19=1,$E$13*$E16+$F$13*$F16+$G$13*$G16+$H$13*$H16+$I$13*$I16,IF(V16="",$E$13*$E16+$F$13*$F16+$G$13*$G16+$H$13*$H16+$I$13*$I16,V16)) -> 0 | X16: See "Modified %OP" sheet to determine how the distribution of properties in flood warning lead time categories changes with investment levels | AH16: =IF(L16=0,"",L16/$K16) -> 2 | AI16: =IF(M16=0,"",M16/$K16) -> 0.5 | AJ16: =IF(N16=0,"",N16/$K16) ->  | AK16: =IF(O16=0,"",O16/$K16) ->  | AL16: =IF(P16=0,"",P16/$K16) ->  | AM16: =IF($Y16="","",IF($X16="Curve",IF(($AD16*$AC16^(-AH16)+$Y16)<0,0,$AD16*$AC16^(-AH16)+$Y16),IF(AH16<$Z16,0,IF(($AF16*AH16+$AG16)>$Y16,$Y16,$AF16*AH16+$AG16)))) -> 
G17: 1 | K17: =$E$8*E17+$F$8*F17+$G$8*G17+$H$8*H17+$I$8*I17 -> 14 | L17: =IF($AY$19=1,$E$9*$E17+$F$9*$F17+$G$9*$G17+$H$9*$H17+$I$9*$I17,IF(R17="",$E$9*$E17+$F$9*$F17+$G$9*$G17+$H$9*$H17+$I$9*$I17,R17)) -> 28 | M17: =IF($AY$19=1,$E$10*$E17+$F$10*$F17+$G$10*$G17+$H$10*$H17+$I$10*$I17,IF(S17="",$E$10*$E17+$F$10*$F17+$G$10*$G17+$H$10*$H17+$I$10*$I17,S17)) -> 7 | N17: =IF($AY$19=1,$E$11*$E17+$F$11*$F17+$G$11*$G17+$H$11*$H17+$I$11*$I17,IF(T17="",$E$11*$E17+$F$11*$F17+$G$11*$G17+$H$11*$H17+$I$11*$I17,T17)) -> 0 | O17: =IF($AY$19=1,$E$12*$E17+$F$12*$F17+$G$12*$G17+$H$12*$H17+$I$12*$I17,IF(U17="",$E$12*$E17+$F$12*$F17+$G$12*$G17+$H$12*$H17+$I$12*$I17,U17)) -> 0 | P17: =IF($AY$19=1,$E$13*$E17+$F$13*$F17+$G$13*$G17+$H$13*$H17+$I$13*$I17,IF(V17="",$E$13*$E17+$F$13*$F17+$G$13*$G17+$H$13*$H17+$I$13*$I17,V17)) -> 0 | X17: Curve | Y17: 0 | Z17: 0 | AA17: 5 | AB17: No | AC17: =IF(OR(Z17="",Y17="", Y17=0),"",(-((1/Y17)-1))^(1/(Z17-1))) ->  | AD17: =IF(OR(Z17="",Y17="", Y17=0),"",-Y17/(AC17^(-Z17))) ->  | AE17: =IF(OR(Z17="",Y17="", Y17=0),"",Y17) ->  | AF17: =IF(OR(Z17="",Y17="", Y17=0),"",-1/(Z17-1)) ->  | AG17: =IF(OR(Z17="",Y17="", Y17=0),"",1-AF17) ->  | AH17: =IF(OR($Y17="",$Y17=0,L17=0),"",L17/$K17) ->  | AM17: =IF(OR($Y17="",$Y17=0,L17=0),"",IF($X17="Curve",IF(($AD17*$AC17^(-AH17)+$Y17)<0,0,$AD17*$AC17^(-AH17)+$Y17),IF(AH17<$Z17,0,IF(($AF17*AH17+$AG17)>$Y17,$Y17,$AF17*AH17+$AG17)))) ->  | AX17: =AY17 -> Maintain Proportions | AY17: Maintain Proportions
K18: =$E$8*E18+$F$8*F18+$G$8*G18+$H$8*H18+$I$8*I18 -> 0 | L18: =IF($AY$19=1,$E$9*$E18+$F$9*$F18+$G$9*$G18+$H$9*$H18+$I$9*$I18,IF(R18="",$E$9*$E18+$F$9*$F18+$G$9*$G18+$H$9*$H18+$I$9*$I18,R18)) -> 0 | M18: =IF($AY$19=1,$E$10*$E18+$F$10*$F18+$G$10*$G18+$H$10*$H18+$I$10*$I18,IF(S18="",$E$10*$E18+$F$10*$F18+$G$10*$G18+$H$10*$H18+$I$10*$I18,S18)) -> 0 | N18: =IF($AY$19=1,$E$11*$E18+$F$11*$F18+$G$11*$G18+$H$11*$H18+$I$11*$I18,IF(T18="",$E$11*$E18+$F$11*$F18+$G$11*$G18+$H$11*$H18+$I$11*$I18,T18)) -> 0 | O18: =IF($AY$19=1,$E$12*$E18+$F$12*$F18+$G$12*$G18+$H$12*$H18+$I$12*$I18,IF(U18="",$E$12*$E18+$F$12*$F18+$G$12*$G18+$H$12*$H18+$I$12*$I18,U18)) -> 0 | P18: =IF($AY$19=1,$E$13*$E18+$F$13*$F18+$G$13*$G18+$H$13*$H18+$I$13*$I18,IF(V18="",$E$13*$E18+$F$13*$F18+$G$13*$G18+$H$13*$H18+$I$13*$I18,V18)) -> 0 | X18: Curve | Y18: 0 | Z18: 0 | AA18: 5 | AB18: No | AC18: =IF(OR(Z18="",Y18="", Y18=0),"",(-((1/Y18)-1))^(1/(Z18-1))) ->  | AD18: =IF(OR(Z18="",Y18="", Y18=0),"",-Y18/(AC18^(-Z18))) ->  | AE18: =IF(OR(Z18="",Y18="", Y18=0),"",Y18) ->  | AF18: =IF(OR(Z18="",Y18="", Y18=0),"",-1/(Z18-1)) ->  | AG18: =IF(OR(Z18="",Y18="", Y18=0),"",1-AF18) ->  | AX18: =AY18 -> Use Over-Ride | AY18: Use Over-Ride
B19: Emergency planning & exercising | AB19: No | AX19: 1 | AY19: 1
B20: Investment in the dissemination of warnings to professional partners | C20: WS | D20: All Assets | E20: 0 | F20: 0 | G20: 0 | H20: 0.1 | I20: 0.1 | K20: =$E$8*E20+$F$8*F20+$G$8*G20+$H$8*H20+$I$8*I20 -> 2.4 | L20: =IF($AY$19=1,$E$9*$E20+$F$9*$F20+$G$9*$G20+$H$9*$H20+$I$9*$I20,IF(R20="",$E$9*$E20+$F$9*$F20+$G$9*$G20+$H$9*$H20+$I$9*$I20,R20)) -> 4.8 | M20: =IF($AY$19=1,$E$10*$E20+$F$10*$F20+$G$10*$G20+$H$10*$H20+$I$10*$I20,IF(S20="",$E$10*$E20+$F$10*$F20+$G$10*$G20+$H$10*$H20+$I$10*$I20,S20)) -> 1.2 | N20: =IF($AY$19=1,$E$11*$E20+$F$11*$F20+$G$11*$G20+$H$11*$H20+$I$11*$I20,IF(T20="",$E$11*$E20+$F$11*$F20+$G$11*$G20+$H$11*$H20+$I$11*$I20,T20)) -> 0 | O20: =IF($AY$19=1,$E$12*$E20+$F$12*$F20+$G$12*$G20+$H$12*$H20+$I$12*$I20,IF(U20="",$E$12*$E20+$F$12*$F20+$G$12*$G20+$H$12*$H20+$I$12*$I20,U20)) -> 0 | P20: =IF($AY$19=1,$E$13*$E20+$F$13*$F20+$G$13*$G20+$H$13*$H20+$I$13*$I20,IF(V20="",$E$13*$E20+$F$13*$F20+$G$13*$G20+$H$13*$H20+$I$13*$I20,V20)) -> 0 | X20: Curve | Y20: 1.01 | Z20: 0.5 | AA20: 5 | AB20: No | AC20: =IF(OR(Z20="",Y20="", Y20=0),"",(-((1/Y20)-1))^(1/(Z20-1))) -> 10201 | AD20: =IF(OR(Z20="",Y20="", Y20=0),"",-Y20/(AC20^(-Z20))) -> -102.01 | AE20: =IF(OR(Z20="",Y20="", Y20=0),"",Y20) -> 1.01 | AF20: =IF(OR(Z20="",Y20="", Y20=0),"",-1/(Z20-1)) -> 2 | AG20: =IF(OR(Z20="",Y20="", Y20=0),"",1-AF20) -> -1 | AH20: =IF(OR($Y20="",$Y20=0,L20=0),"",L20/$K20) -> 2 | AI20: 0.5 | AM20: =IF(OR($Y20="",$Y20=0,L20=0),"",IF($X20="Curve",IF(($AD20*$AC20^(-AH20)+$Y20)<0,0,$AD20*$AC20^(-AH20)+$Y20),IF(AH20<$Z20,0,IF(($AF20*AH20+$AG20)>$Y20,$Y20,$AF20*AH20+$AG20)))) -> 1.00999902 | AN20: 0 | AX20: 0
B21: Investment in emergency planning & exercising to improve the operation of non-asset and asset measures | C21: OP | D21: WCM | E21: 0.2 | F21: 0.35 | G21: 0 | H21: 0.2 | I21: 0.1 | K21: =$E$8*E21+$F$8*F21+$G$8*G21+$H$8*H21+$I$8*I21 -> 14.7 | L21: =IF($AY$19=1,$E$9*$E21+$F$9*$F21+$G$9*$G21+$H$9*$H21+$I$9*$I21,IF(R21="",$E$9*$E21+$F$9*$F21+$G$9*$G21+$H$9*$H21+$I$9*$I21,R21)) -> 29.4 | M21: =IF($AY$19=1,$E$10*$E21+$F$10*$F21+$G$10*$G21+$H$10*$H21+$I$10*$I21,IF(S21="",$E$10*$E21+$F$10*$F21+$G$10*$G21+$H$10*$H21+$I$10*$I21,S21)) -> 7.35 | N21: =IF($AY$19=1,$E$11*$E21+$F$11*$F21+$G$11*$G21+$H$11*$H21+$I$11*$I21,IF(T21="",$E$11*$E21+$F$11*$F21+$G$11*$G21+$H$11*$H21+$I$11*$I21,T21)) -> 0 | O21: =IF($AY$19=1,$E$12*$E21+$F$12*$F21+$G$12*$G21+$H$12*$H21+$I$12*$I21,IF(U21="",$E$12*$E21+$F$12*$F21+$G$12*$G21+$H$12*$H21+$I$12*$I21,U21)) -> 0 | P21: =IF($AY$19=1,$E$13*$E21+$F$13*$F21+$G$13*$G21+$H$13*$H21+$I$13*$I21,IF(V21="",$E$13*$E21+$F$13*$F21+$G$13*$G21+$H$13*$H21+$I$13*$I21,V21)) -> 0 | X21: Curve | Y21: 1.01 | Z21: 0 | AA21: 5 | AB21: No | AC21: 101 | AD21: -1.01 | AE21: 1.01 | AF21: 1 | AG21: 0 | AH21: 2 | AI21: 0.5 | AM21: 1.00990099 | AN21: 0.9095012438 | AX21: thousand | AY21: thousand | AZ21: 1000
C22: OP | D22: CBO | X22: Curve | Y22: 1.01 | Z22: 0 | AA22: 5 | AB22: No | AC22: 101 | AD22: -1.01 | AE22: 1.01 | AF22: 1 | AG22: 0 | AX22: million | AY22: million | AZ22: 1000000
C23: OP | D23: FDO | X23: Curve | Y23: 1.01 | Z23: 0 | AA23: 5 | AB23: No | AC23: 101 | AD23: -1.01 | AE23: 1.01 | AF23: 1 | AG23: 0 | AX23: billion | AY23: billion | AZ23: 1000000000
K24: =$E$8*E24+$F$8*F24+$G$8*G24+$H$8*H24+$I$8*I24 -> 0 | L24: =IF($AY$19=1,$E$9*$E24+$F$9*$F24+$G$9*$G24+$H$9*$H24+$I$9*$I24,IF(R24="",$E$9*$E24+$F$9*$F24+$G$9*$G24+$H$9*$H24+$I$9*$I24,R24)) -> 0 | M24: =IF($AY$19=1,$E$10*$E24+$F$10*$F24+$G$10*$G24+$H$10*$H24+$I$10*$I24,IF(S24="",$E$10*$E24+$F$10*$F24+$G$10*$G24+$H$10*$H24+$I$10*$I24,S24)) -> 0 | N24: =IF($AY$19=1,$E$11*$E24+$F$11*$F24+$G$11*$G24+$H$11*$H24+$I$11*$I24,IF(T24="",$E$11*$E24+$F$11*$F24+$G$11*$G24+$H$11*$H24+$I$11*$I24,T24)) -> 0 | O24: =IF($AY$19=1,$E$12*$E24+$F$12*$F24+$G$12*$G24+$H$12*$H24+$I$12*$I24,IF(U24="",$E$12*$E24+$F$12*$F24+$G$12*$G24+$H$12*$H24+$I$12*$I24,U24)) -> 0 | P24: =IF($AY$19=1,$E$13*$E24+$F$13*$F24+$G$13*$G24+$H$13*$H24+$I$13*$I24,IF(V24="",$E$13*$E24+$F$13*$F24+$G$13*$G24+$H$13*$H24+$I$13*$I24,V24)) -> 0 | X24: Curve | AB24: No | AX24: 0
K25: =$E$8*E25+$F$8*F25+$G$8*G25+$H$8*H25+$I$8*I25 -> 0 | L25: =IF($AY$19=1,$E$9*$E25+$F$9*$F25+$G$9*$G25+$H$9*$H25+$I$9*$I25,IF(R25="",$E$9*$E25+$F$9*$F25+$G$9*$G25+$H$9*$H25+$I$9*$I25,R25)) -> 0 | M25: =IF($AY$19=1,$E$10*$E25+$F$10*$F25+$G$10*$G25+$H$10*$H25+$I$10*$I25,IF(S25="",$E$10*$E25+$F$10*$F25+$G$10*$G25+$H$10*$H25+$I$10*$I25,S25)) -> 0 | N25: =IF($AY$19=1,$E$11*$E25+$F$11*$F25+$G$11*$G25+$H$11*$H25+$I$11*$I25,IF(T25="",$E$11*$E25+$F$11*$F25+$G$11*$G25+$H$11*$H25+$I$11*$I25,T25)) -> 0 | O25: =IF($AY$19=1,$E$12*$E25+$F$12*$F25+$G$12*$G25+$H$12*$H25+$I$12*$I25,IF(U25="",$E$12*$E25+$F$12*$F25+$G$12*$G25+$H$12*$H25+$I$12*$I25,U25)) -> 0 | P25: =IF($AY$19=1,$E$13*$E25+$F$13*$F25+$G$13*$G25+$H$13*$H25+$I$13*$I25,IF(V25="",$E$13*$E25+$F$13*$F25+$G$13*$G25+$H$13*$H25+$I$13*$I25,V25)) -> 0 | X25: Curve | AB25: No | AX25: 0
B26: Working with communities | AB26: No | AX26: 0
B27: Investment in education to change the % of property-level measures operated | C27: OP | D27: WDR | E27: 0 | F27: 0.15 | G27: 0 | H27: 0.1 | I27: 0.1 | K27: =$E$8*E27+$F$8*F27+$G$8*G27+$H$8*H27+$I$8*I27 -> 6.3 | L27: =IF($AY$19=1,$E$9*$E27+$F$9*$F27+$G$9*$G27+$H$9*$H27+$I$9*$I27,IF(R27="",$E$9*$E27+$F$9*$F27+$G$9*$G27+$H$9*$H27+$I$9*$I27,R27)) -> 12.6 | M27: =IF($AY$19=1,$E$10*$E27+$F$10*$F27+$G$10*$G27+$H$10*$H27+$I$10*$I27,IF(S27="",$E$10*$E27+$F$10*$F27+$G$10*$G27+$H$10*$H27+$I$10*$I27,S27)) -> 3.15 | N27: =IF($AY$19=1,$E$11*$E27+$F$11*$F27+$G$11*$G27+$H$11*$H27+$I$11*$I27,IF(T27="",$E$11*$E27+$F$11*$F27+$G$11*$G27+$H$11*$H27+$I$11*$I27,T27)) -> 0 | O27: =IF($AY$19=1,$E$12*$E27+$F$12*$F27+$G$12*$G27+$H$12*$H27+$I$12*$I27,IF(U27="",$E$12*$E27+$F$12*$F27+$G$12*$G27+$H$12*$H27+$I$12*$I27,U27)) -> 0 | P27: =IF($AY$19=1,$E$13*$E27+$F$13*$F27+$G$13*$G27+$H$13*$H27+$I$13*$I27,IF(V27="",$E$13*$E27+$F$13*$F27+$G$13*$G27+$H$13*$H27+$I$13*$I27,V27)) -> 0 | X27: Curve | Y27: =ROUNDDOWN(1/'Res Inputs'!N24,1) -> 1 | Z27: 0 | AA27: 5 | AB27: No | AC27: =IF(OR(Z27="",Y27="", Y27=0),"",(-((1/Y27)-1))^(1/(Z27-1))) ->  | AD27: =IF(OR(Z27="",Y27="", Y27=0),"",-Y27/(AC27^(-Z27))) ->  | AE27: =IF(OR(Z27="",Y27="", Y27=0),"",Y27) -> 1 | AF27: =IF(OR(Z27="",Y27="", Y27=0),"",-1/(Z27-1)) -> 1 | AG27: =IF(OR(Z27="",Y27="", Y27=0),"",1-AF27) -> 0 | AH27: =IF(OR($Y27="",$Y27=0,L27=0),"",L27/$K27) -> 2 | AI27: =IF(OR($Y27="",$Y27=0,M27=0),"",M27/$K27) -> 0.5 | AJ27: =IF(OR($Y27="",$Y27=0,N27=0),"",N27/$K27) ->  | AK27: =IF(OR($Y27="",$Y27=0,O27=0),"",O27/$K27) ->  | AL27: =IF(OR($Y27="",$Y27=0,P27=0),"",P27/$K27) ->  | AM27: =IF(OR($Y27="",$Y27=0,L27=0),"",IF($X27="Curve",IF(($AD27*$AC27^(-AH27)+$Y27)<0,0,$AD27*$AC27^(-AH27)+$Y27),IF(AH27<$Z27,0,IF(($AF27*AH27+$AG27)>$Y27,$Y27,$AF27*AH27+$AG27)))) ->  | AX27: Low | AY27: Low
C28: OP | D28: CME | X28: Curve | Y28: =ROUNDDOWN(1/'Res Inputs'!N27,1) -> 1.3 | Z28: 0 | AA28: 5 | AB28: No | AC28: =IF(OR(Z28="",Y28="", Y28=0),"",(-((1/Y28)-1))^(1/(Z28-1))) -> 4.333333333 | AD28: =IF(OR(Z28="",Y28="", Y28=0),"",-Y28/(AC28^(-Z28))) -> -1.3 | AE28: =IF(OR(Z28="",Y28="", Y28=0),"",Y28) -> 1.3 | AF28: =IF(OR(Z28="",Y28="", Y28=0),"",-1/(Z28-1)) -> 1 | AG28: =IF(OR(Z28="",Y28="", Y28=0),"",1-AF28) -> 0 | AH28: =IF(OR($Y28="",$Y28=0,L28=0),"",L28/$K28) ->  | AI28: =IF(OR($Y28="",$Y28=0,M28=0),"",M28/$K28) ->  | AJ28: =IF(OR($Y28="",$Y28=0,N28=0),"",N28/$K28) ->  | AK28: =IF(OR($Y28="",$Y28=0,O28=0),"",O28/$K28) ->  | AL28: =IF(OR($Y28="",$Y28=0,P28=0),"",P28/$K28) ->  | AX28: Medium | AY28: Medium
B29: Investment in higher education levels to change the uptake of property-level measures | C29: UP | D29: RST | E29: 0 | F29: 0.15 | G29: 0 | H29: 0.1 | I29: 0.1 | K29: =$E$8*E29+$F$8*F29+$G$8*G29+$H$8*H29+$I$8*I29 -> 6.3 | L29: =IF($AY$19=1,$E$9*$E29+$F$9*$F29+$G$9*$G29+$H$9*$H29+$I$9*$I29,IF(R29="",$E$9*$E29+$F$9*$F29+$G$9*$G29+$H$9*$H29+$I$9*$I29,R29)) -> 12.6 | M29: =IF($AY$19=1,$E$10*$E29+$F$10*$F29+$G$10*$G29+$H$10*$H29+$I$10*$I29,IF(S29="",$E$10*$E29+$F$10*$F29+$G$10*$G29+$H$10*$H29+$I$10*$I29,S29)) -> 3.15 | N29: =IF($AY$19=1,$E$11*$E29+$F$11*$F29+$G$11*$G29+$H$11*$H29+$I$11*$I29,IF(T29="",$E$11*$E29+$F$11*$F29+$G$11*$G29+$H$11*$H29+$I$11*$I29,T29)) -> 0 | O29: =IF($AY$19=1,$E$12*$E29+$F$12*$F29+$G$12*$G29+$H$12*$H29+$I$12*$I29,IF(U29="",$E$12*$E29+$F$12*$F29+$G$12*$G29+$H$12*$H29+$I$12*$I29,U29)) -> 0 | P29: =IF($AY$19=1,$E$13*$E29+$F$13*$F29+$G$13*$G29+$H$13*$H29+$I$13*$I29,IF(V29="",$E$13*$E29+$F$13*$F29+$G$13*$G29+$H$13*$H29+$I$13*$I29,V29)) -> 0 | X29: Curve | Y29: =0.5/'Res Inputs'!N10 -> 15.625 | Z29: 0 | AA29: 5 | AB29: No | AC29: 1.068376068 | AD29: -15.625 | AE29: 15.625 | AF29: 1 | AG29: 0 | AH29: 2 | AI29: 0.5 | AM29: 1.936 | AN29: 0.5082667219 | AX29: High | AY29: High
C30: UP | D30: RSL | X30: Curve | Y30: =0.5/'Res Inputs'!N16 -> 25 | Z30: 0 | AA30: 5 | AB30: No | AC30: 1.041666667 | AD30: -25 | AE30: 25 | AF30: 1 | AG30: 0 | AX30: 0
E31: 0 | F31: 0.15 | G31: 0 | H31: 0.1 | I31: 0.1 | K31: =$E$8*E31+$F$8*F31+$G$8*G31+$H$8*H31+$I$8*I31 -> 6.3 | L31: =IF($AY$19=1,$E$9*$E31+$F$9*$F31+$G$9*$G31+$H$9*$H31+$I$9*$I31,IF(R31="",$E$9*$E31+$F$9*$F31+$G$9*$G31+$H$9*$H31+$I$9*$I31,R31)) -> 12.6 | M31: =IF($AY$19=1,$E$10*$E31+$F$10*$F31+$G$10*$G31+$H$10*$H31+$I$10*$I31,IF(S31="",$E$10*$E31+$F$10*$F31+$G$10*$G31+$H$10*$H31+$I$10*$I31,S31)) -> 3.15 | N31: =IF($AY$19=1,$E$11*$E31+$F$11*$F31+$G$11*$G31+$H$11*$H31+$I$11*$I31,IF(T31="",$E$11*$E31+$F$11*$F31+$G$11*$G31+$H$11*$H31+$I$11*$I31,T31)) -> 0 | O31: =IF($AY$19=1,$E$12*$E31+$F$12*$F31+$G$12*$G31+$H$12*$H31+$I$12*$I31,IF(U31="",$E$12*$E31+$F$12*$F31+$G$12*$G31+$H$12*$H31+$I$12*$I31,U31)) -> 0 | P31: =IF($AY$19=1,$E$13*$E31+$F$13*$F31+$G$13*$G31+$H$13*$H31+$I$13*$I31,IF(V31="",$E$13*$E31+$F$13*$F31+$G$13*$G31+$H$13*$H31+$I$13*$I31,V31)) -> 0 | X31: Curve | Y31: 0 | Z31: 0 | AB31: No | AX31: Highlight drop-downs? | AY31: Highlight drop-downs?
K32: =$E$8*E32+$F$8*F32+$G$8*G32+$H$8*H32+$I$8*I32 -> 0 | L32: =IF($AY$19=1,$E$9*$E32+$F$9*$F32+$G$9*$G32+$H$9*$H32+$I$9*$I32,IF(R32="",$E$9*$E32+$F$9*$F32+$G$9*$G32+$H$9*$H32+$I$9*$I32,R32)) -> 0 | M32: =IF($AY$19=1,$E$10*$E32+$F$10*$F32+$G$10*$G32+$H$10*$H32+$I$10*$I32,IF(S32="",$E$10*$E32+$F$10*$F32+$G$10*$G32+$H$10*$H32+$I$10*$I32,S32)) -> 0 | N32: =IF($AY$19=1,$E$11*$E32+$F$11*$F32+$G$11*$G32+$H$11*$H32+$I$11*$I32,IF(T32="",$E$11*$E32+$F$11*$F32+$G$11*$G32+$H$11*$H32+$I$11*$I32,T32)) -> 0 | O32: =IF($AY$19=1,$E$12*$E32+$F$12*$F32+$G$12*$G32+$H$12*$H32+$I$12*$I32,IF(U32="",$E$12*$E32+$F$12*$F32+$G$12*$G32+$H$12*$H32+$I$12*$I32,U32)) -> 0 | P32: =IF($AY$19=1,$E$13*$E32+$F$13*$F32+$G$13*$G32+$H$13*$H32+$I$13*$I32,IF(V32="",$E$13*$E32+$F$13*$F32+$G$13*$G32+$H$13*$H32+$I$13*$I32,V32)) -> 0 | X32: Curve | AB32: No | AX32: No | AY32: ='Res Inputs'!X85 -> No
K33: =$E$8*E33+$F$8*F33+$G$8*G33+$H$8*H33+$I$8*I33 -> 0 | L33: =IF($AY$19=1,$E$9*$E33+$F$9*$F33+$G$9*$G33+$H$9*$H33+$I$9*$I33,IF(R33="",$E$9*$E33+$F$9*$F33+$G$9*$G33+$H$9*$H33+$I$9*$I33,R33)) -> 0 | M33: =IF($AY$19=1,$E$10*$E33+$F$10*$F33+$G$10*$G33+$H$10*$H33+$I$10*$I33,IF(S33="",$E$10*$E33+$F$10*$F33+$G$10*$G33+$H$10*$H33+$I$10*$I33,S33)) -> 0 | N33: =IF($AY$19=1,$E$11*$E33+$F$11*$F33+$G$11*$G33+$H$11*$H33+$I$11*$I33,IF(T33="",$E$11*$E33+$F$11*$F33+$G$11*$G33+$H$11*$H33+$I$11*$I33,T33)) -> 0 | O33: =IF($AY$19=1,$E$12*$E33+$F$12*$F33+$G$12*$G33+$H$12*$H33+$I$12*$I33,IF(U33="",$E$12*$E33+$F$12*$F33+$G$12*$G33+$H$12*$H33+$I$12*$I33,U33)) -> 0 | P33: =IF($AY$19=1,$E$13*$E33+$F$13*$F33+$G$13*$G33+$H$13*$H33+$I$13*$I33,IF(V33="",$E$13*$E33+$F$13*$F33+$G$13*$G33+$H$13*$H33+$I$13*$I33,V33)) -> 0 | X33: Curve | AB33: No
B34: Resistance & resilience | AB34: No
B35: Investment in resistance to change uptake levels | C35: UP | D35: RST | E35: 0 | F35: 0.1 | G35: 0 | H35: 0.1 | I35: 0.1 | K35: =$E$8*E35+$F$8*F35+$G$8*G35+$H$8*H35+$I$8*I35 -> 5 | L35: =IF($AY$19=1,$E$9*$E35+$F$9*$F35+$G$9*$G35+$H$9*$H35+$I$9*$I35,IF(R35="",$E$9*$E35+$F$9*$F35+$G$9*$G35+$H$9*$H35+$I$9*$I35,R35)) -> 10 | M35: =IF($AY$19=1,$E$10*$E35+$F$10*$F35+$G$10*$G35+$H$10*$H35+$I$10*$I35,IF(S35="",$E$10*$E35+$F$10*$F35+$G$10*$G35+$H$10*$H35+$I$10*$I35,S35)) -> 2.5 | N35: =IF($AY$19=1,$E$11*$E35+$F$11*$F35+$G$11*$G35+$H$11*$H35+$I$11*$I35,IF(T35="",$E$11*$E35+$F$11*$F35+$G$11*$G35+$H$11*$H35+$I$11*$I35,T35)) -> 0 | O35: =IF($AY$19=1,$E$12*$E35+$F$12*$F35+$G$12*$G35+$H$12*$H35+$I$12*$I35,IF(U35="",$E$12*$E35+$F$12*$F35+$G$12*$G35+$H$12*$H35+$I$12*$I35,U35)) -> 0 | P35: =IF($AY$19=1,$E$13*$E35+$F$13*$F35+$G$13*$G35+$H$13*$H35+$I$13*$I35,IF(V35="",$E$13*$E35+$F$13*$F35+$G$13*$G35+$H$13*$H35+$I$13*$I35,V35)) -> 0 | X35: Curve | Y35: =Y29 -> 15.625 | Z35: 0 | AA35: 5 | AB35: No | AC35: =IF(OR(Z35="",Y35="", Y35=0),"",(-((1/Y35)-1))^(1/(Z35-1))) -> 1.068376068 | AD35: =IF(OR(Z35="",Y35="", Y35=0),"",-Y35/(AC35^(-Z35))) -> -15.625 | AE35: =IF(OR(Z35="",Y35="", Y35=0),"",Y35) -> 15.625 | AF35: =IF(OR(Z35="",Y35="", Y35=0),"",-1/(Z35-1)) -> 1 | AG35: =IF(OR(Z35="",Y35="", Y35=0),"",1-AF35) -> 0 | AH35: =IF(OR($Y35="",$Y35=0,L35=0),"",L35/$K35) -> 2 | AI35: 0.5 | AM35: =IF(OR($Y35="",$Y35=0,L35=0),"",IF($X35="Curve",IF(($AD35*$AC35^(-AH35)+$Y35)<0,0,$AD35*$AC35^(-AH35)+$Y35),IF(AH35<$Z35,0,IF(($AF35*AH35+$AG35)>$Y35,$Y35,$AF35*AH35+$AG35)))) -> 1.936 | AN35: 0.5082667219
B36: Investment in resilience to change uptake levels | C36: UP | D36: RSL | E36: 0 | F36: 0.1 | G36: 0 | H36: 0.1 | I36: 0.1 | K36: =$E$8*E36+$F$8*F36+$G$8*G36+$H$8*H36+$I$8*I36 -> 5 | L36: =IF($AY$19=1,$E$9*$E36+$F$9*$F36+$G$9*$G36+$H$9*$H36+$I$9*$I36,IF(R36="",$E$9*$E36+$F$9*$F36+$G$9*$G36+$H$9*$H36+$I$9*$I36,R36)) -> 10 | M36: =IF($AY$19=1,$E$10*$E36+$F$10*$F36+$G$10*$G36+$H$10*$H36+$I$10*$I36,IF(S36="",$E$10*$E36+$F$10*$F36+$G$10*$G36+$H$10*$H36+$I$10*$I36,S36)) -> 2.5 | N36: =IF($AY$19=1,$E$11*$E36+$F$11*$F36+$G$11*$G36+$H$11*$H36+$I$11*$I36,IF(T36="",$E$11*$E36+$F$11*$F36+$G$11*$G36+$H$11*$H36+$I$11*$I36,T36)) -> 0 | O36: =IF($AY$19=1,$E$12*$E36+$F$12*$F36+$G$12*$G36+$H$12*$H36+$I$12*$I36,IF(U36="",$E$12*$E36+$F$12*$F36+$G$12*$G36+$H$12*$H36+$I$12*$I36,U36)) -> 0 | P36: =IF($AY$19=1,$E$13*$E36+$F$13*$F36+$G$13*$G36+$H$13*$H36+$I$13*$I36,IF(V36="",$E$13*$E36+$F$13*$F36+$G$13*$G36+$H$13*$H36+$I$13*$I36,V36)) -> 0 | X36: Curve | Y36: =Y30 -> 25 | Z36: 0 | AA36: 5 | AB36: No | AC36: =IF(OR(Z36="",Y36="", Y36=0),"",(-((1/Y36)-1))^(1/(Z36-1))) -> 1.041666667 | AD36: =IF(OR(Z36="",Y36="", Y36=0),"",-Y36/(AC36^(-Z36))) -> -25 | AE36: =IF(OR(Z36="",Y36="", Y36=0),"",Y36) -> 25 | AF36: =IF(OR(Z36="",Y36="", Y36=0),"",-1/(Z36-1)) -> 1 | AG36: =IF(OR(Z36="",Y36="", Y36=0),"",1-AF36) -> 0 | AH36: 2 | AI36: 0.5 | AM36: 1.96 | AN36: 0.5051025722
X37: Curve | AB37: No
B38: Proportion of Funding Allocated: | E38: =SUM(E15:E37) -> 1 | F38: =SUM(F15:F37) -> 1 | G38: =SUM(G15:G37) -> 1 | H38: =SUM(H15:H37) -> 1 | I38: =SUM(I15:I37) -> 1
A39: ENDROW | H39: Total Funding Allocated: | K39: =SUM(K15:K36) -> 73 | L39: 146 | M39: 36.5 | N39: 0 | O39: 0 | P39: 0
Y40: ='Non-Res Inputs'!O79 -> 1 | AT40: Pathways
Y41: ='Non-Res Inputs'!O80 -> 2 | AB41: Low: | AC41: =COUNTIF(AA15:AA36,"=Low") -> 0 | AS41: Factors | AT41: =Settings!C73 -> UP | AU41: =Settings!C72 -> OP | AV41: =Settings!C71 -> PO | AW41: =Settings!C70 -> WS | AX41: Over-Ride
Y42: ='Non-Res Inputs'!O81 -> 3 | AB42: Medium: | AC42: =COUNTIF(AA15:AA36,"=Medium") -> 0 | AT42: All | AU42: Dist | AV42: All | AW42: All
Y43: ='Non-Res Inputs'!O82 -> 4 | AB43: High: | AC43: =COUNTIF(AA15:AA36,"=High") -> 0 | AT43: =Settings!C83 -> BDD | AU43: =Settings!C75 -> FDO | AV43: =AT44 -> RST | AW43: All Properties
Y44: ='Non-Res Inputs'!O83 -> 5 | AB44: No Data: | AC44: =11+(IF(Y17="",0,1)+IF(Y18="",0,1)+IF(Y24="",0,1)+IF(Y25="",0,1)+IF(Y32="",0,1)+IF(Y33="",0,1)+IF(Y36="",0,1)+IF(#REF!="",0,1))-SUM(AC41:AC43) ->  | AT44: =Settings!C78 -> RST | AU44: =Settings!C76 -> WCM | AV44: =AT45 -> WIR | AW44: Residential | AY44: Yes
AT45: =Settings!C79 -> WIR | AU45: =Settings!C77 -> CBO | AV45: =AT46 -> WDR | AW45: Non-Residential | AY45: No
AT46: =Settings!C80 -> WDR | AU46: =AT46 -> WDR | AV46: =AT47 -> RSL | AW46: All Assets
AT47: =Settings!C81 -> RSL | AU47: =Settings!C82 -> CME | AV47: =AU47 -> CME | AW47: =AU43 -> FDO
AT48: =AT44&"-RE" -> RST-RE | AU48: =AT50 -> WDR-RE | AV48: =AT48 -> RST-RE | AW48: =AU44 -> WCM
AT49: =AT45&"-RE" -> WIR-RE | AU49: =AU47&"-RE" -> CME-RE | AV49: =AT49 -> WIR-RE | AW49: =AU45 -> CBO | BC49: Investment Multiplier | BD49: Curved Function | BE49: Straight Function
AT50: =AT46&"-RE" -> WDR-RE | AU50: =AT54 -> WDR-NR | AV50: =AT50 -> WDR-RE | BC50: 0 | BD50: =IF(($BD$4*$BC$4^(-BC50)+$BE$4)<0,0,$BD$4*$BC$4^(-BC50)+$BE$4) -> 0 | BE50: =IF(BC50<$BI$4,0,IF(($BF$4*BC50+$BG$4)>$BH$4,$BH$4,$BF$4*BC50+$BG$4)) -> 0
AT51: =AT47&"-RE" -> RSL-RE | AU51: =AU47&"-NR" -> CME-NR | AV51: =AT51 -> RSL-RE | BC51: =BC50+0.1 -> 0.1 | BD51: 0 | BE51: -4.163336342e-17
AT52: =AT44&"-NR" -> RST-NR | AV52: =AU49 -> CME-RE | BC52: =BC51+0.1 -> 0.2 | BD52: 0.1485403771 | BE52: 0.1111111111
AT53: =AT45&"-NR" -> WIR-NR | AV53: =AT52 -> RST-NR | BC53: 0.3 | BD53: 0.2859931946 | BE53: 0.2222222222
AT54: =AT46&"-NR" -> WDR-NR | AV54: =AT53 -> WIR-NR | BC54: 0.4 | BD54: 0.4131860657 | BE54: 0.3333333333
AT55: =AT47&"-NR" -> RSL-NR | AV55: =AT54 -> WDR-NR | BC55: 0.5 | BD55: 0.5308848278 | BE55: 0.4444444444
AV56: =AT55 -> RSL-NR | BC56: 0.6 | BD56: 0.6397981534 | BE56: 0.5555555556
AV57: =AU51 -> CME-NR | BC57: 0.7 | BD57: 0.7405818174 | BE57: 0.6666666667
AV58: =AT43 -> BDD | BC58: 0.8 | BD58: 0.8338426456 | BE58: 0.7777777778
BC59: 0.9 | BD59: 0.9201421679 | BE59: 0.8888888889
BC60: 1 | BD60: 1 | BE60: 1
BC61: 1.1 | BD61: 1.073896972 | BE61: 1.111111111
BC62: 1.2 | BD62: 1.142278021 | BE62: 1.222222222
BC63: 1.3 | BD63: 1.205554877 | BE63: 1.333333333
BC64: 1.4 | BD64: 1.264108532 | BE64: 1.444444444
BC65: 1.5 | BD65: 1.318291544 | BE65: 1.555555556
BC66: 1.6 | BD66: 1.36843015 | BE66: 1.666666667
BC67: 1.7 | BD67: 1.414826241 | BE67: 1.777777778
BC68: 1.8 | BD68: 1.457759169 | BE68: 1.888888889
BC69: 1.9 | BD69: 1.497487437 | BE69: 1.99
BC70: 2 | BD70: 1.534250252 | BE70: 1.99
BC71: 2.1 | BD71: 1.568268965 | BE71: 1.99
BC72: 2.2 | BD72: 1.599748406 | BE72: 1.99
BC73: 2.3 | BD73: 1.628878114 | BE73: 1.99
BC74: 2.4 | BD74: 1.655833482 | BE74: 1.99
BC75: 2.5 | BD75: 1.680776808 | BE75: 1.99
BC76: 2.6 | BD76: 1.703858281 | BE76: 1.99
BC77: 2.7 | BD77: 1.725216873 | BE77: 1.99
BC78: 2.8 | BD78: 1.744981187 | BE78: 1.99
BC79: =BC78+0.1 -> 2.9 | BD79: 1.763270226 | BE79: =IF(BC79<$BI$4,0,IF(($BF$4*BC79+$BG$4)>$BH$4,$BH$4,$BF$4*BC79+$BG$4)) -> 1.99
BC80: 3 | BD80: 1.780194108 | BE80: 1.99
BC81: 3.1 | BD81: 1.795854735 | BE81: 1.99
BC82: 3.2 | BD82: 1.810346398 | BE82: 1.99
BC83: 3.3 | BD83: 1.823756355 | BE83: 1.99
BC84: 3.4 | BD84: 1.836165347 | BE84: 1.99
BC85: 3.5 | BD85: 1.847648089 | BE85: 1.99
BC86: 3.6 | BD86: 1.858273721 | BE86: 1.99
BC87: 3.7 | BD87: 1.868106219 | BE87: 1.99
BC88: 3.8 | BD88: 1.877204786 | BE88: 1.99
BC89: 3.9 | BD89: 1.885624205 | BE89: 1.99
BC90: 4 | BD90: 1.89341517 | BE90: 1.99

Sheet %OP
D3: ="Change in "&Settings!F72&" with investment" -> Change in %OP with investment | I3: Back: Investment | K3: Next: Modified Factors
A6: =Settings!C72 -> OP | C6: =Settings!E72 -> % Response Operated | E6: The percentage of measures operated in each flood warning lead-time category | M6: Baseline
A7: Working with Assets | L7: No. of categories: | M7: ='Assets Inputs'!N7 -> 3 | V7: 1
A8: Flood warning lead-time categories: | E8: =IF($M$7<COUNT($E$9:E9),0,'Assets Inputs'!F8) -> 0 - 1 hour | F8: =IF($M$7<COUNT($E$9:F9),0,'Assets Inputs'!G8) -> 1 - 8 hours | G8: =IF($M$7<COUNT($E$9:G9),0,'Assets Inputs'!H8) -> > 8 hours | H8: =IF($M$7<COUNT($E$9:H9),0,'Assets Inputs'!I8) -> 0 | I8: =IF($M$7<COUNT($E$9:I9),0,'Assets Inputs'!J8) -> 0 | J8: =IF($M$7<COUNT($E$9:J9),0,'Assets Inputs'!K8) -> 0 | K8: =IF($M$7<COUNT($E$9:K9),0,'Assets Inputs'!L8) -> 0 | L8: =IF($M$7<COUNT($E$9:L9),0,'Assets Inputs'!M8) -> 0 | M8: ="Aggregate %"&A6 -> Aggregate %OP | V8: 2
A9: =IF(SUM(E9:L9)=100%,"% of properties at risk in each category:","Properties must add up to 100%") -> % of properties at risk in each category: | E9: ='Res Inputs'!F22 -> 0.1291 | F9: ='Res Inputs'!G22 -> 0.6973 | G9: ='Res Inputs'!H22 -> 0.1736 | H9: ='Res Inputs'!I22 -> 0 | I9: ='Res Inputs'!J22 -> 0 | J9: ='Res Inputs'!K22 -> 0 | K9: ='Res Inputs'!L22 -> 0 | L9: ='Res Inputs'!M22 -> 0 | V9: 3
A10: =Settings!C75 -> FDO | C10: =Settings!D75 -> Flood Defence Operation | D10: Upper Estimate | E10: ='Assets Inputs'!F10 -> 0 | F10: ='Assets Inputs'!G10 -> 0 | G10: ='Assets Inputs'!H10 -> 0 | H10: ='Assets Inputs'!I10 -> 0 | I10: ='Assets Inputs'!J10 -> 0 | J10: ='Assets Inputs'!K10 -> 0 | K10: ='Assets Inputs'!L10 -> 0 | L10: ='Assets Inputs'!M10 -> 0 | M10: =IF(E10="",M11,E10*$E$9+F10*$F$9+G10*$G$9+H10*$H$9+I10*$I$9+J10*$J$9+K10*$K$9+L10*$L$9) -> 0 | V10: 4
D11: Best Estimate | E11: ='Assets Inputs'!F11 -> 0.99 | F11: ='Assets Inputs'!G11 -> 0.99 | G11: ='Assets Inputs'!H11 -> 0.99 | H11: ='Assets Inputs'!I11 -> 0 | I11: ='Assets Inputs'!J11 -> 0 | J11: ='Assets Inputs'!K11 -> 0 | K11: ='Assets Inputs'!L11 -> 0 | L11: ='Assets Inputs'!M11 -> 0 | M11: =IF($M$7=1,$E$9*E11,IF($M$7=2,$E$9*E11+$F$9*F11,IF($M$7=3,$E$9*E11+$F$9*F11+$G$9*G11,IF($M$7=4,$E$9*E11+$F$9*F11+$G$9*G11+$H$9*H11,IF($M$7=5,$E$9*E11+$F$9*F11+$G$9*G11+$H$9*H11+$I$9*I11,IF($M$7=6,$E$9*E11+$F$9*F11+$G$9*G11+$H$9*H11+$I$9*I11+$J$9*J11,IF($M$7=7,$E$9*E11+$F$9*F11+$G$9*G11+$H$9*H11+$I$9*I11+$J$9*J11+$K$9*K11,IF($M$7=8,$E$9*E11+$F$9*F11+$G$9*G11+$H$9*H11+$I$9*I11+$J$9*J11+$K$9*K11+$L$9*L11,"")))))))) -> 0.99 | V11: 5
D12: Lower Estimate | E12: ='Assets Inputs'!F12 -> 0 | F12: ='Assets Inputs'!G12 -> 0 | G12: ='Assets Inputs'!H12 -> 0 | H12: ='Assets Inputs'!I12 -> 0 | I12: ='Assets Inputs'!J12 -> 0 | J12: ='Assets Inputs'!K12 -> 0 | K12: ='Assets Inputs'!L12 -> 0 | L12: ='Assets Inputs'!M12 -> 0 | M12: =IF(E12="",M11,E12*$E$9+F12*$F$9+G12*$G$9+H12*$H$9+I12*$I$9+J12*$J$9+K12*$K$9+L12*$L$9) -> 0 | V12: 6
A13: =Settings!C76 -> WCM | C13: =Settings!D76 -> Watercourse Management | D13: Upper Estimate | E13: ='Assets Inputs'!F13 -> 0 | F13: ='Assets Inputs'!G13 -> 0 | G13: ='Assets Inputs'!H13 -> 0 | H13: ='Assets Inputs'!I13 -> 0 | I13: ='Assets Inputs'!J13 -> 0 | J13: ='Assets Inputs'!K13 -> 0 | K13: ='Assets Inputs'!L13 -> 0 | L13: ='Assets Inputs'!M13 -> 0 | M13: =IF(E13="",M14,E13*$E$9+F13*$F$9+G13*$G$9+H13*$H$9+I13*$I$9+J13*$J$9+K13*$K$9+L13*$L$9) -> 0 | V13: 7
D14: Best Estimate | E14: ='Assets Inputs'!F14 -> 0.5 | F14: ='Assets Inputs'!G14 -> 0.5 | G14: ='Assets Inputs'!H14 -> 0.5 | H14: ='Assets Inputs'!I14 -> 0 | I14: ='Assets Inputs'!J14 -> 0 | J14: ='Assets Inputs'!K14 -> 0 | K14: ='Assets Inputs'!L14 -> 0 | L14: ='Assets Inputs'!M14 -> 0 | M14: =E14*$E$9+F14*$F$9+G14*$G$9+H14*$H$9+I14*$I$9+J14*$J$9+K14*$K$9+L14*$L$9 -> 0.5 | V14: 8
D15: Lower Estimate | E15: ='Assets Inputs'!F15 -> 0 | F15: ='Assets Inputs'!G15 -> 0 | G15: ='Assets Inputs'!H15 -> 0 | H15: ='Assets Inputs'!I15 -> 0 | I15: ='Assets Inputs'!J15 -> 0 | J15: ='Assets Inputs'!K15 -> 0 | K15: ='Assets Inputs'!L15 -> 0 | L15: ='Assets Inputs'!M15 -> 0 | M15: =IF(E15="",M14,E15*$E$9+F15*$F$9+G15*$G$9+H15*$H$9+I15*$I$9+J15*$J$9+K15*$K$9+L15*$L$9) -> 0
A16: =Settings!C77 -> CBO | C16: =Settings!D77 -> Community Based Operations | D16: Upper Estimate | E16: ='Assets Inputs'!F16 -> 0 | F16: ='Assets Inputs'!G16 -> 0 | G16: ='Assets Inputs'!H16 -> 0 | H16: ='Assets Inputs'!I16 -> 0 | I16: ='Assets Inputs'!J16 -> 0 | J16: ='Assets Inputs'!K16 -> 0 | K16: ='Assets Inputs'!L16 -> 0 | L16: ='Assets Inputs'!M16 -> 0 | M16: =IF(E16="",M17,E16*$E$9+F16*$F$9+G16*$G$9+H16*$H$9+I16*$I$9+J16*$J$9+K16*$K$9+L16*$L$9) -> 0
D17: Best Estimate | E17: ='Assets Inputs'!F17 -> 0.8 | F17: ='Assets Inputs'!G17 -> 0.8 | G17: ='Assets Inputs'!H17 -> 0.8 | H17: ='Assets Inputs'!I17 -> 0 | I17: ='Assets Inputs'!J17 -> 0 | J17: ='Assets Inputs'!K17 -> 0 | K17: ='Assets Inputs'!L17 -> 0 | L17: ='Assets Inputs'!M17 -> 0 | M17: =E17*$E$9+F17*$F$9+G17*$G$9+H17*$H$9+I17*$I$9+J17*$J$9+K17*$K$9+L17*$L$9 -> 0.8
D18: Lower Estimate | E18: ='Assets Inputs'!F18 -> 0 | F18: ='Assets Inputs'!G18 -> 0 | G18: ='Assets Inputs'!H18 -> 0 | H18: ='Assets Inputs'!I18 -> 0 | I18: ='Assets Inputs'!J18 -> 0 | J18: ='Assets Inputs'!K18 -> 0 | K18: ='Assets Inputs'!L18 -> 0 | L18: ='Assets Inputs'!M18 -> 0 | M18: =IF(E18="",M17,E18*$E$9+F18*$F$9+G18*$G$9+H18*$H$9+I18*$I$9+J18*$J$9+K18*$K$9+L18*$L$9) -> 0
A19: Residential
A20: =Settings!C80&"-RE" -> WDR-RE | C20: Residential Warning-Dependent Resistance | D20: Upper Estimate | E20: ='Res Inputs'!F23 -> 0 | F20: ='Res Inputs'!G23 -> 0 | G20: ='Res Inputs'!H23 -> 0 | H20: ='Res Inputs'!I23 -> 0 | I20: ='Res Inputs'!J23 -> 0 | J20: ='Res Inputs'!K23 -> 0 | K20: ='Res Inputs'!L23 -> 0 | L20: ='Res Inputs'!M23 -> 0 | M20: =IF(E20="",M21,E20*$E$9+F20*$F$9+G20*$G$9+H20*$H$9+I20*$I$9+J20*$J$9+K20*$K$9+L20*$L$9) -> 0
D21: Best Estimate | E21: ='Res Inputs'!F24 -> 0.923 | F21: ='Res Inputs'!G24 -> 0.958 | G21: ='Res Inputs'!H24 -> 0.989 | H21: ='Res Inputs'!I24 -> 0 | I21: ='Res Inputs'!J24 -> 0 | J21: ='Res Inputs'!K24 -> 0 | K21: ='Res Inputs'!L24 -> 0 | L21: ='Res Inputs'!M24 -> 0 | M21: =E21*$E$9+F21*$F$9+G21*$G$9+H21*$H$9+I21*$I$9+J21*$J$9+K21*$K$9+L21*$L$9 -> 0.9588631
D22: Lower Estimate | E22: ='Res Inputs'!F25 -> 0 | F22: ='Res Inputs'!G25 -> 0 | G22: ='Res Inputs'!H25 -> 0 | H22: ='Res Inputs'!I25 -> 0 | I22: ='Res Inputs'!J25 -> 0 | J22: ='Res Inputs'!K25 -> 0 | K22: ='Res Inputs'!L25 -> 0 | L22: ='Res Inputs'!M25 -> 0 | M22: =IF(E22="",M21,E22*$E$9+F22*$F$9+G22*$G$9+H22*$H$9+I22*$I$9+J22*$J$9+K22*$K$9+L22*$L$9) -> 0
A23: =Settings!C82&"-RE" -> CME-RE | C23: Residential Contents Moved & Evacuated | D23: Upper Estimate | E23: ='Res Inputs'!F26 -> 0 | F23: ='Res Inputs'!G26 -> 0 | G23: ='Res Inputs'!H26 -> 0 | H23: ='Res Inputs'!I26 -> 0 | I23: ='Res Inputs'!J26 -> 0 | J23: ='Res Inputs'!K26 -> 0 | K23: ='Res Inputs'!L26 -> 0 | L23: ='Res Inputs'!M26 -> 0 | M23: =IF(E23="",M24,E23*$E$9+F23*$F$9+G23*$G$9+H23*$H$9+I23*$I$9+J23*$J$9+K23*$K$9+L23*$L$9) -> 0
D24: Best Estimate | E24: ='Res Inputs'!F27 -> 0.7 | F24: ='Res Inputs'!G27 -> 0.72 | G24: ='Res Inputs'!H27 -> 0.8 | H24: ='Res Inputs'!I27 -> 0 | I24: ='Res Inputs'!J27 -> 0 | J24: ='Res Inputs'!K27 -> 0 | K24: ='Res Inputs'!L27 -> 0 | L24: ='Res Inputs'!M27 -> 0 | M24: =E24*$E$9+F24*$F$9+G24*$G$9+H24*$H$9+I24*$I$9+J24*$J$9+K24*$K$9+L24*$L$9 -> 0.731306
D25: Lower Estimate | E25: ='Res Inputs'!F28 -> 0 | F25: ='Res Inputs'!G28 -> 0 | G25: ='Res Inputs'!H28 -> 0 | H25: ='Res Inputs'!I28 -> 0 | I25: ='Res Inputs'!J28 -> 0 | J25: ='Res Inputs'!K28 -> 0 | K25: ='Res Inputs'!L28 -> 0 | L25: ='Res Inputs'!M28 -> 0 | M25: =IF(E25="",M24,E25*$E$9+F25*$F$9+G25*$G$9+H25*$H$9+I25*$I$9+J25*$J$9+K25*$K$9+L25*$L$9) -> 0
A26: Non-Residential
A27: =Settings!C80&"-NR" -> WDR-NR | C27: Non-Residential Warning-Dependent Resistance | D27: Upper Estimate | E27: ='Non-Res Inputs'!F26 -> 0 | F27: ='Non-Res Inputs'!G26 -> 0 | G27: ='Non-Res Inputs'!H26 -> 0 | H27: ='Non-Res Inputs'!I26 -> 0 | I27: ='Non-Res Inputs'!J26 -> 0 | J27: ='Non-Res Inputs'!K26 -> 0 | K27: ='Non-Res Inputs'!L26 -> 0 | L27: ='Non-Res Inputs'!M26 -> 0 | M27: =IF(E27="",M28,E27*$E$9+F27*$F$9+G27*$G$9+H27*$H$9+I27*$I$9+J27*$J$9+K27*$K$9+L27*$L$9) -> 0
D28: Best Estimate | E28: ='Non-Res Inputs'!F27 -> 0.923 | F28: ='Non-Res Inputs'!G27 -> 0.958 | G28: ='Non-Res Inputs'!H27 -> 0.989 | H28: ='Non-Res Inputs'!I27 -> 0 | I28: ='Non-Res Inputs'!J27 -> 0 | J28: ='Non-Res Inputs'!K27 -> 0 | K28: ='Non-Res Inputs'!L27 -> 0 | L28: ='Non-Res Inputs'!M27 -> 0 | M28: =E28*$E$9+F28*$F$9+G28*$G$9+H28*$H$9+I28*$I$9+J28*$J$9+K28*$K$9+L28*$L$9 -> 0.9588631
D29: Lower Estimate | E29: ='Non-Res Inputs'!F28 -> 0 | F29: ='Non-Res Inputs'!G28 -> 0 | G29: ='Non-Res Inputs'!H28 -> 0 | H29: ='Non-Res Inputs'!I28 -> 0 | I29: ='Non-Res Inputs'!J28 -> 0 | J29: ='Non-Res Inputs'!K28 -> 0 | K29: ='Non-Res Inputs'!L28 -> 0 | L29: ='Non-Res Inputs'!M28 -> 0 | M29: =IF(E29="",M28,E29*$E$9+F29*$F$9+G29*$G$9+H29*$H$9+I29*$I$9+J29*$J$9+K29*$K$9+L29*$L$9) -> 0
A30: =Settings!C82&"-NR" -> CME-NR | C30: Non-Residential Contents Moved & Evacuated | D30: Upper Estimate | E30: ='Non-Res Inputs'!F29 -> 0 | F30: ='Non-Res Inputs'!G29 -> 0 | G30: ='Non-Res Inputs'!H29 -> 0 | H30: ='Non-Res Inputs'!I29 -> 0 | I30: ='Non-Res Inputs'!J29 -> 0 | J30: ='Non-Res Inputs'!K29 -> 0 | K30: ='Non-Res Inputs'!L29 -> 0 | L30: ='Non-Res Inputs'!M29 -> 0 | M30: =IF(E30="",M31,E30*$E$9+F30*$F$9+G30*$G$9+H30*$H$9+I30*$I$9+J30*$J$9+K30*$K$9+L30*$L$9) -> 0 | W30: =IF(E8=0,"",E8) -> 0 - 1 hour | X30: =IF(F8=0,"",F8) -> 1 - 8 hours | Y30: > 8 hours
D31: Best Estimate | E31: ='Non-Res Inputs'!F30 -> 0.7 | F31: ='Non-Res Inputs'!G30 -> 0.72 | G31: ='Non-Res Inputs'!H30 -> 0.8 | H31: ='Non-Res Inputs'!I30 -> 0 | I31: ='Non-Res Inputs'!J30 -> 0 | J31: ='Non-Res Inputs'!K30 -> 0 | K31: ='Non-Res Inputs'!L30 -> 0 | L31: ='Non-Res Inputs'!M30 -> 0 | M31: =E31*$E$9+F31*$F$9+G31*$G$9+H31*$H$9+I31*$I$9+J31*$J$9+K31*$K$9+L31*$L$9 -> 0.731306
D32: Lower Estimate | E32: ='Non-Res Inputs'!F31 -> 0 | F32: ='Non-Res Inputs'!G31 -> 0 | G32: ='Non-Res Inputs'!H31 -> 0 | H32: ='Non-Res Inputs'!I31 -> 0 | I32: ='Non-Res Inputs'!J31 -> 0 | J32: ='Non-Res Inputs'!K31 -> 0 | K32: ='Non-Res Inputs'!L31 -> 0 | L32: ='Non-Res Inputs'!M31 -> 0 | M32: =IF(E32="",M31,E32*$E$9+F32*$F$9+G32*$G$9+H32*$H$9+I32*$I$9+J32*$J$9+K32*$K$9+L32*$L$9) -> 0
D35: Proportion of Baseline Investment | E35: =E8 -> 0 - 1 hour | F35: =F8 -> 1 - 8 hours | G35: > 8 hours | H35: 0 | I35: 0 | J35: 0 | K35: 0 | L35: 0
D36: 0 | E36: 1 | F36: 0 | V36: =IF($M$7<V$29,0,D36) -> 0 | W36: 1 | X36: 0 | Y36: 0 | Z36: 0 | AA36: 0 | AB36: 0 | AC36: 0 | AD36: 0
D37: 0.5 | E37: 1 | F37: 0 | V37: 0.5 | W37: 1 | X37: 0 | Y37: 0 | Z37: 0 | AA37: 0 | AB37: 0 | AC37: 0 | AD37: 0
D38: 1 | E38: 1 | F38: 0 | V38: 1 | W38: 1 | X38: 0 | Y38: 0 | Z38: 0 | AA38: 0 | AB38: 0 | AC38: 0 | AD38: 0
D39: 3 | E39: 1 | F39: 0 | V39: 3 | W39: 1 | X39: 0 | Y39: 0 | Z39: 0 | AA39: 0 | AB39: 0 | AC39: 0 | AD39: 0
C56: Scenario | D56: Investment Multiplier | E56: Flood warning lead-time categories
E57: =E8 -> 0 - 1 hour | F57: =F8 -> 1 - 8 hours | G57: > 8 hours | H57: 0 | I57: 0 | J57: 0 | K57: 0 | L57: 0
C58: ='Modified Factors'!F392 -> Baseline | D58: 1 | E58: =E31 -> 0.7 | F58: =F31 -> 0.72 | G58: 0.8 | H58: 0 | I58: 0 | J58: 0 | K58: 0 | L58: 0
C59: ='Modified Factors'!G392 -> Scenario 1 | D59: =Investment!AH16 -> 2 | E59: =VLOOKUP($D59,$D$36:$L$39,COUNT($D$58:E$58))+((VLOOKUP(INDEX($D$36:$D$39,MATCH($D59,$D$36:$D$39)+1),$D$36:$L$39,COUNT($D$58:E$58)))-VLOOKUP($D59,$D$36:$L$39,COUNT($D$58:E$58)))*($D59-INDEX($D$36:$D$39,MATCH($D59,$D$36:$D$39)))/(INDEX($D$36:$D$39,MATCH($D59,$D$36:$D$39)+1)-INDEX($D$36:$D$39,MATCH($D59,$D$36:$D$39))) -> 1 | F59: =VLOOKUP($D59,$D$36:$L$39,COUNT($D$58:F$58))+((VLOOKUP(INDEX($D$36:$D$39,MATCH($D59,$D$36:$D$39)+1),$D$36:$L$39,COUNT($D$58:F$58)))-VLOOKUP($D59,$D$36:$L$39,COUNT($D$58:F$58)))*($D59-INDEX($D$36:$D$39,MATCH($D59,$D$36:$D$39)))/(INDEX($D$36:$D$39,MATCH($D59,$D$36:$D$39)+1)-INDEX($D$36:$D$39,MATCH($D59,$D$36:$D$39))) -> 0 | G59: =VLOOKUP($D59,$D$36:$L$39,COUNT($D$58:G$58))+((VLOOKUP(INDEX($D$36:$D$39,MATCH($D59,$D$36:$D$39)+1),$D$36:$L$39,COUNT($D$58:G$58)))-VLOOKUP($D59,$D$36:$L$39,COUNT($D$58:G$58)))*($D59-INDEX($D$36:$D$39,MATCH($D59,$D$36:$D$39)))/(INDEX($D$36:$D$39,MATCH($D59,$D$36:$D$39)+1)-INDEX($D$36:$D$39,MATCH($D59,$D$36:$D$39))) -> 0 | H59: =VLOOKUP($D59,$D$36:$L$39,COUNT($D$58:H$58))+((VLOOKUP(INDEX($D$36:$D$39,MATCH($D59,$D$36:$D$39)+1),$D$36:$L$39,COUNT($D$58:H$58)))-VLOOKUP($D59,$D$36:$L$39,COUNT($D$58:H$58)))*($D59-INDEX($D$36:$D$39,MATCH($D59,$D$36:$D$39)))/(INDEX($D$36:$D$39,MATCH($D59,$D$36:$D$39)+1)-INDEX($D$36:$D$39,MATCH($D59,$D$36:$D$39))) -> 0 | I59: =VLOOKUP($D59,$D$36:$L$39,COUNT($D$58:I$58))+((VLOOKUP(INDEX($D$36:$D$39,MATCH($D59,$D$36:$D$39)+1),$D$36:$L$39,COUNT($D$58:I$58)))-VLOOKUP($D59,$D$36:$L$39,COUNT($D$58:I$58)))*($D59-INDEX($D$36:$D$39,MATCH($D59,$D$36:$D$39)))/(INDEX($D$36:$D$39,MATCH($D59,$D$36:$D$39)+1)-INDEX($D$36:$D$39,MATCH($D59,$D$36:$D$39))) -> 0 | J59: =VLOOKUP($D59,$D$36:$L$39,COUNT($D$58:J$58))+((VLOOKUP(INDEX($D$36:$D$39,MATCH($D59,$D$36:$D$39)+1),$D$36:$L$39,COUNT($D$58:J$58)))-VLOOKUP($D59,$D$36:$L$39,COUNT($D$58:J$58)))*($D59-INDEX($D$36:$D$39,MATCH($D59,$D$36:$D$39)))/(INDEX($D$36:$D$39,MATCH($D59,$D$36:$D$39)+1)-INDEX($D$36:$D$39,MATCH($D59,$D$36:$D$39))) -> 0 | K59: =VLOOKUP($D59,$D$36:$L$39,COUNT($D$58:K$58))+((VLOOKUP(INDEX($D$36:$D$39,MATCH($D59,$D$36:$D$39)+1),$D$36:$L$39,COUNT($D$58:K$58)))-VLOOKUP($D59,$D$36:$L$39,COUNT($D$58:K$58)))*($D59-INDEX($D$36:$D$39,MATCH($D59,$D$36:$D$39)))/(INDEX($D$36:$D$39,MATCH($D59,$D$36:$D$39)+1)-INDEX($D$36:$D$39,MATCH($D59,$D$36:$D$39))) -> 0 | L59: =VLOOKUP($D59,$D$36:$L$39,COUNT($D$58:L$58))+((VLOOKUP(INDEX($D$36:$D$39,MATCH($D59,$D$36:$D$39)+1),$D$36:$L$39,COUNT($D$58:L$58)))-VLOOKUP($D59,$D$36:$L$39,COUNT($D$58:L$58)))*($D59-INDEX($D$36:$D$39,MATCH($D59,$D$36:$D$39)))/(INDEX($D$36:$D$39,MATCH($D59,$D$36:$D$39)+1)-INDEX($D$36:$D$39,MATCH($D59,$D$36:$D$39))) -> 0
C60: ='Modified Factors'!H392 -> Scenario 2 | D60: =Investment!AI16 -> 0.5 | E60: =VLOOKUP($D60,$D$36:$L$39,COUNT($D$58:E$58))+((VLOOKUP(INDEX($D$36:$D$39,MATCH($D60,$D$36:$D$39)+1),$D$36:$L$39,COUNT($D$58:E$58)))-VLOOKUP($D60,$D$36:$L$39,COUNT($D$58:E$58)))*($D60-INDEX($D$36:$D$39,MATCH($D60,$D$36:$D$39)))/(INDEX($D$36:$D$39,MATCH($D60,$D$36:$D$39)+1)-INDEX($D$36:$D$39,MATCH($D60,$D$36:$D$39))) -> 1 | F60: =VLOOKUP($D60,$D$36:$L$39,COUNT($D$58:F$58))+((VLOOKUP(INDEX($D$36:$D$39,MATCH($D60,$D$36:$D$39)+1),$D$36:$L$39,COUNT($D$58:F$58)))-VLOOKUP($D60,$D$36:$L$39,COUNT($D$58:F$58)))*($D60-INDEX($D$36:$D$39,MATCH($D60,$D$36:$D$39)))/(INDEX($D$36:$D$39,MATCH($D60,$D$36:$D$39)+1)-INDEX($D$36:$D$39,MATCH($D60,$D$36:$D$39))) -> 0 | G60: =VLOOKUP($D60,$D$36:$L$39,COUNT($D$58:G$58))+((VLOOKUP(INDEX($D$36:$D$39,MATCH($D60,$D$36:$D$39)+1),$D$36:$L$39,COUNT($D$58:G$58)))-VLOOKUP($D60,$D$36:$L$39,COUNT($D$58:G$58)))*($D60-INDEX($D$36:$D$39,MATCH($D60,$D$36:$D$39)))/(INDEX($D$36:$D$39,MATCH($D60,$D$36:$D$39)+1)-INDEX($D$36:$D$39,MATCH($D60,$D$36:$D$39))) -> 0 | H60: =VLOOKUP($D60,$D$36:$L$39,COUNT($D$58:H$58))+((VLOOKUP(INDEX($D$36:$D$39,MATCH($D60,$D$36:$D$39)+1),$D$36:$L$39,COUNT($D$58:H$58)))-VLOOKUP($D60,$D$36:$L$39,COUNT($D$58:H$58)))*($D60-INDEX($D$36:$D$39,MATCH($D60,$D$36:$D$39)))/(INDEX($D$36:$D$39,MATCH($D60,$D$36:$D$39)+1)-INDEX($D$36:$D$39,MATCH($D60,$D$36:$D$39))) -> 0 | I60: =VLOOKUP($D60,$D$36:$L$39,COUNT($D$58:I$58))+((VLOOKUP(INDEX($D$36:$D$39,MATCH($D60,$D$36:$D$39)+1),$D$36:$L$39,COUNT($D$58:I$58)))-VLOOKUP($D60,$D$36:$L$39,COUNT($D$58:I$58)))*($D60-INDEX($D$36:$D$39,MATCH($D60,$D$36:$D$39)))/(INDEX($D$36:$D$39,MATCH($D60,$D$36:$D$39)+1)-INDEX($D$36:$D$39,MATCH($D60,$D$36:$D$39))) -> 0 | J60: =VLOOKUP($D60,$D$36:$L$39,COUNT($D$58:J$58))+((VLOOKUP(INDEX($D$36:$D$39,MATCH($D60,$D$36:$D$39)+1),$D$36:$L$39,COUNT($D$58:J$58)))-VLOOKUP($D60,$D$36:$L$39,COUNT($D$58:J$58)))*($D60-INDEX($D$36:$D$39,MATCH($D60,$D$36:$D$39)))/(INDEX($D$36:$D$39,MATCH($D60,$D$36:$D$39)+1)-INDEX($D$36:$D$39,MATCH($D60,$D$36:$D$39))) -> 0 | K60: =VLOOKUP($D60,$D$36:$L$39,COUNT($D$58:K$58))+((VLOOKUP(INDEX($D$36:$D$39,MATCH($D60,$D$36:$D$39)+1),$D$36:$L$39,COUNT($D$58:K$58)))-VLOOKUP($D60,$D$36:$L$39,COUNT($D$58:K$58)))*($D60-INDEX($D$36:$D$39,MATCH($D60,$D$36:$D$39)))/(INDEX($D$36:$D$39,MATCH($D60,$D$36:$D$39)+1)-INDEX($D$36:$D$39,MATCH($D60,$D$36:$D$39))) -> 0 | L60: =VLOOKUP($D60,$D$36:$L$39,COUNT($D$58:L$58))+((VLOOKUP(INDEX($D$36:$D$39,MATCH($D60,$D$36:$D$39)+1),$D$36:$L$39,COUNT($D$58:L$58)))-VLOOKUP($D60,$D$36:$L$39,COUNT($D$58:L$58)))*($D60-INDEX($D$36:$D$39,MATCH($D60,$D$36:$D$39)))/(INDEX($D$36:$D$39,MATCH($D60,$D$36:$D$39)+1)-INDEX($D$36:$D$39,MATCH($D60,$D$36:$D$39))) -> 0
C61: ='Modified Factors'!I392 -> Scenario 3 | D61: =Investment!AJ16 ->  | E61: =VLOOKUP($D61,$D$36:$L$39,COUNT($D$58:E$58))+((VLOOKUP(INDEX($D$36:$D$39,MATCH($D61,$D$36:$D$39)+1),$D$36:$L$39,COUNT($D$58:E$58)))-VLOOKUP($D61,$D$36:$L$39,COUNT($D$58:E$58)))*($D61-INDEX($D$36:$D$39,MATCH($D61,$D$36:$D$39)))/(INDEX($D$36:$D$39,MATCH($D61,$D$36:$D$39)+1)-INDEX($D$36:$D$39,MATCH($D61,$D$36:$D$39))) ->  | F61: =VLOOKUP($D61,$D$36:$L$39,COUNT($D$58:F$58))+((VLOOKUP(INDEX($D$36:$D$39,MATCH($D61,$D$36:$D$39)+1),$D$36:$L$39,COUNT($D$58:F$58)))-VLOOKUP($D61,$D$36:$L$39,COUNT($D$58:F$58)))*($D61-INDEX($D$36:$D$39,MATCH($D61,$D$36:$D$39)))/(INDEX($D$36:$D$39,MATCH($D61,$D$36:$D$39)+1)-INDEX($D$36:$D$39,MATCH($D61,$D$36:$D$39))) ->  | G61: =VLOOKUP($D61,$D$36:$L$39,COUNT($D$58:G$58))+((VLOOKUP(INDEX($D$36:$D$39,MATCH($D61,$D$36:$D$39)+1),$D$36:$L$39,COUNT($D$58:G$58)))-VLOOKUP($D61,$D$36:$L$39,COUNT($D$58:G$58)))*($D61-INDEX($D$36:$D$39,MATCH($D61,$D$36:$D$39)))/(INDEX($D$36:$D$39,MATCH($D61,$D$36:$D$39)+1)-INDEX($D$36:$D$39,MATCH($D61,$D$36:$D$39))) ->  | H61: =VLOOKUP($D61,$D$36:$L$39,COUNT($D$58:H$58))+((VLOOKUP(INDEX($D$36:$D$39,MATCH($D61,$D$36:$D$39)+1),$D$36:$L$39,COUNT($D$58:H$58)))-VLOOKUP($D61,$D$36:$L$39,COUNT($D$58:H$58)))*($D61-INDEX($D$36:$D$39,MATCH($D61,$D$36:$D$39)))/(INDEX($D$36:$D$39,MATCH($D61,$D$36:$D$39)+1)-INDEX($D$36:$D$39,MATCH($D61,$D$36:$D$39))) ->  | I61: =VLOOKUP($D61,$D$36:$L$39,COUNT($D$58:I$58))+((VLOOKUP(INDEX($D$36:$D$39,MATCH($D61,$D$36:$D$39)+1),$D$36:$L$39,COUNT($D$58:I$58)))-VLOOKUP($D61,$D$36:$L$39,COUNT($D$58:I$58)))*($D61-INDEX($D$36:$D$39,MATCH($D61,$D$36:$D$39)))/(INDEX($D$36:$D$39,MATCH($D61,$D$36:$D$39)+1)-INDEX($D$36:$D$39,MATCH($D61,$D$36:$D$39))) ->  | J61: =VLOOKUP($D61,$D$36:$L$39,COUNT($D$58:J$58))+((VLOOKUP(INDEX($D$36:$D$39,MATCH($D61,$D$36:$D$39)+1),$D$36:$L$39,COUNT($D$58:J$58)))-VLOOKUP($D61,$D$36:$L$39,COUNT($D$58:J$58)))*($D61-INDEX($D$36:$D$39,MATCH($D61,$D$36:$D$39)))/(INDEX($D$36:$D$39,MATCH($D61,$D$36:$D$39)+1)-INDEX($D$36:$D$39,MATCH($D61,$D$36:$D$39))) ->  | K61: =VLOOKUP($D61,$D$36:$L$39,COUNT($D$58:K$58))+((VLOOKUP(INDEX($D$36:$D$39,MATCH($D61,$D$36:$D$39)+1),$D$36:$L$39,COUNT($D$58:K$58)))-VLOOKUP($D61,$D$36:$L$39,COUNT($D$58:K$58)))*($D61-INDEX($D$36:$D$39,MATCH($D61,$D$36:$D$39)))/(INDEX($D$36:$D$39,MATCH($D61,$D$36:$D$39)+1)-INDEX($D$36:$D$39,MATCH($D61,$D$36:$D$39))) ->  | L61: =VLOOKUP($D61,$D$36:$L$39,COUNT($D$58:L$58))+((VLOOKUP(INDEX($D$36:$D$39,MATCH($D61,$D$36:$D$39)+1),$D$36:$L$39,COUNT($D$58:L$58)))-VLOOKUP($D61,$D$36:$L$39,COUNT($D$58:L$58)))*($D61-INDEX($D$36:$D$39,MATCH($D61,$D$36:$D$39)))/(INDEX($D$36:$D$39,MATCH($D61,$D$36:$D$39)+1)-INDEX($D$36:$D$39,MATCH($D61,$D$36:$D$39))) -> 
C62: ='Modified Factors'!J392 -> Scenario 4 | D62: =Investment!AK16 ->  | E62: =VLOOKUP($D62,$D$36:$L$39,COUNT($D$58:E$58))+((VLOOKUP(INDEX($D$36:$D$39,MATCH($D62,$D$36:$D$39)+1),$D$36:$L$39,COUNT($D$58:E$58)))-VLOOKUP($D62,$D$36:$L$39,COUNT($D$58:E$58)))*($D62-INDEX($D$36:$D$39,MATCH($D62,$D$36:$D$39)))/(INDEX($D$36:$D$39,MATCH($D62,$D$36:$D$39)+1)-INDEX($D$36:$D$39,MATCH($D62,$D$36:$D$39))) ->  | F62: =VLOOKUP($D62,$D$36:$L$39,COUNT($D$58:F$58))+((VLOOKUP(INDEX($D$36:$D$39,MATCH($D62,$D$36:$D$39)+1),$D$36:$L$39,COUNT($D$58:F$58)))-VLOOKUP($D62,$D$36:$L$39,COUNT($D$58:F$58)))*($D62-INDEX($D$36:$D$39,MATCH($D62,$D$36:$D$39)))/(INDEX($D$36:$D$39,MATCH($D62,$D$36:$D$39)+1)-INDEX($D$36:$D$39,MATCH($D62,$D$36:$D$39))) ->  | G62: =VLOOKUP($D62,$D$36:$L$39,COUNT($D$58:G$58))+((VLOOKUP(INDEX($D$36:$D$39,MATCH($D62,$D$36:$D$39)+1),$D$36:$L$39,COUNT($D$58:G$58)))-VLOOKUP($D62,$D$36:$L$39,COUNT($D$58:G$58)))*($D62-INDEX($D$36:$D$39,MATCH($D62,$D$36:$D$39)))/(INDEX($D$36:$D$39,MATCH($D62,$D$36:$D$39)+1)-INDEX($D$36:$D$39,MATCH($D62,$D$36:$D$39))) ->  | H62: =VLOOKUP($D62,$D$36:$L$39,COUNT($D$58:H$58))+((VLOOKUP(INDEX($D$36:$D$39,MATCH($D62,$D$36:$D$39)+1),$D$36:$L$39,COUNT($D$58:H$58)))-VLOOKUP($D62,$D$36:$L$39,COUNT($D$58:H$58)))*($D62-INDEX($D$36:$D$39,MATCH($D62,$D$36:$D$39)))/(INDEX($D$36:$D$39,MATCH($D62,$D$36:$D$39)+1)-INDEX($D$36:$D$39,MATCH($D62,$D$36:$D$39))) ->  | I62: =VLOOKUP($D62,$D$36:$L$39,COUNT($D$58:I$58))+((VLOOKUP(INDEX($D$36:$D$39,MATCH($D62,$D$36:$D$39)+1),$D$36:$L$39,COUNT($D$58:I$58)))-VLOOKUP($D62,$D$36:$L$39,COUNT($D$58:I$58)))*($D62-INDEX($D$36:$D$39,MATCH($D62,$D$36:$D$39)))/(INDEX($D$36:$D$39,MATCH($D62,$D$36:$D$39)+1)-INDEX($D$36:$D$39,MATCH($D62,$D$36:$D$39))) ->  | J62: =VLOOKUP($D62,$D$36:$L$39,COUNT($D$58:J$58))+((VLOOKUP(INDEX($D$36:$D$39,MATCH($D62,$D$36:$D$39)+1),$D$36:$L$39,COUNT($D$58:J$58)))-VLOOKUP($D62,$D$36:$L$39,COUNT($D$58:J$58)))*($D62-INDEX($D$36:$D$39,MATCH($D62,$D$36:$D$39)))/(INDEX($D$36:$D$39,MATCH($D62,$D$36:$D$39)+1)-INDEX($D$36:$D$39,MATCH($D62,$D$36:$D$39))) ->  | K62: =VLOOKUP($D62,$D$36:$L$39,COUNT($D$58:K$58))+((VLOOKUP(INDEX($D$36:$D$39,MATCH($D62,$D$36:$D$39)+1),$D$36:$L$39,COUNT($D$58:K$58)))-VLOOKUP($D62,$D$36:$L$39,COUNT($D$58:K$58)))*($D62-INDEX($D$36:$D$39,MATCH($D62,$D$36:$D$39)))/(INDEX($D$36:$D$39,MATCH($D62,$D$36:$D$39)+1)-INDEX($D$36:$D$39,MATCH($D62,$D$36:$D$39))) ->  | L62: =VLOOKUP($D62,$D$36:$L$39,COUNT($D$58:L$58))+((VLOOKUP(INDEX($D$36:$D$39,MATCH($D62,$D$36:$D$39)+1),$D$36:$L$39,COUNT($D$58:L$58)))-VLOOKUP($D62,$D$36:$L$39,COUNT($D$58:L$58)))*($D62-INDEX($D$36:$D$39,MATCH($D62,$D$36:$D$39)))/(INDEX($D$36:$D$39,MATCH($D62,$D$36:$D$39)+1)-INDEX($D$36:$D$39,MATCH($D62,$D$36:$D$39))) -> 
C63: ='Modified Factors'!K392 -> Scenario 5 | D63: =Investment!AL16 ->  | E63: =VLOOKUP($D63,$D$36:$L$39,COUNT($D$58:E$58))+((VLOOKUP(INDEX($D$36:$D$39,MATCH($D63,$D$36:$D$39)+1),$D$36:$L$39,COUNT($D$58:E$58)))-VLOOKUP($D63,$D$36:$L$39,COUNT($D$58:E$58)))*($D63-INDEX($D$36:$D$39,MATCH($D63,$D$36:$D$39)))/(INDEX($D$36:$D$39,MATCH($D63,$D$36:$D$39)+1)-INDEX($D$36:$D$39,MATCH($D63,$D$36:$D$39))) ->  | F63: =VLOOKUP($D63,$D$36:$L$39,COUNT($D$58:F$58))+((VLOOKUP(INDEX($D$36:$D$39,MATCH($D63,$D$36:$D$39)+1),$D$36:$L$39,COUNT($D$58:F$58)))-VLOOKUP($D63,$D$36:$L$39,COUNT($D$58:F$58)))*($D63-INDEX($D$36:$D$39,MATCH($D63,$D$36:$D$39)))/(INDEX($D$36:$D$39,MATCH($D63,$D$36:$D$39)+1)-INDEX($D$36:$D$39,MATCH($D63,$D$36:$D$39))) ->  | G63: =VLOOKUP($D63,$D$36:$L$39,COUNT($D$58:G$58))+((VLOOKUP(INDEX($D$36:$D$39,MATCH($D63,$D$36:$D$39)+1),$D$36:$L$39,COUNT($D$58:G$58)))-VLOOKUP($D63,$D$36:$L$39,COUNT($D$58:G$58)))*($D63-INDEX($D$36:$D$39,MATCH($D63,$D$36:$D$39)))/(INDEX($D$36:$D$39,MATCH($D63,$D$36:$D$39)+1)-INDEX($D$36:$D$39,MATCH($D63,$D$36:$D$39))) ->  | H63: =VLOOKUP($D63,$D$36:$L$39,COUNT($D$58:H$58))+((VLOOKUP(INDEX($D$36:$D$39,MATCH($D63,$D$36:$D$39)+1),$D$36:$L$39,COUNT($D$58:H$58)))-VLOOKUP($D63,$D$36:$L$39,COUNT($D$58:H$58)))*($D63-INDEX($D$36:$D$39,MATCH($D63,$D$36:$D$39)))/(INDEX($D$36:$D$39,MATCH($D63,$D$36:$D$39)+1)-INDEX($D$36:$D$39,MATCH($D63,$D$36:$D$39))) ->  | I63: =VLOOKUP($D63,$D$36:$L$39,COUNT($D$58:I$58))+((VLOOKUP(INDEX($D$36:$D$39,MATCH($D63,$D$36:$D$39)+1),$D$36:$L$39,COUNT($D$58:I$58)))-VLOOKUP($D63,$D$36:$L$39,COUNT($D$58:I$58)))*($D63-INDEX($D$36:$D$39,MATCH($D63,$D$36:$D$39)))/(INDEX($D$36:$D$39,MATCH($D63,$D$36:$D$39)+1)-INDEX($D$36:$D$39,MATCH($D63,$D$36:$D$39))) ->  | J63: =VLOOKUP($D63,$D$36:$L$39,COUNT($D$58:J$58))+((VLOOKUP(INDEX($D$36:$D$39,MATCH($D63,$D$36:$D$39)+1),$D$36:$L$39,COUNT($D$58:J$58)))-VLOOKUP($D63,$D$36:$L$39,COUNT($D$58:J$58)))*($D63-INDEX($D$36:$D$39,MATCH($D63,$D$36:$D$39)))/(INDEX($D$36:$D$39,MATCH($D63,$D$36:$D$39)+1)-INDEX($D$36:$D$39,MATCH($D63,$D$36:$D$39))) ->  | K63: =VLOOKUP($D63,$D$36:$L$39,COUNT($D$58:K$58))+((VLOOKUP(INDEX($D$36:$D$39,MATCH($D63,$D$36:$D$39)+1),$D$36:$L$39,COUNT($D$58:K$58)))-VLOOKUP($D63,$D$36:$L$39,COUNT($D$58:K$58)))*($D63-INDEX($D$36:$D$39,MATCH($D63,$D$36:$D$39)))/(INDEX($D$36:$D$39,MATCH($D63,$D$36:$D$39)+1)-INDEX($D$36:$D$39,MATCH($D63,$D$36:$D$39))) ->  | L63: =VLOOKUP($D63,$D$36:$L$39,COUNT($D$58:L$58))+((VLOOKUP(INDEX($D$36:$D$39,MATCH($D63,$D$36:$D$39)+1),$D$36:$L$39,COUNT($D$58:L$58)))-VLOOKUP($D63,$D$36:$L$39,COUNT($D$58:L$58)))*($D63-INDEX($D$36:$D$39,MATCH($D63,$D$36:$D$39)))/(INDEX($D$36:$D$39,MATCH($D63,$D$36:$D$39)+1)-INDEX($D$36:$D$39,MATCH($D63,$D$36:$D$39))) -> 
A65: =C59 -> Scenario 1
A66: =A8 -> Flood warning lead-time categories: | E66: =E8 -> 0 - 1 hour | F66: 1 - 8 hours | G66: > 8 hours | H66: 0 | I66: 0 | J66: 0 | K66: 0 | L66: 0 | M66: ="Aggregate "&Settings!F72 -> Aggregate %OP | N66: ="Adjusted "&Settings!F72 -> Adjusted %OP
A67: =IF(SUM(E67:L67)=100%,"% of properties at risk in each category:","Properties must add up to 100%") -> % of properties at risk in each category: | E67: =E59 -> 1 | F67: 0 | G67: 0 | H67: 0 | I67: 0 | J67: 0 | K67: 0 | L67: 0
A68: =A7 -> Working with Assets
A69: =A10 -> FDO | C69: =C10 -> Flood Defence Operation | D69: Upper Estimate | E69: =E10 -> 0 | F69: 0 | G69: 0 | H69: 0 | I69: 0 | J69: 0 | K69: 0 | L69: 0 | M69: =SUMPRODUCT(E$67:L$67*E69:L69) -> 0 | N69: =IF(M69>1,1,M69) -> 0 | X69: Upper & Lower Bounds
D70: Best Estimate | E70: 0.99 | F70: 0.99 | G70: 0.99 | H70: 0 | I70: 0 | J70: 0 | K70: 0 | L70: 0 | M70: =SUMPRODUCT(E$67:L$67*E70:L70) -> 0.99 | N70: =IF(M70>1,1,M70) -> 0.99 | X70: ='Modified Factors'!S421 -> TRUE
D71: Lower Estimate | E71: 0 | F71: 0 | G71: 0 | H71: 0 | I71: 0 | J71: 0 | K71: 0 | L71: 0 | M71: 0 | N71: 0
A72: =A13 -> WCM | C72: =C13 -> Watercourse Management | D72: Upper Estimate | E72: 0 | F72: 0 | G72: 0 | H72: 0 | I72: 0 | J72: 0 | K72: 0 | L72: 0 | M72: 0 | N72: 0
D73: Best Estimate | E73: 0.5 | F73: 0.5 | G73: 0.5 | H73: 0 | I73: 0 | J73: 0 | K73: 0 | L73: 0 | M73: 0.5 | N73: 0.5
D74: Lower Estimate | E74: 0 | F74: 0 | G74: 0 | H74: 0 | I74: 0 | J74: 0 | K74: 0 | L74: 0 | M74: 0 | N74: 0
A75: =A16 -> CBO | C75: =C16 -> Community Based Operations | D75: Upper Estimate | E75: =E16 -> 0 | F75: =F16 -> 0 | G75: 0 | H75: 0 | I75: 0 | J75: 0 | K75: 0 | L75: 0 | M75: 0 | N75: 0
D76: Best Estimate | E76: =E17 -> 0.8 | F76: =F17 -> 0.8 | G76: 0.8 | H76: 0 | I76: 0 | J76: 0 | K76: 0 | L76: 0 | M76: 0.8 | N76: 0.8
D77: Lower Estimate | E77: =E18 -> 0 | F77: =F18 -> 0 | G77: 0 | H77: 0 | I77: 0 | J77: 0 | K77: 0 | L77: 0 | M77: 0 | N77: 0
A78: =A19 -> Residential
A79: =A20 -> WDR-RE | C79: =C20 -> Residential Warning-Dependent Resistance | D79: Upper Estimate | E79: =E20 -> 0 | F79: =F20 -> 0 | G79: 0 | H79: 0 | I79: 0 | J79: 0 | K79: 0 | L79: 0 | M79: 0 | N79: 0
D80: Best Estimate | E80: =E21 -> 0.923 | F80: 0.958 | G80: 0.989 | H80: 0 | I80: 0 | J80: 0 | K80: 0 | L80: 0 | M80: 0.923 | N80: 0.923
D81: Lower Estimate | E81: 0 | F81: 0 | G81: 0 | H81: 0 | I81: 0 | J81: 0 | K81: 0 | L81: 0 | M81: 0 | N81: 0
A82: =A23 -> CME-RE | C82: =C23 -> Residential Contents Moved & Evacuated | D82: Upper Estimate | E82: 0 | F82: 0 | G82: 0 | H82: 0 | I82: 0 | J82: 0 | K82: 0 | L82: 0 | M82: 0 | N82: 0
D83: Best Estimate | E83: 0.7 | F83: 0.72 | G83: 0.8 | H83: 0 | I83: 0 | J83: 0 | K83: 0 | L83: 0 | M83: 0.7 | N83: 0.7
D84: Lower Estimate | E84: 0 | F84: 0 | G84: 0 | H84: 0 | I84: 0 | J84: 0 | K84: 0 | L84: 0 | M84: 0 | N84: 0
A85: =A26 -> Non-Residential
A86: =A27 -> WDR-NR | C86: =C27 -> Non-Residential Warning-Dependent Resistance | D86: Upper Estimate | E86: 0 | F86: 0 | G86: 0 | H86: 0 | I86: 0 | J86: 0 | K86: 0 | L86: 0 | M86: 0 | N86: 0
D87: Best Estimate | E87: 0.923 | F87: 0.958 | G87: 0.989 | H87: 0 | I87: 0 | J87: 0 | K87: 0 | L87: 0 | M87: 0.923 | N87: 0.923
D88: Lower Estimate | E88: 0 | F88: 0 | G88: 0 | H88: 0 | I88: 0 | J88: 0 | K88: 0 | L88: 0 | M88: 0 | N88: 0
A89: =A30 -> CME-NR | C89: =C30 -> Non-Residential Contents Moved & Evacuated | D89: Upper Estimate | E89: 0 | F89: 0 | G89: 0 | H89: 0 | I89: 0 | J89: 0 | K89: 0 | L89: 0 | M89: 0 | N89: 0
D90: Best Estimate | E90: 0.7 | F90: 0.72 | G90: 0.8 | H90: 0 | I90: 0 | J90: 0 | K90: 0 | L90: 0 | M90: 0.7 | N90: 0.7
D91: Lower Estimate | E91: 0 | F91: 0 | G91: 0 | H91: 0 | I91: 0 | J91: 0 | K91: 0 | L91: 0 | M91: 0 | N91: 0
A94: =C60 -> Scenario 2
A95: =A66 -> Flood warning lead-time categories: | E95: =E66 -> 0 - 1 hour | F95: =F66 -> 1 - 8 hours | G95: > 8 hours | H95: 0 | I95: 0 | J95: 0 | K95: 0 | L95: 0 | M95: =M66 -> Aggregate %OP | N95: =N66 -> Adjusted %OP
A96: =IF(SUM(E96:L96)=100%,"% of properties at risk in each category:","Properties must add up to 100%") -> % of properties at risk in each category: | E96: =E60 -> 1 | F96: =F60 -> 0 | G96: 0 | H96: 0 | I96: 0 | J96: 0 | K96: 0 | L96: 0
A97: =A68 -> Working with Assets
A98: =A69 -> FDO | C98: =C69 -> Flood Defence Operation | D98: Upper Estimate | E98: =E69 -> 0 | F98: =F69 -> 0 | G98: 0 | H98: 0 | I98: 0 | J98: 0 | K98: 0 | L98: 0 | M98: =SUMPRODUCT(E$96:L$96*E98:L98) -> 0 | N98: =IF(M98>1,1,M98) -> 0
D99: Best Estimate | E99: 0.99 | F99: =F70 -> 0.99 | G99: 0.99 | H99: 0 | I99: 0 | J99: 0 | K99: 0 | L99: 0 | M99: =SUMPRODUCT(E$96:L$96*E99:L99) -> 0.99 | N99: =IF(M99>1,1,M99) -> 0.99
D100: Lower Estimate | E100: 0 | F100: 0 | G100: 0 | H100: 0 | I100: 0 | J100: 0 | K100: 0 | L100: 0 | M100: 0 | N100: 0
A101: =A72 -> WCM | C101: =C72 -> Watercourse Management | D101: Upper Estimate | E101: 0 | F101: 0 | G101: 0 | H101: 0 | I101: 0 | J101: 0 | K101: 0 | L101: 0 | M101: 0 | N101: 0
D102: Best Estimate | E102: 0.5 | F102: 0.5 | G102: 0.5 | H102: 0 | I102: 0 | J102: 0 | K102: 0 | L102: 0 | M102: 0.5 | N102: 0.5
D103: Lower Estimate | E103: 0 | F103: 0 | G103: 0 | H103: 0 | I103: 0 | J103: 0 | K103: 0 | L103: 0 | M103: 0 | N103: 0
A104: =A75 -> CBO | C104: =C75 -> Community Based Operations | D104: Upper Estimate | E104: 0 | F104: 0 | G104: 0 | H104: 0 | I104: 0 | J104: 0 | K104: 0 | L104: 0 | M104: 0 | N104: 0
D105: Best Estimate | E105: 0.8 | F105: 0.8 | G105: 0.8 | H105: 0 | I105: 0 | J105: 0 | K105: 0 | L105: 0 | M105: 0.8 | N105: 0.8
D106: Lower Estimate | E106: 0 | F106: 0 | G106: 0 | H106: 0 | I106: 0 | J106: 0 | K106: 0 | L106: 0 | M106: 0 | N106: 0
A107: =A78 -> Residential
A108: =A79 -> WDR-RE | C108: =C79 -> Residential Warning-Dependent Resistance | D108: Upper Estimate | E108: =E79 -> 0 | F108: 0 | G108: 0 | H108: 0 | I108: 0 | J108: 0 | K108: 0 | L108: 0 | M108: 0 | N108: 0
D109: Best Estimate | E109: 0.923 | F109: 0.958 | G109: 0.989 | H109: 0 | I109: 0 | J109: 0 | K109: 0 | L109: 0 | M109: 0.923 | N109: 0.923
D110: Lower Estimate | E110: 0 | F110: 0 | G110: 0 | H110: 0 | I110: 0 | J110: 0 | K110: 0 | L110: 0 | M110: 0 | N110: 0
A111: =A82 -> CME-RE | C111: =C82 -> Residential Contents Moved & Evacuated | D111: Upper Estimate | E111: 0 | F111: 0 | G111: 0 | H111: 0 | I111: 0 | J111: 0 | K111: 0 | L111: 0 | M111: 0 | N111: 0
D112: Best Estimate | E112: 0.7 | F112: 0.72 | G112: 0.8 | H112: 0 | I112: 0 | J112: 0 | K112: 0 | L112: 0 | M112: 0.7 | N112: 0.7
D113: Lower Estimate | E113: 0 | F113: 0 | G113: 0 | H113: 0 | I113: 0 | J113: 0 | K113: 0 | L113: 0 | M113: 0 | N113: 0
A114: =A85 -> Non-Residential
A115: =A86 -> WDR-NR | C115: =C86 -> Non-Residential Warning-Dependent Resistance | D115: Upper Estimate | E115: =E86 -> 0 | F115: 0 | G115: 0 | H115: 0 | I115: 0 | J115: 0 | K115: 0 | L115: 0 | M115: 0 | N115: 0
D116: Best Estimate | E116: 0.923 | F116: 0.958 | G116: 0.989 | H116: 0 | I116: 0 | J116: 0 | K116: 0 | L116: 0 | M116: 0.923 | N116: 0.923
D117: Lower Estimate | E117: 0 | F117: 0 | G117: 0 | H117: 0 | I117: 0 | J117: 0 | K117: 0 | L117: 0 | M117: 0 | N117: 0
A118: =A89 -> CME-NR | C118: =C89 -> Non-Residential Contents Moved & Evacuated | D118: Upper Estimate | E118: 0 | F118: 0 | G118: 0 | H118: 0 | I118: 0 | J118: 0 | K118: 0 | L118: 0 | M118: 0 | N118: 0
D119: Best Estimate | E119: =E90 -> 0.7 | F119: 0.72 | G119: 0.8 | H119: 0 | I119: 0 | J119: 0 | K119: 0 | L119: 0 | M119: 0.7 | N119: 0.7
D120: Lower Estimate | E120: =E91 -> 0 | F120: 0 | G120: 0 | H120: 0 | I120: 0 | J120: 0 | K120: 0 | L120: 0 | M120: 0 | N120: 0
A123: =C61 -> Scenario 3
A124: =A66 -> Flood warning lead-time categories: | E124: =E66 -> 0 - 1 hour | F124: 1 - 8 hours | G124: > 8 hours | H124: 0 | I124: 0 | J124: 0 | K124: 0 | L124: 0 | M124: =M95 -> Aggregate %OP | N124: =N95 -> Adjusted %OP
A125: =IF(SUM(E125:L125)=100%,"% of properties at risk in each category:","Properties must add up to 100%") ->  | E125: =E61 ->  | F125: =F61 -> 
A126: =A97 -> Working with Assets
A127: =A98 -> FDO | C127: =C98 -> Flood Defence Operation | D127: Upper Estimate | E127: =E98 -> 0 | F127: =F98 -> 0 | G127: 0 | H127: 0 | I127: 0 | J127: 0 | K127: 0 | L127: 0 | M127: =SUMPRODUCT(E$125:L$125*E127:L127) ->  | N127: =IF(M127>1,1,M127) -> 
D128: Best Estimate | E128: =E99 -> 0.99 | F128: 0.99 | G128: 0.99 | H128: 0 | I128: 0 | J128: 0 | K128: 0 | L128: 0 | M128: =SUMPRODUCT(E$125:L$125*E128:L128) ->  | N128: =IF(M128>1,1,M128) -> 
D129: Lower Estimate | E129: =E100 -> 0 | F129: 0 | G129: 0 | H129: 0 | I129: 0 | J129: 0 | K129: 0 | L129: 0
A130: =A101 -> WCM | C130: =C101 -> Watercourse Management | D130: Upper Estimate | E130: =E101 -> 0 | F130: 0 | G130: 0 | H130: 0 | I130: 0 | J130: 0 | K130: 0 | L130: 0
D131: Best Estimate | E131: =E102 -> 0.5 | F131: 0.5 | G131: 0.5 | H131: 0 | I131: 0 | J131: 0 | K131: 0 | L131: 0
D132: Lower Estimate | E132: =E103 -> 0 | F132: 0 | G132: 0 | H132: 0 | I132: 0 | J132: 0 | K132: 0 | L132: 0
A133: =A104 -> CBO | C133: =C104 -> Community Based Operations | D133: Upper Estimate | E133: =E104 -> 0 | F133: 0 | G133: 0 | H133: 0 | I133: 0 | J133: 0 | K133: 0 | L133: 0
D134: Best Estimate | E134: =E105 -> 0.8 | F134: 0.8 | G134: 0.8 | H134: 0 | I134: 0 | J134: 0 | K134: 0 | L134: 0
D135: Lower Estimate | E135: =E106 -> 0 | F135: 0 | G135: 0 | H135: 0 | I135: 0 | J135: 0 | K135: 0 | L135: 0
A136: =A107 -> Residential
A137: =A108 -> WDR-RE | C137: =C108 -> Residential Warning-Dependent Resistance | D137: Upper Estimate | E137: =E108 -> 0 | F137: 0 | G137: 0 | H137: 0 | I137: 0 | J137: 0 | K137: 0 | L137: 0 | M137: =SUMPRODUCT(E$125:L$125*E137:L137) -> 
D138: Best Estimate | E138: =E109 -> 0.923 | F138: 0.958 | G138: 0.989 | H138: 0 | I138: 0 | J138: 0 | K138: 0 | L138: 0
D139: Lower Estimate | E139: =E110 -> 0 | F139: 0 | G139: 0 | H139: 0 | I139: 0 | J139: 0 | K139: 0 | L139: 0
A140: =A111 -> CME-RE | C140: =C111 -> Residential Contents Moved & Evacuated | D140: Upper Estimate | E140: =E111 -> 0 | F140: 0 | G140: 0 | H140: 0 | I140: 0 | J140: 0 | K140: 0 | L140: 0
D141: Best Estimate | E141: =E112 -> 0.7 | F141: 0.72 | G141: 0.8 | H141: 0 | I141: 0 | J141: 0 | K141: 0 | L141: 0
D142: Lower Estimate | E142: =E113 -> 0 | F142: 0 | G142: 0 | H142: 0 | I142: 0 | J142: 0 | K142: 0 | L142: 0
A143: =A114 -> Non-Residential
A144: =A115 -> WDR-NR | C144: =C115 -> Non-Residential Warning-Dependent Resistance | D144: Upper Estimate | E144: =E115 -> 0 | F144: 0 | G144: 0 | H144: 0 | I144: 0 | J144: 0 | K144: 0 | L144: 0 | M144: =SUMPRODUCT(E$125:L$125*E144:L144) -> 
D145: Best Estimate | E145: =E116 -> 0.923 | F145: 0.958 | G145: 0.989 | H145: 0 | I145: 0 | J145: 0 | K145: 0 | L145: 0
D146: Lower Estimate | E146: =E117 -> 0 | F146: 0 | G146: 0 | H146: 0 | I146: 0 | J146: 0 | K146: 0 | L146: 0
A147: =A118 -> CME-NR | C147: =C118 -> Non-Residential Contents Moved & Evacuated | D147: Upper Estimate | E147: =E118 -> 0 | F147: 0 | G147: 0 | H147: 0 | I147: 0 | J147: 0 | K147: 0 | L147: 0
D148: Best Estimate | E148: =E119 -> 0.7 | F148: 0.72 | G148: 0.8 | H148: 0 | I148: 0 | J148: 0 | K148: 0 | L148: 0
D149: Lower Estimate | E149: =E120 -> 0 | F149: 0 | G149: 0 | H149: 0 | I149: 0 | J149: 0 | K149: 0 | L149: 0
A152: =C62 -> Scenario 4
A153: =A95 -> Flood warning lead-time categories: | E153: =E95 -> 0 - 1 hour | F153: 1 - 8 hours | G153: > 8 hours | H153: 0 | I153: 0 | J153: 0 | K153: 0 | L153: 0 | M153: =M124 -> Aggregate %OP | N153: =N124 -> Adjusted %OP
A154: =IF(SUM(E154:L154)=100%,"% of properties at risk in each category:","Properties must add up to 100%") ->  | E154: =E62 ->  | F154: =F62 -> 
A155: =A126 -> Working with Assets
A156: =A127 -> FDO | C156: =C127 -> Flood Defence Operation | D156: Upper Estimate | E156: =E127 -> 0 | F156: =F127 -> 0 | G156: 0 | H156: 0 | I156: 0 | J156: 0 | K156: 0 | L156: 0 | M156: =SUMPRODUCT(E$154:L$154*E156:L156) ->  | N156: =IF(M156>1,1,M156) -> 
D157: Best Estimate | E157: =E128 -> 0.99 | F157: 0.99 | G157: 0.99 | H157: 0 | I157: 0 | J157: 0 | K157: 0 | L157: 0 | M157: =SUMPRODUCT(E$154:L$154*E157:L157) ->  | N157: =IF(M157>1,1,M157) -> 
D158: Lower Estimate | E158: =E129 -> 0 | F158: 0 | G158: 0 | H158: 0 | I158: 0 | J158: 0 | K158: 0 | L158: 0
A159: =A130 -> WCM | C159: =C130 -> Watercourse Management | D159: Upper Estimate | E159: =E130 -> 0 | F159: 0 | G159: 0 | H159: 0 | I159: 0 | J159: 0 | K159: 0 | L159: 0
D160: Best Estimate | E160: =E131 -> 0.5 | F160: 0.5 | G160: 0.5 | H160: 0 | I160: 0 | J160: 0 | K160: 0 | L160: 0
D161: Lower Estimate | E161: =E132 -> 0 | F161: 0 | G161: 0 | H161: 0 | I161: 0 | J161: 0 | K161: 0 | L161: 0
A162: =A133 -> CBO | C162: =C133 -> Community Based Operations | D162: Upper Estimate | E162: =E133 -> 0 | F162: 0 | G162: 0 | H162: 0 | I162: 0 | J162: 0 | K162: 0 | L162: 0
D163: Best Estimate | E163: =E134 -> 0.8 | F163: 0.8 | G163: 0.8 | H163: 0 | I163: 0 | J163: 0 | K163: 0 | L163: 0
D164: Lower Estimate | E164: =E135 -> 0 | F164: 0 | G164: 0 | H164: 0 | I164: 0 | J164: 0 | K164: 0 | L164: 0
A165: =A136 -> Residential
A166: =A137 -> WDR-RE | C166: =C137 -> Residential Warning-Dependent Resistance | D166: Upper Estimate | E166: =E137 -> 0 | F166: 0 | G166: 0 | H166: 0 | I166: 0 | J166: 0 | K166: 0 | L166: 0 | M166: =SUMPRODUCT(E$154:L$154*E166:L166) -> 
D167: Best Estimate | E167: =E138 -> 0.923 | F167: 0.958 | G167: 0.989 | H167: 0 | I167: 0 | J167: 0 | K167: 0 | L167: 0
D168: Lower Estimate | E168: =E139 -> 0 | F168: 0 | G168: 0 | H168: 0 | I168: 0 | J168: 0 | K168: 0 | L168: 0
A169: =A140 -> CME-RE | C169: =C140 -> Residential Contents Moved & Evacuated | D169: Upper Estimate | E169: =E140 -> 0 | F169: 0 | G169: 0 | H169: 0 | I169: 0 | J169: 0 | K169: 0 | L169: 0
D170: Best Estimate | E170: =E141 -> 0.7 | F170: 0.72 | G170: 0.8 | H170: 0 | I170: 0 | J170: 0 | K170: 0 | L170: 0
D171: Lower Estimate | E171: =E142 -> 0 | F171: 0 | G171: 0 | H171: 0 | I171: 0 | J171: 0 | K171: 0 | L171: 0
A172: =A143 -> Non-Residential
A173: =A144 -> WDR-NR | C173: =C144 -> Non-Residential Warning-Dependent Resistance | D173: Upper Estimate | E173: =E144 -> 0 | F173: 0 | G173: 0 | H173: 0 | I173: 0 | J173: 0 | K173: 0 | L173: 0 | M173: =SUMPRODUCT(E$154:L$154*E173:L173) -> 
D174: Best Estimate | E174: =E145 -> 0.923 | F174: 0.958 | G174: 0.989 | H174: 0 | I174: 0 | J174: 0 | K174: 0 | L174: 0
D175: Lower Estimate | E175: =E146 -> 0 | F175: 0 | G175: 0 | H175: 0 | I175: 0 | J175: 0 | K175: 0 | L175: 0
A176: =A147 -> CME-NR | C176: =C147 -> Non-Residential Contents Moved & Evacuated | D176: Upper Estimate | E176: =E147 -> 0 | F176: 0 | G176: 0 | H176: 0 | I176: 0 | J176: 0 | K176: 0 | L176: 0
D177: Best Estimate | E177: =E148 -> 0.7 | F177: 0.72 | G177: 0.8 | H177: 0 | I177: 0 | J177: 0 | K177: 0 | L177: 0
D178: Lower Estimate | E178: =E149 -> 0 | F178: 0 | G178: 0 | H178: 0 | I178: 0 | J178: 0 | K178: 0 | L178: 0
A181: =C63 -> Scenario 5
A182: =A124 -> Flood warning lead-time categories: | E182: =E124 -> 0 - 1 hour | F182: 1 - 8 hours | G182: > 8 hours | H182: 0 | I182: 0 | J182: 0 | K182: 0 | L182: 0 | M182: =M153 -> Aggregate %OP | N182: =N153 -> Adjusted %OP
A183: =IF(SUM(E183:L183)=100%,"% of properties at risk in each category:","Properties must add up to 100%") ->  | E183: =E63 ->  | F183: =F63 -> 
A184: =A155 -> Working with Assets
A185: =A156 -> FDO | C185: =C156 -> Flood Defence Operation | D185: Upper Estimate | E185: =E156 -> 0 | F185: =F156 -> 0 | G185: 0 | H185: 0 | I185: 0 | J185: 0 | K185: 0 | L185: 0 | M185: =SUMPRODUCT(E$183:L$183*E185:L185) ->  | N185: =IF(M185>1,1,M185) -> 
D186: Best Estimate | E186: =E157 -> 0.99 | F186: 0.99 | G186: 0.99 | H186: 0 | I186: 0 | J186: 0 | K186: 0 | L186: 0 | M186: =SUMPRODUCT(E$183:L$183*E186:L186) ->  | N186: =IF(M186>1,1,M186) -> 
D187: Lower Estimate | E187: =E158 -> 0 | F187: 0 | G187: 0 | H187: 0 | I187: 0 | J187: 0 | K187: 0 | L187: 0
A188: =A159 -> WCM | C188: =C159 -> Watercourse Management | D188: Upper Estimate | E188: =E159 -> 0 | F188: 0 | G188: 0 | H188: 0 | I188: 0 | J188: 0 | K188: 0 | L188: 0
D189: Best Estimate | E189: =E160 -> 0.5 | F189: 0.5 | G189: 0.5 | H189: 0 | I189: 0 | J189: 0 | K189: 0 | L189: 0
D190: Lower Estimate | E190: =E161 -> 0 | F190: 0 | G190: 0 | H190: 0 | I190: 0 | J190: 0 | K190: 0 | L190: 0
A191: =A162 -> CBO | C191: =C162 -> Community Based Operations | D191: Upper Estimate | E191: =E162 -> 0 | F191: 0 | G191: 0 | H191: 0 | I191: 0 | J191: 0 | K191: 0 | L191: 0
D192: Best Estimate | E192: =E163 -> 0.8 | F192: 0.8 | G192: 0.8 | H192: 0 | I192: 0 | J192: 0 | K192: 0 | L192: 0
D193: Lower Estimate | E193: =E164 -> 0 | F193: 0 | G193: 0 | H193: 0 | I193: 0 | J193: 0 | K193: 0 | L193: 0
A194: =A165 -> Residential
A195: =A166 -> WDR-RE | C195: =C166 -> Residential Warning-Dependent Resistance | D195: Upper Estimate | E195: =E166 -> 0 | F195: 0 | G195: 0 | H195: 0 | I195: 0 | J195: 0 | K195: 0 | L195: 0 | M195: =SUMPRODUCT(E$183:L$183*E195:L195) -> 
D196: Best Estimate | E196: =E167 -> 0.923 | F196: 0.958 | G196: 0.989 | H196: 0 | I196: 0 | J196: 0 | K196: 0 | L196: 0
D197: Lower Estimate | E197: =E168 -> 0 | F197: 0 | G197: 0 | H197: 0 | I197: 0 | J197: 0 | K197: 0 | L197: 0
A198: =A169 -> CME-RE | C198: =C169 -> Residential Contents Moved & Evacuated | D198: Upper Estimate | E198: =E169 -> 0 | F198: 0 | G198: 0 | H198: 0 | I198: 0 | J198: 0 | K198: 0 | L198: 0
D199: Best Estimate | E199: =E170 -> 0.7 | F199: 0.72 | G199: 0.8 | H199: 0 | I199: 0 | J199: 0 | K199: 0 | L199: 0
D200: Lower Estimate | E200: =E171 -> 0 | F200: 0 | G200: 0 | H200: 0 | I200: 0 | J200: 0 | K200: 0 | L200: 0
A201: =A172 -> Non-Residential
A202: =A173 -> WDR-NR | C202: =C173 -> Non-Residential Warning-Dependent Resistance | D202: Upper Estimate | E202: =E173 -> 0 | F202: 0 | G202: 0 | H202: 0 | I202: 0 | J202: 0 | K202: 0 | L202: 0 | M202: =SUMPRODUCT(E$183:L$183*E202:L202) -> 
D203: Best Estimate | E203: =E174 -> 0.923 | F203: 0.958 | G203: 0.989 | H203: 0 | I203: 0 | J203: 0 | K203: 0 | L203: 0
D204: Lower Estimate | E204: =E175 -> 0 | F204: 0 | G204: 0 | H204: 0 | I204: 0 | J204: 0 | K204: 0 | L204: 0
A205: =A176 -> CME-NR | C205: =C176 -> Non-Residential Contents Moved & Evacuated | D205: Upper Estimate | E205: =E176 -> 0 | F205: 0 | G205: 0 | H205: 0 | I205: 0 | J205: 0 | K205: 0 | L205: 0
D206: Best Estimate | E206: =E177 -> 0.7 | F206: 0.72 | G206: 0.8 | H206: 0 | I206: 0 | J206: 0 | K206: 0 | L206: 0
D207: Lower Estimate | E207: =E178 -> 0 | F207: 0 | G207: 0 | H207: 0 | I207: 0 | J207: 0 | K207: 0 | L207: 0

Sheet Mod Calc
F3: Modifer Calculations | BO3: Modifer Calculations
E4: Hidden
A6: This worksheet calculates the modified factors for each scenario. It takes all the investment activities from the Investment tab, and marries them up to the correct factors in the calculation. The grid of 0s and 1s shows which activities apply to which factor. The baseline value for the factor is then multiplied by the correct benefit multiplier for each scenario. This is then capped at 1.
BN7: Modified factors, with values capped at 1
BN8: Baseline | BO8: =BO21 -> Scenario 1 | BP8: =BP21 -> Scenario 2 | BQ8: =BQ21 -> Scenario 3 | BR8: =BR21 -> Scenario 4 | BS8: =BS21 -> Scenario 5
A9: Factor Affected: | E9: =TRANSPOSE(Investment!$C$15:$C$60) -> WS | F9: OP | G9: 0 | H9: 0 | I9: 0 | J9: WS | K9: OP | L9: OP | M9: OP | N9: 0 | O9: 0 | P9: 0 | Q9: OP | R9: OP | S9: UP | T9: UP | U9: 0 | V9: 0 | W9: 0 | X9: 0 | Y9: UP | Z9: UP | AA9: 0 | AB9: 0 | AC9: 0 | AD9: 0 | AE9: 0 | AF9: 0 | AG9: 0 | AH9: 0 | AI9: 0 | AJ9: 0 | AK9: 0 | AL9: 0 | AM9: 0 | AN9: 0 | AO9: 0 | AP9: 0 | AQ9: 0 | AR9: 0 | AS9: 0 | AT9: 0 | AU9: 0 | AV9: 0 | AW9: 0 | AX9: 0
A10: Pathway Affected: | E10: =TRANSPOSE(Investment!D15:D60) -> All | F10: Dist | G10: 0 | H10: 0 | I10: 0 | J10: All Assets | K10: WCM | L10: CBO | M10: FDO | N10: 0 | O10: 0 | P10: 0 | Q10: WDR | R10: CME | S10: RST | T10: RSL | U10: 0 | V10: 0 | W10: 0 | X10: 0 | Y10: RST | Z10: RSL | AA10: 0 | AB10: 0 | AC10: 0 | AD10: 0 | AE10: 0 | AF10: 0 | AG10: 0 | AH10: 0 | AI10: 0 | AJ10: 0 | AK10: 0 | AL10: 0 | AM10: 0 | AN10: 0 | AO10: 0 | AP10: 0 | AQ10: 0 | AR10: 0 | AS10: 0 | AT10: 0 | AU10: 0 | AV10: 0 | AW10: 0 | AX10: 0
A11: Benefits Multipliers | D11: =TRANSPOSE(BH21:BL21) -> Scenario 1 | E11: =TRANSPOSE(Investment!AM15:AM60) -> 1.630806537 | I11: 0 | J11: 1.00999902 | K11: 1.00990099 | P11: 0 | S11: 1.936 | X11: 0 | Y11: 1.936 | Z11: 1.96 | AA11: 0 | AB11: 0 | AC11: 0 | AD11: 0 | AE11: 0 | AF11: 0 | AG11: 0 | AH11: 0 | AI11: 0 | AJ11: 0 | AK11: 0 | AL11: 0 | AM11: 0 | AN11: 0 | AO11: 0 | AP11: 0 | AQ11: 0 | AR11: 0 | AS11: 0 | AT11: 0 | AU11: 0 | AV11: 0 | AW11: 0 | AX11: 0
D12: Scenario 2 | E12: =TRANSPOSE(Investment!AN15:AN60) -> 0.5112509398 | F12: 0 | I12: 0 | J12: 0 | K12: 0.9095012438 | P12: 0 | S12: 0.5082667219 | X12: 0 | Y12: 0.5082667219 | Z12: 0.5051025722 | AA12: 0 | AB12: 0 | AC12: 0 | AD12: 0 | AE12: 0 | AF12: 0 | AG12: 0 | AH12: 0 | AI12: 0 | AJ12: 0 | AK12: 0 | AL12: 0 | AM12: 0 | AN12: 0 | AO12: 0 | AP12: 0 | AQ12: 0 | AR12: 0 | AS12: 0 | AT12: 0 | AU12: 0 | AV12: 0 | AW12: 0 | AX12: 0
D13: Scenario 3 | E13: =TRANSPOSE(Investment!AO15:AO60) ->  | F13: 0 | I13: 0 | P13: 0 | X13: 0 | AA13: 0 | AB13: 0 | AC13: 0 | AD13: 0 | AE13: 0 | AF13: 0 | AG13: 0 | AH13: 0 | AI13: 0 | AJ13: 0 | AK13: 0 | AL13: 0 | AM13: 0 | AN13: 0 | AO13: 0 | AP13: 0 | AQ13: 0 | AR13: 0 | AS13: 0 | AT13: 0 | AU13: 0 | AV13: 0 | AW13: 0 | AX13: 0
D14: Scenario 4 | E14: =TRANSPOSE(Investment!AP15:AP60) ->  | F14: 0 | I14: 0 | P14: 0 | X14: 0 | AA14: 0 | AB14: 0 | AC14: 0 | AD14: 0 | AE14: 0 | AF14: 0 | AG14: 0 | AH14: 0 | AI14: 0 | AJ14: 0 | AK14: 0 | AL14: 0 | AM14: 0 | AN14: 0 | AO14: 0 | AP14: 0 | AQ14: 0 | AR14: 0 | AS14: 0 | AT14: 0 | AU14: 0 | AV14: 0 | AW14: 0 | AX14: 0
D15: Scenario 5 | E15: =TRANSPOSE(Investment!AQ15:AQ60) ->  | F15: 0 | I15: 0 | P15: 0 | X15: 0 | AA15: 0 | AB15: 0 | AC15: 0 | AD15: 0 | AE15: 0 | AF15: 0 | AG15: 0 | AH15: 0 | AI15: 0 | AJ15: 0 | AK15: 0 | AL15: 0 | AM15: 0 | AN15: 0 | AO15: 0 | AP15: 0 | AQ15: 0 | AR15: 0 | AS15: 0 | AT15: 0 | AU15: 0 | AV15: 0 | AW15: 0 | AX15: 0
A17: Benefits Multipliers (with #DIV/0! errors removed) | D17: =D11 -> Scenario 1 | E17: =IF(ISERROR(E11),0,E11) -> 1.630806537 | F17: =IF(ISERROR(F11),0,F11) ->  | I17: 0 | J17: 1.00999902 | K17: 1.00990099 | P17: 0 | Q17: 0 | S17: 1.936 | X17: 0 | Y17: 1.936 | Z17: 1.96 | AA17: 0 | AB17: 0 | AC17: 0 | AD17: 0 | AE17: 0 | AF17: 0 | AG17: 0 | AH17: 0 | AI17: 0 | AJ17: 0 | AK17: 0 | AL17: 0 | AM17: 0 | AN17: 0 | AO17: 0 | AP17: 0 | AQ17: 0 | AR17: 0 | AS17: 0 | AT17: 0 | AU17: 0 | AV17: 0 | AW17: 0 | AX17: 0
D18: =D12 -> Scenario 2 | E18: =IF(ISERROR(E12),0,E12) -> 0.5112509398 | F18: =IF(ISERROR(F12),0,F12) -> 0 | I18: 0 | J18: 0 | K18: 0.9095012438 | P18: 0 | Q18: 0 | S18: 0.5082667219 | U18: =IF(ISERROR(U12),0,U12) ->  | X18: 0 | Y18: 0.5082667219 | Z18: 0.5051025722 | AA18: 0 | AB18: 0 | AC18: 0 | AD18: 0 | AE18: 0 | AF18: 0 | AG18: 0 | AH18: 0 | AI18: 0 | AJ18: 0 | AK18: 0 | AL18: 0 | AM18: 0 | AN18: 0 | AO18: 0 | AP18: 0 | AQ18: 0 | AR18: 0 | AS18: 0 | AT18: 0 | AU18: 0 | AV18: 0 | AW18: 0 | AX18: 0
D19: =D13 -> Scenario 3 | E19: =IF(ISERROR(E13),0,E13) ->  | F19: =IF(ISERROR(F13),0,F13) -> 0 | I19: 0 | P19: 0 | U19: =IF(ISERROR(U13),0,U13) ->  | X19: 0 | AA19: 0 | AB19: 0 | AC19: 0 | AD19: 0 | AE19: 0 | AF19: 0 | AG19: 0 | AH19: 0 | AI19: 0 | AJ19: 0 | AK19: 0 | AL19: 0 | AM19: 0 | AN19: 0 | AO19: 0 | AP19: 0 | AQ19: 0 | AR19: 0 | AS19: 0 | AT19: 0 | AU19: 0 | AV19: 0 | AW19: 0 | AX19: 0
D20: =D14 -> Scenario 4 | E20: =IF(ISERROR(E14),0,E14) ->  | F20: 0 | I20: 0 | P20: 0 | U20: =IF(ISERROR(U14),0,U14) ->  | X20: 0 | AA20: 0 | AB20: 0 | AC20: 0 | AD20: 0 | AE20: 0 | AF20: 0 | AG20: 0 | AH20: 0 | AI20: 0 | AJ20: 0 | AK20: 0 | AL20: 0 | AM20: 0 | AN20: 0 | AO20: 0 | AP20: 0 | AQ20: 0 | AR20: 0 | AS20: 0 | AT20: 0 | AU20: 0 | AV20: 0 | AW20: 0 | AX20: 0 | BG20: Modified factors | BN20: Modified factors, with values capped at 1
D21: =D15 -> Scenario 5 | E21: =IF(ISERROR(E15),0,E15) ->  | F21: 0 | I21: 0 | P21: 0 | X21: 0 | AA21: 0 | AB21: 0 | AC21: 0 | AD21: 0 | AE21: 0 | AF21: 0 | AG21: 0 | AH21: 0 | AI21: 0 | AJ21: 0 | AK21: 0 | AL21: 0 | AM21: 0 | AN21: 0 | AO21: 0 | AP21: 0 | AQ21: 0 | AR21: 0 | AS21: 0 | AT21: 0 | AU21: 0 | AV21: 0 | AW21: 0 | AX21: 0 | BG21: Baseline | BH21: ='Modified Factors'!G392 -> Scenario 1 | BI21: ='Modified Factors'!H392 -> Scenario 2 | BJ21: ='Modified Factors'!I392 -> Scenario 3 | BK21: ='Modified Factors'!J392 -> Scenario 4 | BL21: ='Modified Factors'!K392 -> Scenario 5 | BN21: Baseline | BO21: =BH21 -> Scenario 1 | BP21: =BI21 -> Scenario 2 | BQ21: =BJ21 -> Scenario 3 | BR21: =BK21 -> Scenario 4 | BS21: =BL21 -> Scenario 5
A23: Working with assets
A24: ='Non-Res Inputs'!A23:B23 -> OP | C24: ='Non-Res Inputs'!C23 -> % Response Operated | AZ24: Baseline | BA24: =BH21 -> Scenario 1 | BB24: =BI21 -> Scenario 2 | BC24: =BJ21 -> Scenario 3 | BD24: =BK21 -> Scenario 4 | BE24: =BL21 -> Scenario 5
A25: =A24 -> OP | B25: =Settings!C75 -> FDO | D25: Upper Estimate | E25: =E26 -> 0 | F25: =F26 -> 0 | G25: 0 | H25: 0 | I25: 0 | J25: 0 | K25: 0 | L25: 0 | M25: 1 | N25: 0 | O25: 0 | P25: 0 | Q25: 0 | R25: 0 | S25: 0 | T25: 0 | U25: 0 | V25: 0 | W25: 0 | X25: 0 | Y25: 0 | Z25: 0 | AA25: 0 | AB25: 0 | AC25: 0 | AD25: 0 | AE25: 0 | AF25: 0 | AG25: 0 | AH25: 0 | AI25: 0 | AJ25: 0 | AK25: 0 | AL25: 0 | AM25: 0 | AN25: 0 | AO25: 0 | AP25: 0 | AQ25: 0 | AR25: 0 | AS25: 0 | AT25: 0 | AU25: 0 | AV25: 0 | AW25: 0 | AX25: 0 | AZ25: =BG25 -> 0.99 | BA25: =IF(ISERROR('%OP'!N69),0,'%OP'!N69) -> 0 | BB25: =IF(ISERROR('%OP'!N98),0,'%OP'!N98) -> 0 | BC25: =IF(ISERROR('%OP'!N127),0,'%OP'!N127) -> 0 | BD25: =IF(ISERROR('%OP'!N156),0,'%OP'!N156) -> 0 | BE25: =IF(ISERROR('%OP'!N185),0,'%OP'!N185) -> 0 | BG25: ='Assets Inputs'!N10 -> 0.99 | BH25: =IF((SUMPRODUCT($E$17:$AX$17,$E25:$AX25)*$BA25)=0,$BA25,SUMPRODUCT($E$17:$AX$17,$E25:$AX25)*$BA25) -> 0 | BI25: =IF((SUMPRODUCT($E$18:$AX$18,$E25:$AX25)*$BB25)=0,$BB25,SUMPRODUCT($E$18:$AX$18,$E25:$AX25)*$BB25) -> 0 | BJ25: =IF((SUMPRODUCT($E$19:$AX$19,$E25:$AX25)*$BC25)=0,$BC25,SUMPRODUCT($E$19:$AX$19,$E25:$AX25)*$BC25) -> 0 | BK25: =IF((SUMPRODUCT($E$20:$AX$20,$E25:$AX25)*$BD25)=0,$BD25,SUMPRODUCT($E$20:$AX$20,$E25:$AX25)*$BD25) -> 0 | BL25: =IF((SUMPRODUCT($E$21:$AX$21,$E25:$AX25)*$BE25)=0,$BE25,SUMPRODUCT($E$21:$AX$21,$E25:$AX25)*$BE25) -> 0 | BN25: =BG25 -> 0.99 | BO25: =IF(BH25<1,BH25,1) -> 0 | BP25: 0 | BQ25: 0 | BR25: 0 | BS25: 0
A26: =A24 -> OP | B26: =B25 -> FDO | C26: =Settings!D75 -> Flood Defence Operation | D26: Best Estimate | E26: =IF(E$9=$A26,IF(E$10=$B26,1,IF(OR(E$10="All",E$10="All Assets"),1,0)),0) -> 0 | F26: =IF(F$9=$A26,IF(F$10=$B26,1,IF(OR(F$10="All",F$10="All Assets"),1,0)),0) -> 0 | G26: 0 | H26: 0 | I26: 0 | J26: 0 | K26: 0 | L26: 0 | M26: 1 | N26: 0 | O26: 0 | P26: 0 | Q26: 0 | R26: 0 | S26: 0 | T26: 0 | U26: 0 | V26: 0 | W26: =IF(W$9=$A26,IF(W$10=$B26,1,IF(OR(W$10="All",W$10="All Assets"),1,0)),0) -> 0 | X26: 0 | Y26: 0 | Z26: 0 | AA26: 0 | AB26: 0 | AC26: 0 | AD26: 0 | AE26: 0 | AF26: 0 | AG26: 0 | AH26: 0 | AI26: 0 | AJ26: 0 | AK26: 0 | AL26: 0 | AM26: 0 | AN26: 0 | AO26: 0 | AP26: 0 | AQ26: 0 | AR26: 0 | AS26: 0 | AT26: 0 | AU26: 0 | AV26: 0 | AW26: 0 | AX26: 0 | AZ26: 0.99 | BA26: =IF(ISERROR('%OP'!N70),0,'%OP'!N70) -> 0.99 | BB26: =IF(ISERROR('%OP'!N99),0,'%OP'!N99) -> 0.99 | BC26: =IF(ISERROR('%OP'!N128),0,'%OP'!N128) -> 0 | BD26: =IF(ISERROR('%OP'!N157),0,'%OP'!N157) -> 0 | BE26: =IF(ISERROR('%OP'!N186),0,'%OP'!N186) -> 0 | BG26: ='Assets Inputs'!N11 -> 0.99 | BH26: =IF((SUMPRODUCT($E$17:$AX$17,$E26:$AX26)*$BA26)=0,$BA26,SUMPRODUCT($E$17:$AX$17,$E26:$AX26)*$BA26) -> 0.99 | BI26: =IF((SUMPRODUCT($E$18:$AX$18,$E26:$AX26)*$BB26)=0,$BB26,SUMPRODUCT($E$18:$AX$18,$E26:$AX26)*$BB26) -> 0.99 | BJ26: =IF((SUMPRODUCT($E$19:$AX$19,$E26:$AX26)*$BC26)=0,$BC26,SUMPRODUCT($E$19:$AX$19,$E26:$AX26)*$BC26) -> 0 | BK26: =IF((SUMPRODUCT($E$20:$AX$20,$E26:$AX26)*$BD26)=0,$BD26,SUMPRODUCT($E$20:$AX$20,$E26:$AX26)*$BD26) -> 0 | BL26: =IF((SUMPRODUCT($E$21:$AX$21,$E26:$AX26)*$BE26)=0,$BE26,SUMPRODUCT($E$21:$AX$21,$E26:$AX26)*$BE26) -> 0 | BN26: =BG26 -> 0.99 | BO26: 0.99 | BP26: 0.99 | BQ26: 0 | BR26: 0 | BS26: 0
A27: =A24 -> OP | B27: =B25 -> FDO | D27: Lower Estimate | E27: =E26 -> 0 | F27: =F26 -> 0 | G27: 0 | H27: 0 | I27: 0 | J27: 0 | K27: 0 | L27: 0 | M27: 1 | N27: 0 | O27: 0 | P27: 0 | Q27: 0 | R27: 0 | S27: 0 | T27: 0 | U27: 0 | V27: 0 | W27: 0 | X27: 0 | Y27: 0 | Z27: 0 | AA27: 0 | AB27: 0 | AC27: 0 | AD27: 0 | AE27: 0 | AF27: 0 | AG27: 0 | AH27: 0 | AI27: 0 | AJ27: 0 | AK27: 0 | AL27: 0 | AM27: 0 | AN27: 0 | AO27: 0 | AP27: 0 | AQ27: 0 | AR27: 0 | AS27: 0 | AT27: 0 | AU27: 0 | AV27: 0 | AW27: 0 | AX27: 0 | AZ27: 0.99 | BA27: =IF(ISERROR('%OP'!N71),0,'%OP'!N71) -> 0 | BB27: =IF(ISERROR('%OP'!N100),0,'%OP'!N100) -> 0 | BC27: =IF(ISERROR('%OP'!N129),0,'%OP'!N129) -> 0 | BD27: =IF(ISERROR('%OP'!N158),0,'%OP'!N158) -> 0 | BE27: =IF(ISERROR('%OP'!N187),0,'%OP'!N187) -> 0 | BG27: ='Assets Inputs'!N12 -> 0.99 | BH27: =IF((SUMPRODUCT($E$17:$AX$17,$E27:$AX27)*$BA27)=0,$BA27,SUMPRODUCT($E$17:$AX$17,$E27:$AX27)*$BA27) -> 0 | BI27: =IF((SUMPRODUCT($E$18:$AX$18,$E27:$AX27)*$BB27)=0,$BB27,SUMPRODUCT($E$18:$AX$18,$E27:$AX27)*$BB27) -> 0 | BJ27: =IF((SUMPRODUCT($E$19:$AX$19,$E27:$AX27)*$BC27)=0,$BC27,SUMPRODUCT($E$19:$AX$19,$E27:$AX27)*$BC27) -> 0 | BK27: =IF((SUMPRODUCT($E$20:$AX$20,$E27:$AX27)*$BD27)=0,$BD27,SUMPRODUCT($E$20:$AX$20,$E27:$AX27)*$BD27) -> 0 | BL27: =IF((SUMPRODUCT($E$21:$AX$21,$E27:$AX27)*$BE27)=0,$BE27,SUMPRODUCT($E$21:$AX$21,$E27:$AX27)*$BE27) -> 0 | BN27: =BG27 -> 0.99 | BO27: =IF(BH27<1,BH27,1) -> 0 | BP27: =IF(BI27<1,BI27,1) -> 0 | BQ27: =IF(BJ27<1,BJ27,1) -> 0 | BR27: =IF(BK27<1,BK27,1) -> 0 | BS27: =IF(BL27<1,BL27,1) -> 0
A28: =A24 -> OP | B28: =Settings!C76 -> WCM | D28: Upper Estimate | E28: =E29 -> 0 | F28: 0 | G28: 0 | H28: 0 | I28: 0 | J28: 0 | K28: 1 | L28: 0 | M28: 0 | N28: 0 | O28: 0 | P28: 0 | Q28: 0 | R28: 0 | S28: 0 | T28: 0 | U28: 0 | V28: 0 | W28: 0 | X28: 0 | Y28: 0 | Z28: 0 | AA28: 0 | AB28: 0 | AC28: 0 | AD28: 0 | AE28: 0 | AF28: 0 | AG28: 0 | AH28: 0 | AI28: 0 | AJ28: 0 | AK28: 0 | AL28: 0 | AM28: 0 | AN28: 0 | AO28: 0 | AP28: 0 | AQ28: 0 | AR28: 0 | AS28: 0 | AT28: 0 | AU28: 0 | AV28: 0 | AW28: 0 | AX28: 0 | AZ28: 0.5 | BA28: =IF(ISERROR('%OP'!N72),0,'%OP'!N72) -> 0 | BB28: =IF(ISERROR('%OP'!N101),0,'%OP'!N101) -> 0 | BC28: =IF(ISERROR('%OP'!N130),0,'%OP'!N130) -> 0 | BD28: =IF(ISERROR('%OP'!N159),0,'%OP'!N159) -> 0 | BE28: =IF(ISERROR('%OP'!N188),0,'%OP'!N188) -> 0 | BG28: ='Assets Inputs'!N13 -> 0.5 | BH28: 0 | BI28: 0 | BJ28: 0 | BK28: 0 | BL28: 0 | BN28: 0.5 | BO28: 0 | BP28: 0 | BQ28: 0 | BR28: 0 | BS28: 0
A29: =A24 -> OP | B29: =B28 -> WCM | C29: =Settings!D76 -> Watercourse Management | D29: Best Estimate | E29: =IF(E$9=$A29,IF(E$10=$B29,1,IF(OR(E$10="All",E$10="All Assets"),1,0)),0) -> 0 | F29: 0 | G29: 0 | H29: 0 | I29: 0 | J29: 0 | K29: 1 | L29: 0 | M29: 0 | N29: 0 | O29: 0 | P29: 0 | Q29: 0 | R29: 0 | S29: 0 | T29: 0 | U29: 0 | V29: 0 | W29: 0 | X29: 0 | Y29: 0 | Z29: 0 | AA29: 0 | AB29: 0 | AC29: 0 | AD29: 0 | AE29: 0 | AF29: 0 | AG29: 0 | AH29: 0 | AI29: 0 | AJ29: 0 | AK29: 0 | AL29: 0 | AM29: =IF(AM$9=$A29,IF(AM$10=$B29,1,IF(OR(AM$10="All",AM$10="All Assets"),1,0)),0) -> 0 | AN29: 0 | AO29: 0 | AP29: 0 | AQ29: 0 | AR29: 0 | AS29: 0 | AT29: 0 | AU29: 0 | AV29: 0 | AW29: 0 | AX29: 0 | AZ29: 0.5 | BA29: =IF(ISERROR('%OP'!N73),0,'%OP'!N73) -> 0.5 | BB29: =IF(ISERROR('%OP'!N102),0,'%OP'!N102) -> 0.5 | BC29: =IF(ISERROR('%OP'!N131),0,'%OP'!N131) -> 0 | BD29: =IF(ISERROR('%OP'!N160),0,'%OP'!N160) -> 0 | BE29: =IF(ISERROR('%OP'!N189),0,'%OP'!N189) -> 0 | BG29: ='Assets Inputs'!N14 -> 0.5 | BH29: 0.504950495 | BI29: 0.4547506219 | BJ29: 0 | BK29: 0 | BL29: 0 | BN29: 0.5 | BO29: 0.504950495 | BP29: 0.4547506219 | BQ29: 0 | BR29: 0 | BS29: 0
A30: =A24 -> OP | B30: =B28 -> WCM | D30: Lower Estimate | E30: =E29 -> 0 | F30: 0 | G30: 0 | H30: 0 | I30: 0 | J30: 0 | K30: 1 | L30: 0 | M30: 0 | N30: 0 | O30: 0 | P30: 0 | Q30: 0 | R30: 0 | S30: 0 | T30: 0 | U30: 0 | V30: 0 | W30: 0 | X30: 0 | Y30: 0 | Z30: 0 | AA30: 0 | AB30: 0 | AC30: 0 | AD30: 0 | AE30: 0 | AF30: 0 | AG30: 0 | AH30: 0 | AI30: 0 | AJ30: 0 | AK30: 0 | AL30: 0 | AM30: 0 | AN30: 0 | AO30: 0 | AP30: 0 | AQ30: 0 | AR30: 0 | AS30: 0 | AT30: 0 | AU30: 0 | AV30: 0 | AW30: 0 | AX30: 0 | AZ30: 0.5 | BA30: =IF(ISERROR('%OP'!N74),0,'%OP'!N74) -> 0 | BB30: =IF(ISERROR('%OP'!N103),0,'%OP'!N103) -> 0 | BC30: =IF(ISERROR('%OP'!N132),0,'%OP'!N132) -> 0 | BD30: =IF(ISERROR('%OP'!N161),0,'%OP'!N161) -> 0 | BE30: =IF(ISERROR('%OP'!N190),0,'%OP'!N190) -> 0 | BG30: ='Assets Inputs'!N15 -> 0.5 | BH30: 0 | BI30: 0 | BJ30: 0 | BK30: 0 | BL30: 0 | BN30: 0.5 | BO30: 0 | BP30: 0 | BQ30: 0 | BR30: 0 | BS30: 0
A31: =A24 -> OP | B31: =Settings!C77 -> CBO | D31: Upper Estimate | E31: =E32 -> 0 | F31: 0 | G31: 0 | H31: 0 | I31: 0 | J31: 0 | K31: 0 | L31: 1 | M31: 0 | N31: 0 | O31: 0 | P31: 0 | Q31: 0 | R31: 0 | S31: 0 | T31: 0 | U31: 0 | V31: 0 | W31: 0 | X31: 0 | Y31: 0 | Z31: 0 | AA31: 0 | AB31: 0 | AC31: 0 | AD31: 0 | AE31: 0 | AF31: 0 | AG31: 0 | AH31: 0 | AI31: 0 | AJ31: 0 | AK31: 0 | AL31: 0 | AM31: 0 | AN31: 0 | AO31: 0 | AP31: 0 | AQ31: 0 | AR31: 0 | AS31: 0 | AT31: 0 | AU31: 0 | AV31: 0 | AW31: 0 | AX31: 0 | AZ31: 0.8 | BA31: =IF(ISERROR('%OP'!N75),0,'%OP'!N75) -> 0 | BB31: =IF(ISERROR('%OP'!N104),0,'%OP'!N104) -> 0 | BC31: =IF(ISERROR('%OP'!N133),0,'%OP'!N133) -> 0 | BD31: =IF(ISERROR('%OP'!N162),0,'%OP'!N162) -> 0 | BE31: =IF(ISERROR('%OP'!N191),0,'%OP'!N191) -> 0 | BG31: ='Assets Inputs'!N16 -> 0.8 | BH31: 0 | BI31: 0 | BJ31: 0 | BK31: 0 | BL31: 0 | BN31: 0.8 | BO31: 0 | BP31: 0 | BQ31: 0 | BR31: 0 | BS31: 0
A32: =A24 -> OP | B32: =B31 -> CBO | C32: =Settings!D77 -> Community Based Operations | D32: Best Estimate | E32: =IF(E$9=$A32,IF(E$10=$B32,1,IF(OR(E$10="All",E$10="All Assets"),1,0)),0) -> 0 | F32: 0 | G32: 0 | H32: 0 | I32: 0 | J32: 0 | K32: 0 | L32: 1 | M32: 0 | N32: 0 | O32: 0 | P32: 0 | Q32: 0 | R32: 0 | S32: 0 | T32: 0 | U32: 0 | V32: 0 | W32: 0 | X32: 0 | Y32: 0 | Z32: 0 | AA32: 0 | AB32: 0 | AC32: 0 | AD32: 0 | AE32: 0 | AF32: 0 | AG32: 0 | AH32: 0 | AI32: 0 | AJ32: 0 | AK32: 0 | AL32: 0 | AM32: 0 | AN32: 0 | AO32: 0 | AP32: 0 | AQ32: 0 | AR32: 0 | AS32: 0 | AT32: 0 | AU32: 0 | AV32: 0 | AW32: 0 | AX32: 0 | AZ32: 0.8 | BA32: =IF(ISERROR('%OP'!N76),0,'%OP'!N76) -> 0.8 | BB32: =IF(ISERROR('%OP'!N105),0,'%OP'!N105) -> 0.8 | BC32: =IF(ISERROR('%OP'!N134),0,'%OP'!N134) -> 0 | BD32: =IF(ISERROR('%OP'!N163),0,'%OP'!N163) -> 0 | BE32: =IF(ISERROR('%OP'!N192),0,'%OP'!N192) -> 0 | BG32: ='Assets Inputs'!N17 -> 0.8 | BH32: 0.8 | BI32: 0.8 | BJ32: 0 | BK32: 0 | BL32: 0 | BN32: 0.8 | BO32: 0.8 | BP32: 0.8 | BQ32: 0 | BR32: 0 | BS32: 0
A33: =A24 -> OP | B33: =B32 -> CBO | D33: Lower Estimate | E33: =E32 -> 0 | F33: 0 | G33: 0 | H33: 0 | I33: 0 | J33: 0 | K33: 0 | L33: 1 | M33: 0 | N33: 0 | O33: 0 | P33: 0 | Q33: 0 | R33: 0 | S33: 0 | T33: 0 | U33: 0 | V33: 0 | W33: 0 | X33: 0 | Y33: 0 | Z33: 0 | AA33: 0 | AB33: 0 | AC33: 0 | AD33: 0 | AE33: 0 | AF33: 0 | AG33: 0 | AH33: 0 | AI33: 0 | AJ33: 0 | AK33: 0 | AL33: 0 | AM33: 0 | AN33: 0 | AO33: 0 | AP33: 0 | AQ33: 0 | AR33: 0 | AS33: 0 | AT33: 0 | AU33: 0 | AV33: 0 | AW33: 0 | AX33: 0 | AZ33: 0.8 | BA33: =IF(ISERROR('%OP'!N77),0,'%OP'!N77) -> 0 | BB33: =IF(ISERROR('%OP'!N106),0,'%OP'!N106) -> 0 | BC33: =IF(ISERROR('%OP'!N135),0,'%OP'!N135) -> 0 | BD33: =IF(ISERROR('%OP'!N164),0,'%OP'!N164) -> 0 | BE33: =IF(ISERROR('%OP'!N193),0,'%OP'!N193) -> 0 | BG33: ='Assets Inputs'!N18 -> 0.8 | BH33: 0 | BI33: 0 | BJ33: 0 | BK33: 0 | BL33: 0 | BN33: 0.8 | BO33: 0 | BP33: 0 | BQ33: 0 | BR33: 0 | BS33: 0
A36: =Settings!C70 -> WS | C36: =Settings!E70 -> % Warning Success
A37: =A36 -> WS | B37: =B25 -> FDO | D37: Upper Estimate | E37: =E38 -> 1 | F37: 0 | G37: 0 | H37: 0 | I37: 0 | J37: 1 | K37: 0 | L37: 0 | M37: 0 | N37: 0 | O37: 0 | P37: 0 | Q37: 0 | R37: 0 | S37: 0 | T37: 0 | U37: 0 | V37: 0 | W37: 0 | X37: 0 | Y37: 0 | Z37: 0 | AA37: 0 | AB37: 0 | AC37: 0 | AD37: 0 | AE37: 0 | AF37: 0 | AG37: 0 | AH37: 0 | AI37: 0 | AJ37: 0 | AK37: 0 | AL37: 0 | AM37: 0 | AN37: 0 | AO37: 0 | AP37: 0 | AQ37: 0 | AR37: 0 | AS37: 0 | AT37: 0 | AU37: 0 | AV37: 0 | AW37: 0 | AX37: 0 | BG37: ='Assets Inputs'!N23 -> 0.99 | BH37: =IF((SUMPRODUCT($E$17:$AX$17,$E37:$AX37)*$BG37)=0,$BG37,SUMPRODUCT($E$17:$AX$17,$E37:$AX37)*$BG37) -> 2.614397501 | BI37: =IF((SUMPRODUCT($E$18:$AX$18,$E37:$AX37)*$BG37)=0,$BG37,SUMPRODUCT($E$18:$AX$18,$E37:$AX37)*$BG37) -> 0.5061384304 | BJ37: =IF((SUMPRODUCT($E$19:$AX$19,$E37:$AX37)*$BG37)=0,$BG37,SUMPRODUCT($E$19:$AX$19,$E37:$AX37)*$BG37) -> 0.99 | BK37: =IF((SUMPRODUCT($E$20:$AX$20,$E37:$AX37)*$BG37)=0,$BG37,SUMPRODUCT($E$20:$AX$20,$E37:$AX37)*$BG37) -> 0.99 | BL37: =IF((SUMPRODUCT($E$21:$AX$21,$E37:$AX37)*$BG37)=0,$BG37,SUMPRODUCT($E$21:$AX$21,$E37:$AX37)*$BG37) -> 0.99 | BN37: =BG37 -> 0.99 | BO37: =IF(BH37<1,BH37,1) -> 1 | BP37: 0.5061384304 | BQ37: 0.99 | BR37: 0.99 | BS37: 0.99
A38: WS | B38: FDO | C38: =A36&" for domestic properties" -> WS for domestic properties | D38: Best Estimate | E38: =IF(E$9=$A38,IF(E$10=$B38,1,IF(OR(E$10="All",E$10="All Assets"),1,0)),0) -> 1 | F38: 0 | G38: 0 | H38: 0 | I38: 0 | J38: 1 | K38: 0 | L38: 0 | M38: 0 | N38: 0 | O38: 0 | P38: 0 | Q38: 0 | R38: 0 | S38: 0 | T38: 0 | U38: 0 | V38: 0 | W38: 0 | X38: 0 | Y38: 0 | Z38: 0 | AA38: 0 | AB38: 0 | AC38: 0 | AD38: 0 | AE38: 0 | AF38: 0 | AG38: 0 | AH38: 0 | AI38: 0 | AJ38: 0 | AK38: 0 | AL38: 0 | AM38: 0 | AN38: 0 | AO38: 0 | AP38: 0 | AQ38: 0 | AR38: 0 | AS38: 0 | AT38: 0 | AU38: 0 | AV38: 0 | AW38: 0 | AX38: 0 | BG38: ='Assets Inputs'!N24 -> 0.99 | BH38: =IF((SUMPRODUCT($E$17:$AX$17,$E38:$AX38)*$BG38)=0,$BG38,SUMPRODUCT($E$17:$AX$17,$E38:$AX38)*$BG38) -> 2.614397501 | BI38: =IF((SUMPRODUCT($E$18:$AX$18,$E38:$AX38)*$BG38)=0,$BG38,SUMPRODUCT($E$18:$AX$18,$E38:$AX38)*$BG38) -> 0.5061384304 | BJ38: =IF((SUMPRODUCT($E$19:$AX$19,$E38:$AX38)*$BG38)=0,$BG38,SUMPRODUCT($E$19:$AX$19,$E38:$AX38)*$BG38) -> 0.99 | BK38: =IF((SUMPRODUCT($E$20:$AX$20,$E38:$AX38)*$BG38)=0,$BG38,SUMPRODUCT($E$20:$AX$20,$E38:$AX38)*$BG38) -> 0.99 | BL38: =IF((SUMPRODUCT($E$21:$AX$21,$E38:$AX38)*$BG38)=0,$BG38,SUMPRODUCT($E$21:$AX$21,$E38:$AX38)*$BG38) -> 0.99 | BN38: =BG38 -> 0.99 | BO38: 1 | BP38: 0.5061384304 | BQ38: 0.99 | BR38: 0.99 | BS38: 0.99
A39: WS | B39: FDO | D39: Lower Estimate | E39: =E38 -> 1 | F39: 0 | G39: 0 | H39: 0 | I39: 0 | J39: 1 | K39: 0 | L39: 0 | M39: 0 | N39: 0 | O39: 0 | P39: 0 | Q39: 0 | R39: 0 | S39: 0 | T39: 0 | U39: 0 | V39: 0 | W39: 0 | X39: 0 | Y39: 0 | Z39: 0 | AA39: 0 | AB39: 0 | AC39: 0 | AD39: 0 | AE39: 0 | AF39: 0 | AG39: 0 | AH39: 0 | AI39: 0 | AJ39: 0 | AK39: 0 | AL39: 0 | AM39: 0 | AN39: 0 | AO39: 0 | AP39: 0 | AQ39: 0 | AR39: 0 | AS39: 0 | AT39: 0 | AU39: 0 | AV39: 0 | AW39: 0 | AX39: 0 | BG39: ='Assets Inputs'!N25 -> 0.99 | BH39: =IF((SUMPRODUCT($E$17:$AX$17,$E39:$AX39)*$BG39)=0,$BG39,SUMPRODUCT($E$17:$AX$17,$E39:$AX39)*$BG39) -> 2.614397501 | BI39: =IF((SUMPRODUCT($E$18:$AX$18,$E39:$AX39)*$BG39)=0,$BG39,SUMPRODUCT($E$18:$AX$18,$E39:$AX39)*$BG39) -> 0.5061384304 | BJ39: =IF((SUMPRODUCT($E$19:$AX$19,$E39:$AX39)*$BG39)=0,$BG39,SUMPRODUCT($E$19:$AX$19,$E39:$AX39)*$BG39) -> 0.99 | BK39: =IF((SUMPRODUCT($E$20:$AX$20,$E39:$AX39)*$BG39)=0,$BG39,SUMPRODUCT($E$20:$AX$20,$E39:$AX39)*$BG39) -> 0.99 | BL39: =IF((SUMPRODUCT($E$21:$AX$21,$E39:$AX39)*$BG39)=0,$BG39,SUMPRODUCT($E$21:$AX$21,$E39:$AX39)*$BG39) -> 0.99 | BN39: =BG39 -> 0.99 | BO39: =IF(BH39<1,BH39,1) -> 1 | BP39: =IF(BI39<1,BI39,1) -> 0.5061384304 | BQ39: =IF(BJ39<1,BJ39,1) -> 0.99 | BR39: =IF(BK39<1,BK39,1) -> 0.99 | BS39: =IF(BL39<1,BL39,1) -> 0.99
A40: WS | B40: WCM | D40: Upper Estimate | E40: =E41 -> 1 | F40: 0 | G40: 0 | H40: 0 | I40: 0 | J40: 1 | K40: 0 | L40: 0 | M40: 0 | N40: 0 | O40: 0 | P40: 0 | Q40: 0 | R40: 0 | S40: 0 | T40: 0 | U40: 0 | V40: 0 | W40: 0 | X40: 0 | Y40: 0 | Z40: 0 | AA40: 0 | AB40: 0 | AC40: 0 | AD40: 0 | AE40: 0 | AF40: 0 | AG40: 0 | AH40: 0 | AI40: 0 | AJ40: 0 | AK40: 0 | AL40: 0 | AM40: 0 | AN40: 0 | AO40: 0 | AP40: 0 | AQ40: 0 | AR40: 0 | AS40: 0 | AT40: 0 | AU40: 0 | AV40: 0 | AW40: 0 | AX40: 0 | BG40: ='Assets Inputs'!N26 -> 0.9 | BH40: 2.376725001 | BI40: 0.4601258458 | BJ40: 0.9 | BK40: 0.9 | BL40: 0.9 | BN40: 0.9 | BO40: 1 | BP40: 0.4601258458 | BQ40: 0.9 | BR40: 0.9 | BS40: 0.9
A41: WS | B41: WCM | C41: =A36&" for non-residential properties" -> WS for non-residential properties | D41: Best Estimate | E41: =IF(E$9=$A41,IF(E$10=$B41,1,IF(OR(E$10="All",E$10="All Assets"),1,0)),0) -> 1 | F41: 0 | G41: 0 | H41: 0 | I41: 0 | J41: 1 | K41: 0 | L41: 0 | M41: 0 | N41: 0 | O41: 0 | P41: 0 | Q41: 0 | R41: 0 | S41: 0 | T41: 0 | U41: 0 | V41: 0 | W41: 0 | X41: 0 | Y41: 0 | Z41: 0 | AA41: 0 | AB41: 0 | AC41: 0 | AD41: 0 | AE41: 0 | AF41: 0 | AG41: 0 | AH41: 0 | AI41: 0 | AJ41: 0 | AK41: 0 | AL41: 0 | AM41: 0 | AN41: 0 | AO41: 0 | AP41: 0 | AQ41: 0 | AR41: 0 | AS41: 0 | AT41: 0 | AU41: 0 | AV41: 0 | AW41: 0 | AX41: 0 | BG41: ='Assets Inputs'!N27 -> 0.9 | BH41: 2.376725001 | BI41: 0.4601258458 | BJ41: 0.9 | BK41: 0.9 | BL41: 0.9 | BN41: 0.9 | BO41: 1 | BP41: 0.4601258458 | BQ41: 0.9 | BR41: 0.9 | BS41: 0.9
A42: WS | B42: WCM | D42: Lower Estimate | E42: =E41 -> 1 | F42: 0 | G42: 0 | H42: 0 | I42: 0 | J42: 1 | K42: 0 | L42: 0 | M42: 0 | N42: 0 | O42: 0 | P42: 0 | Q42: 0 | R42: 0 | S42: 0 | T42: 0 | U42: 0 | V42: 0 | W42: 0 | X42: 0 | Y42: 0 | Z42: 0 | AA42: 0 | AB42: 0 | AC42: 0 | AD42: 0 | AE42: 0 | AF42: 0 | AG42: 0 | AH42: 0 | AI42: 0 | AJ42: 0 | AK42: 0 | AL42: 0 | AM42: 0 | AN42: 0 | AO42: 0 | AP42: 0 | AQ42: 0 | AR42: 0 | AS42: 0 | AT42: 0 | AU42: 0 | AV42: 0 | AW42: 0 | AX42: 0 | BG42: ='Assets Inputs'!N28 -> 0.9 | BH42: 2.376725001 | BI42: 0.4601258458 | BJ42: 0.9 | BK42: 0.9 | BL42: 0.9 | BN42: 0.9 | BO42: 1 | BP42: 0.4601258458 | BQ42: 0.9 | BR42: 0.9 | BS42: 0.9
A43: WS | B43: CBO | D43: Upper Estimate | E43: =E44 -> 1 | F43: 0 | G43: 0 | H43: 0 | I43: 0 | J43: 1 | K43: 0 | L43: 0 | M43: 0 | N43: 0 | O43: 0 | P43: 0 | Q43: 0 | R43: 0 | S43: 0 | T43: 0 | U43: 0 | V43: 0 | W43: 0 | X43: 0 | Y43: 0 | Z43: 0 | AA43: 0 | AB43: 0 | AC43: 0 | AD43: 0 | AE43: 0 | AF43: 0 | AG43: 0 | AH43: 0 | AI43: 0 | AJ43: 0 | AK43: 0 | AL43: 0 | AM43: 0 | AN43: 0 | AO43: 0 | AP43: 0 | AQ43: 0 | AR43: 0 | AS43: 0 | AT43: 0 | AU43: 0 | AV43: 0 | AW43: 0 | AX43: 0 | BG43: ='Assets Inputs'!N29 -> 0.9 | BH43: 2.376725001 | BI43: 0.4601258458 | BJ43: 0.9 | BK43: 0.9 | BL43: 0.9 | BN43: 0.9 | BO43: 1 | BP43: 0.4601258458 | BQ43: 0.9 | BR43: 0.9 | BS43: 0.9
A44: WS | B44: CBO | C44: =A36&" for professional partners" -> WS for professional partners | D44: Best Estimate | E44: =IF(E$9=$A44,IF(E$10=$B44,1,IF(OR(E$10="All",E$10="All Assets"),1,0)),0) -> 1 | F44: 0 | G44: 0 | H44: 0 | I44: 0 | J44: 1 | K44: 0 | L44: 0 | M44: 0 | N44: 0 | O44: 0 | P44: 0 | Q44: 0 | R44: 0 | S44: 0 | T44: 0 | U44: 0 | V44: 0 | W44: 0 | X44: 0 | Y44: 0 | Z44: 0 | AA44: 0 | AB44: 0 | AC44: 0 | AD44: 0 | AE44: 0 | AF44: 0 | AG44: 0 | AH44: 0 | AI44: 0 | AJ44: 0 | AK44: 0 | AL44: 0 | AM44: 0 | AN44: 0 | AO44: 0 | AP44: 0 | AQ44: 0 | AR44: 0 | AS44: 0 | AT44: 0 | AU44: 0 | AV44: 0 | AW44: 0 | AX44: 0 | BG44: ='Assets Inputs'!N30 -> 0.9 | BH44: 2.376725001 | BI44: 0.4601258458 | BJ44: 0.9 | BK44: 0.9 | BL44: 0.9 | BN44: 0.9 | BO44: 1 | BP44: 0.4601258458 | BQ44: 0.9 | BR44: 0.9 | BS44: 0.9
A45: WS | B45: CBO | D45: Lower Estimate | E45: =E44 -> 1 | F45: 0 | G45: 0 | H45: 0 | I45: 0 | J45: 1 | K45: 0 | L45: 0 | M45: 0 | N45: 0 | O45: 0 | P45: 0 | Q45: 0 | R45: 0 | S45: 0 | T45: 0 | U45: 0 | V45: 0 | W45: 0 | X45: 0 | Y45: 0 | Z45: 0 | AA45: 0 | AB45: 0 | AC45: 0 | AD45: 0 | AE45: 0 | AF45: 0 | AG45: 0 | AH45: 0 | AI45: 0 | AJ45: 0 | AK45: 0 | AL45: 0 | AM45: 0 | AN45: 0 | AO45: 0 | AP45: 0 | AQ45: 0 | AR45: 0 | AS45: 0 | AT45: 0 | AU45: 0 | AV45: 0 | AW45: 0 | AX45: 0 | BG45: ='Assets Inputs'!N31 -> 0.9 | BH45: 2.376725001 | BI45: 0.4601258458 | BJ45: 0.9 | BK45: 0.9 | BL45: 0.9 | BN45: 0.9 | BO45: 1 | BP45: 0.4601258458 | BQ45: 0.9 | BR45: 0.9 | BS45: 0.9
A48: Residential
A49: =Settings!C73 -> UP | C49: =Settings!E73 -> % Response Uptake
A50: =A49 -> UP | B50: =Settings!C79&"-RE" -> WIR-RE | C50: =Settings!C79 -> WIR | D50: Upper Estimate | E50: =E51 -> 0 | F50: 0 | G50: 0 | H50: 0 | I50: 0 | J50: 0 | K50: 0 | L50: 0 | M50: 0 | N50: 0 | O50: 0 | P50: 0 | Q50: 0 | R50: 0 | S50: 0 | T50: 0 | U50: 0 | V50: 0 | W50: 0 | X50: 0 | Y50: 0 | Z50: 0 | AA50: 0 | AB50: 0 | AC50: 0 | AD50: 0 | AE50: 0 | AF50: 0 | AG50: 0 | AH50: 0 | AI50: 0 | AJ50: 0 | AK50: 0 | AL50: 0 | AM50: 0 | AN50: 0 | AO50: 0 | AP50: 0 | AQ50: 0 | AR50: 0 | AS50: 0 | AT50: 0 | AU50: 0 | AV50: 0 | AW50: 0 | AX50: 0 | BG50: ='Res Inputs'!N9 -> 0.032 | BH50: =IF((SUMPRODUCT($E$17:$AX$17,$E50:$AX50)*$BG50)=0,$BG50,SUMPRODUCT($E$17:$AX$17,$E50:$AX50)*$BG50) -> 0.032 | BI50: =IF((SUMPRODUCT($E$18:$AX$18,$E50:$AX50)*$BG50)=0,$BG50,SUMPRODUCT($E$18:$AX$18,$E50:$AX50)*$BG50) -> 0.032 | BJ50: =IF((SUMPRODUCT($E$19:$AX$19,$E50:$AX50)*$BG50)=0,$BG50,SUMPRODUCT($E$19:$AX$19,$E50:$AX50)*$BG50) -> 0.032 | BK50: =IF((SUMPRODUCT($E$20:$AX$20,$E50:$AX50)*$BG50)=0,$BG50,SUMPRODUCT($E$20:$AX$20,$E50:$AX50)*$BG50) -> 0.032 | BL50: =IF((SUMPRODUCT($E$21:$AX$21,$E50:$AX50)*$BG50)=0,$BG50,SUMPRODUCT($E$21:$AX$21,$E50:$AX50)*$BG50) -> 0.032 | BN50: =BG50 -> 0.032 | BO50: =IF(BH50<1,BH50,1) -> 0.032 | BP50: 0.032 | BQ50: 0.032 | BR50: 0.032 | BS50: 0.032
A51: UP | B51: =B50 -> WIR-RE | C51: =C50 -> WIR | D51: Best Estimate | E51: =IF(E$9=$A51,IF(OR(E$10=$B51, E$10=$C51),1,IF(OR(E$10="All",E$10="All Properties"),1,0)),0) -> 0 | F51: =IF(F$9=$A51,IF(OR(F$10=$B51, F$10=$C51),1,IF(OR(F$10="All",F$10="All Properties"),1,0)),0) -> 0 | G51: 0 | H51: 0 | I51: 0 | J51: 0 | K51: 0 | L51: 0 | M51: 0 | N51: 0 | O51: 0 | P51: 0 | Q51: 0 | R51: 0 | S51: 0 | T51: 0 | U51: 0 | V51: =IF(V$9=$A51,IF(OR(V$10=$B51, V$10=$C51),1,IF(OR(V$10="All",V$10="All Properties"),1,0)),0) -> 0 | W51: 0 | X51: 0 | Y51: 0 | Z51: 0 | AA51: 0 | AB51: 0 | AC51: 0 | AD51: 0 | AE51: 0 | AF51: 0 | AG51: 0 | AH51: 0 | AI51: 0 | AJ51: 0 | AK51: 0 | AL51: 0 | AM51: 0 | AN51: 0 | AO51: 0 | AP51: 0 | AQ51: 0 | AR51: 0 | AS51: 0 | AT51: 0 | AU51: 0 | AV51: 0 | AW51: 0 | AX51: 0 | BG51: ='Res Inputs'!N10 -> 0.032 | BH51: =IF((SUMPRODUCT($E$17:$AX$17,$E51:$AX51)*$BG51)=0,$BG51,SUMPRODUCT($E$17:$AX$17,$E51:$AX51)*$BG51) -> 0.032 | BI51: =IF((SUMPRODUCT($E$18:$AX$18,$E51:$AX51)*$BG51)=0,$BG51,SUMPRODUCT($E$18:$AX$18,$E51:$AX51)*$BG51) -> 0.032 | BJ51: =IF((SUMPRODUCT($E$19:$AX$19,$E51:$AX51)*$BG51)=0,$BG51,SUMPRODUCT($E$19:$AX$19,$E51:$AX51)*$BG51) -> 0.032 | BK51: =IF((SUMPRODUCT($E$20:$AX$20,$E51:$AX51)*$BG51)=0,$BG51,SUMPRODUCT($E$20:$AX$20,$E51:$AX51)*$BG51) -> 0.032 | BL51: =IF((SUMPRODUCT($E$21:$AX$21,$E51:$AX51)*$BG51)=0,$BG51,SUMPRODUCT($E$21:$AX$21,$E51:$AX51)*$BG51) -> 0.032 | BN51: =BG51 -> 0.032 | BO51: 0.032 | BP51: 0.032 | BQ51: 0.032 | BR51: 0.032 | BS51: 0.032
A52: UP | B52: =B51 -> WIR-RE | C52: =C51 -> WIR | D52: Lower Estimate | E52: =E51 -> 0 | F52: 0 | G52: 0 | H52: 0 | I52: 0 | J52: 0 | K52: 0 | L52: 0 | M52: 0 | N52: 0 | O52: 0 | P52: 0 | Q52: 0 | R52: 0 | S52: 0 | T52: 0 | U52: 0 | V52: 0 | W52: 0 | X52: 0 | Y52: 0 | Z52: 0 | AA52: 0 | AB52: 0 | AC52: 0 | AD52: 0 | AE52: 0 | AF52: 0 | AG52: 0 | AH52: 0 | AI52: 0 | AJ52: 0 | AK52: 0 | AL52: 0 | AM52: 0 | AN52: 0 | AO52: 0 | AP52: 0 | AQ52: 0 | AR52: 0 | AS52: 0 | AT52: 0 | AU52: 0 | AV52: 0 | AW52: 0 | AX52: 0 | BG52: ='Res Inputs'!N11 -> 0.032 | BH52: =IF((SUMPRODUCT($E$17:$AX$17,$E52:$AX52)*$BG52)=0,$BG52,SUMPRODUCT($E$17:$AX$17,$E52:$AX52)*$BG52) -> 0.032 | BI52: =IF((SUMPRODUCT($E$18:$AX$18,$E52:$AX52)*$BG52)=0,$BG52,SUMPRODUCT($E$18:$AX$18,$E52:$AX52)*$BG52) -> 0.032 | BJ52: =IF((SUMPRODUCT($E$19:$AX$19,$E52:$AX52)*$BG52)=0,$BG52,SUMPRODUCT($E$19:$AX$19,$E52:$AX52)*$BG52) -> 0.032 | BK52: =IF((SUMPRODUCT($E$20:$AX$20,$E52:$AX52)*$BG52)=0,$BG52,SUMPRODUCT($E$20:$AX$20,$E52:$AX52)*$BG52) -> 0.032 | BL52: =IF((SUMPRODUCT($E$21:$AX$21,$E52:$AX52)*$BG52)=0,$BG52,SUMPRODUCT($E$21:$AX$21,$E52:$AX52)*$BG52) -> 0.032 | BN52: =BG52 -> 0.032 | BO52: =IF(BH52<1,BH52,1) -> 0.032 | BP52: =IF(BI52<1,BI52,1) -> 0.032 | BQ52: =IF(BJ52<1,BJ52,1) -> 0.032 | BR52: =IF(BK52<1,BK52,1) -> 0.032 | BS52: =IF(BL52<1,BL52,1) -> 0.032
A53: UP | B53: =Settings!C80&"-RE" -> WDR-RE | C53: =Settings!C80 -> WDR | D53: Upper Estimate | E53: =E54 -> 0 | F53: 0 | G53: 0 | H53: 0 | I53: 0 | J53: 0 | K53: 0 | L53: 0 | M53: 0 | N53: 0 | O53: 0 | P53: 0 | Q53: 0 | R53: 0 | S53: 0 | T53: 0 | U53: 0 | V53: 0 | W53: 0 | X53: 0 | Y53: 0 | Z53: 0 | AA53: 0 | AB53: 0 | AC53: 0 | AD53: 0 | AE53: 0 | AF53: 0 | AG53: 0 | AH53: 0 | AI53: 0 | AJ53: 0 | AK53: 0 | AL53: 0 | AM53: 0 | AN53: 0 | AO53: 0 | AP53: 0 | AQ53: 0 | AR53: 0 | AS53: 0 | AT53: 0 | AU53: 0 | AV53: 0 | AW53: 0 | AX53: 0 | BG53: ='Res Inputs'!N12 -> 0 | BH53: 0 | BI53: 0 | BJ53: 0 | BK53: 0 | BL53: 0 | BN53: 0 | BO53: 0 | BP53: 0 | BQ53: 0 | BR53: 0 | BS53: 0
A54: UP | B54: =B53 -> WDR-RE | C54: =C53 -> WDR | D54: Best Estimate | E54: =IF(E$9=$A54,IF(OR(E$10=$B54, E$10=$C54),1,IF(OR(E$10="All",E$10="All Properties"),1,0)),0) -> 0 | F54: =IF(F$9=$A54,IF(OR(F$10=$B54, F$10=$C54),1,IF(OR(F$10="All",F$10="All Properties"),1,0)),0) -> 0 | G54: 0 | H54: 0 | I54: 0 | J54: 0 | K54: 0 | L54: 0 | M54: 0 | N54: 0 | O54: 0 | P54: 0 | Q54: 0 | R54: 0 | S54: 0 | T54: 0 | U54: 0 | V54: 0 | W54: 0 | X54: 0 | Y54: 0 | Z54: 0 | AA54: 0 | AB54: 0 | AC54: 0 | AD54: 0 | AE54: 0 | AF54: 0 | AG54: 0 | AH54: 0 | AI54: 0 | AJ54: 0 | AK54: 0 | AL54: =IF(AL$9=$A54,IF(OR(AL$10=$B54, AL$10=$C54),1,IF(OR(AL$10="All",AL$10="All Properties"),1,0)),0) -> 0 | AM54: 0 | AN54: 0 | AO54: 0 | AP54: 0 | AQ54: 0 | AR54: 0 | AS54: 0 | AT54: 0 | AU54: 0 | AV54: 0 | AW54: 0 | AX54: 0 | BG54: ='Res Inputs'!N13 -> 0.048 | BH54: 0.048 | BI54: 0.048 | BJ54: 0.048 | BK54: 0.048 | BL54: 0.048 | BN54: 0.048 | BO54: =IF(BH54<1,BH54,1) -> 0.048 | BP54: 0.048 | BQ54: 0.048 | BR54: 0.048 | BS54: 0.048
A55: UP | B55: =B54 -> WDR-RE | C55: =C54 -> WDR | D55: Lower Estimate | E55: =E54 -> 0 | F55: =F54 -> 0 | G55: 0 | H55: 0 | I55: 0 | J55: 0 | K55: 0 | L55: 0 | M55: 0 | N55: 0 | O55: 0 | P55: 0 | Q55: 0 | R55: 0 | S55: 0 | T55: 0 | U55: 0 | V55: 0 | W55: 0 | X55: 0 | Y55: 0 | Z55: 0 | AA55: 0 | AB55: 0 | AC55: 0 | AD55: 0 | AE55: 0 | AF55: 0 | AG55: 0 | AH55: 0 | AI55: 0 | AJ55: 0 | AK55: 0 | AL55: 0 | AM55: 0 | AN55: 0 | AO55: 0 | AP55: 0 | AQ55: 0 | AR55: 0 | AS55: 0 | AT55: 0 | AU55: 0 | AV55: 0 | AW55: 0 | AX55: 0 | BG55: ='Res Inputs'!N14 -> 0 | BH55: 0 | BI55: 0 | BJ55: 0 | BK55: 0 | BL55: 0 | BN55: 0 | BO55: 0 | BP55: 0 | BQ55: 0 | BR55: 0 | BS55: 0
A56: UP | B56: =Settings!C81&"-RE" -> RSL-RE | C56: =Settings!C81 -> RSL | D56: Upper Estimate | E56: =E57 -> 0 | F56: 0 | G56: 0 | H56: 0 | I56: 0 | J56: 0 | K56: 0 | L56: 0 | M56: 0 | N56: 0 | O56: 0 | P56: 0 | Q56: 0 | R56: 0 | S56: 0 | T56: 1 | U56: 0 | V56: 0 | W56: 0 | X56: 0 | Y56: 0 | Z56: 1 | AA56: 0 | AB56: 0 | AC56: 0 | AD56: 0 | AE56: 0 | AF56: 0 | AG56: 0 | AH56: 0 | AI56: 0 | AJ56: 0 | AK56: 0 | AL56: 0 | AM56: 0 | AN56: 0 | AO56: 0 | AP56: 0 | AQ56: 0 | AR56: 0 | AS56: 0 | AT56: 0 | AU56: 0 | AV56: 0 | AW56: 0 | AX56: 0 | BG56: ='Res Inputs'!N15 -> 0.02 | BH56: 0.0392 | BI56: 0.01010205144 | BJ56: 0.02 | BK56: 0.02 | BL56: 0.02 | BN56: 0.02 | BO56: 0.0392 | BP56: 0.01010205144 | BQ56: 0.02 | BR56: 0.02 | BS56: 0.02
A57: UP | B57: =B56 -> RSL-RE | C57: =C56 -> RSL | D57: Best Estimate | E57: =IF(E$9=$A57,IF(OR(E$10=$B57, E$10=$C57),1,IF(OR(E$10="All",E$10="All Properties"),1,0)),0) -> 0 | F57: 0 | G57: 0 | H57: 0 | I57: 0 | J57: 0 | K57: 0 | L57: 0 | M57: 0 | N57: 0 | O57: 0 | P57: 0 | Q57: 0 | R57: 0 | S57: 0 | T57: 1 | U57: 0 | V57: 0 | W57: 0 | X57: 0 | Y57: 0 | Z57: 1 | AA57: 0 | AB57: 0 | AC57: 0 | AD57: 0 | AE57: 0 | AF57: 0 | AG57: 0 | AH57: 0 | AI57: 0 | AJ57: 0 | AK57: 0 | AL57: 0 | AM57: 0 | AN57: 0 | AO57: 0 | AP57: 0 | AQ57: 0 | AR57: 0 | AS57: 0 | AT57: 0 | AU57: 0 | AV57: 0 | AW57: 0 | AX57: 0 | BG57: ='Res Inputs'!N16 -> 0.02 | BH57: 0.0392 | BI57: 0.01010205144 | BJ57: 0.02 | BK57: 0.02 | BL57: 0.02 | BN57: 0.02 | BO57: 0.0392 | BP57: 0.01010205144 | BQ57: 0.02 | BR57: 0.02 | BS57: 0.02
A58: UP | B58: =B57 -> RSL-RE | C58: =C57 -> RSL | D58: Lower Estimate | E58: =E57 -> 0 | F58: 0 | G58: 0 | H58: 0 | I58: 0 | J58: 0 | K58: 0 | L58: 0 | M58: 0 | N58: 0 | O58: 0 | P58: 0 | Q58: 0 | R58: 0 | S58: 0 | T58: 1 | U58: 0 | V58: 0 | W58: 0 | X58: 0 | Y58: 0 | Z58: 1 | AA58: 0 | AB58: 0 | AC58: 0 | AD58: 0 | AE58: 0 | AF58: 0 | AG58: 0 | AH58: 0 | AI58: 0 | AJ58: 0 | AK58: 0 | AL58: 0 | AM58: 0 | AN58: 0 | AO58: 0 | AP58: 0 | AQ58: 0 | AR58: 0 | AS58: 0 | AT58: 0 | AU58: 0 | AV58: 0 | AW58: 0 | AX58: 0 | BG58: ='Res Inputs'!N17 -> 0.02 | BH58: 0.0392 | BI58: 0.01010205144 | BJ58: 0.02 | BK58: 0.02 | BL58: 0.02 | BN58: 0.02 | BO58: 0.0392 | BP58: 0.01010205144 | BQ58: 0.02 | BR58: 0.02 | BS58: 0.02
A61: =Settings!C72 -> OP | C61: =Settings!E72 -> % Response Operated | AZ61: Baseline | BA61: =BH21 -> Scenario 1 | BB61: =BI21 -> Scenario 2 | BC61: =BJ21 -> Scenario 3 | BD61: =BK21 -> Scenario 4 | BE61: =BL21 -> Scenario 5
A62: =A61 -> OP | B62: =B53 -> WDR-RE | C62: =C53 -> WDR | D62: Upper Estimate | E62: =E63 -> 0 | F62: 0 | G62: 0 | H62: 0 | I62: 0 | J62: 0 | K62: 0 | L62: 0 | M62: 0 | N62: 0 | O62: 0 | P62: 0 | Q62: 1 | R62: 0 | S62: 0 | T62: 0 | U62: 0 | V62: 0 | W62: 0 | X62: 0 | Y62: 0 | Z62: 0 | AA62: 0 | AB62: 0 | AC62: 0 | AD62: 0 | AE62: 0 | AF62: 0 | AG62: 0 | AH62: 0 | AI62: 0 | AJ62: 0 | AK62: 0 | AL62: 0 | AM62: 0 | AN62: 0 | AO62: 0 | AP62: 0 | AQ62: 0 | AR62: 0 | AS62: 0 | AT62: 0 | AU62: 0 | AV62: 0 | AW62: 0 | AX62: 0 | AZ62: =BG62 -> 0.9588631 | BA62: =IF(ISERROR('%OP'!N79),0,'%OP'!N79) -> 0 | BB62: =IF(ISERROR('%OP'!N108),0,'%OP'!N108) -> 0 | BC62: =IF(ISERROR('%OP'!N137),0,'%OP'!N137) -> 0 | BD62: =IF(ISERROR('%OP'!N166),0,'%OP'!N166) -> 0 | BE62: =IF(ISERROR('%OP'!N195),0,'%OP'!N195) -> 0 | BG62: ='Res Inputs'!N23 -> 0.9588631 | BH62: =IF((SUMPRODUCT($E$17:$AX$17,$E62:$AX62)*$BA62)=0,$BA62,SUMPRODUCT($E$17:$AX$17,$E62:$AX62)*$BA62) -> 0 | BI62: =IF((SUMPRODUCT($E$18:$AX$18,$E62:$AX62)*$BB62)=0,$BB62,SUMPRODUCT($E$18:$AX$18,$E62:$AX62)*$BB62) -> 0 | BJ62: =IF((SUMPRODUCT($E$19:$AX$19,$E62:$AX62)*$BC62)=0,$BC62,SUMPRODUCT($E$19:$AX$19,$E62:$AX62)*$BC62) -> 0 | BK62: =IF((SUMPRODUCT($E$20:$AX$20,$E62:$AX62)*$BD62)=0,$BD62,SUMPRODUCT($E$20:$AX$20,$E62:$AX62)*$BD62) -> 0 | BL62: =IF((SUMPRODUCT($E$21:$AX$21,$E62:$AX62)*$BE62)=0,$BE62,SUMPRODUCT($E$21:$AX$21,$E62:$AX62)*$BE62) -> 0 | BN62: =BG62 -> 0.9588631 | BO62: =IF(BH62<1,BH62,1) -> 0 | BP62: 0 | BQ62: 0 | BR62: 0 | BS62: 0
A63: OP | B63: =B62 -> WDR-RE | C63: =C62 -> WDR | D63: Best Estimate | E63: =IF(E$9=$A63,IF(OR(E$10=$B63, E$10=$C63),1,IF(OR(E$10="All",E$10="All Properties"),1,0)),0) -> 0 | F63: 0 | G63: 0 | H63: 0 | I63: 0 | J63: 0 | K63: 0 | L63: 0 | M63: 0 | N63: 0 | O63: 0 | P63: 0 | Q63: 1 | R63: 0 | S63: 0 | T63: 0 | U63: 0 | V63: 0 | W63: 0 | X63: 0 | Y63: 0 | Z63: 0 | AA63: 0 | AB63: 0 | AC63: 0 | AD63: 0 | AE63: 0 | AF63: 0 | AG63: 0 | AH63: 0 | AI63: 0 | AJ63: 0 | AK63: 0 | AL63: 0 | AM63: 0 | AN63: 0 | AO63: 0 | AP63: 0 | AQ63: 0 | AR63: 0 | AS63: 0 | AT63: 0 | AU63: 0 | AV63: 0 | AW63: 0 | AX63: 0 | AZ63: 0.9588631 | BA63: =IF(ISERROR('%OP'!N80),0,'%OP'!N80) -> 0.923 | BB63: =IF(ISERROR('%OP'!N109),0,'%OP'!N109) -> 0.923 | BC63: =IF(ISERROR('%OP'!N138),0,'%OP'!N138) -> 0 | BD63: =IF(ISERROR('%OP'!N167),0,'%OP'!N167) -> 0 | BE63: =IF(ISERROR('%OP'!N196),0,'%OP'!N196) -> 0 | BG63: ='Res Inputs'!N24 -> 0.9588631 | BH63: 0.923 | BI63: 0.923 | BJ63: 0 | BK63: 0 | BL63: 0 | BN63: 0.9588631 | BO63: 0.923 | BP63: 0.923 | BQ63: 0 | BR63: 0 | BS63: 0
A64: OP | B64: =B63 -> WDR-RE | C64: =C63 -> WDR | D64: Lower Estimate | E64: =E63 -> 0 | F64: 0 | G64: 0 | H64: 0 | I64: 0 | J64: 0 | K64: 0 | L64: 0 | M64: 0 | N64: 0 | O64: 0 | P64: 0 | Q64: 1 | R64: 0 | S64: 0 | T64: 0 | U64: 0 | V64: 0 | W64: 0 | X64: 0 | Y64: 0 | Z64: 0 | AA64: 0 | AB64: 0 | AC64: 0 | AD64: 0 | AE64: 0 | AF64: 0 | AG64: 0 | AH64: 0 | AI64: 0 | AJ64: 0 | AK64: 0 | AL64: 0 | AM64: 0 | AN64: 0 | AO64: 0 | AP64: 0 | AQ64: 0 | AR64: 0 | AS64: 0 | AT64: 0 | AU64: 0 | AV64: 0 | AW64: 0 | AX64: 0 | AZ64: 0.9588631 | BA64: =IF(ISERROR('%OP'!N81),0,'%OP'!N81) -> 0 | BB64: =IF(ISERROR('%OP'!N110),0,'%OP'!N110) -> 0 | BC64: =IF(ISERROR('%OP'!N139),0,'%OP'!N139) -> 0 | BD64: =IF(ISERROR('%OP'!N168),0,'%OP'!N168) -> 0 | BE64: =IF(ISERROR('%OP'!N197),0,'%OP'!N197) -> 0 | BG64: ='Res Inputs'!N25 -> 0.9588631 | BH64: 0 | BI64: 0 | BJ64: 0 | BK64: 0 | BL64: 0 | BN64: 0.9588631 | BO64: 0 | BP64: 0 | BQ64: 0 | BR64: 0 | BS64: 0
A65: OP | B65: =Settings!C82&"-RE" -> CME-RE | C65: =Settings!C82 -> CME | D65: Upper Estimate | E65: =E66 -> 0 | F65: 0 | G65: 0 | H65: 0 | I65: 0 | J65: 0 | K65: 0 | L65: 0 | M65: 0 | N65: 0 | O65: 0 | P65: 0 | Q65: 0 | R65: 1 | S65: 0 | T65: 0 | U65: 0 | V65: 0 | W65: 0 | X65: 0 | Y65: 0 | Z65: 0 | AA65: 0 | AB65: 0 | AC65: 0 | AD65: 0 | AE65: 0 | AF65: 0 | AG65: 0 | AH65: 0 | AI65: 0 | AJ65: 0 | AK65: 0 | AL65: 0 | AM65: 0 | AN65: 0 | AO65: 0 | AP65: 0 | AQ65: 0 | AR65: 0 | AS65: 0 | AT65: 0 | AU65: 0 | AV65: 0 | AW65: 0 | AX65: 0 | AZ65: 0.731306 | BA65: =IF(ISERROR('%OP'!N82),0,'%OP'!N82) -> 0 | BB65: =IF(ISERROR('%OP'!N111),0,'%OP'!N111) -> 0 | BC65: =IF(ISERROR('%OP'!N140),0,'%OP'!N140) -> 0 | BD65: =IF(ISERROR('%OP'!N169),0,'%OP'!N169) -> 0 | BE65: =IF(ISERROR('%OP'!N198),0,'%OP'!N198) -> 0 | BG65: ='Res Inputs'!N26 -> 0.731306 | BH65: 0 | BI65: 0 | BJ65: 0 | BK65: 0 | BL65: 0 | BN65: 0.731306 | BO65: 0 | BP65: 0 | BQ65: 0 | BR65: 0 | BS65: 0
A66: OP | B66: =B65 -> CME-RE | C66: =C65 -> CME | D66: Best Estimate | E66: =IF(E$9=$A66,IF(OR(E$10=$B66, E$10=$C66),1,IF(OR(E$10="All",E$10="All Properties"),1,0)),0) -> 0 | F66: 0 | G66: 0 | H66: 0 | I66: 0 | J66: 0 | K66: 0 | L66: 0 | M66: 0 | N66: 0 | O66: 0 | P66: 0 | Q66: 0 | R66: 1 | S66: 0 | T66: 0 | U66: 0 | V66: 0 | W66: 0 | X66: 0 | Y66: 0 | Z66: 0 | AA66: 0 | AB66: 0 | AC66: 0 | AD66: 0 | AE66: 0 | AF66: 0 | AG66: 0 | AH66: 0 | AI66: 0 | AJ66: 0 | AK66: 0 | AL66: 0 | AM66: 0 | AN66: 0 | AO66: 0 | AP66: 0 | AQ66: 0 | AR66: 0 | AS66: 0 | AT66: 0 | AU66: 0 | AV66: 0 | AW66: 0 | AX66: 0 | AZ66: 0.731306 | BA66: =IF(ISERROR('%OP'!N83),0,'%OP'!N83) -> 0.7 | BB66: =IF(ISERROR('%OP'!N112),0,'%OP'!N112) -> 0.7 | BC66: =IF(ISERROR('%OP'!N141),0,'%OP'!N141) -> 0 | BD66: =IF(ISERROR('%OP'!N170),0,'%OP'!N170) -> 0 | BE66: =IF(ISERROR('%OP'!N199),0,'%OP'!N199) -> 0 | BG66: ='Res Inputs'!N27 -> 0.731306 | BH66: 0.7 | BI66: 0.7 | BJ66: 0 | BK66: 0 | BL66: 0 | BN66: 0.731306 | BO66: 0.7 | BP66: 0.7 | BQ66: 0 | BR66: 0 | BS66: 0
A67: OP | B67: =B66 -> CME-RE | C67: =C66 -> CME | D67: Lower Estimate | E67: =E66 -> 0 | F67: 0 | G67: 0 | H67: 0 | I67: 0 | J67: 0 | K67: 0 | L67: 0 | M67: 0 | N67: 0 | O67: 0 | P67: 0 | Q67: 0 | R67: 1 | S67: 0 | T67: 0 | U67: 0 | V67: 0 | W67: 0 | X67: 0 | Y67: 0 | Z67: 0 | AA67: 0 | AB67: 0 | AC67: 0 | AD67: 0 | AE67: 0 | AF67: 0 | AG67: 0 | AH67: 0 | AI67: 0 | AJ67: 0 | AK67: 0 | AL67: 0 | AM67: 0 | AN67: 0 | AO67: 0 | AP67: 0 | AQ67: 0 | AR67: 0 | AS67: 0 | AT67: 0 | AU67: 0 | AV67: 0 | AW67: 0 | AX67: 0 | AZ67: 0.731306 | BA67: =IF(ISERROR('%OP'!N84),0,'%OP'!N84) -> 0 | BB67: =IF(ISERROR('%OP'!N113),0,'%OP'!N113) -> 0 | BC67: =IF(ISERROR('%OP'!N142),0,'%OP'!N142) -> 0 | BD67: =IF(ISERROR('%OP'!N171),0,'%OP'!N171) -> 0 | BE67: =IF(ISERROR('%OP'!N200),0,'%OP'!N200) -> 0 | BG67: ='Res Inputs'!N28 -> 0.731306 | BH67: 0 | BI67: 0 | BJ67: 0 | BK67: 0 | BL67: 0 | BN67: 0.731306 | BO67: 0 | BP67: 0 | BQ67: 0 | BR67: 0 | BS67: 0
A70: =Settings!C71 -> PO | C70: =Settings!E71 -> % Response Potential
A71: =A70 -> PO | B71: =B50 -> WIR-RE | C71: =C50 -> WIR | D71: Upper Estimate | E71: =E72 -> 0 | F71: 0 | G71: 0 | H71: 0 | I71: 0 | J71: 0 | K71: 0 | L71: 0 | M71: 0 | N71: 0 | O71: 0 | P71: 0 | Q71: 0 | R71: 0 | S71: 0 | T71: 0 | U71: 0 | V71: 0 | W71: 0 | X71: 0 | Y71: 0 | Z71: 0 | AA71: 0 | AB71: 0 | AC71: 0 | AD71: 0 | AE71: 0 | AF71: 0 | AG71: 0 | AH71: 0 | AI71: 0 | AJ71: 0 | AK71: 0 | AL71: 0 | AM71: 0 | AN71: 0 | AO71: 0 | AP71: 0 | AQ71: 0 | AR71: 0 | AS71: 0 | AT71: 0 | AU71: 0 | AV71: 0 | AW71: 0 | AX71: 0 | BG71: ='Res Inputs'!N33 -> 0.84 | BH71: =IF((SUMPRODUCT($E$17:$AX$17,$E71:$AX71)*$BG71)=0,$BG71,SUMPRODUCT($E$17:$AX$17,$E71:$AX71)*$BG71) -> 0.84 | BI71: =IF((SUMPRODUCT($E$18:$AX$18,$E71:$AX71)*$BG71)=0,$BG71,SUMPRODUCT($E$18:$AX$18,$E71:$AX71)*$BG71) -> 0.84 | BJ71: =IF((SUMPRODUCT($E$19:$AX$19,$E71:$AX71)*$BG71)=0,$BG71,SUMPRODUCT($E$19:$AX$19,$E71:$AX71)*$BG71) -> 0.84 | BK71: =IF((SUMPRODUCT($E$20:$AX$20,$E71:$AX71)*$BG71)=0,$BG71,SUMPRODUCT($E$20:$AX$20,$E71:$AX71)*$BG71) -> 0.84 | BL71: =IF((SUMPRODUCT($E$21:$AX$21,$E71:$AX71)*$BG71)=0,$BG71,SUMPRODUCT($E$21:$AX$21,$E71:$AX71)*$BG71) -> 0.84 | BN71: =BG71 -> 0.84 | BO71: =IF(BH71<1,BH71,1) -> 0.84 | BP71: 0.84 | BQ71: 0.84 | BR71: 0.84 | BS71: 0.84
A72: PO | B72: =B71 -> WIR-RE | C72: =C71 -> WIR | D72: Best Estimate | E72: =IF(E$9=$A72,IF(OR(E$10=$B72, E$10=$C72),1,IF(OR(E$10="All",E$10="All Properties"),1,0)),0) -> 0 | F72: 0 | G72: 0 | H72: 0 | I72: 0 | J72: 0 | K72: 0 | L72: 0 | M72: 0 | N72: 0 | O72: 0 | P72: 0 | Q72: 0 | R72: 0 | S72: 0 | T72: 0 | U72: 0 | V72: 0 | W72: 0 | X72: 0 | Y72: 0 | Z72: 0 | AA72: 0 | AB72: 0 | AC72: 0 | AD72: 0 | AE72: 0 | AF72: 0 | AG72: 0 | AH72: 0 | AI72: 0 | AJ72: 0 | AK72: 0 | AL72: 0 | AM72: 0 | AN72: 0 | AO72: 0 | AP72: 0 | AQ72: 0 | AR72: 0 | AS72: 0 | AT72: 0 | AU72: 0 | AV72: 0 | AW72: 0 | AX72: 0 | BG72: ='Res Inputs'!N34 -> 0.745 | BH72: =IF((SUMPRODUCT($E$17:$AX$17,$E72:$AX72)*$BG72)=0,$BG72,SUMPRODUCT($E$17:$AX$17,$E72:$AX72)*$BG72) -> 0.745 | BI72: =IF((SUMPRODUCT($E$18:$AX$18,$E72:$AX72)*$BG72)=0,$BG72,SUMPRODUCT($E$18:$AX$18,$E72:$AX72)*$BG72) -> 0.745 | BJ72: =IF((SUMPRODUCT($E$19:$AX$19,$E72:$AX72)*$BG72)=0,$BG72,SUMPRODUCT($E$19:$AX$19,$E72:$AX72)*$BG72) -> 0.745 | BK72: =IF((SUMPRODUCT($E$20:$AX$20,$E72:$AX72)*$BG72)=0,$BG72,SUMPRODUCT($E$20:$AX$20,$E72:$AX72)*$BG72) -> 0.745 | BL72: =IF((SUMPRODUCT($E$21:$AX$21,$E72:$AX72)*$BG72)=0,$BG72,SUMPRODUCT($E$21:$AX$21,$E72:$AX72)*$BG72) -> 0.745 | BN72: =BG72 -> 0.745 | BO72: 0.745 | BP72: 0.745 | BQ72: 0.745 | BR72: 0.745 | BS72: 0.745
A73: PO | B73: =B72 -> WIR-RE | C73: =C72 -> WIR | D73: Lower Estimate | E73: =E72 -> 0 | F73: 0 | G73: 0 | H73: 0 | I73: 0 | J73: 0 | K73: 0 | L73: 0 | M73: 0 | N73: 0 | O73: 0 | P73: 0 | Q73: 0 | R73: 0 | S73: 0 | T73: 0 | U73: 0 | V73: 0 | W73: 0 | X73: 0 | Y73: 0 | Z73: 0 | AA73: 0 | AB73: 0 | AC73: 0 | AD73: 0 | AE73: 0 | AF73: 0 | AG73: 0 | AH73: 0 | AI73: 0 | AJ73: 0 | AK73: 0 | AL73: 0 | AM73: 0 | AN73: 0 | AO73: 0 | AP73: 0 | AQ73: 0 | AR73: 0 | AS73: 0 | AT73: 0 | AU73: 0 | AV73: 0 | AW73: 0 | AX73: 0 | BG73: ='Res Inputs'!N35 -> 0.65 | BH73: =IF((SUMPRODUCT($E$17:$AX$17,$E73:$AX73)*$BG73)=0,$BG73,SUMPRODUCT($E$17:$AX$17,$E73:$AX73)*$BG73) -> 0.65 | BI73: =IF((SUMPRODUCT($E$18:$AX$18,$E73:$AX73)*$BG73)=0,$BG73,SUMPRODUCT($E$18:$AX$18,$E73:$AX73)*$BG73) -> 0.65 | BJ73: =IF((SUMPRODUCT($E$19:$AX$19,$E73:$AX73)*$BG73)=0,$BG73,SUMPRODUCT($E$19:$AX$19,$E73:$AX73)*$BG73) -> 0.65 | BK73: =IF((SUMPRODUCT($E$20:$AX$20,$E73:$AX73)*$BG73)=0,$BG73,SUMPRODUCT($E$20:$AX$20,$E73:$AX73)*$BG73) -> 0.65 | BL73: =IF((SUMPRODUCT($E$21:$AX$21,$E73:$AX73)*$BG73)=0,$BG73,SUMPRODUCT($E$21:$AX$21,$E73:$AX73)*$BG73) -> 0.65 | BN73: =BG73 -> 0.65 | BO73: 0.65 | BP73: 0.65 | BQ73: 0.65 | BR73: 0.65 | BS73: 0.65
A74: PO | B74: =B62 -> WDR-RE | C74: =C62 -> WDR | D74: Upper Estimate | E74: =E75 -> 0 | F74: 0 | G74: 0 | H74: 0 | I74: 0 | J74: 0 | K74: 0 | L74: 0 | M74: 0 | N74: 0 | O74: 0 | P74: 0 | Q74: 0 | R74: 0 | S74: 0 | T74: 0 | U74: 0 | V74: 0 | W74: 0 | X74: 0 | Y74: 0 | Z74: 0 | AA74: 0 | AB74: 0 | AC74: 0 | AD74: 0 | AE74: 0 | AF74: 0 | AG74: 0 | AH74: 0 | AI74: 0 | AJ74: 0 | AK74: 0 | AL74: 0 | AM74: 0 | AN74: 0 | AO74: 0 | AP74: 0 | AQ74: 0 | AR74: 0 | AS74: 0 | AT74: 0 | AU74: 0 | AV74: 0 | AW74: 0 | AX74: 0 | BG74: ='Res Inputs'!N36 -> 0.84 | BH74: 0.84 | BI74: 0.84 | BJ74: 0.84 | BK74: 0.84 | BL74: 0.84 | BN74: =BG74 -> 0.84 | BO74: =IF(BH74<1,BH74,1) -> 0.84 | BP74: =IF(BI74<1,BI74,1) -> 0.84 | BQ74: =IF(BJ74<1,BJ74,1) -> 0.84 | BR74: =IF(BK74<1,BK74,1) -> 0.84 | BS74: =IF(BL74<1,BL74,1) -> 0.84
A75: PO | B75: =B74 -> WDR-RE | C75: =C74 -> WDR | D75: Best Estimate | E75: =IF(E$9=$A75,IF(OR(E$10=$B75, E$10=$C75),1,IF(OR(E$10="All",E$10="All Properties"),1,0)),0) -> 0 | F75: 0 | G75: 0 | H75: 0 | I75: 0 | J75: 0 | K75: 0 | L75: 0 | M75: 0 | N75: 0 | O75: 0 | P75: 0 | Q75: 0 | R75: 0 | S75: 0 | T75: 0 | U75: 0 | V75: 0 | W75: 0 | X75: 0 | Y75: 0 | Z75: 0 | AA75: 0 | AB75: 0 | AC75: 0 | AD75: 0 | AE75: 0 | AF75: 0 | AG75: 0 | AH75: 0 | AI75: 0 | AJ75: 0 | AK75: 0 | AL75: 0 | AM75: 0 | AN75: 0 | AO75: 0 | AP75: 0 | AQ75: 0 | AR75: 0 | AS75: 0 | AT75: 0 | AU75: 0 | AV75: 0 | AW75: 0 | AX75: 0 | BG75: ='Res Inputs'!N37 -> 0.745 | BH75: 0.745 | BI75: 0.745 | BJ75: 0.745 | BK75: 0.745 | BL75: 0.745 | BN75: 0.745 | BO75: 0.745 | BP75: 0.745 | BQ75: 0.745 | BR75: 0.745 | BS75: 0.745
A76: PO | B76: =B75 -> WDR-RE | C76: =C75 -> WDR | D76: Lower Estimate | E76: =E75 -> 0 | F76: 0 | G76: 0 | H76: 0 | I76: 0 | J76: 0 | K76: 0 | L76: 0 | M76: 0 | N76: 0 | O76: 0 | P76: 0 | Q76: 0 | R76: 0 | S76: 0 | T76: 0 | U76: 0 | V76: 0 | W76: 0 | X76: 0 | Y76: 0 | Z76: 0 | AA76: 0 | AB76: 0 | AC76: 0 | AD76: 0 | AE76: 0 | AF76: 0 | AG76: 0 | AH76: 0 | AI76: 0 | AJ76: 0 | AK76: 0 | AL76: 0 | AM76: 0 | AN76: 0 | AO76: 0 | AP76: 0 | AQ76: 0 | AR76: 0 | AS76: 0 | AT76: 0 | AU76: 0 | AV76: 0 | AW76: 0 | AX76: 0 | BG76: ='Res Inputs'!N38 -> 0.65 | BH76: 0.65 | BI76: 0.65 | BJ76: 0.65 | BK76: 0.65 | BL76: 0.65 | BN76: 0.65 | BO76: 0.65 | BP76: 0.65 | BQ76: 0.65 | BR76: 0.65 | BS76: 0.65
A77: PO | B77: =B56 -> RSL-RE | C77: =C56 -> RSL | D77: Upper Estimate | E77: =E78 -> 0 | F77: 0 | G77: 0 | H77: 0 | I77: 0 | J77: 0 | K77: 0 | L77: 0 | M77: 0 | N77: 0 | O77: 0 | P77: 0 | Q77: 0 | R77: 0 | S77: 0 | T77: 0 | U77: 0 | V77: 0 | W77: 0 | X77: 0 | Y77: 0 | Z77: 0 | AA77: 0 | AB77: 0 | AC77: 0 | AD77: 0 | AE77: 0 | AF77: 0 | AG77: 0 | AH77: 0 | AI77: 0 | AJ77: 0 | AK77: 0 | AL77: 0 | AM77: 0 | AN77: 0 | AO77: 0 | AP77: 0 | AQ77: 0 | AR77: 0 | AS77: 0 | AT77: 0 | AU77: 0 | AV77: 0 | AW77: 0 | AX77: 0 | BG77: ='Res Inputs'!N39 -> 0.5 | BH77: 0.5 | BI77: 0.5 | BJ77: 0.5 | BK77: 0.5 | BL77: 0.5 | BN77: 0.5 | BO77: 0.5 | BP77: 0.5 | BQ77: 0.5 | BR77: 0.5 | BS77: 0.5
A78: PO | B78: =B77 -> RSL-RE | C78: =C77 -> RSL | D78: Best Estimate | E78: =IF(E$9=$A78,IF(OR(E$10=$B78, E$10=$C78),1,IF(OR(E$10="All",E$10="All Properties"),1,0)),0) -> 0 | F78: 0 | G78: 0 | H78: 0 | I78: 0 | J78: 0 | K78: 0 | L78: 0 | M78: 0 | N78: 0 | O78: 0 | P78: 0 | Q78: 0 | R78: 0 | S78: 0 | T78: 0 | U78: 0 | V78: 0 | W78: 0 | X78: 0 | Y78: 0 | Z78: 0 | AA78: 0 | AB78: 0 | AC78: 0 | AD78: 0 | AE78: 0 | AF78: 0 | AG78: 0 | AH78: 0 | AI78: 0 | AJ78: 0 | AK78: 0 | AL78: 0 | AM78: 0 | AN78: 0 | AO78: 0 | AP78: 0 | AQ78: 0 | AR78: 0 | AS78: 0 | AT78: 0 | AU78: 0 | AV78: 0 | AW78: 0 | AX78: 0 | BG78: ='Res Inputs'!N40 -> 0.5 | BH78: 0.5 | BI78: 0.5 | BJ78: 0.5 | BK78: 0.5 | BL78: 0.5 | BN78: 0.5 | BO78: 0.5 | BP78: 0.5 | BQ78: 0.5 | BR78: 0.5 | BS78: 0.5
A79: PO | B79: =B78 -> RSL-RE | C79: =C78 -> RSL | D79: Lower Estimate | E79: =E78 -> 0 | F79: 0 | G79: 0 | H79: 0 | I79: 0 | J79: 0 | K79: 0 | L79: 0 | M79: 0 | N79: 0 | O79: 0 | P79: 0 | Q79: 0 | R79: 0 | S79: 0 | T79: 0 | U79: 0 | V79: 0 | W79: 0 | X79: 0 | Y79: 0 | Z79: 0 | AA79: 0 | AB79: 0 | AC79: 0 | AD79: 0 | AE79: 0 | AF79: 0 | AG79: 0 | AH79: 0 | AI79: 0 | AJ79: 0 | AK79: 0 | AL79: 0 | AM79: 0 | AN79: 0 | AO79: 0 | AP79: 0 | AQ79: 0 | AR79: 0 | AS79: 0 | AT79: 0 | AU79: 0 | AV79: 0 | AW79: 0 | AX79: 0 | BG79: ='Res Inputs'!N41 -> 0.5 | BH79: 0.5 | BI79: 0.5 | BJ79: 0.5 | BK79: 0.5 | BL79: 0.5 | BN79: 0.5 | BO79: 0.5 | BP79: 0.5 | BQ79: 0.5 | BR79: 0.5 | BS79: 0.5
A80: PO | B80: =B65 -> CME-RE | C80: =C65 -> CME | D80: Upper Estimate | E80: =E81 -> 0 | F80: 0 | G80: 0 | H80: 0 | I80: 0 | J80: 0 | K80: 0 | L80: 0 | M80: 0 | N80: 0 | O80: 0 | P80: 0 | Q80: 0 | R80: 0 | S80: 0 | T80: 0 | U80: 0 | V80: 0 | W80: 0 | X80: 0 | Y80: 0 | Z80: 0 | AA80: 0 | AB80: 0 | AC80: 0 | AD80: 0 | AE80: 0 | AF80: 0 | AG80: 0 | AH80: 0 | AI80: 0 | AJ80: 0 | AK80: 0 | AL80: 0 | AM80: 0 | AN80: 0 | AO80: 0 | AP80: 0 | AQ80: 0 | AR80: 0 | AS80: 0 | AT80: 0 | AU80: 0 | AV80: 0 | AW80: 0 | AX80: 0 | BG80: ='Res Inputs'!N42 -> 0.2132 | BH80: 0.2132 | BI80: 0.2132 | BJ80: 0.2132 | BK80: 0.2132 | BL80: 0.2132 | BN80: 0.2132 | BO80: 0.2132 | BP80: 0.2132 | BQ80: 0.2132 | BR80: 0.2132 | BS80: 0.2132
A81: PO | B81: =B80 -> CME-RE | C81: =C80 -> CME | D81: Best Estimate | E81: =IF(E$9=$A81,IF(OR(E$10=$B81, E$10=$C81),1,IF(OR(E$10="All",E$10="All Properties"),1,0)),0) -> 0 | F81: 0 | G81: 0 | H81: 0 | I81: 0 | J81: 0 | K81: 0 | L81: 0 | M81: 0 | N81: 0 | O81: 0 | P81: 0 | Q81: 0 | R81: 0 | S81: 0 | T81: 0 | U81: 0 | V81: 0 | W81: 0 | X81: 0 | Y81: 0 | Z81: 0 | AA81: 0 | AB81: 0 | AC81: 0 | AD81: 0 | AE81: 0 | AF81: 0 | AG81: 0 | AH81: 0 | AI81: 0 | AJ81: 0 | AK81: 0 | AL81: 0 | AM81: 0 | AN81: 0 | AO81: 0 | AP81: 0 | AQ81: 0 | AR81: 0 | AS81: 0 | AT81: 0 | AU81: 0 | AV81: 0 | AW81: 0 | AX81: 0 | BG81: ='Res Inputs'!N43 -> 0.2132 | BH81: 0.2132 | BI81: 0.2132 | BJ81: 0.2132 | BK81: 0.2132 | BL81: 0.2132 | BN81: 0.2132 | BO81: 0.2132 | BP81: 0.2132 | BQ81: 0.2132 | BR81: 0.2132 | BS81: 0.2132
A82: PO | B82: =B81 -> CME-RE | C82: =C81 -> CME | D82: Lower Estimate | E82: =E81 -> 0 | F82: 0 | G82: 0 | H82: 0 | I82: 0 | J82: 0 | K82: 0 | L82: 0 | M82: 0 | N82: 0 | O82: 0 | P82: 0 | Q82: 0 | R82: 0 | S82: 0 | T82: 0 | U82: 0 | V82: 0 | W82: 0 | X82: 0 | Y82: 0 | Z82: 0 | AA82: 0 | AB82: 0 | AC82: 0 | AD82: 0 | AE82: 0 | AF82: 0 | AG82: 0 | AH82: 0 | AI82: 0 | AJ82: 0 | AK82: 0 | AL82: 0 | AM82: 0 | AN82: 0 | AO82: 0 | AP82: 0 | AQ82: 0 | AR82: 0 | AS82: 0 | AT82: 0 | AU82: 0 | AV82: 0 | AW82: 0 | AX82: 0 | BG82: ='Res Inputs'!N44 -> 0.2132 | BH82: 0.2132 | BI82: 0.2132 | BJ82: 0.2132 | BK82: 0.2132 | BL82: 0.2132 | BN82: 0.2132 | BO82: 0.2132 | BP82: 0.2132 | BQ82: 0.2132 | BR82: 0.2132 | BS82: 0.2132
A85: =Settings!C70 -> WS | C85: =Settings!E70 -> % Warning Success
A86: =A85 -> WS | B86: Residential | D86: Upper Estimate | E86: =IF(E$9=$A86,IF(OR(E$10=$B86, E$10=$C86),1,IF(OR(E$10="All",E$10="All Properties"),1,0)),0) -> 1 | F86: 0 | G86: 0 | H86: 0 | I86: 0 | J86: 0 | K86: 0 | L86: 0 | M86: 0 | N86: 0 | O86: =IF(O$9=$A86,IF(OR(O$10=$B86, O$10=$C86),1,IF(OR(O$10="All",O$10="All Properties"),1,0)),0) -> 0 | P86: 0 | Q86: 0 | R86: 0 | S86: 0 | T86: 0 | U86: 0 | V86: 0 | W86: 0 | X86: 0 | Y86: =IF(Y$9=$A86,IF(OR(Y$10=$B86, Y$10=$C86),1,IF(OR(Y$10="All",Y$10="All Properties"),1,0)),0) -> 0 | Z86: 0 | AA86: 0 | AB86: 0 | AC86: 0 | AD86: 0 | AE86: 0 | AF86: 0 | AG86: 0 | AH86: 0 | AI86: =IF(AI$9=$A86,IF(OR(AI$10=$B86, AI$10=$C86),1,IF(OR(AI$10="All",AI$10="All Properties"),1,0)),0) -> 0 | AJ86: 0 | AK86: 0 | AL86: 0 | AM86: 0 | AN86: 0 | AO86: 0 | AP86: 0 | AQ86: 0 | AR86: 0 | AS86: =IF(AS$9=$A86,IF(OR(AS$10=$B86, AS$10=$C86),1,IF(OR(AS$10="All",AS$10="All Properties"),1,0)),0) -> 0 | AT86: 0 | AU86: 0 | AV86: 0 | AW86: 0 | AX86: 0 | BG86: ='Res Inputs'!N49 -> 0.3002 | BH86: =IF((SUMPRODUCT($E$17:$AX$17,$E86:$AX86)*$BG86)=0,$BG86,SUMPRODUCT($E$17:$AX$17,$E86:$AX86)*$BG86) -> 0.4895681225 | BI86: =IF((SUMPRODUCT($E$18:$AX$18,$E86:$AX86)*$BG86)=0,$BG86,SUMPRODUCT($E$18:$AX$18,$E86:$AX86)*$BG86) -> 0.1534775321 | BJ86: =IF((SUMPRODUCT($E$19:$AX$19,$E86:$AX86)*$BG86)=0,$BG86,SUMPRODUCT($E$19:$AX$19,$E86:$AX86)*$BG86) -> 0.3002 | BK86: =IF((SUMPRODUCT($E$20:$AX$20,$E86:$AX86)*$BG86)=0,$BG86,SUMPRODUCT($E$20:$AX$20,$E86:$AX86)*$BG86) -> 0.3002 | BL86: =IF((SUMPRODUCT($E$21:$AX$21,$E86:$AX86)*$BG86)=0,$BG86,SUMPRODUCT($E$21:$AX$21,$E86:$AX86)*$BG86) -> 0.3002 | BN86: =BG86 -> 0.3002 | BO86: =IF(BH86<1,BH86,1) -> 0.4895681225 | BP86: 0.1534775321 | BQ86: 0.3002 | BR86: 0.3002 | BS86: 0.3002
A87: =A86 -> WS | B87: Residential | C87: =A85&" for residential properties" -> WS for residential properties | D87: Best Estimate | E87: 1 | F87: 0 | G87: 0 | H87: 0 | I87: 0 | J87: 0 | K87: 0 | L87: 0 | M87: 0 | N87: 0 | O87: 0 | P87: 0 | Q87: 0 | R87: 0 | S87: 0 | T87: 0 | U87: 0 | V87: 0 | W87: 0 | X87: 0 | Y87: 0 | Z87: 0 | AA87: 0 | AB87: 0 | AC87: 0 | AD87: 0 | AE87: 0 | AF87: 0 | AG87: 0 | AH87: 0 | AI87: 0 | AJ87: 0 | AK87: 0 | AL87: 0 | AM87: 0 | AN87: 0 | AO87: 0 | AP87: 0 | AQ87: 0 | AR87: 0 | AS87: 0 | AT87: 0 | AU87: 0 | AV87: 0 | AW87: 0 | AX87: 0 | BG87: ='Res Inputs'!N50 -> 0.3002 | BH87: =IF((SUMPRODUCT($E$17:$AX$17,$E87:$AX87)*$BG87)=0,$BG87,SUMPRODUCT($E$17:$AX$17,$E87:$AX87)*$BG87) -> 0.4895681225 | BI87: =IF((SUMPRODUCT($E$18:$AX$18,$E87:$AX87)*$BG87)=0,$BG87,SUMPRODUCT($E$18:$AX$18,$E87:$AX87)*$BG87) -> 0.1534775321 | BJ87: =IF((SUMPRODUCT($E$19:$AX$19,$E87:$AX87)*$BG87)=0,$BG87,SUMPRODUCT($E$19:$AX$19,$E87:$AX87)*$BG87) -> 0.3002 | BK87: =IF((SUMPRODUCT($E$20:$AX$20,$E87:$AX87)*$BG87)=0,$BG87,SUMPRODUCT($E$20:$AX$20,$E87:$AX87)*$BG87) -> 0.3002 | BL87: =IF((SUMPRODUCT($E$21:$AX$21,$E87:$AX87)*$BG87)=0,$BG87,SUMPRODUCT($E$21:$AX$21,$E87:$AX87)*$BG87) -> 0.3002 | BN87: =BG87 -> 0.3002 | BO87: 0.4895681225 | BP87: 0.1534775321 | BQ87: 0.3002 | BR87: 0.3002 | BS87: 0.3002
A88: =A87 -> WS | B88: Residential | D88: Lower Estimate | E88: 1 | F88: 0 | G88: 0 | H88: 0 | I88: 0 | J88: 0 | K88: 0 | L88: 0 | M88: 0 | N88: 0 | O88: 0 | P88: 0 | Q88: 0 | R88: 0 | S88: 0 | T88: 0 | U88: 0 | V88: 0 | W88: 0 | X88: 0 | Y88: 0 | Z88: 0 | AA88: 0 | AB88: 0 | AC88: 0 | AD88: 0 | AE88: 0 | AF88: 0 | AG88: 0 | AH88: 0 | AI88: 0 | AJ88: 0 | AK88: 0 | AL88: 0 | AM88: 0 | AN88: 0 | AO88: 0 | AP88: 0 | AQ88: 0 | AR88: 0 | AS88: 0 | AT88: 0 | AU88: 0 | AV88: 0 | AW88: 0 | AX88: 0 | BG88: ='Res Inputs'!N51 -> 0.3002 | BH88: =IF((SUMPRODUCT($E$17:$AX$17,$E88:$AX88)*$BG88)=0,$BG88,SUMPRODUCT($E$17:$AX$17,$E88:$AX88)*$BG88) -> 0.4895681225 | BI88: =IF((SUMPRODUCT($E$18:$AX$18,$E88:$AX88)*$BG88)=0,$BG88,SUMPRODUCT($E$18:$AX$18,$E88:$AX88)*$BG88) -> 0.1534775321 | BJ88: =IF((SUMPRODUCT($E$19:$AX$19,$E88:$AX88)*$BG88)=0,$BG88,SUMPRODUCT($E$19:$AX$19,$E88:$AX88)*$BG88) -> 0.3002 | BK88: =IF((SUMPRODUCT($E$20:$AX$20,$E88:$AX88)*$BG88)=0,$BG88,SUMPRODUCT($E$20:$AX$20,$E88:$AX88)*$BG88) -> 0.3002 | BL88: =IF((SUMPRODUCT($E$21:$AX$21,$E88:$AX88)*$BG88)=0,$BG88,SUMPRODUCT($E$21:$AX$21,$E88:$AX88)*$BG88) -> 0.3002 | BN88: =BG88 -> 0.3002 | BO88: 0.4895681225 | BP88: 0.1534775321 | BQ88: 0.3002 | BR88: 0.3002 | BS88: 0.3002
A91: Benefit Over-Rides | C91: If insufficient data is available for the individual factors, you can use a single percentage value for each pathway
A92: Over-Ride | B92: =B71 -> WIR-RE | C92: =C71 -> WIR | D92: Upper Estimate | E92: =E93 -> 0 | F92: 0 | G92: 0 | H92: 0 | I92: 0 | J92: 0 | K92: 0 | L92: 0 | M92: 0 | N92: 0 | O92: 0 | P92: 0 | Q92: 0 | R92: 0 | S92: 0 | T92: 0 | U92: 0 | V92: 0 | W92: 0 | X92: 0 | Y92: 0 | Z92: 0 | AA92: 0 | AB92: 0 | AC92: 0 | AD92: 0 | AE92: 0 | AF92: 0 | AG92: 0 | AH92: 0 | AI92: 0 | AJ92: 0 | AK92: 0 | AL92: 0 | AM92: 0 | AN92: 0 | AO92: 0 | AP92: 0 | AQ92: 0 | AR92: 0 | AS92: 0 | AT92: 0 | AU92: 0 | AV92: 0 | AW92: 0 | AX92: 0 | BG92: ='Res Inputs'!F56 -> 0 | BH92: =IF((SUMPRODUCT($E$17:$AX$17,$E92:$AX92)*$BG92)=0,$BG92,SUMPRODUCT($E$17:$AX$17,$E92:$AX92)*$BG92) -> 0 | BI92: =IF((SUMPRODUCT($E$18:$AX$18,$E92:$AX92)*$BG92)=0,$BG92,SUMPRODUCT($E$18:$AX$18,$E92:$AX92)*$BG92) -> 0 | BJ92: =IF((SUMPRODUCT($E$19:$AX$19,$E92:$AX92)*$BG92)=0,$BG92,SUMPRODUCT($E$19:$AX$19,$E92:$AX92)*$BG92) -> 0 | BK92: =IF((SUMPRODUCT($E$20:$AX$20,$E92:$AX92)*$BG92)=0,$BG92,SUMPRODUCT($E$20:$AX$20,$E92:$AX92)*$BG92) -> 0 | BL92: =IF((SUMPRODUCT($E$21:$AX$21,$E92:$AX92)*$BG92)=0,$BG92,SUMPRODUCT($E$21:$AX$21,$E92:$AX92)*$BG92) -> 0 | BN92: =BG92 -> 0 | BO92: =IF(BH92<1,BH92,1) -> 0 | BP92: 0 | BQ92: 0 | BR92: 0 | BS92: 0
A93: Over-Ride | B93: =B92 -> WIR-RE | C93: =C92 -> WIR | D93: Best Estimate | E93: =IF(E$9=$A93,IF(OR(E$10=$B93, E$10=$C93),1,IF(OR(E$10="All",E$10="All Properties"),1,0)),0) -> 0 | F93: 0 | G93: 0 | H93: 0 | I93: 0 | J93: 0 | K93: 0 | L93: 0 | M93: 0 | N93: 0 | O93: 0 | P93: 0 | Q93: 0 | R93: 0 | S93: 0 | T93: 0 | U93: 0 | V93: 0 | W93: 0 | X93: 0 | Y93: 0 | Z93: 0 | AA93: 0 | AB93: 0 | AC93: 0 | AD93: 0 | AE93: 0 | AF93: 0 | AG93: 0 | AH93: 0 | AI93: 0 | AJ93: 0 | AK93: 0 | AL93: 0 | AM93: 0 | AN93: 0 | AO93: 0 | AP93: 0 | AQ93: 0 | AR93: 0 | AS93: 0 | AT93: 0 | AU93: 0 | AV93: 0 | AW93: 0 | AX93: 0 | BG93: ='Res Inputs'!F57 -> 0 | BH93: =IF((SUMPRODUCT($E$17:$AX$17,$E93:$AX93)*$BG93)=0,$BG93,SUMPRODUCT($E$17:$AX$17,$E93:$AX93)*$BG93) -> 0 | BI93: =IF((SUMPRODUCT($E$18:$AX$18,$E93:$AX93)*$BG93)=0,$BG93,SUMPRODUCT($E$18:$AX$18,$E93:$AX93)*$BG93) -> 0 | BJ93: =IF((SUMPRODUCT($E$19:$AX$19,$E93:$AX93)*$BG93)=0,$BG93,SUMPRODUCT($E$19:$AX$19,$E93:$AX93)*$BG93) -> 0 | BK93: =IF((SUMPRODUCT($E$20:$AX$20,$E93:$AX93)*$BG93)=0,$BG93,SUMPRODUCT($E$20:$AX$20,$E93:$AX93)*$BG93) -> 0 | BL93: =IF((SUMPRODUCT($E$21:$AX$21,$E93:$AX93)*$BG93)=0,$BG93,SUMPRODUCT($E$21:$AX$21,$E93:$AX93)*$BG93) -> 0 | BN93: =BG93 -> 0 | BO93: 0 | BP93: 0 | BQ93: 0 | BR93: 0 | BS93: 0
A94: Over-Ride | B94: =B93 -> WIR-RE | C94: =C93 -> WIR | D94: Lower Estimate | E94: =E93 -> 0 | F94: 0 | G94: 0 | H94: 0 | I94: 0 | J94: 0 | K94: 0 | L94: 0 | M94: 0 | N94: 0 | O94: 0 | P94: 0 | Q94: 0 | R94: 0 | S94: 0 | T94: 0 | U94: 0 | V94: 0 | W94: 0 | X94: 0 | Y94: 0 | Z94: 0 | AA94: 0 | AB94: 0 | AC94: 0 | AD94: 0 | AE94: 0 | AF94: 0 | AG94: 0 | AH94: 0 | AI94: 0 | AJ94: 0 | AK94: 0 | AL94: 0 | AM94: 0 | AN94: 0 | AO94: 0 | AP94: 0 | AQ94: 0 | AR94: 0 | AS94: 0 | AT94: 0 | AU94: 0 | AV94: 0 | AW94: 0 | AX94: 0 | BG94: ='Res Inputs'!F58 -> 0 | BH94: =IF((SUMPRODUCT($E$17:$AX$17,$E94:$AX94)*$BG94)=0,$BG94,SUMPRODUCT($E$17:$AX$17,$E94:$AX94)*$BG94) -> 0 | BI94: =IF((SUMPRODUCT($E$18:$AX$18,$E94:$AX94)*$BG94)=0,$BG94,SUMPRODUCT($E$18:$AX$18,$E94:$AX94)*$BG94) -> 0 | BJ94: =IF((SUMPRODUCT($E$19:$AX$19,$E94:$AX94)*$BG94)=0,$BG94,SUMPRODUCT($E$19:$AX$19,$E94:$AX94)*$BG94) -> 0 | BK94: =IF((SUMPRODUCT($E$20:$AX$20,$E94:$AX94)*$BG94)=0,$BG94,SUMPRODUCT($E$20:$AX$20,$E94:$AX94)*$BG94) -> 0 | BL94: =IF((SUMPRODUCT($E$21:$AX$21,$E94:$AX94)*$BG94)=0,$BG94,SUMPRODUCT($E$21:$AX$21,$E94:$AX94)*$BG94) -> 0 | BN94: =BG94 -> 0 | BO94: =IF(BH94<1,BH94,1) -> 0 | BP94: =IF(BI94<1,BI94,1) -> 0 | BQ94: =IF(BJ94<1,BJ94,1) -> 0 | BR94: =IF(BK94<1,BK94,1) -> 0 | BS94: =IF(BL94<1,BL94,1) -> 0
A95: Over-Ride | B95: =B74 -> WDR-RE | C95: =C74 -> WDR | D95: Upper Estimate | E95: =E96 -> 0 | F95: 0 | G95: 0 | H95: 0 | I95: 0 | J95: 0 | K95: 0 | L95: 0 | M95: 0 | N95: 0 | O95: 0 | P95: 0 | Q95: 0 | R95: 0 | S95: 0 | T95: 0 | U95: 0 | V95: 0 | W95: 0 | X95: 0 | Y95: 0 | Z95: 0 | AA95: 0 | AB95: 0 | AC95: 0 | AD95: 0 | AE95: 0 | AF95: 0 | AG95: 0 | AH95: 0 | AI95: 0 | AJ95: 0 | AK95: 0 | AL95: 0 | AM95: 0 | AN95: 0 | AO95: 0 | AP95: 0 | AQ95: 0 | AR95: 0 | AS95: 0 | AT95: 0 | AU95: 0 | AV95: 0 | AW95: 0 | AX95: 0 | BG95: ='Res Inputs'!F59 -> 0 | BH95: 0 | BI95: 0 | BJ95: 0 | BK95: 0 | BL95: 0 | BN95: 0 | BO95: 0 | BP95: 0 | BQ95: 0 | BR95: 0 | BS95: 0
A96: Over-Ride | B96: =B95 -> WDR-RE | C96: =C95 -> WDR | D96: Best Estimate | E96: =IF(E$9=$A96,IF(OR(E$10=$B96, E$10=$C96),1,IF(OR(E$10="All",E$10="All Properties"),1,0)),0) -> 0 | F96: 0 | G96: 0 | H96: 0 | I96: 0 | J96: 0 | K96: 0 | L96: 0 | M96: 0 | N96: 0 | O96: 0 | P96: 0 | Q96: 0 | R96: 0 | S96: 0 | T96: 0 | U96: 0 | V96: 0 | W96: 0 | X96: 0 | Y96: 0 | Z96: 0 | AA96: 0 | AB96: 0 | AC96: 0 | AD96: 0 | AE96: 0 | AF96: 0 | AG96: 0 | AH96: 0 | AI96: 0 | AJ96: 0 | AK96: 0 | AL96: 0 | AM96: 0 | AN96: 0 | AO96: 0 | AP96: 0 | AQ96: 0 | AR96: 0 | AS96: 0 | AT96: 0 | AU96: 0 | AV96: 0 | AW96: 0 | AX96: 0 | BG96: ='Res Inputs'!F60 -> 0.02 | BH96: 0.02 | BI96: 0.02 | BJ96: 0.02 | BK96: 0.02 | BL96: 0.02 | BN96: 0.02 | BO96: 0.02 | BP96: 0.02 | BQ96: 0.02 | BR96: 0.02 | BS96: 0.02
A97: Over-Ride | B97: =B96 -> WDR-RE | C97: =C96 -> WDR | D97: Lower Estimate | E97: =E96 -> 0 | F97: 0 | G97: 0 | H97: 0 | I97: 0 | J97: 0 | K97: 0 | L97: 0 | M97: 0 | N97: 0 | O97: 0 | P97: 0 | Q97: 0 | R97: 0 | S97: 0 | T97: 0 | U97: 0 | V97: 0 | W97: 0 | X97: 0 | Y97: 0 | Z97: 0 | AA97: 0 | AB97: 0 | AC97: 0 | AD97: 0 | AE97: 0 | AF97: 0 | AG97: 0 | AH97: 0 | AI97: 0 | AJ97: 0 | AK97: 0 | AL97: 0 | AM97: 0 | AN97: 0 | AO97: 0 | AP97: 0 | AQ97: 0 | AR97: 0 | AS97: 0 | AT97: 0 | AU97: 0 | AV97: 0 | AW97: 0 | AX97: 0 | BG97: ='Res Inputs'!F61 -> 0 | BH97: 0 | BI97: 0 | BJ97: 0 | BK97: 0 | BL97: 0 | BN97: 0 | BO97: 0 | BP97: 0 | BQ97: 0 | BR97: 0 | BS97: 0
A98: Over-Ride | B98: =B77 -> RSL-RE | C98: =C77 -> RSL | D98: Upper Estimate | E98: =E99 -> 0 | F98: 0 | G98: 0 | H98: 0 | I98: 0 | J98: 0 | K98: 0 | L98: 0 | M98: 0 | N98: 0 | O98: 0 | P98: 0 | Q98: 0 | R98: 0 | S98: 0 | T98: 0 | U98: 0 | V98: 0 | W98: 0 | X98: 0 | Y98: 0 | Z98: 0 | AA98: 0 | AB98: 0 | AC98: 0 | AD98: 0 | AE98: 0 | AF98: 0 | AG98: 0 | AH98: 0 | AI98: 0 | AJ98: 0 | AK98: 0 | AL98: 0 | AM98: 0 | AN98: 0 | AO98: 0 | AP98: 0 | AQ98: 0 | AR98: 0 | AS98: 0 | AT98: 0 | AU98: 0 | AV98: 0 | AW98: 0 | AX98: 0 | BG98: ='Res Inputs'!F62 -> 0 | BH98: 0 | BI98: 0 | BJ98: 0 | BK98: 0 | BL98: 0 | BN98: 0 | BO98: 0 | BP98: 0 | BQ98: 0 | BR98: 0 | BS98: 0
A99: Over-Ride | B99: =B98 -> RSL-RE | C99: =C98 -> RSL | D99: Best Estimate | E99: =IF(E$9=$A99,IF(OR(E$10=$B99, E$10=$C99),1,IF(OR(E$10="All",E$10="All Properties"),1,0)),0) -> 0 | F99: 0 | G99: 0 | H99: 0 | I99: 0 | J99: 0 | K99: 0 | L99: 0 | M99: 0 | N99: 0 | O99: 0 | P99: 0 | Q99: 0 | R99: 0 | S99: 0 | T99: 0 | U99: 0 | V99: 0 | W99: 0 | X99: 0 | Y99: 0 | Z99: 0 | AA99: 0 | AB99: 0 | AC99: 0 | AD99: 0 | AE99: 0 | AF99: 0 | AG99: 0 | AH99: 0 | AI99: 0 | AJ99: 0 | AK99: 0 | AL99: 0 | AM99: 0 | AN99: 0 | AO99: 0 | AP99: 0 | AQ99: 0 | AR99: 0 | AS99: 0 | AT99: 0 | AU99: 0 | AV99: 0 | AW99: 0 | AX99: 0 | BG99: ='Res Inputs'!F63 -> 0 | BH99: 0 | BI99: 0 | BJ99: 0 | BK99: 0 | BL99: 0 | BN99: 0 | BO99: 0 | BP99: 0 | BQ99: 0 | BR99: 0 | BS99: 0
A100: Over-Ride | B100: =B99 -> RSL-RE | C100: =C99 -> RSL | D100: Lower Estimate | E100: =E99 -> 0 | F100: 0 | G100: 0 | H100: 0 | I100: 0 | J100: 0 | K100: 0 | L100: 0 | M100: 0 | N100: 0 | O100: 0 | P100: 0 | Q100: 0 | R100: 0 | S100: 0 | T100: 0 | U100: 0 | V100: 0 | W100: 0 | X100: 0 | Y100: 0 | Z100: 0 | AA100: 0 | AB100: 0 | AC100: 0 | AD100: 0 | AE100: 0 | AF100: 0 | AG100: 0 | AH100: 0 | AI100: 0 | AJ100: 0 | AK100: 0 | AL100: 0 | AM100: 0 | AN100: 0 | AO100: 0 | AP100: 0 | AQ100: 0 | AR100: 0 | AS100: 0 | AT100: 0 | AU100: 0 | AV100: 0 | AW100: 0 | AX100: 0 | BG100: ='Res Inputs'!F64 -> 0 | BH100: 0 | BI100: 0 | BJ100: 0 | BK100: 0 | BL100: 0 | BN100: 0 | BO100: 0 | BP100: 0 | BQ100: 0 | BR100: 0 | BS100: 0
A101: Over-Ride | B101: =B80 -> CME-RE | C101: =C80 -> CME | D101: Upper Estimate | E101: =E102 -> 0 | F101: 0 | G101: 0 | H101: 0 | I101: 0 | J101: 0 | K101: 0 | L101: 0 | M101: 0 | N101: 0 | O101: 0 | P101: 0 | Q101: 0 | R101: 0 | S101: 0 | T101: 0 | U101: 0 | V101: 0 | W101: 0 | X101: 0 | Y101: 0 | Z101: 0 | AA101: 0 | AB101: 0 | AC101: 0 | AD101: 0 | AE101: 0 | AF101: 0 | AG101: 0 | AH101: 0 | AI101: 0 | AJ101: 0 | AK101: 0 | AL101: 0 | AM101: 0 | AN101: 0 | AO101: 0 | AP101: 0 | AQ101: 0 | AR101: 0 | AS101: 0 | AT101: 0 | AU101: 0 | AV101: 0 | AW101: 0 | AX101: 0 | BG101: ='Res Inputs'!F65 -> 0 | BH101: 0 | BI101: 0 | BJ101: 0 | BK101: 0 | BL101: 0 | BN101: 0 | BO101: 0 | BP101: 0 | BQ101: 0 | BR101: 0 | BS101: 0
A102: Over-Ride | B102: =B101 -> CME-RE | C102: =C101 -> CME | D102: Best Estimate | E102: =IF(E$9=$A102,IF(OR(E$10=$B102, E$10=$C102),1,IF(OR(E$10="All",E$10="All Properties"),1,0)),0) -> 0 | F102: 0 | G102: 0 | H102: 0 | I102: 0 | J102: 0 | K102: 0 | L102: 0 | M102: 0 | N102: 0 | O102: 0 | P102: 0 | Q102: 0 | R102: 0 | S102: 0 | T102: 0 | U102: 0 | V102: 0 | W102: 0 | X102: 0 | Y102: 0 | Z102: 0 | AA102: 0 | AB102: 0 | AC102: 0 | AD102: 0 | AE102: 0 | AF102: 0 | AG102: 0 | AH102: 0 | AI102: 0 | AJ102: 0 | AK102: 0 | AL102: 0 | AM102: 0 | AN102: 0 | AO102: 0 | AP102: 0 | AQ102: 0 | AR102: 0 | AS102: 0 | AT102: 0 | AU102: 0 | AV102: 0 | AW102: 0 | AX102: 0 | BG102: ='Res Inputs'!F66 -> 0.05 | BH102: 0.05 | BI102: 0.05 | BJ102: 0.05 | BK102: 0.05 | BL102: 0.05 | BN102: 0.05 | BO102: 0.05 | BP102: 0.05 | BQ102: 0.05 | BR102: 0.05 | BS102: 0.05
A103: Over-Ride | B103: =B102 -> CME-RE | C103: =C102 -> CME | D103: Lower Estimate | E103: =E102 -> 0 | F103: 0 | G103: 0 | H103: 0 | I103: 0 | J103: 0 | K103: 0 | L103: 0 | M103: 0 | N103: 0 | O103: 0 | P103: 0 | Q103: 0 | R103: 0 | S103: 0 | T103: 0 | U103: 0 | V103: 0 | W103: 0 | X103: 0 | Y103: 0 | Z103: 0 | AA103: 0 | AB103: 0 | AC103: 0 | AD103: 0 | AE103: 0 | AF103: 0 | AG103: 0 | AH103: 0 | AI103: 0 | AJ103: 0 | AK103: 0 | AL103: 0 | AM103: 0 | AN103: 0 | AO103: 0 | AP103: 0 | AQ103: 0 | AR103: 0 | AS103: 0 | AT103: 0 | AU103: 0 | AV103: 0 | AW103: 0 | AX103: 0 | BG103: ='Res Inputs'!F67 -> 0 | BH103: 0 | BI103: 0 | BJ103: 0 | BK103: 0 | BL103: 0 | BN103: 0 | BO103: 0 | BP103: 0 | BQ103: 0 | BR103: 0 | BS103: 0
A106: Non-Residential
A107: =A49 -> UP | C107: =C49 -> % Response Uptake
A108: =A107 -> UP | B108: =Settings!C83 -> BDD | C108: =B108 -> BDD | D108: Upper Estimate | E108: =E109 -> 0 | F108: 0 | G108: 0 | H108: 0 | I108: 0 | J108: 0 | K108: 0 | L108: 0 | M108: 0 | N108: 0 | O108: 0 | P108: 0 | Q108: 0 | R108: 0 | S108: 0 | T108: 0 | U108: 0 | V108: 0 | W108: 0 | X108: 0 | Y108: 0 | Z108: 0 | AA108: 0 | AB108: 0 | AC108: 0 | AD108: 0 | AE108: 0 | AF108: 0 | AG108: 0 | AH108: 0 | AI108: 0 | AJ108: 0 | AK108: 0 | AL108: 0 | AM108: 0 | AN108: 0 | AO108: 0 | AP108: 0 | AQ108: 0 | AR108: 0 | AS108: 0 | AT108: 0 | AU108: 0 | AV108: 0 | AW108: 0 | AX108: 0 | BG108: ='Non-Res Inputs'!N9 -> 0 | BH108: =IF((SUMPRODUCT($E$17:$AX$17,$E108:$AX108)*$BG108)=0,$BG108,SUMPRODUCT($E$17:$AX$17,$E108:$AX108)*$BG108) -> 0 | BI108: =IF((SUMPRODUCT($E$18:$AX$18,$E108:$AX108)*$BG108)=0,$BG108,SUMPRODUCT($E$18:$AX$18,$E108:$AX108)*$BG108) -> 0 | BJ108: =IF((SUMPRODUCT($E$19:$AX$19,$E108:$AX108)*$BG108)=0,$BG108,SUMPRODUCT($E$19:$AX$19,$E108:$AX108)*$BG108) -> 0 | BK108: =IF((SUMPRODUCT($E$20:$AX$20,$E108:$AX108)*$BG108)=0,$BG108,SUMPRODUCT($E$20:$AX$20,$E108:$AX108)*$BG108) -> 0 | BL108: =IF((SUMPRODUCT($E$21:$AX$21,$E108:$AX108)*$BG108)=0,$BG108,SUMPRODUCT($E$21:$AX$21,$E108:$AX108)*$BG108) -> 0 | BN108: =BG108 -> 0 | BO108: =IF(BH108<1,BH108,1) -> 0 | BP108: 0 | BQ108: 0 | BR108: 0 | BS108: 0
A109: UP | B109: =B108 -> BDD | C109: =C108 -> BDD | D109: Best Estimate | E109: =IF(E$9=$A109,IF(OR(E$10=$B109, E$10=$C109),1,IF(OR(E$10="All",E$10="All Properties"),1,0)),0) -> 0 | F109: =IF(F$9=$A109,IF(OR(F$10=$B109, F$10=$C109),1,IF(OR(F$10="All",F$10="All Properties"),1,0)),0) -> 0 | G109: 0 | H109: 0 | I109: 0 | J109: 0 | K109: 0 | L109: 0 | M109: 0 | N109: 0 | O109: 0 | P109: 0 | Q109: 0 | R109: 0 | S109: 0 | T109: 0 | U109: 0 | V109: =IF(V$9=$A109,IF(OR(V$10=$B109, V$10=$C109),1,IF(OR(V$10="All",V$10="All Properties"),1,0)),0) -> 0 | W109: 0 | X109: 0 | Y109: 0 | Z109: 0 | AA109: 0 | AB109: 0 | AC109: 0 | AD109: 0 | AE109: 0 | AF109: 0 | AG109: 0 | AH109: 0 | AI109: 0 | AJ109: 0 | AK109: 0 | AL109: 0 | AM109: 0 | AN109: 0 | AO109: 0 | AP109: 0 | AQ109: 0 | AR109: 0 | AS109: 0 | AT109: 0 | AU109: 0 | AV109: 0 | AW109: 0 | AX109: 0 | BG109: ='Non-Res Inputs'!N10 -> 0 | BH109: =IF((SUMPRODUCT($E$17:$AX$17,$E109:$AX109)*$BG109)=0,$BG109,SUMPRODUCT($E$17:$AX$17,$E109:$AX109)*$BG109) -> 0 | BI109: =IF((SUMPRODUCT($E$18:$AX$18,$E109:$AX109)*$BG109)=0,$BG109,SUMPRODUCT($E$18:$AX$18,$E109:$AX109)*$BG109) -> 0 | BJ109: =IF((SUMPRODUCT($E$19:$AX$19,$E109:$AX109)*$BG109)=0,$BG109,SUMPRODUCT($E$19:$AX$19,$E109:$AX109)*$BG109) -> 0 | BK109: =IF((SUMPRODUCT($E$20:$AX$20,$E109:$AX109)*$BG109)=0,$BG109,SUMPRODUCT($E$20:$AX$20,$E109:$AX109)*$BG109) -> 0 | BL109: =IF((SUMPRODUCT($E$21:$AX$21,$E109:$AX109)*$BG109)=0,$BG109,SUMPRODUCT($E$21:$AX$21,$E109:$AX109)*$BG109) -> 0 | BN109: =BG109 -> 0 | BO109: 0 | BP109: 0 | BQ109: 0 | BR109: 0 | BS109: 0
A110: UP | B110: =B109 -> BDD | C110: =C109 -> BDD | D110: Lower Estimate | E110: =E109 -> 0 | F110: 0 | G110: 0 | H110: 0 | I110: 0 | J110: 0 | K110: 0 | L110: 0 | M110: 0 | N110: 0 | O110: 0 | P110: 0 | Q110: 0 | R110: 0 | S110: 0 | T110: 0 | U110: 0 | V110: 0 | W110: 0 | X110: 0 | Y110: 0 | Z110: 0 | AA110: 0 | AB110: 0 | AC110: 0 | AD110: 0 | AE110: 0 | AF110: 0 | AG110: 0 | AH110: 0 | AI110: 0 | AJ110: 0 | AK110: 0 | AL110: 0 | AM110: 0 | AN110: 0 | AO110: 0 | AP110: 0 | AQ110: 0 | AR110: 0 | AS110: 0 | AT110: 0 | AU110: 0 | AV110: 0 | AW110: 0 | AX110: 0 | BG110: ='Non-Res Inputs'!N11 -> 0 | BH110: =IF((SUMPRODUCT($E$17:$AX$17,$E110:$AX110)*$BG110)=0,$BG110,SUMPRODUCT($E$17:$AX$17,$E110:$AX110)*$BG110) -> 0 | BI110: =IF((SUMPRODUCT($E$18:$AX$18,$E110:$AX110)*$BG110)=0,$BG110,SUMPRODUCT($E$18:$AX$18,$E110:$AX110)*$BG110) -> 0 | BJ110: =IF((SUMPRODUCT($E$19:$AX$19,$E110:$AX110)*$BG110)=0,$BG110,SUMPRODUCT($E$19:$AX$19,$E110:$AX110)*$BG110) -> 0 | BK110: =IF((SUMPRODUCT($E$20:$AX$20,$E110:$AX110)*$BG110)=0,$BG110,SUMPRODUCT($E$20:$AX$20,$E110:$AX110)*$BG110) -> 0 | BL110: =IF((SUMPRODUCT($E$21:$AX$21,$E110:$AX110)*$BG110)=0,$BG110,SUMPRODUCT($E$21:$AX$21,$E110:$AX110)*$BG110) -> 0 | BN110: =BG110 -> 0 | BO110: =IF(BH110<1,BH110,1) -> 0 | BP110: =IF(BI110<1,BI110,1) -> 0 | BQ110: =IF(BJ110<1,BJ110,1) -> 0 | BR110: =IF(BK110<1,BK110,1) -> 0 | BS110: =IF(BL110<1,BL110,1) -> 0
A111: UP | B111: =C111&"-NR" -> WIR-NR | C111: =C92 -> WIR | D111: Upper Estimate | E111: =E112 -> 0 | F111: 0 | G111: 0 | H111: 0 | I111: 0 | J111: 0 | K111: 0 | L111: 0 | M111: 0 | N111: 0 | O111: 0 | P111: 0 | Q111: 0 | R111: 0 | S111: 0 | T111: 0 | U111: 0 | V111: 0 | W111: 0 | X111: 0 | Y111: 0 | Z111: 0 | AA111: 0 | AB111: 0 | AC111: 0 | AD111: 0 | AE111: 0 | AF111: 0 | AG111: 0 | AH111: 0 | AI111: 0 | AJ111: 0 | AK111: 0 | AL111: 0 | AM111: 0 | AN111: 0 | AO111: 0 | AP111: 0 | AQ111: 0 | AR111: 0 | AS111: 0 | AT111: 0 | AU111: 0 | AV111: 0 | AW111: 0 | AX111: 0 | BG111: ='Non-Res Inputs'!N12 -> 0.032 | BH111: 0.032 | BI111: 0.032 | BJ111: 0.032 | BK111: 0.032 | BL111: 0.032 | BN111: 0.032 | BO111: 0.032 | BP111: 0.032 | BQ111: 0.032 | BR111: 0.032 | BS111: 0.032
A112: UP | B112: WIR-NR | C112: =C111 -> WIR | D112: Best Estimate | E112: =IF(E$9=$A112,IF(OR(E$10=$B112, E$10=$C112),1,IF(OR(E$10="All",E$10="All Properties"),1,0)),0) -> 0 | F112: =IF(F$9=$A112,IF(OR(F$10=$B112, F$10=$C112),1,IF(OR(F$10="All",F$10="All Properties"),1,0)),0) -> 0 | G112: 0 | H112: 0 | I112: 0 | J112: 0 | K112: 0 | L112: 0 | M112: 0 | N112: 0 | O112: 0 | P112: 0 | Q112: 0 | R112: 0 | S112: 0 | T112: 0 | U112: 0 | V112: =IF(V$9=$A112,IF(OR(V$10=$B112, V$10=$C112),1,IF(OR(V$10="All",V$10="All Properties"),1,0)),0) -> 0 | W112: 0 | X112: 0 | Y112: 0 | Z112: 0 | AA112: 0 | AB112: 0 | AC112: 0 | AD112: 0 | AE112: 0 | AF112: 0 | AG112: 0 | AH112: 0 | AI112: 0 | AJ112: 0 | AK112: 0 | AL112: 0 | AM112: 0 | AN112: 0 | AO112: 0 | AP112: 0 | AQ112: 0 | AR112: 0 | AS112: 0 | AT112: 0 | AU112: 0 | AV112: 0 | AW112: 0 | AX112: 0 | BG112: ='Non-Res Inputs'!N13 -> 0.032 | BH112: 0.032 | BI112: 0.032 | BJ112: 0.032 | BK112: 0.032 | BL112: 0.032 | BN112: 0.032 | BO112: 0.032 | BP112: 0.032 | BQ112: 0.032 | BR112: 0.032 | BS112: 0.032
A113: UP | B113: WIR-NR | C113: =C112 -> WIR | D113: Lower Estimate | E113: =E112 -> 0 | F113: 0 | G113: 0 | H113: 0 | I113: 0 | J113: 0 | K113: 0 | L113: 0 | M113: 0 | N113: 0 | O113: 0 | P113: 0 | Q113: 0 | R113: 0 | S113: 0 | T113: 0 | U113: 0 | V113: 0 | W113: 0 | X113: 0 | Y113: 0 | Z113: 0 | AA113: 0 | AB113: 0 | AC113: 0 | AD113: 0 | AE113: 0 | AF113: 0 | AG113: 0 | AH113: 0 | AI113: 0 | AJ113: 0 | AK113: 0 | AL113: 0 | AM113: 0 | AN113: 0 | AO113: 0 | AP113: 0 | AQ113: 0 | AR113: 0 | AS113: 0 | AT113: 0 | AU113: 0 | AV113: 0 | AW113: 0 | AX113: 0 | BG113: ='Non-Res Inputs'!N14 -> 0.032 | BH113: 0.032 | BI113: 0.032 | BJ113: 0.032 | BK113: 0.032 | BL113: 0.032 | BN113: 0.032 | BO113: 0.032 | BP113: 0.032 | BQ113: 0.032 | BR113: 0.032 | BS113: 0.032
A114: UP | B114: WDR-NR | C114: =C95 -> WDR | D114: Upper Estimate | E114: =E115 -> 0 | F114: 0 | G114: 0 | H114: 0 | I114: 0 | J114: 0 | K114: 0 | L114: 0 | M114: 0 | N114: 0 | O114: 0 | P114: 0 | Q114: 0 | R114: 0 | S114: 0 | T114: 0 | U114: 0 | V114: 0 | W114: 0 | X114: 0 | Y114: 0 | Z114: 0 | AA114: 0 | AB114: 0 | AC114: 0 | AD114: 0 | AE114: 0 | AF114: 0 | AG114: 0 | AH114: 0 | AI114: 0 | AJ114: 0 | AK114: 0 | AL114: 0 | AM114: 0 | AN114: 0 | AO114: 0 | AP114: 0 | AQ114: 0 | AR114: 0 | AS114: 0 | AT114: 0 | AU114: 0 | AV114: 0 | AW114: 0 | AX114: 0 | BG114: ='Non-Res Inputs'!N15 -> 0.048 | BH114: 0.048 | BI114: 0.048 | BJ114: 0.048 | BK114: 0.048 | BL114: 0.048 | BN114: 0.048 | BO114: 0.048 | BP114: 0.048 | BQ114: 0.048 | BR114: 0.048 | BS114: 0.048
A115: UP | B115: WDR-NR | C115: =C114 -> WDR | D115: Best Estimate | E115: =IF(E$9=$A115,IF(OR(E$10=$B115, E$10=$C115),1,IF(OR(E$10="All",E$10="All Properties"),1,0)),0) -> 0 | F115: 0 | G115: 0 | H115: 0 | I115: 0 | J115: 0 | K115: 0 | L115: 0 | M115: 0 | N115: 0 | O115: 0 | P115: 0 | Q115: 0 | R115: 0 | S115: 0 | T115: 0 | U115: 0 | V115: 0 | W115: =IF(W$9=$A115,IF(OR(W$10=$B115, W$10=$C115),1,IF(OR(W$10="All",W$10="All Properties"),1,0)),0) -> 0 | X115: 0 | Y115: 0 | Z115: 0 | AA115: 0 | AB115: 0 | AC115: 0 | AD115: 0 | AE115: 0 | AF115: 0 | AG115: 0 | AH115: 0 | AI115: 0 | AJ115: 0 | AK115: 0 | AL115: 0 | AM115: =IF(AM$9=$A115,IF(OR(AM$10=$B115, AM$10=$C115),1,IF(OR(AM$10="All",AM$10="All Properties"),1,0)),0) -> 0 | AN115: 0 | AO115: 0 | AP115: 0 | AQ115: 0 | AR115: 0 | AS115: 0 | AT115: 0 | AU115: 0 | AV115: 0 | AW115: 0 | AX115: 0 | BG115: ='Non-Res Inputs'!N16 -> 0.048 | BH115: 0.048 | BI115: 0.048 | BJ115: 0.048 | BK115: 0.048 | BL115: 0.048 | BN115: 0.048 | BO115: 0.048 | BP115: 0.048 | BQ115: 0.048 | BR115: 0.048 | BS115: 0.048
A116: UP | B116: WDR-NR | C116: =C115 -> WDR | D116: Lower Estimate | E116: =E115 -> 0 | F116: 0 | G116: 0 | H116: 0 | I116: 0 | J116: 0 | K116: 0 | L116: 0 | M116: 0 | N116: 0 | O116: 0 | P116: 0 | Q116: 0 | R116: 0 | S116: 0 | T116: 0 | U116: 0 | V116: 0 | W116: 0 | X116: 0 | Y116: 0 | Z116: 0 | AA116: 0 | AB116: 0 | AC116: 0 | AD116: 0 | AE116: 0 | AF116: 0 | AG116: 0 | AH116: 0 | AI116: 0 | AJ116: 0 | AK116: 0 | AL116: 0 | AM116: 0 | AN116: 0 | AO116: 0 | AP116: 0 | AQ116: 0 | AR116: 0 | AS116: 0 | AT116: 0 | AU116: 0 | AV116: 0 | AW116: 0 | AX116: 0 | BG116: ='Non-Res Inputs'!N17 -> 0.048 | BH116: 0.048 | BI116: 0.048 | BJ116: 0.048 | BK116: 0.048 | BL116: 0.048 | BN116: 0.048 | BO116: 0.048 | BP116: 0.048 | BQ116: 0.048 | BR116: 0.048 | BS116: 0.048
A117: UP | B117: RSL-NR | C117: =C98 -> RSL | D117: Upper Estimate | E117: =E118 -> 0 | F117: 0 | G117: 0 | H117: 0 | I117: 0 | J117: 0 | K117: 0 | L117: 0 | M117: 0 | N117: 0 | O117: 0 | P117: 0 | Q117: 0 | R117: 0 | S117: 0 | T117: 1 | U117: 0 | V117: 0 | W117: 0 | X117: 0 | Y117: 0 | Z117: 1 | AA117: 0 | AB117: 0 | AC117: 0 | AD117: 0 | AE117: 0 | AF117: 0 | AG117: 0 | AH117: 0 | AI117: 0 | AJ117: 0 | AK117: 0 | AL117: 0 | AM117: 0 | AN117: 0 | AO117: 0 | AP117: 0 | AQ117: 0 | AR117: 0 | AS117: 0 | AT117: 0 | AU117: 0 | AV117: 0 | AW117: 0 | AX117: 0 | BG117: ='Non-Res Inputs'!N18 -> 0.02 | BH117: 0.0392 | BI117: 0.01010205144 | BJ117: 0.02 | BK117: 0.02 | BL117: 0.02 | BN117: 0.02 | BO117: 0.0392 | BP117: 0.01010205144 | BQ117: 0.02 | BR117: 0.02 | BS117: 0.02
A118: UP | B118: RSL-NR | C118: =C117 -> RSL | D118: Best Estimate | E118: =IF(E$9=$A118,IF(OR(E$10=$B118, E$10=$C118),1,IF(OR(E$10="All",E$10="All Properties"),1,0)),0) -> 0 | F118: 0 | G118: 0 | H118: 0 | I118: 0 | J118: 0 | K118: 0 | L118: 0 | M118: 0 | N118: 0 | O118: 0 | P118: 0 | Q118: 0 | R118: 0 | S118: 0 | T118: 1 | U118: 0 | V118: 0 | W118: 0 | X118: 0 | Y118: 0 | Z118: 1 | AA118: 0 | AB118: 0 | AC118: 0 | AD118: 0 | AE118: 0 | AF118: 0 | AG118: 0 | AH118: 0 | AI118: 0 | AJ118: 0 | AK118: 0 | AL118: 0 | AM118: 0 | AN118: 0 | AO118: 0 | AP118: 0 | AQ118: 0 | AR118: 0 | AS118: 0 | AT118: 0 | AU118: 0 | AV118: 0 | AW118: 0 | AX118: 0 | BG118: ='Non-Res Inputs'!N19 -> 0.02 | BH118: 0.0392 | BI118: 0.01010205144 | BJ118: 0.02 | BK118: 0.02 | BL118: 0.02 | BN118: 0.02 | BO118: 0.0392 | BP118: 0.01010205144 | BQ118: 0.02 | BR118: 0.02 | BS118: 0.02
A119: UP | B119: RSL-NR | C119: =C118 -> RSL | D119: Lower Estimate | E119: =E118 -> 0 | F119: 0 | G119: 0 | H119: 0 | I119: 0 | J119: 0 | K119: 0 | L119: 0 | M119: 0 | N119: 0 | O119: 0 | P119: 0 | Q119: 0 | R119: 0 | S119: 0 | T119: 1 | U119: 0 | V119: 0 | W119: 0 | X119: 0 | Y119: 0 | Z119: 1 | AA119: 0 | AB119: 0 | AC119: 0 | AD119: 0 | AE119: 0 | AF119: 0 | AG119: 0 | AH119: 0 | AI119: 0 | AJ119: 0 | AK119: 0 | AL119: 0 | AM119: 0 | AN119: 0 | AO119: 0 | AP119: 0 | AQ119: 0 | AR119: 0 | AS119: 0 | AT119: 0 | AU119: 0 | AV119: 0 | AW119: 0 | AX119: 0 | BG119: ='Non-Res Inputs'!N20 -> 0.02 | BH119: 0.0392 | BI119: 0.01010205144 | BJ119: 0.02 | BK119: 0.02 | BL119: 0.02 | BN119: 0.02 | BO119: 0.0392 | BP119: 0.01010205144 | BQ119: 0.02 | BR119: 0.02 | BS119: 0.02
A122: =A61 -> OP | C122: =C61 -> % Response Operated | AZ122: Baseline | BA122: =BA61 -> Scenario 1 | BB122: =BB61 -> Scenario 2 | BC122: =BC61 -> Scenario 3 | BD122: =BD61 -> Scenario 4 | BE122: =BE61 -> Scenario 5
A123: =A122 -> OP | B123: =C123&"-NR" -> WDR-NR | C123: =C114 -> WDR | D123: Upper Estimate | E123: =E124 -> 0 | F123: 0 | G123: 0 | H123: 0 | I123: 0 | J123: 0 | K123: 0 | L123: 0 | M123: 0 | N123: 0 | O123: 0 | P123: 0 | Q123: 1 | R123: 0 | S123: 0 | T123: 0 | U123: 0 | V123: 0 | W123: 0 | X123: 0 | Y123: 0 | Z123: 0 | AA123: 0 | AB123: 0 | AC123: 0 | AD123: 0 | AE123: 0 | AF123: 0 | AG123: 0 | AH123: 0 | AI123: 0 | AJ123: 0 | AK123: 0 | AL123: 0 | AM123: 0 | AN123: 0 | AO123: 0 | AP123: 0 | AQ123: 0 | AR123: 0 | AS123: 0 | AT123: 0 | AU123: 0 | AV123: 0 | AW123: 0 | AX123: 0 | AZ123: =BG123 -> 0.9588631 | BA123: =IF(ISERROR('%OP'!N86),0,'%OP'!N86) -> 0 | BB123: =IF(ISERROR('%OP'!N115),0,'%OP'!N115) -> 0 | BC123: =IF(ISERROR('%OP'!N144),0,'%OP'!N144) -> 0 | BD123: =IF(ISERROR('%OP'!N173),0,'%OP'!N173) -> 0 | BE123: =IF(ISERROR('%OP'!N202),0,'%OP'!N202) -> 0 | BG123: ='Non-Res Inputs'!N26 -> 0.9588631 | BH123: =IF((SUMPRODUCT($E$17:$AX$17,$E123:$AX123)*$BA123)=0,$BA123,SUMPRODUCT($E$17:$AX$17,$E123:$AX123)*$BA123) -> 0 | BI123: =IF((SUMPRODUCT($E$18:$AX$18,$E123:$AX123)*$BB123)=0,$BB123,SUMPRODUCT($E$18:$AX$18,$E123:$AX123)*$BB123) -> 0 | BJ123: =IF((SUMPRODUCT($E$19:$AX$19,$E123:$AX123)*$BC123)=0,$BC123,SUMPRODUCT($E$19:$AX$19,$E123:$AX123)*$BC123) -> 0 | BK123: =IF((SUMPRODUCT($E$20:$AX$20,$E123:$AX123)*$BD123)=0,$BD123,SUMPRODUCT($E$20:$AX$20,$E123:$AX123)*$BD123) -> 0 | BL123: =IF((SUMPRODUCT($E$21:$AX$21,$E123:$AX123)*$BE123)=0,$BE123,SUMPRODUCT($E$21:$AX$21,$E123:$AX123)*$BE123) -> 0 | BN123: =BG123 -> 0.9588631 | BO123: =IF(BH123<1,BH123,1) -> 0 | BP123: 0 | BQ123: 0 | BR123: 0 | BS123: 0
A124: OP | B124: WDR-NR | C124: =C123 -> WDR | D124: Best Estimate | E124: =IF(E$9=$A124,IF(OR(E$10=$B124, E$10=$C124),1,IF(OR(E$10="All",E$10="All Properties"),1,0)),0) -> 0 | F124: 0 | G124: 0 | H124: 0 | I124: 0 | J124: 0 | K124: 0 | L124: 0 | M124: 0 | N124: 0 | O124: 0 | P124: 0 | Q124: 1 | R124: 0 | S124: 0 | T124: 0 | U124: 0 | V124: 0 | W124: 0 | X124: 0 | Y124: 0 | Z124: 0 | AA124: 0 | AB124: 0 | AC124: 0 | AD124: 0 | AE124: 0 | AF124: 0 | AG124: 0 | AH124: 0 | AI124: 0 | AJ124: 0 | AK124: 0 | AL124: 0 | AM124: 0 | AN124: 0 | AO124: 0 | AP124: 0 | AQ124: 0 | AR124: 0 | AS124: 0 | AT124: 0 | AU124: 0 | AV124: 0 | AW124: 0 | AX124: 0 | AZ124: 0.9588631 | BA124: =IF(ISERROR('%OP'!N87),0,'%OP'!N87) -> 0.923 | BB124: =IF(ISERROR('%OP'!N116),0,'%OP'!N116) -> 0.923 | BC124: =IF(ISERROR('%OP'!N145),0,'%OP'!N145) -> 0 | BD124: =IF(ISERROR('%OP'!N174),0,'%OP'!N174) -> 0 | BE124: =IF(ISERROR('%OP'!N203),0,'%OP'!N203) -> 0 | BG124: ='Non-Res Inputs'!N27 -> 0.9588631 | BH124: 0.923 | BI124: 0.923 | BJ124: 0 | BK124: 0 | BL124: 0 | BN124: 0.9588631 | BO124: 0.923 | BP124: 0.923 | BQ124: 0 | BR124: 0 | BS124: 0
A125: OP | B125: WDR-NR | C125: =C124 -> WDR | D125: Lower Estimate | E125: =E124 -> 0 | F125: 0 | G125: 0 | H125: 0 | I125: 0 | J125: 0 | K125: 0 | L125: 0 | M125: 0 | N125: 0 | O125: 0 | P125: 0 | Q125: 1 | R125: 0 | S125: 0 | T125: 0 | U125: 0 | V125: 0 | W125: 0 | X125: 0 | Y125: 0 | Z125: 0 | AA125: 0 | AB125: 0 | AC125: 0 | AD125: 0 | AE125: 0 | AF125: 0 | AG125: 0 | AH125: 0 | AI125: 0 | AJ125: 0 | AK125: 0 | AL125: 0 | AM125: 0 | AN125: 0 | AO125: 0 | AP125: 0 | AQ125: 0 | AR125: 0 | AS125: 0 | AT125: 0 | AU125: 0 | AV125: 0 | AW125: 0 | AX125: 0 | AZ125: 0.9588631 | BA125: =IF(ISERROR('%OP'!N88),0,'%OP'!N88) -> 0 | BB125: =IF(ISERROR('%OP'!N117),0,'%OP'!N117) -> 0 | BC125: =IF(ISERROR('%OP'!N146),0,'%OP'!N146) -> 0 | BD125: =IF(ISERROR('%OP'!N175),0,'%OP'!N175) -> 0 | BE125: =IF(ISERROR('%OP'!N204),0,'%OP'!N204) -> 0 | BG125: ='Non-Res Inputs'!N28 -> 0.9588631 | BH125: 0 | BI125: 0 | BJ125: 0 | BK125: 0 | BL125: 0 | BN125: 0.9588631 | BO125: 0 | BP125: 0 | BQ125: 0 | BR125: 0 | BS125: 0
A126: OP | B126: CME-NR | C126: =C101 -> CME | D126: Upper Estimate | E126: =E127 -> 0 | F126: 0 | G126: 0 | H126: 0 | I126: 0 | J126: 0 | K126: 0 | L126: 0 | M126: 0 | N126: 0 | O126: 0 | P126: 0 | Q126: 0 | R126: 1 | S126: 0 | T126: 0 | U126: 0 | V126: 0 | W126: 0 | X126: 0 | Y126: 0 | Z126: 0 | AA126: 0 | AB126: 0 | AC126: 0 | AD126: 0 | AE126: 0 | AF126: 0 | AG126: 0 | AH126: 0 | AI126: 0 | AJ126: 0 | AK126: 0 | AL126: 0 | AM126: 0 | AN126: 0 | AO126: 0 | AP126: 0 | AQ126: 0 | AR126: 0 | AS126: 0 | AT126: 0 | AU126: 0 | AV126: 0 | AW126: 0 | AX126: 0 | AZ126: 0.731306 | BA126: =IF(ISERROR('%OP'!N89),0,'%OP'!N89) -> 0 | BB126: =IF(ISERROR('%OP'!N118),0,'%OP'!N118) -> 0 | BC126: =IF(ISERROR('%OP'!N147),0,'%OP'!N147) -> 0 | BD126: =IF(ISERROR('%OP'!N176),0,'%OP'!N176) -> 0 | BE126: =IF(ISERROR('%OP'!N205),0,'%OP'!N205) -> 0 | BG126: ='Non-Res Inputs'!N29 -> 0.731306 | BH126: 0 | BI126: 0 | BJ126: 0 | BK126: 0 | BL126: 0 | BN126: 0.731306 | BO126: 0 | BP126: 0 | BQ126: 0 | BR126: 0 | BS126: 0
A127: OP | B127: CME-NR | C127: =C126 -> CME | D127: Best Estimate | E127: =IF(E$9=$A127,IF(OR(E$10=$B127, E$10=$C127),1,IF(OR(E$10="All",E$10="All Properties"),1,0)),0) -> 0 | F127: 0 | G127: 0 | H127: 0 | I127: 0 | J127: 0 | K127: 0 | L127: 0 | M127: 0 | N127: 0 | O127: 0 | P127: 0 | Q127: 0 | R127: 1 | S127: 0 | T127: 0 | U127: 0 | V127: 0 | W127: 0 | X127: 0 | Y127: 0 | Z127: 0 | AA127: 0 | AB127: 0 | AC127: 0 | AD127: 0 | AE127: 0 | AF127: 0 | AG127: 0 | AH127: 0 | AI127: 0 | AJ127: 0 | AK127: 0 | AL127: 0 | AM127: 0 | AN127: 0 | AO127: 0 | AP127: 0 | AQ127: 0 | AR127: 0 | AS127: 0 | AT127: 0 | AU127: 0 | AV127: 0 | AW127: 0 | AX127: 0 | AZ127: 0.731306 | BA127: =IF(ISERROR('%OP'!N90),0,'%OP'!N90) -> 0.7 | BB127: =IF(ISERROR('%OP'!N119),0,'%OP'!N119) -> 0.7 | BC127: =IF(ISERROR('%OP'!N148),0,'%OP'!N148) -> 0 | BD127: =IF(ISERROR('%OP'!N177),0,'%OP'!N177) -> 0 | BE127: =IF(ISERROR('%OP'!N206),0,'%OP'!N206) -> 0 | BG127: ='Non-Res Inputs'!N30 -> 0.731306 | BH127: 0.7 | BI127: 0.7 | BJ127: 0 | BK127: 0 | BL127: 0 | BN127: 0.731306 | BO127: 0.7 | BP127: 0.7 | BQ127: 0 | BR127: 0 | BS127: 0
A128: OP | B128: CME-NR | C128: =C127 -> CME | D128: Lower Estimate | E128: =E127 -> 0 | F128: 0 | G128: 0 | H128: 0 | I128: 0 | J128: 0 | K128: 0 | L128: 0 | M128: 0 | N128: 0 | O128: 0 | P128: 0 | Q128: 0 | R128: 1 | S128: 0 | T128: 0 | U128: 0 | V128: 0 | W128: 0 | X128: 0 | Y128: 0 | Z128: 0 | AA128: 0 | AB128: 0 | AC128: 0 | AD128: 0 | AE128: 0 | AF128: 0 | AG128: 0 | AH128: 0 | AI128: 0 | AJ128: 0 | AK128: 0 | AL128: 0 | AM128: 0 | AN128: 0 | AO128: 0 | AP128: 0 | AQ128: 0 | AR128: 0 | AS128: 0 | AT128: 0 | AU128: 0 | AV128: 0 | AW128: 0 | AX128: 0 | AZ128: 0.731306 | BA128: =IF(ISERROR('%OP'!N91),0,'%OP'!N91) -> 0 | BB128: =IF(ISERROR('%OP'!N120),0,'%OP'!N120) -> 0 | BC128: =IF(ISERROR('%OP'!N149),0,'%OP'!N149) -> 0 | BD128: =IF(ISERROR('%OP'!N178),0,'%OP'!N178) -> 0 | BE128: =IF(ISERROR('%OP'!N207),0,'%OP'!N207) -> 0 | BG128: ='Non-Res Inputs'!N31 -> 0.731306 | BH128: 0 | BI128: 0 | BJ128: 0 | BK128: 0 | BL128: 0 | BN128: 0.731306 | BO128: 0 | BP128: 0 | BQ128: 0 | BR128: 0 | BS128: 0
A131: =A70 -> PO | C131: =C70 -> % Response Potential
A132: =A131 -> PO | B132: =B108 -> BDD | C132: BDD | D132: Upper Estimate | E132: =E133 -> 0 | F132: 0 | G132: 0 | H132: 0 | I132: 0 | J132: 0 | K132: 0 | L132: 0 | M132: 0 | N132: 0 | O132: 0 | P132: 0 | Q132: 0 | R132: 0 | S132: 0 | T132: 0 | U132: 0 | V132: 0 | W132: 0 | X132: 0 | Y132: 0 | Z132: 0 | AA132: 0 | AB132: 0 | AC132: 0 | AD132: 0 | AE132: 0 | AF132: 0 | AG132: 0 | AH132: 0 | AI132: 0 | AJ132: 0 | AK132: 0 | AL132: 0 | AM132: 0 | AN132: 0 | AO132: 0 | AP132: 0 | AQ132: 0 | AR132: 0 | AS132: 0 | AT132: 0 | AU132: 0 | AV132: 0 | AW132: 0 | AX132: 0 | BG132: ='Non-Res Inputs'!N36 -> 0.84 | BH132: =IF((SUMPRODUCT($E$17:$AX$17,$E132:$AX132)*$BG132)=0,$BG132,SUMPRODUCT($E$17:$AX$17,$E132:$AX132)*$BG132) -> 0.84 | BI132: =IF((SUMPRODUCT($E$18:$AX$18,$E132:$AX132)*$BG132)=0,$BG132,SUMPRODUCT($E$18:$AX$18,$E132:$AX132)*$BG132) -> 0.84 | BJ132: =IF((SUMPRODUCT($E$19:$AX$19,$E132:$AX132)*$BG132)=0,$BG132,SUMPRODUCT($E$19:$AX$19,$E132:$AX132)*$BG132) -> 0.84 | BK132: =IF((SUMPRODUCT($E$20:$AX$20,$E132:$AX132)*$BG132)=0,$BG132,SUMPRODUCT($E$20:$AX$20,$E132:$AX132)*$BG132) -> 0.84 | BL132: =IF((SUMPRODUCT($E$21:$AX$21,$E132:$AX132)*$BG132)=0,$BG132,SUMPRODUCT($E$21:$AX$21,$E132:$AX132)*$BG132) -> 0.84 | BN132: =BG132 -> 0.84 | BO132: =IF(BH132<1,BH132,1) -> 0.84 | BP132: 0.84 | BQ132: 0.84 | BR132: 0.84 | BS132: 0.84
A133: PO | B133: BDD | C133: BDD | D133: Best Estimate | E133: =IF(E$9=$A133,IF(OR(E$10=$B133, E$10=$C133),1,IF(OR(E$10="All",E$10="All Properties"),1,0)),0) -> 0 | F133: 0 | G133: 0 | H133: 0 | I133: 0 | J133: 0 | K133: 0 | L133: 0 | M133: 0 | N133: 0 | O133: 0 | P133: 0 | Q133: 0 | R133: 0 | S133: 0 | T133: 0 | U133: 0 | V133: 0 | W133: =IF(W$9=$A133,IF(OR(W$10=$B133, W$10=$C133),1,IF(OR(W$10="All",W$10="All Properties"),1,0)),0) -> 0 | X133: 0 | Y133: 0 | Z133: 0 | AA133: 0 | AB133: 0 | AC133: 0 | AD133: 0 | AE133: 0 | AF133: 0 | AG133: 0 | AH133: 0 | AI133: 0 | AJ133: 0 | AK133: 0 | AL133: 0 | AM133: 0 | AN133: 0 | AO133: =IF(AO$9=$A133,IF(OR(AO$10=$B133, AO$10=$C133),1,IF(OR(AO$10="All",AO$10="All Properties"),1,0)),0) -> 0 | AP133: 0 | AQ133: 0 | AR133: 0 | AS133: 0 | AT133: 0 | AU133: 0 | AV133: 0 | AW133: 0 | AX133: 0 | BG133: ='Non-Res Inputs'!N37 -> 0.745 | BH133: =IF((SUMPRODUCT($E$17:$AX$17,$E133:$AX133)*$BG133)=0,$BG133,SUMPRODUCT($E$17:$AX$17,$E133:$AX133)*$BG133) -> 0.745 | BI133: =IF((SUMPRODUCT($E$18:$AX$18,$E133:$AX133)*$BG133)=0,$BG133,SUMPRODUCT($E$18:$AX$18,$E133:$AX133)*$BG133) -> 0.745 | BJ133: =IF((SUMPRODUCT($E$19:$AX$19,$E133:$AX133)*$BG133)=0,$BG133,SUMPRODUCT($E$19:$AX$19,$E133:$AX133)*$BG133) -> 0.745 | BK133: =IF((SUMPRODUCT($E$20:$AX$20,$E133:$AX133)*$BG133)=0,$BG133,SUMPRODUCT($E$20:$AX$20,$E133:$AX133)*$BG133) -> 0.745 | BL133: =IF((SUMPRODUCT($E$21:$AX$21,$E133:$AX133)*$BG133)=0,$BG133,SUMPRODUCT($E$21:$AX$21,$E133:$AX133)*$BG133) -> 0.745 | BN133: =BG133 -> 0.745 | BO133: 0.745 | BP133: 0.745 | BQ133: 0.745 | BR133: 0.745 | BS133: 0.745
A134: PO | B134: BDD | C134: BDD | D134: Lower Estimate | E134: =E133 -> 0 | F134: 0 | G134: 0 | H134: 0 | I134: 0 | J134: 0 | K134: 0 | L134: 0 | M134: 0 | N134: 0 | O134: 0 | P134: 0 | Q134: 0 | R134: 0 | S134: 0 | T134: 0 | U134: 0 | V134: 0 | W134: 0 | X134: 0 | Y134: 0 | Z134: 0 | AA134: 0 | AB134: 0 | AC134: 0 | AD134: 0 | AE134: 0 | AF134: 0 | AG134: 0 | AH134: 0 | AI134: 0 | AJ134: 0 | AK134: 0 | AL134: 0 | AM134: 0 | AN134: 0 | AO134: 0 | AP134: 0 | AQ134: 0 | AR134: 0 | AS134: 0 | AT134: 0 | AU134: 0 | AV134: 0 | AW134: 0 | AX134: 0 | BG134: ='Non-Res Inputs'!N38 -> 0.65 | BH134: =IF((SUMPRODUCT($E$17:$AX$17,$E134:$AX134)*$BG134)=0,$BG134,SUMPRODUCT($E$17:$AX$17,$E134:$AX134)*$BG134) -> 0.65 | BI134: =IF((SUMPRODUCT($E$18:$AX$18,$E134:$AX134)*$BG134)=0,$BG134,SUMPRODUCT($E$18:$AX$18,$E134:$AX134)*$BG134) -> 0.65 | BJ134: =IF((SUMPRODUCT($E$19:$AX$19,$E134:$AX134)*$BG134)=0,$BG134,SUMPRODUCT($E$19:$AX$19,$E134:$AX134)*$BG134) -> 0.65 | BK134: =IF((SUMPRODUCT($E$20:$AX$20,$E134:$AX134)*$BG134)=0,$BG134,SUMPRODUCT($E$20:$AX$20,$E134:$AX134)*$BG134) -> 0.65 | BL134: =IF((SUMPRODUCT($E$21:$AX$21,$E134:$AX134)*$BG134)=0,$BG134,SUMPRODUCT($E$21:$AX$21,$E134:$AX134)*$BG134) -> 0.65 | BN134: =BG134 -> 0.65 | BO134: =IF(BH134<1,BH134,1) -> 0.65 | BP134: =IF(BI134<1,BI134,1) -> 0.65 | BQ134: =IF(BJ134<1,BJ134,1) -> 0.65 | BR134: =IF(BK134<1,BK134,1) -> 0.65 | BS134: =IF(BL134<1,BL134,1) -> 0.65
A135: PO | B135: =C135&"-NR" -> WIR-NR | C135: =C111 -> WIR | D135: Upper Estimate | E135: =E136 -> 0 | F135: 0 | G135: 0 | H135: 0 | I135: 0 | J135: 0 | K135: 0 | L135: 0 | M135: 0 | N135: 0 | O135: 0 | P135: 0 | Q135: 0 | R135: 0 | S135: 0 | T135: 0 | U135: 0 | V135: 0 | W135: 0 | X135: 0 | Y135: 0 | Z135: 0 | AA135: 0 | AB135: 0 | AC135: 0 | AD135: 0 | AE135: 0 | AF135: 0 | AG135: 0 | AH135: 0 | AI135: 0 | AJ135: 0 | AK135: 0 | AL135: 0 | AM135: 0 | AN135: 0 | AO135: 0 | AP135: 0 | AQ135: 0 | AR135: 0 | AS135: 0 | AT135: 0 | AU135: 0 | AV135: 0 | AW135: 0 | AX135: 0 | BG135: ='Non-Res Inputs'!N39 -> 0.84 | BH135: 0.84 | BI135: 0.84 | BJ135: 0.84 | BK135: 0.84 | BL135: 0.84 | BN135: 0.84 | BO135: 0.84 | BP135: 0.84 | BQ135: 0.84 | BR135: 0.84 | BS135: 0.84
A136: PO | B136: WIR-NR | C136: =C135 -> WIR | D136: Best Estimate | E136: =IF(E$9=$A136,IF(OR(E$10=$B136, E$10=$C136),1,IF(OR(E$10="All",E$10="All Properties"),1,0)),0) -> 0 | F136: 0 | G136: 0 | H136: 0 | I136: 0 | J136: 0 | K136: 0 | L136: 0 | M136: 0 | N136: 0 | O136: 0 | P136: 0 | Q136: 0 | R136: 0 | S136: 0 | T136: 0 | U136: 0 | V136: 0 | W136: 0 | X136: 0 | Y136: 0 | Z136: 0 | AA136: 0 | AB136: 0 | AC136: 0 | AD136: 0 | AE136: 0 | AF136: 0 | AG136: 0 | AH136: 0 | AI136: 0 | AJ136: 0 | AK136: 0 | AL136: 0 | AM136: 0 | AN136: 0 | AO136: 0 | AP136: 0 | AQ136: 0 | AR136: 0 | AS136: 0 | AT136: 0 | AU136: 0 | AV136: 0 | AW136: 0 | AX136: 0 | BG136: ='Non-Res Inputs'!N40 -> 0.745 | BH136: 0.745 | BI136: 0.745 | BJ136: 0.745 | BK136: 0.745 | BL136: 0.745 | BN136: 0.745 | BO136: 0.745 | BP136: 0.745 | BQ136: 0.745 | BR136: 0.745 | BS136: 0.745
A137: PO | B137: WIR-NR | C137: =C136 -> WIR | D137: Lower Estimate | E137: =E136 -> 0 | F137: 0 | G137: 0 | H137: 0 | I137: 0 | J137: 0 | K137: 0 | L137: 0 | M137: 0 | N137: 0 | O137: 0 | P137: 0 | Q137: 0 | R137: 0 | S137: 0 | T137: 0 | U137: 0 | V137: 0 | W137: 0 | X137: 0 | Y137: 0 | Z137: 0 | AA137: 0 | AB137: 0 | AC137: 0 | AD137: 0 | AE137: 0 | AF137: 0 | AG137: 0 | AH137: 0 | AI137: 0 | AJ137: 0 | AK137: 0 | AL137: 0 | AM137: 0 | AN137: 0 | AO137: 0 | AP137: 0 | AQ137: 0 | AR137: 0 | AS137: 0 | AT137: 0 | AU137: 0 | AV137: 0 | AW137: 0 | AX137: 0 | BG137: ='Non-Res Inputs'!N41 -> 0.65 | BH137: 0.65 | BI137: 0.65 | BJ137: 0.65 | BK137: 0.65 | BL137: 0.65 | BN137: 0.65 | BO137: 0.65 | BP137: 0.65 | BQ137: 0.65 | BR137: 0.65 | BS137: 0.65
A138: PO | B138: WDR-NR | C138: =C114 -> WDR | D138: Upper Estimate | E138: =E139 -> 0 | F138: 0 | G138: 0 | H138: 0 | I138: 0 | J138: 0 | K138: 0 | L138: 0 | M138: 0 | N138: 0 | O138: 0 | P138: 0 | Q138: 0 | R138: 0 | S138: 0 | T138: 0 | U138: 0 | V138: 0 | W138: 0 | X138: 0 | Y138: 0 | Z138: 0 | AA138: 0 | AB138: 0 | AC138: 0 | AD138: 0 | AE138: 0 | AF138: 0 | AG138: 0 | AH138: 0 | AI138: 0 | AJ138: 0 | AK138: 0 | AL138: 0 | AM138: 0 | AN138: 0 | AO138: 0 | AP138: 0 | AQ138: 0 | AR138: 0 | AS138: 0 | AT138: 0 | AU138: 0 | AV138: 0 | AW138: 0 | AX138: 0 | BG138: ='Non-Res Inputs'!N42 -> 0.84 | BH138: 0.84 | BI138: 0.84 | BJ138: 0.84 | BK138: 0.84 | BL138: 0.84 | BN138: 0.84 | BO138: 0.84 | BP138: 0.84 | BQ138: 0.84 | BR138: 0.84 | BS138: 0.84
A139: PO | B139: WDR-NR | C139: =C138 -> WDR | D139: Best Estimate | E139: =IF(E$9=$A139,IF(OR(E$10=$B139, E$10=$C139),1,IF(OR(E$10="All",E$10="All Properties"),1,0)),0) -> 0 | F139: 0 | G139: 0 | H139: 0 | I139: 0 | J139: 0 | K139: 0 | L139: 0 | M139: 0 | N139: 0 | O139: 0 | P139: 0 | Q139: 0 | R139: 0 | S139: 0 | T139: 0 | U139: 0 | V139: 0 | W139: 0 | X139: 0 | Y139: 0 | Z139: 0 | AA139: 0 | AB139: 0 | AC139: 0 | AD139: 0 | AE139: 0 | AF139: 0 | AG139: 0 | AH139: 0 | AI139: 0 | AJ139: 0 | AK139: 0 | AL139: 0 | AM139: 0 | AN139: 0 | AO139: 0 | AP139: 0 | AQ139: 0 | AR139: 0 | AS139: 0 | AT139: 0 | AU139: 0 | AV139: 0 | AW139: 0 | AX139: 0 | BG139: ='Non-Res Inputs'!N43 -> 0.745 | BH139: 0.745 | BI139: 0.745 | BJ139: 0.745 | BK139: 0.745 | BL139: 0.745 | BN139: 0.745 | BO139: 0.745 | BP139: 0.745 | BQ139: 0.745 | BR139: 0.745 | BS139: 0.745
A140: PO | B140: WDR-NR | C140: =C139 -> WDR | D140: Lower Estimate | E140: =E139 -> 0 | F140: 0 | G140: 0 | H140: 0 | I140: 0 | J140: 0 | K140: 0 | L140: 0 | M140: 0 | N140: 0 | O140: 0 | P140: 0 | Q140: 0 | R140: 0 | S140: 0 | T140: 0 | U140: 0 | V140: 0 | W140: 0 | X140: 0 | Y140: 0 | Z140: 0 | AA140: 0 | AB140: 0 | AC140: 0 | AD140: 0 | AE140: 0 | AF140: 0 | AG140: 0 | AH140: 0 | AI140: 0 | AJ140: 0 | AK140: 0 | AL140: 0 | AM140: 0 | AN140: 0 | AO140: 0 | AP140: 0 | AQ140: 0 | AR140: 0 | AS140: 0 | AT140: 0 | AU140: 0 | AV140: 0 | AW140: 0 | AX140: 0 | BG140: ='Non-Res Inputs'!N44 -> 0.65 | BH140: 0.65 | BI140: 0.65 | BJ140: 0.65 | BK140: 0.65 | BL140: 0.65 | BN140: 0.65 | BO140: 0.65 | BP140: 0.65 | BQ140: 0.65 | BR140: 0.65 | BS140: 0.65
A141: PO | B141: RSL-NR | C141: =C117 -> RSL | D141: Upper Estimate | E141: =E142 -> 0 | F141: 0 | G141: 0 | H141: 0 | I141: 0 | J141: 0 | K141: 0 | L141: 0 | M141: 0 | N141: 0 | O141: 0 | P141: 0 | Q141: 0 | R141: 0 | S141: 0 | T141: 0 | U141: 0 | V141: 0 | W141: 0 | X141: 0 | Y141: 0 | Z141: 0 | AA141: 0 | AB141: 0 | AC141: 0 | AD141: 0 | AE141: 0 | AF141: 0 | AG141: 0 | AH141: 0 | AI141: 0 | AJ141: 0 | AK141: 0 | AL141: 0 | AM141: 0 | AN141: 0 | AO141: 0 | AP141: 0 | AQ141: 0 | AR141: 0 | AS141: 0 | AT141: 0 | AU141: 0 | AV141: 0 | AW141: 0 | AX141: 0 | BG141: ='Non-Res Inputs'!N45 -> 0.5 | BH141: 0.5 | BI141: 0.5 | BJ141: 0.5 | BK141: 0.5 | BL141: 0.5 | BN141: 0.5 | BO141: 0.5 | BP141: 0.5 | BQ141: 0.5 | BR141: 0.5 | BS141: 0.5
A142: PO | B142: RSL-NR | C142: =C141 -> RSL | D142: Best Estimate | E142: =IF(E$9=$A142,IF(OR(E$10=$B142, E$10=$C142),1,IF(OR(E$10="All",E$10="All Properties"),1,0)),0) -> 0 | F142: 0 | G142: 0 | H142: 0 | I142: 0 | J142: 0 | K142: 0 | L142: 0 | M142: 0 | N142: 0 | O142: 0 | P142: 0 | Q142: 0 | R142: 0 | S142: 0 | T142: 0 | U142: 0 | V142: 0 | W142: 0 | X142: 0 | Y142: 0 | Z142: 0 | AA142: 0 | AB142: 0 | AC142: 0 | AD142: 0 | AE142: 0 | AF142: 0 | AG142: 0 | AH142: 0 | AI142: 0 | AJ142: 0 | AK142: 0 | AL142: 0 | AM142: 0 | AN142: 0 | AO142: 0 | AP142: 0 | AQ142: 0 | AR142: 0 | AS142: 0 | AT142: 0 | AU142: 0 | AV142: 0 | AW142: 0 | AX142: 0 | BG142: ='Non-Res Inputs'!N46 -> 0.5 | BH142: 0.5 | BI142: 0.5 | BJ142: 0.5 | BK142: 0.5 | BL142: 0.5 | BN142: 0.5 | BO142: 0.5 | BP142: 0.5 | BQ142: 0.5 | BR142: 0.5 | BS142: 0.5
A143: PO | B143: RSL-NR | C143: =C142 -> RSL | D143: Lower Estimate | E143: =E142 -> 0 | F143: 0 | G143: 0 | H143: 0 | I143: 0 | J143: 0 | K143: 0 | L143: 0 | M143: 0 | N143: 0 | O143: 0 | P143: 0 | Q143: 0 | R143: 0 | S143: 0 | T143: 0 | U143: 0 | V143: 0 | W143: 0 | X143: 0 | Y143: 0 | Z143: 0 | AA143: 0 | AB143: 0 | AC143: 0 | AD143: 0 | AE143: 0 | AF143: 0 | AG143: 0 | AH143: 0 | AI143: 0 | AJ143: 0 | AK143: 0 | AL143: 0 | AM143: 0 | AN143: 0 | AO143: 0 | AP143: 0 | AQ143: 0 | AR143: 0 | AS143: 0 | AT143: 0 | AU143: 0 | AV143: 0 | AW143: 0 | AX143: 0 | BG143: ='Non-Res Inputs'!N47 -> 0.5 | BH143: 0.5 | BI143: 0.5 | BJ143: 0.5 | BK143: 0.5 | BL143: 0.5 | BN143: 0.5 | BO143: 0.5 | BP143: 0.5 | BQ143: 0.5 | BR143: 0.5 | BS143: 0.5
A144: PO | B144: CME-NR | C144: =C126 -> CME | D144: Upper Estimate | E144: =E145 -> 0 | F144: 0 | G144: 0 | H144: 0 | I144: 0 | J144: 0 | K144: 0 | L144: 0 | M144: 0 | N144: 0 | O144: 0 | P144: 0 | Q144: 0 | R144: 0 | S144: 0 | T144: 0 | U144: 0 | V144: 0 | W144: 0 | X144: 0 | Y144: 0 | Z144: 0 | AA144: 0 | AB144: 0 | AC144: 0 | AD144: 0 | AE144: 0 | AF144: 0 | AG144: 0 | AH144: 0 | AI144: 0 | AJ144: 0 | AK144: 0 | AL144: 0 | AM144: 0 | AN144: 0 | AO144: 0 | AP144: 0 | AQ144: 0 | AR144: 0 | AS144: 0 | AT144: 0 | AU144: 0 | AV144: 0 | AW144: 0 | AX144: 0 | BG144: ='Non-Res Inputs'!N48 -> 0.2132 | BH144: 0.2132 | BI144: 0.2132 | BJ144: 0.2132 | BK144: 0.2132 | BL144: 0.2132 | BN144: 0.2132 | BO144: 0.2132 | BP144: 0.2132 | BQ144: 0.2132 | BR144: 0.2132 | BS144: 0.2132
A145: PO | B145: CME-NR | C145: =C144 -> CME | D145: Best Estimate | E145: =IF(E$9=$A145,IF(OR(E$10=$B145, E$10=$C145),1,IF(OR(E$10="All",E$10="All Properties"),1,0)),0) -> 0 | F145: 0 | G145: 0 | H145: 0 | I145: 0 | J145: 0 | K145: 0 | L145: 0 | M145: 0 | N145: 0 | O145: 0 | P145: 0 | Q145: 0 | R145: 0 | S145: 0 | T145: 0 | U145: 0 | V145: 0 | W145: 0 | X145: 0 | Y145: 0 | Z145: 0 | AA145: 0 | AB145: 0 | AC145: 0 | AD145: 0 | AE145: 0 | AF145: 0 | AG145: 0 | AH145: 0 | AI145: 0 | AJ145: 0 | AK145: 0 | AL145: 0 | AM145: 0 | AN145: 0 | AO145: 0 | AP145: 0 | AQ145: 0 | AR145: 0 | AS145: 0 | AT145: 0 | AU145: 0 | AV145: 0 | AW145: 0 | AX145: 0 | BG145: ='Non-Res Inputs'!N49 -> 0.2132 | BH145: 0.2132 | BI145: 0.2132 | BJ145: 0.2132 | BK145: 0.2132 | BL145: 0.2132 | BN145: 0.2132 | BO145: 0.2132 | BP145: 0.2132 | BQ145: 0.2132 | BR145: 0.2132 | BS145: 0.2132
